Workbook

Sheet Instructions
B1: Tennessee Higher Education Commission
B2: Outcomes-Based Funding Dynamic Simulation Instructions
C11: 102 | G11: 101 | K11: 100
C13: 0.01 | D13: 0.01 | E13: 0.01 | F13: 0.01 | G13: 0.01 | H13: 0.01 | I13: 0.01 | J13: 0.01 | K13: 0.01
C14: 0.01 | D14: 0.01 | E14: 0.01 | F14: 0.01 | G14: 0.01 | H14: 0.01 | I14: 0.01 | J14: 0.01 | K14: 0.01
C15: 0.01 | D15: 0.01 | E15: 0.01 | F15: 0.01 | G15: 0.01 | H15: 0.01 | I15: 0.01 | J15: 0.01 | K15: 0.01
C16: 0.01 | D16: 0.01 | E16: 0.01 | F16: 0.01 | G16: 0.01 | H16: 0.01 | I16: 0.01 | J16: 0.01 | K16: 0.01
C17: 0.01 | D17: 0.01 | E17: 0.01 | F17: 0.01 | G17: 0.01 | H17: 0.01 | I17: 0.01 | J17: 0.01 | K17: 0.01
C18: 0.01 | D18: 0.01 | E18: 0.01 | F18: 0.01 | G18: 0.01 | H18: 0.01 | I18: 0.01 | J18: 0.01 | K18: 0.01
C19: 0.01 | D19: 0.01 | E19: 0.01 | F19: 0.01 | G19: 0.01 | H19: 0.01 | I19: 0.01 | J19: 0.01 | K19: 0.01
C20: 0.01 | D20: 0.01 | E20: 0.01 | F20: 0.01 | G20: 0.01 | H20: 0.01 | I20: 0.01 | J20: 0.01 | K20: 0.01
C21: 0.01 | D21: 0.01 | E21: 0.01 | F21: 0.01 | G21: 0.01 | H21: 0.01 | I21: 0.01 | J21: 0.01 | K21: 0.01
C22: 0.01 | D22: 0.01 | E22: 0.01 | F22: 0.01 | G22: 0.01 | H22: 0.01 | I22: 0.01 | J22: 0.01 | K22: 0.01
C23: 0.01 | D23: 0.01 | E23: 0.01 | F23: 0.01 | G23: 0.01 | H23: 0.01 | I23: 0.01 | J23: 0.01 | K23: 0.01
C24: 0.01 | D24: 0.01 | E24: 0.01 | F24: 0.01 | G24: 0.01 | H24: 0.01 | I24: 0.01 | J24: 0.01 | K24: 0.01
C26: 113 | G26: 100 | K26: 100
C31: 100 | G31: 100 | K31: 100
C40: 100

Sheet Control Data
B1: Tennessee Higher Education Commission
B2: Estimated Changes to FY 2021-22 Formula
C4: All CC | D4: All 4yr | E4: Total | I4: 20-21 Appropriations | L4: ='Dynamic - 21-22 Recommendation'!L9 -> 1078850800
B5: Percent Change in Est. Funding | C5: ='Dynamic - 21-22 Recommendation'!$I$32 -> 0.01011452513 | D5: =SUM('Dynamic - 21-22 Recommendation'!$H$16,'Dynamic - 21-22 Recommendation'!$H$38)/SUM('Dynamic - 21-22 Recommendation'!$C$16,'Dynamic - 21-22 Recommendation'!$C$38) -> -0.003798526617 | E5: ='Dynamic - 21-22 Recommendation'!$I$40 -> 0 | I5: Estimated 21-22 Appropriations | L5: =L4+L6 -> 1078850800
B6: Change in Est. Funding | C6: ='Dynamic - 21-22 Recommendation'!$H$32 -> 2979200 | D6: =SUM('Dynamic - 21-22 Recommendation'!$H$16,'Dynamic - 21-22 Recommendation'!$H$38) -> -2979200 | E6: ='Dynamic - 21-22 Recommendation'!$H$40 -> 0 | I6: Change | L6: =M6*L4 -> 0 | M6: =N6/1000 -> 0 | N6: 0
B9: Changes to 2019-20 Outcomes - CCs | C9: Chattanooga | D9: Cleveland | E9: Columbia | F9: Dyersburg | G9: Jackson | H9: Motlow | I9: Nashville | J9: Northeast | K9: Pellissippi | L9: Roane | M9: Southwest | N9: Volunteer | O9: Walters
B10: Students Accumulating 12 hrs | C10: 0 | D10: 0 | E10: 0 | F10: 0 | G10: 0 | H10: 0 | I10: 0 | J10: 0 | K10: 0 | L10: 0 | M10: 0 | N10: 0 | O10: 0
B11: Students Accumulating 24 hrs | C11: 0 | D11: 0 | E11: 0 | F11: 0 | G11: 0 | H11: 0 | I11: 0 | J11: 0 | K11: 0 | L11: 0 | M11: 0 | N11: 0 | O11: 0
B12: Students Accumulating 36 hrs | C12: 0 | D12: 0 | E12: 0 | F12: 0 | G12: 0 | H12: 0 | I12: 0 | J12: 0 | K12: 0 | L12: 0 | M12: 0 | N12: 0 | O12: 0
B13: Dual Enrollment | C13: 0 | D13: 0 | E13: 0 | F13: 0 | G13: 0 | H13: 0 | I13: 0 | J13: 0 | K13: 0 | L13: 0 | M13: 0 | N13: 0 | O13: 0
B14: Associates | C14: =SUM('CC Data'!$AN8,0.5*'CC Data'!$AN9)/SUM('CC Data'!$AM8,0.5*'CC Data'!$AM9)-1 -> 0 | D14: =SUM('CC Data'!$AN31,0.5*'CC Data'!$AN32)/SUM('CC Data'!$AM31,0.5*'CC Data'!$AM32)-1 -> 0 | E14: =SUM('CC Data'!$AN54,0.5*'CC Data'!$AN55)/SUM('CC Data'!$AM54,0.5*'CC Data'!$AM55)-1 -> 0 | F14: =SUM('CC Data'!$AN77,0.5*'CC Data'!$AN78)/SUM('CC Data'!$AM77,0.5*'CC Data'!$AM78)-1 -> 0 | G14: =SUM('CC Data'!$AN100,0.5*'CC Data'!$AN101)/SUM('CC Data'!$AM100,0.5*'CC Data'!$AM101)-1 -> 0 | H14: =SUM('CC Data'!$AN123,0.5*'CC Data'!$AN124)/SUM('CC Data'!$AM123,0.5*'CC Data'!$AM124)-1 -> 0 | I14: =SUM('CC Data'!$AN146,0.5*'CC Data'!$AN147)/SUM('CC Data'!$AM146,0.5*'CC Data'!$AM147)-1 -> 0 | J14: =SUM('CC Data'!$AN169,0.5*'CC Data'!$AN170)/SUM('CC Data'!$AM169,0.5*'CC Data'!$AM170)-1 -> 0 | K14: =SUM('CC Data'!$AN192,0.5*'CC Data'!$AN193)/SUM('CC Data'!$AM192,0.5*'CC Data'!$AM193)-1 -> 0 | L14: =SUM('CC Data'!$AN215,0.5*'CC Data'!$AN216)/SUM('CC Data'!$AM215,0.5*'CC Data'!$AM216)-1 -> 0 | M14: =SUM('CC Data'!$AN238,0.5*'CC Data'!$AN239)/SUM('CC Data'!$AM238,0.5*'CC Data'!$AM239)-1 -> 0 | N14: =SUM('CC Data'!$AN261,0.5*'CC Data'!$AN262)/SUM('CC Data'!$AM261,0.5*'CC Data'!$AM262)-1 -> 0 | O14: =SUM('CC Data'!$AN284,0.5*'CC Data'!$AN285)/SUM('CC Data'!$AM284,0.5*'CC Data'!$AM285)-1 -> 0
B15: Associates | C15: 0 | D15: 0 | E15: 0 | F15: 0 | G15: 0 | H15: 0 | I15: 0 | J15: 0 | K15: 0 | L15: 0 | M15: 0 | N15: 0 | O15: 0
B16: Reverse Associates | C16: 0 | D16: 0 | E16: 0 | F16: 0 | G16: 0 | H16: 0 | I16: 0 | J16: 0 | K16: 0 | L16: 0 | M16: 0 | N16: 0 | O16: 0
B17: 1-2 Year Certificates | C17: 0 | D17: 0 | E17: 0 | F17: 0 | G17: 0 | H17: 0 | I17: 0 | J17: 0 | K17: 0 | L17: 0 | M17: 0 | N17: 0 | O17: 0
B18: <1yr Certificates | C18: 0 | D18: 0 | E18: 0 | F18: 0 | G18: 0 | H18: 0 | I18: 0 | J18: 0 | K18: 0 | L18: 0 | M18: 0 | N18: 0 | O18: 0
B19: Job Placements | C19: 0 | D19: 0 | E19: 0 | F19: 0 | G19: 0 | H19: 0 | I19: 0 | J19: 0 | K19: 0 | L19: 0 | M19: 0 | N19: 0 | O19: 0
B20: Transfers Out with 12 hrs | C20: 0 | D20: 0 | E20: 0 | F20: 0 | G20: 0 | H20: 0 | I20: 0 | J20: 0 | K20: 0 | L20: 0 | M20: 0 | N20: 0 | O20: 0
B21: Workforce Training (Contact Hours) | C21: 0 | D21: 0 | E21: 0 | F21: 0 | G21: 0 | H21: 0 | I21: 0 | J21: 0 | K21: 0 | L21: 0 | M21: 0 | N21: 0 | O21: 0
B22: Awards per 100 FTE | C22: 0 | D22: 0 | E22: 0 | F22: 0 | G22: 0 | H22: 0 | I22: 0 | J22: 0 | K22: 0 | L22: 0 | M22: 0 | N22: 0 | O22: 0
B23: Focus Population: 1 | C23: 0 | D23: 0 | E23: 0 | F23: 0 | G23: 0 | H23: 0 | I23: 0 | J23: 0 | K23: 0 | L23: 0 | M23: 0 | N23: 0 | O23: 0
B24: Focus Population: 2 | C24: 0 | D24: 0 | E24: 0 | F24: 0 | G24: 0 | H24: 0 | I24: 0 | J24: 0 | K24: 0 | L24: 0 | M24: 0 | N24: 0 | O24: 0
B25: Focus Population: 3 | C25: 0 | D25: 0 | E25: 0 | F25: 0 | G25: 0 | H25: 0 | I25: 0 | J25: 0 | K25: 0 | L25: 0 | M25: 0 | N25: 0 | O25: 0
B26: Enrollment | C26: 0 | D26: 0 | E26: 0 | F26: 0 | G26: 0 | H26: 0 | I26: 0 | J26: 0 | K26: 0 | L26: 0 | M26: 0 | N26: 0 | O26: 0
B27: Percent Change in Est. Funding | C27: ='Dynamic - 21-22 Recommendation'!$I$19 -> -0.005814518677 | D27: ='Dynamic - 21-22 Recommendation'!$I$20 -> 0.01279978442 | E27: ='Dynamic - 21-22 Recommendation'!$I$21 -> 0.03394674394 | F27: ='Dynamic - 21-22 Recommendation'!$I$22 -> 0.01419910657 | G27: ='Dynamic - 21-22 Recommendation'!$I$23 -> 0.0007642467773 | H27: ='Dynamic - 21-22 Recommendation'!$I$24 -> 0.05816383828 | I27: ='Dynamic - 21-22 Recommendation'!$I$25 -> -0.01510056721 | J27: ='Dynamic - 21-22 Recommendation'!$I$26 -> 0.0343831654 | K27: ='Dynamic - 21-22 Recommendation'!$I$27 -> 0.008373894088 | L27: ='Dynamic - 21-22 Recommendation'!$I$28 -> 0.005622707569 | M27: ='Dynamic - 21-22 Recommendation'!$I$29 -> -0.02182092809 | N27: ='Dynamic - 21-22 Recommendation'!$I$30 -> 0.02476408701 | O27: ='Dynamic - 21-22 Recommendation'!$I$31 -> 0.009127300577
B28: Change in Est. Funding ($1K) | C28: ='Dynamic - 21-22 Recommendation'!$H$19/1000 -> -191.4 | D28: ='Dynamic - 21-22 Recommendation'!$H$20/1000 -> 152 | E28: ='Dynamic - 21-22 Recommendation'!$H$21/1000 -> 595.1 | F28: ='Dynamic - 21-22 Recommendation'!$H$22/1000 -> 151.3 | G28: ='Dynamic - 21-22 Recommendation'!$H$23/1000 -> 11.3 | H28: ='Dynamic - 21-22 Recommendation'!$H$24/1000 -> 1118.7 | I28: ='Dynamic - 21-22 Recommendation'!$H$25/1000 -> -341.3 | J28: ='Dynamic - 21-22 Recommendation'!$H$26/1000 -> 786.9 | K28: ='Dynamic - 21-22 Recommendation'!$H$27/1000 -> 295.4 | L28: ='Dynamic - 21-22 Recommendation'!$H$28/1000 -> 134.9 | M28: ='Dynamic - 21-22 Recommendation'!$H$29/1000 -> -650.1 | N28: ='Dynamic - 21-22 Recommendation'!$H$30/1000 -> 685.2 | O28: ='Dynamic - 21-22 Recommendation'!$H$31/1000 -> 231.2
B30: Changes to 2019-20 Outcomes - Univs | C30: UTM | D30: APSU | E30: TTU | F30: UTC | G30: MTSU | H30: ETSU | I30: TSU | J30: UM | K30: UTK | M30: Table Controls
B31: Students Accumulating 30 hrs | C31: 0 | D31: 0 | E31: 0 | F31: 0 | G31: 0 | H31: 0 | I31: 0 | J31: 0 | K31: 0
B32: Students Accumulating 60 hrs | C32: 0 | D32: 0 | E32: 0 | F32: 0 | G32: 0 | H32: 0 | I32: 0 | J32: 0 | K32: 0 | N32: Value | O32: 0
B33: Students Accumulating 90 hrs | C33: 0 | D33: 0 | E33: 0 | F33: 0 | G33: 0 | H33: 0 | I33: 0 | J33: 0 | K33: 0
B34: Bachelors and Associates | C34: ='Univ Data'!$AN$7/'Univ Data'!$AM$7-1 -> 0 | D34: ='Univ Data'!$AN$23/'Univ Data'!$AM$23-1 -> 0 | E34: ='Univ Data'!$AN$39/'Univ Data'!$AM$39-1 -> 0 | F34: ='Univ Data'!$AN$55/'Univ Data'!$AM$55-1 -> 0 | G34: ='Univ Data'!$AN$71/'Univ Data'!$AM$71-1 -> 0 | H34: ='Univ Data'!$AN$87/'Univ Data'!$AM$87-1 -> 0 | I34: ='Univ Data'!$AN$103/'Univ Data'!$AM$103-1 -> 0 | J34: ='Univ Data'!$AN$119/'Univ Data'!$AM$119-1 -> 0 | K34: ='Univ Data'!$AN$135/'Univ Data'!$AM$135-1 -> 0 | O34: Update Institutions
B35: Associate | C35: 0 | D35: 0 | E35: 0 | F35: 0 | G35: 0 | H35: 0 | I35: 0 | J35: 0 | K35: 0
B36: Reverse Articulated Associates | C36: 0 | D36: 0 | E36: 0 | F36: 0 | G36: 0 | H36: 0 | I36: 0 | J36: 0 | K36: 0
B37: Bachelors | C37: 0 | D37: 0 | E37: 0 | F37: 0 | G37: 0 | H37: 0 | I37: 0 | J37: 0 | K37: 0
B38: Masters/Ed Specialist Degrees | C38: ='Univ Data'!$AN$8/'Univ Data'!$AM$8-1 -> 0 | D38: ='Univ Data'!$AN$24/'Univ Data'!$AM$24-1 -> 0 | E38: ='Univ Data'!$AN$40/'Univ Data'!$AM$40-1 -> 0 | F38: ='Univ Data'!$AN$56/'Univ Data'!$AM$56-1 -> 0 | G38: ='Univ Data'!$AN$72/'Univ Data'!$AM$72-1 -> 0 | H38: ='Univ Data'!$AN$88/'Univ Data'!$AM$88-1 -> 0 | I38: ='Univ Data'!$AN$104/'Univ Data'!$AM$104-1 -> 0 | J38: ='Univ Data'!$AN$120/'Univ Data'!$AM$120-1 -> 0 | K38: ='Univ Data'!$AN$136/'Univ Data'!$AM$136-1 -> 0 | O38: Update Outcomes
B39: Masters | C39: 0 | D39: 0 | E39: 0 | F39: 0 | G39: 0 | H39: 0 | I39: 0 | J39: 0 | K39: 0 | O39: Community College Formula Components
B40: Education Specialist | C40: 0 | D40: 0 | E40: 0 | F40: 0 | G40: 0 | H40: 0 | I40: 0 | J40: 0 | K40: 0
B41: Doctoral / Law Degrees | C41: =IFERROR('Univ Data'!$AN$9/'Univ Data'!$AM$9-1,0) -> 0 | D41: =IFERROR('Univ Data'!$AN$25/'Univ Data'!$AM$25-1,0) -> 0 | E41: ='Univ Data'!$AN$41/'Univ Data'!$AM$41-1 -> 0 | F41: ='Univ Data'!$AN$57/'Univ Data'!$AM$57-1 -> 0 | G41: ='Univ Data'!$AN$73/'Univ Data'!$AM$73-1 -> 0 | H41: ='Univ Data'!$AN$89/'Univ Data'!$AM$89-1 -> 0 | I41: ='Univ Data'!$AN$105/'Univ Data'!$AM$105-1 -> 0 | J41: ='Univ Data'!$AN$121/'Univ Data'!$AM$121-1 -> 0 | K41: ='Univ Data'!$AN$137/'Univ Data'!$AM$137-1 -> 0
B42: Law Degrees | C42: 0 | D42: 0 | E42: 0 | F42: 0 | G42: 0 | H42: 0 | I42: 0 | J42: 0 | K42: 0
B43: Degrees of Veterinary Medicine | C43: 0 | D43: 0 | E43: 0 | F43: 0 | G43: 0 | H43: 0 | I43: 0 | J43: 0 | K43: 0 | O43: University Formula Components
B44: Doctoral | C44: 0 | D44: 0 | E44: 0 | F44: 0 | G44: 0 | H44: 0 | I44: 0 | J44: 0 | K44: 0
B45: Research, Service and Sponsored Programs | C45: 0 | D45: 0 | E45: 0 | F45: 0 | G45: 0 | H45: 0 | I45: 0 | J45: 0 | K45: 0
B46: Degrees per 100 FTE | C46: 0 | D46: 0 | E46: 0 | F46: 0 | G46: 0 | H46: 0 | I46: 0 | J46: 0 | K46: 0
B47: Six-Year Graduation Rate | C47: 0 | D47: 0 | E47: 0 | F47: 0 | G47: 0 | H47: 0 | I47: 0 | J47: 0 | K47: 0 | O47: Reset Table Values to Zero
B48: Focus Population: 1 | C48: 0 | D48: 0 | E48: 0 | F48: 0 | G48: 0 | H48: 0 | I48: 0 | J48: 0 | K48: 0
B49: Focus Population: 2 | C49: 0 | D49: 0 | E49: 0 | F49: 0 | G49: 0 | H49: 0 | I49: 0 | J49: 0 | K49: 0
B50: Enrollment | C50: 0 | D50: 0 | E50: 0 | F50: 0 | G50: 0 | H50: 0 | I50: 0 | J50: 0 | K50: 0
B51: Percent Change in Est. Funding | C51: ='Dynamic - 21-22 Recommendation'!$I$37 -> -0.01885206992 | D51: ='Dynamic - 21-22 Recommendation'!$I$10 -> 0.002028885019 | E51: ='Dynamic - 21-22 Recommendation'!$I$14 -> -0.00635244212 | F51: ='Dynamic - 21-22 Recommendation'!$I$35 -> -0.002655289594 | G51: ='Dynamic - 21-22 Recommendation'!$I$12 -> -0.01558405463 | H51: ='Dynamic - 21-22 Recommendation'!$I$11 -> -0.001634178158 | I51: ='Dynamic - 21-22 Recommendation'!$I$13 -> -0.0203074347 | J51: ='Dynamic - 21-22 Recommendation'!$I$15 -> -0.0006156245178 | K51: ='Dynamic - 21-22 Recommendation'!$I$36 -> 0.003078036481
B52: Change in Est. Funding ($1K) | C52: ='Dynamic - 21-22 Recommendation'!$H$37/1000 -> -639.4 | D52: ='Dynamic - 21-22 Recommendation'!$H$10/1000 -> 103 | E52: ='Dynamic - 21-22 Recommendation'!$H$14/1000 -> -362.1 | F52: ='Dynamic - 21-22 Recommendation'!$H$35/1000 -> -156.9 | G52: ='Dynamic - 21-22 Recommendation'!$H$12/1000 -> -1648.5 | H52: ='Dynamic - 21-22 Recommendation'!$H$11/1000 -> -114.5 | I52: ='Dynamic - 21-22 Recommendation'!$H$13/1000 -> -834.4 | J52: ='Dynamic - 21-22 Recommendation'!$H$15/1000 -> -75.8 | K52: ='Dynamic - 21-22 Recommendation'!$H$36/1000 -> 749.4

Sheet Summary
B1: Tennessee Higher Education Commission
B2: Summary of Changes in FY 2021-22 Formula and Estimated State Appropriations
G4: Est. Change Due to | H4: Percent Change Due to
B5: Assumptions | G5: Outcomes and Funding* | H5: Outcomes and Funding*
B6: 2020-21 State Appropriations | C6: ='Control Data'!$L$4 -> 1078850800 | F6: APSU | G6: ='Dynamic - 21-22 Recommendation'!$H$10 -> 103000 | H6: ='Dynamic - 21-22 Recommendation'!$I$10 -> 0.002028885019
B7: Est 2021-22 State Appropriations | C7: ='Control Data'!$L$5 -> 1078850800 | F7: ETSU | G7: ='Dynamic - 21-22 Recommendation'!$H$11 -> -114500 | H7: ='Dynamic - 21-22 Recommendation'!$I$11 -> -0.001634178158
B8: Percentage Change from 2020-21 | C8: ='Control Data'!$M$6 -> 0 | F8: MTSU | G8: ='Dynamic - 21-22 Recommendation'!$H$12 -> -1648500 | H8: ='Dynamic - 21-22 Recommendation'!$I$12 -> -0.01558405463
B9: Dollar Change from 2020-21 | C9: ='Control Data'!$L$6 -> 0 | F9: TSU | G9: ='Dynamic - 21-22 Recommendation'!$H$13 -> -834400 | H9: ='Dynamic - 21-22 Recommendation'!$I$13 -> -0.0203074347
F10: TTU | G10: ='Dynamic - 21-22 Recommendation'!$H$14 -> -362100 | H10: ='Dynamic - 21-22 Recommendation'!$I$14 -> -0.00635244212
F11: UM | G11: ='Dynamic - 21-22 Recommendation'!$H$15 -> -75800 | H11: ='Dynamic - 21-22 Recommendation'!$I$15 -> -0.0006156245178
B12: University Outcomes** | D12: Avg Univ Change | F12: TBR Univ. Subtotal | G12: ='Dynamic - 21-22 Recommendation'!$H$16 -> -2932300 | H12: ='Dynamic - 21-22 Recommendation'!$I$16 -> -0.006547783996
B13: Students Accumulating 30 hrs | D13: =AVERAGE('Control Data'!C31:K31) -> 0
B14: Students Accumulating 60 hrs | D14: =AVERAGE('Control Data'!C32:K32) -> 0 | F14: Chattanooga | G14: ='Dynamic - 21-22 Recommendation'!$H$19 -> -191400 | H14: ='Dynamic - 21-22 Recommendation'!$I$19 -> -0.005814518677
B15: Students Accumulating 90 hrs | D15: =AVERAGE('Control Data'!C33:K33) -> 0 | F15: Cleveland | G15: ='Dynamic - 21-22 Recommendation'!$H$20 -> 152000 | H15: ='Dynamic - 21-22 Recommendation'!$I$20 -> 0.01279978442
B16: Bachelors and Associates | D16: =AVERAGE('Control Data'!C34:K34) -> 0 | F16: Columbia | G16: ='Dynamic - 21-22 Recommendation'!$H$21 -> 595100 | H16: ='Dynamic - 21-22 Recommendation'!$I$21 -> 0.03394674394
B17: Masters/Ed Specialist Degrees | D17: =AVERAGE('Control Data'!C38:K38) -> 0 | F17: Dyersburg | G17: ='Dynamic - 21-22 Recommendation'!$H$22 -> 151300 | H17: ='Dynamic - 21-22 Recommendation'!$I$22 -> 0.01419910657
B18: Doctoral / Law Degrees | D18: =AVERAGE('Control Data'!C41:K41) -> 0 | F18: Jackson | G18: ='Dynamic - 21-22 Recommendation'!$H$23 -> 11300 | H18: ='Dynamic - 21-22 Recommendation'!$I$23 -> 0.0007642467773
B19: Research and Service | D19: =AVERAGE('Control Data'!C45:K45) -> 0 | F19: Motlow | G19: ='Dynamic - 21-22 Recommendation'!$H$24 -> 1118700 | H19: ='Dynamic - 21-22 Recommendation'!$I$24 -> 0.05816383828
B20: Degrees per 100 FTE | D20: =AVERAGE('Control Data'!C46:K46) -> 0 | F20: Nashville | G20: ='Dynamic - 21-22 Recommendation'!$H$25 -> -341300 | H20: ='Dynamic - 21-22 Recommendation'!$I$25 -> -0.01510056721
B21: Six-Year Graduation Rate | D21: =AVERAGE('Control Data'!C47:K47) -> 0 | F21: Northeast | G21: ='Dynamic - 21-22 Recommendation'!$H$26 -> 786900 | H21: ='Dynamic - 21-22 Recommendation'!$I$26 -> 0.0343831654
B22: Focus Population: Adult | D22: =AVERAGE('Control Data'!C48:K48) -> 0 | F22: Pellissippi | G22: ='Dynamic - 21-22 Recommendation'!$H$27 -> 295400 | H22: ='Dynamic - 21-22 Recommendation'!$I$27 -> 0.008373894088
B23: Focus Population: Low-Income | D23: =AVERAGE('Control Data'!C49:K49) -> 0 | F23: Roane | G23: ='Dynamic - 21-22 Recommendation'!$H$28 -> 134900 | H23: ='Dynamic - 21-22 Recommendation'!$I$28 -> 0.005622707569
F24: Southwest | G24: ='Dynamic - 21-22 Recommendation'!$H$29 -> -650100 | H24: ='Dynamic - 21-22 Recommendation'!$I$29 -> -0.02182092809
B25: Community College Outcomes** | D25: Avg CC Change | F25: Volunteer | G25: ='Dynamic - 21-22 Recommendation'!$H$30 -> 685200 | H25: ='Dynamic - 21-22 Recommendation'!$I$30 -> 0.02476408701
B26: Students Accumulating 12 hrs | D26: =AVERAGE('Control Data'!C10:O10) -> 0 | F26: Walters | G26: ='Dynamic - 21-22 Recommendation'!$H$31 -> 231200 | H26: ='Dynamic - 21-22 Recommendation'!$I$31 -> 0.009127300577
B27: Students Accumulating 24 hrs | D27: =AVERAGE('Control Data'!C11:O11) -> 0 | F27: CC Sector Subtotal | G27: ='Dynamic - 21-22 Recommendation'!$H$32 -> 2979200 | H27: ='Dynamic - 21-22 Recommendation'!$I$32 -> 0.01011452513
B28: Students Accumulating 36 hrs | D28: =AVERAGE('Control Data'!C12:O12) -> 0
B29: Dual Enrollment | D29: =AVERAGE('Control Data'!C13:O13) -> 0 | F29: UTC | G29: ='Dynamic - 21-22 Recommendation'!$H$35 -> -156900 | H29: ='Dynamic - 21-22 Recommendation'!$I$35 -> -0.002655289594
B30: Associates | D30: =AVERAGE('Control Data'!C14:O14) -> 0 | F30: UTK | G30: ='Dynamic - 21-22 Recommendation'!$H$36 -> 749400 | H30: ='Dynamic - 21-22 Recommendation'!$I$36 -> 0.003078036481
B31: Certificates 1-2 Years | D31: =AVERAGE('Control Data'!C17:O17) -> 0 | F31: UTM | G31: ='Dynamic - 21-22 Recommendation'!$H$37 -> -639400 | H31: ='Dynamic - 21-22 Recommendation'!$I$37 -> -0.01885206992
B32: Certificates Less Than 1 Year | D32: =AVERAGE('Control Data'!C18:O18) -> 0 | F32: UT Subtotal | G32: ='Dynamic - 21-22 Recommendation'!$H$38 -> -46900 | H32: ='Dynamic - 21-22 Recommendation'!$I$38 -> -0.0001393870299
B33: Job Placements | D33: =AVERAGE('Control Data'!C19:O19) -> 0
B34: Transfers Out with 12 hrs | D34: =AVERAGE('Control Data'!C20:O20) -> 0 | F34: Total | G34: ='Dynamic - 21-22 Recommendation'!$H$40 -> 0 | H34: ='Dynamic - 21-22 Recommendation'!$I$40 -> 0
B35: Workforce Training | D35: =AVERAGE('Control Data'!C21:O21) -> 0 | F35: *The estimated change in state appropriations due to changes in both formula outcomes and higher education state appropriations.
B36: Awards per 100 FTE | D36: =AVERAGE('Control Data'!C22:O22) -> 0
B37: Focus Population: Adult | D37: =AVERAGE('Control Data'!C23:O23) -> 0 | F37: **Bolded outcome changes indicate above-average increases.
B38: Focus Population: Low-Income | D38: =AVERAGE('Control Data'!C24:O24) -> 0
B39: Focus Population: Academically Underprepared | D39: =AVERAGE('Control Data'!C25:O25) -> 0

Sheet <---Dynamic Model Tabs

Sheet Outcomes Formula Tabs--->

Sheet Dynamic - 2021-22 CC
B2: 2021-22 Formula Weighted Outcomes Calculation
B5: Combined Outcomes (17-18 to 19-20 Data) | C5: Chattanooga | D5: Cleveland | E5: Columbia | F5: Dyersburg | G5: Jackson | H5: Motlow | I5: Nashville | J5: Northeast | K5: Pellissippi | L5: Roane | M5: Southwest | N5: Volunteer | O5: Walters | P5: All CC | Q5: Avg All CC
B6: Students Accumulating 12 hrs | C6: =AVERAGE('CC Data'!$P$4:$R$4) -> 3309.333333 | D6: =AVERAGE('CC Data'!$P$27:$R$27) -> 1739.2 | E6: =AVERAGE('CC Data'!$P$50:$R$50) -> 2990 | F6: =AVERAGE('CC Data'!$P$73:$R$73) -> 1455.333333 | G6: =AVERAGE('CC Data'!$P$96:$R$96) -> 2452.266667 | H6: =AVERAGE('CC Data'!$P$119:$R$119) -> 3892.2 | I6: =AVERAGE('CC Data'!$P$142:$R$142) -> 3417 | J6: =AVERAGE('CC Data'!$P$165:$R$165) -> 2729.533333 | K6: =AVERAGE('CC Data'!$P$188:$R$188) -> 4898.466667 | L6: =AVERAGE('CC Data'!$P$211:$R$211) -> 2781.266667 | M6: =AVERAGE('CC Data'!$P$234:$R$234) -> 4772.866667 | N6: =AVERAGE('CC Data'!$P$257:$R$257) -> 4392.933333 | O6: =AVERAGE('CC Data'!$P$280:$R$280) -> 3129.8 | P6: =SUM(C6:O6) -> 41960.2 | Q6: =AVERAGE(C6:O6) -> 3227.707692
B7: Students Accumulating 24 hrs | C7: =AVERAGE('CC Data'!$P$5:$R$5) -> 2683.733333 | D7: =AVERAGE('CC Data'!$P$28:$R$28) -> 1157.133333 | E7: =AVERAGE('CC Data'!$P$51:$R$51) -> 2490.4 | F7: =AVERAGE('CC Data'!$P$74:$R$74) -> 995.6 | G7: =AVERAGE('CC Data'!$P$97:$R$97) -> 1662 | H7: =AVERAGE('CC Data'!$P$120:$R$120) -> 2838.066667 | I7: =AVERAGE('CC Data'!$P$143:$R$143) -> 2746.333333 | J7: =AVERAGE('CC Data'!$P$166:$R$166) -> 2366.333333 | K7: =AVERAGE('CC Data'!$P$189:$R$189) -> 4613.266667 | L7: =AVERAGE('CC Data'!$P$212:$R$212) -> 2250.933333 | M7: =AVERAGE('CC Data'!$P$235:$R$235) -> 3839.933333 | N7: =AVERAGE('CC Data'!$P$258:$R$258) -> 3225.733333 | O7: =AVERAGE('CC Data'!$P$281:$R$281) -> 2274.466667 | P7: =SUM(C7:O7) -> 33143.93333 | Q7: =AVERAGE(C7:O7) -> 2549.533333
B8: Students Accumulating 36 hrs | C8: =AVERAGE('CC Data'!$P$6:$R$6) -> 2362.8 | D8: =AVERAGE('CC Data'!$P$29:$R$29) -> 998 | E8: =AVERAGE('CC Data'!$P$52:$R$52) -> 2019.6 | F8: =AVERAGE('CC Data'!$P$75:$R$75) -> 830 | G8: =AVERAGE('CC Data'!$P$98:$R$98) -> 1423.6 | H8: =AVERAGE('CC Data'!$P$121:$R$121) -> 2419.333333 | I8: =AVERAGE('CC Data'!$P$144:$R$144) -> 2491.133333 | J8: =AVERAGE('CC Data'!$P$167:$R$167) -> 2184.266667 | K8: =AVERAGE('CC Data'!$P$190:$R$190) -> 3770.066667 | L8: =AVERAGE('CC Data'!$P$213:$R$213) -> 2005.6 | M8: =AVERAGE('CC Data'!$P$236:$R$236) -> 3047.866667 | N8: =AVERAGE('CC Data'!$P$259:$R$259) -> 2750.866667 | O8: =AVERAGE('CC Data'!$P$282:$R$282) -> 2005.866667 | P8: 28309 | Q8: 2177.615385
B9: Dual Enrollment | C9: =AVERAGE('CC Data'!$P$7:$R$7) -> 1436.666667 | D9: =AVERAGE('CC Data'!$P$30:$R$30) -> 1220 | E9: =AVERAGE('CC Data'!$P$53:$R$53) -> 1421.666667 | F9: =AVERAGE('CC Data'!$P$76:$R$76) -> 1030 | G9: =AVERAGE('CC Data'!$P$99:$R$99) -> 1826.666667 | H9: =AVERAGE('CC Data'!$P$122:$R$122) -> 1888.333333 | I9: =AVERAGE('CC Data'!$P$145:$R$145) -> 1285.333333 | J9: =AVERAGE('CC Data'!$P$168:$R$168) -> 1095.666667 | K9: =AVERAGE('CC Data'!$P$191:$R$191) -> 1831.666667 | L9: =AVERAGE('CC Data'!$P$214:$R$214) -> 1765.333333 | M9: =AVERAGE('CC Data'!$P$237:$R$237) -> 936.6666667 | N9: =AVERAGE('CC Data'!$P$260:$R$260) -> 2077 | O9: =AVERAGE('CC Data'!$P$283:$R$283) -> 1811 | P9: 19626 | Q9: 1509.692308
B10: Associates | C10: =AVERAGE('CC Data'!$P$8:$R$8) -> 2012.433333 | D10: =AVERAGE('CC Data'!$P$31:$R$31) -> 775.6666667 | E10: =AVERAGE('CC Data'!$P$54:$R$54) -> 1325.966667 | F10: =AVERAGE('CC Data'!$P$77:$R$77) -> 669.7 | G10: =AVERAGE('CC Data'!$P$100:$R$100) -> 922.9 | H10: =AVERAGE('CC Data'!$P$123:$R$123) -> 1786 | I10: =AVERAGE('CC Data'!$P$146:$R$146) -> 1652.2 | J10: =AVERAGE('CC Data'!$P$169:$R$169) -> 1695.633333 | K10: =AVERAGE('CC Data'!$P$192:$R$192) -> 2518 | L10: =AVERAGE('CC Data'!$P$215:$R$215) -> 1714.933333 | M10: =AVERAGE('CC Data'!$P$238:$R$238) -> 1703.633333 | N10: =AVERAGE('CC Data'!$P$261:$R$261) -> 2035.933333 | O10: =AVERAGE('CC Data'!$P$284:$R$284) -> 1601.933333 | P10: 20414.93333 | Q10: 1570.379487
B11: 1-2 Year Certificates | C11: =AVERAGE('CC Data'!$P$9:$R$9) -> 94.66666667 | D11: =AVERAGE('CC Data'!$P$32:$R$32) -> 62.06666667 | E11: =AVERAGE('CC Data'!$P$55:$R$55) -> 88.4 | F11: =AVERAGE('CC Data'!$P$78:$R$78) -> 64.73333333 | G11: =AVERAGE('CC Data'!$P$101:$R$101) -> 50.66666667 | H11: =AVERAGE('CC Data'!$P$124:$R$124) -> 15.06666667 | I11: =AVERAGE('CC Data'!$P$147:$R$147) -> 309.6 | J11: =AVERAGE('CC Data'!$P$170:$R$170) -> 357.9333333 | K11: =AVERAGE('CC Data'!$P$193:$R$193) -> 37.46666667 | L11: =AVERAGE('CC Data'!$P$216:$R$216) -> 150.2 | M11: =AVERAGE('CC Data'!$P$239:$R$239) -> 74.86666667 | N11: =AVERAGE('CC Data'!$P$262:$R$262) -> 232.6666667 | O11: =AVERAGE('CC Data'!$P$285:$R$285) -> 109.2666667 | P11: 1647.6 | Q11: 126.7384615
B12: <1yr Certificates | C12: =AVERAGE('CC Data'!$P$10:$R$10) -> 576.9333333 | D12: =AVERAGE('CC Data'!$P$33:$R$33) -> 424.5333333 | E12: =AVERAGE('CC Data'!$P$56:$R$56) -> 209.4 | F12: =AVERAGE('CC Data'!$P$79:$R$79) -> 158.0666667 | G12: =AVERAGE('CC Data'!$P$102:$R$102) -> 129.5333333 | H12: =AVERAGE('CC Data'!$P$125:$R$125) -> 213.0666667 | I12: =AVERAGE('CC Data'!$P$148:$R$148) -> 124.5333333 | J12: =AVERAGE('CC Data'!$P$171:$R$171) -> 469.1333333 | K12: =AVERAGE('CC Data'!$P$194:$R$194) -> 1139.266667 | L12: =AVERAGE('CC Data'!$P$217:$R$217) -> 195.6666667 | M12: =AVERAGE('CC Data'!$P$240:$R$240) -> 434.7333333 | N12: =AVERAGE('CC Data'!$P$263:$R$263) -> 436.4 | O12: =AVERAGE('CC Data'!$P$286:$R$286) -> 444.8666667 | P12: 4956.133333 | Q12: 381.2410256
B13: Job Placements | C13: =AVERAGE('CC Data'!$P$11:$R$11) -> 440.3333333 | D13: =AVERAGE('CC Data'!$P$34:$R$34) -> 227 | E13: =AVERAGE('CC Data'!$P$57:$R$57) -> 247.3333333 | F13: =AVERAGE('CC Data'!$P$80:$R$80) -> 120 | G13: =AVERAGE('CC Data'!$P$103:$R$103) -> 181 | H13: =AVERAGE('CC Data'!$P$126:$R$126) -> 126 | I13: =AVERAGE('CC Data'!$P$149:$R$149) -> 307.3333333 | J13: =AVERAGE('CC Data'!$P$172:$R$172) -> 498.3333333 | K13: =AVERAGE('CC Data'!$P$195:$R$195) -> 370 | L13: =AVERAGE('CC Data'!$P$218:$R$218) -> 308 | M13: =AVERAGE('CC Data'!$P$241:$R$241) -> 319.6666667 | N13: =AVERAGE('CC Data'!$P$264:$R$264) -> 377.3333333 | O13: =AVERAGE('CC Data'!$P$287:$R$287) -> 462.3333333 | P13: 3984.666667 | Q13: 306.5128205
B14: Transfers Out with 12 hrs | C14: =AVERAGE('CC Data'!$P$12:$R$12) -> 563.6666667 | D14: =AVERAGE('CC Data'!$P$35:$R$35) -> 261.3333333 | E14: =AVERAGE('CC Data'!$P$58:$R$58) -> 507 | F14: =AVERAGE('CC Data'!$P$81:$R$81) -> 161.6666667 | G14: =AVERAGE('CC Data'!$P$104:$R$104) -> 317.3333333 | H14: =AVERAGE('CC Data'!$P$127:$R$127) -> 651.3333333 | I14: =AVERAGE('CC Data'!$P$150:$R$150) -> 610 | J14: =AVERAGE('CC Data'!$P$173:$R$173) -> 472.6666667 | K14: =AVERAGE('CC Data'!$P$196:$R$196) -> 937.3333333 | L14: =AVERAGE('CC Data'!$P$219:$R$219) -> 403 | M14: =AVERAGE('CC Data'!$P$242:$R$242) -> 644.3333333 | N14: =AVERAGE('CC Data'!$P$265:$R$265) -> 636.3333333 | O14: =AVERAGE('CC Data'!$P$288:$R$288) -> 433.3333333 | P14: 6599.333333 | Q14: 507.6410256
B15: Workforce Training (Contact Hours) | C15: =AVERAGE('CC Data'!$P$13:$R$13) -> 61327.56667 | D15: =AVERAGE('CC Data'!$P$36:$R$36) -> 17593.9 | E15: =AVERAGE('CC Data'!$P$59:$R$59) -> 67989.71 | F15: =AVERAGE('CC Data'!$P$82:$R$82) -> 9223.9 | G15: =AVERAGE('CC Data'!$P$105:$R$105) -> 23347.27933 | H15: =AVERAGE('CC Data'!$P$128:$R$128) -> 23704 | I15: =AVERAGE('CC Data'!$P$151:$R$151) -> 30528.32 | J15: =AVERAGE('CC Data'!$P$174:$R$174) -> 70440.29333 | K15: =AVERAGE('CC Data'!$P$197:$R$197) -> 49607.25333 | L15: =AVERAGE('CC Data'!$P$220:$R$220) -> 117970.7233 | M15: =AVERAGE('CC Data'!$P$243:$R$243) -> 47392.5 | N15: =AVERAGE('CC Data'!$P$266:$R$266) -> 255436.6 | O15: =AVERAGE('CC Data'!$P$289:$R$289) -> 75185.06667 | P15: 849747.1127 | Q15: 65365.16251
B16: Awards per 100 FTE | C16: =AVERAGE('CC Data'!$P$14:$R$14) -> 23.57030127 | D16: =AVERAGE('CC Data'!$P$37:$R$37) -> 24.94673215 | E16: =AVERAGE('CC Data'!$P$60:$R$60) -> 21.0137826 | F16: =AVERAGE('CC Data'!$P$83:$R$83) -> 27.33840531 | G16: =AVERAGE('CC Data'!$P$106:$R$106) -> 21.11147048 | H16: =AVERAGE('CC Data'!$P$129:$R$129) -> 26.39157925 | I16: =AVERAGE('CC Data'!$P$152:$R$152) -> 21.437133 | J16: =AVERAGE('CC Data'!$P$175:$R$175) -> 29.29216184 | K16: =AVERAGE('CC Data'!$P$198:$R$198) -> 22.23353016 | L16: =AVERAGE('CC Data'!$P$221:$R$221) -> 30.454147 | M16: =AVERAGE('CC Data'!$P$244:$R$244) -> 15.48794706 | N16: =AVERAGE('CC Data'!$P$267:$R$267) -> 23.41578486 | O16: =AVERAGE('CC Data'!$P$290:$R$290) -> 26.22660154 | P16: 312.9195765 | Q16: 24.07073665
A18: Scales | B18: Scaled Outcomes (17-18 to 19-20 Data) | C18: Chattanooga | D18: Cleveland | E18: Columbia | F18: Dyersburg | G18: Jackson | H18: Motlow | I18: Nashville | J18: Northeast | K18: Pellissippi | L18: Roane | M18: Southwest | N18: Volunteer | O18: Walters | P18: All CC
A19: 6.1 | B19: Students Accumulating 12 hrs | C19: =C6/$A19 -> 542.5136612 | D19: 285.1147541 | E19: 490.1639344 | F19: 238.579235 | G19: 402.010929 | H19: 638.0655738 | I19: 560.1639344 | J19: 447.4644809 | K19: 803.0273224 | L19: 455.9453552 | M19: 782.4371585 | N19: 720.1530055 | O19: 513.0819672 | P19: =SUM(C19:O19) -> 6878.721311
A20: 3.3 | B20: Students Accumulating 24 hrs | C20: =C7/$A20 -> 813.2525253 | D20: 350.6464646 | E20: 754.6666667 | F20: =F7/$A20 -> 301.6969697 | G20: 503.6363636 | H20: 860.020202 | I20: 832.2222222 | J20: 717.0707071 | K20: 1397.959596 | L20: 682.1010101 | M20: 1163.616162 | N20: 977.4949495 | O20: =O7/$A20 -> 689.2323232 | P20: 10043.61616
A21: 2.3 | B21: Students Accumulating 36 hrs | C21: =C8/$A21 -> 1027.304348 | D21: 433.9130435 | E21: 878.0869565 | F21: 360.8695652 | G21: 618.9565217 | H21: 1051.884058 | I21: 1083.101449 | J21: 949.6811594 | K21: 1639.15942 | L21: 872 | M21: 1325.15942 | N21: 1196.028986 | O21: 872.115942 | P21: 12308.26087
A22: 2.5 | B22: Dual Enrollment | C22: =C9/$A22 -> 574.6666667 | D22: 488 | E22: 568.6666667 | F22: 412 | G22: 730.6666667 | H22: 755.3333333 | I22: 514.1333333 | J22: 438.2666667 | K22: 732.6666667 | L22: 706.1333333 | M22: 374.6666667 | N22: 830.8 | O22: 724.4 | P22: 7850.4
A23: 1.5 | B23: Associates | C23: =C10/$A23 -> 1341.622222 | D23: 517.1111111 | E23: 883.9777778 | F23: 446.4666667 | G23: 615.2666667 | H23: 1190.666667 | I23: 1101.466667 | J23: 1130.422222 | K23: 1678.666667 | L23: 1143.288889 | M23: 1135.755556 | N23: 1357.288889 | O23: 1067.955556 | P23: 13609.95556
A24: 2.5 | B24: 1-2 Year Certificates | C24: =C11/$A24 -> 37.86666667 | D24: 24.82666667 | E24: 35.36 | F24: 25.89333333 | G24: 20.26666667 | H24: 6.026666667 | I24: 123.84 | J24: 143.1733333 | K24: 14.98666667 | L24: 60.08 | M24: 29.94666667 | N24: 93.06666667 | O24: 43.70666667 | P24: 659.04
A25: 3 | B25: <1yr Certificates | C25: 192.3111111 | D25: 141.5111111 | E25: 69.8 | F25: 52.68888889 | G25: 43.17777778 | H25: 71.02222222 | I25: 41.51111111 | J25: 156.3777778 | K25: 379.7555556 | L25: 65.22222222 | M25: 144.9111111 | N25: 145.4666667 | O25: 148.2888889 | P25: =SUM(C25:O25) -> 1652.044444
A26: 0.4 | B26: Job Placements | C26: 1100.833333 | D26: 567.5 | E26: 618.3333333 | F26: 300 | G26: 452.5 | H26: 315 | I26: 768.3333333 | J26: 1245.833333 | K26: 925 | L26: 770 | M26: 799.1666667 | N26: 943.3333333 | O26: 1155.833333 | P26: 9961.666667
A27: 1.5 | B27: Transfers Out with 12 hrs | C27: 375.7777778 | D27: 174.2222222 | E27: 338 | F27: 107.7777778 | G27: 211.5555556 | H27: 434.2222222 | I27: 406.6666667 | J27: 315.1111111 | K27: 624.8888889 | L27: 268.6666667 | M27: 429.5555556 | N27: 424.2222222 | O27: 288.8888889 | P27: 4399.555556
A28: 157 | B28: Workforce Training (Contact Hours) | C28: 390.6214437 | D28: 112.0630573 | E28: 433.0554777 | F28: 58.75095541 | G28: 148.7087856 | H28: 150.9808917 | I28: 194.4478981 | J28: 448.6642887 | K28: 315.9697665 | L28: 751.4058811 | M28: 301.8630573 | N28: 1626.984713 | O28: 478.8857749 | P28: 5412.401992
A29: 0.05 | B29: Awards per 100 FTE | C29: 471.4060253 | D29: 498.9346431 | E29: 420.2756519 | F29: 546.7681062 | G29: 422.2294096 | H29: 527.8315849 | I29: 428.74266 | J29: 585.8432368 | K29: 444.6706031 | L29: 609.08294 | M29: 309.7589412 | N29: 468.3156972 | O29: 524.5320307 | P29: 6258.39153
B31: Weights Based on Institutional Mission | C31: Chattanooga | D31: Cleveland | E31: Columbia | F31: Dyersburg | G31: Jackson | H31: Motlow | I31: Nashville | J31: Northeast | K31: Pellissippi | L31: Roane | M31: Southwest | N31: Volunteer | O31: Walters | P31: Average
B32: Students Accumulating 12 hrs | C32: 0.03 | D32: 0.03 | E32: 0.03 | F32: 0.03 | G32: 0.03 | H32: 0.03 | I32: 0.03 | J32: 0.03 | K32: 0.03 | L32: 0.03 | M32: 0.03 | N32: 0.03 | O32: 0.03 | P32: =AVERAGE(C32:O32) -> 0.03
B33: Students Accumulating 24 hrs | C33: 0.05 | D33: 0.05 | E33: 0.05 | F33: 0.05 | G33: 0.05 | H33: 0.05 | I33: 0.05 | J33: 0.05 | K33: 0.05 | L33: 0.05 | M33: 0.05 | N33: 0.05 | O33: 0.05 | P33: 0.05
B34: Students Accumulating 36 hrs | C34: 0.07 | D34: 0.07 | E34: 0.07 | F34: 0.07 | G34: 0.07 | H34: 0.07 | I34: 0.07 | J34: 0.07 | K34: 0.07 | L34: 0.07 | M34: 0.07 | N34: 0.07 | O34: 0.07 | P34: 0.07
B35: Dual Enrollment | C35: 0.05 | D35: 0.05 | E35: 0.075 | F35: 0.1 | G35: 0.075 | H35: 0.075 | I35: 0.15 | J35: 0.1 | K35: 0.1 | L35: 0.15 | M35: 0.075 | N35: 0.05 | O35: 0.1 | P35: 0.08846153846
B36: Associates | C36: 0.225 | D36: 0.225 | E36: 0.225 | F36: 0.225 | G36: 0.225 | H36: 0.225 | I36: 0.225 | J36: 0.225 | K36: 0.225 | L36: 0.225 | M36: 0.225 | N36: 0.225 | O36: 0.225 | P36: 0.225
B37: 1-2 Year Certificates | C37: 0.1 | D37: 0.025 | E37: 0.175 | F37: 0.1 | G37: 0.1 | H37: 0 | I37: 0.1 | J37: 0.125 | K37: 0 | L37: 0.1 | M37: 0.025 | N37: 0.05 | O37: 0.025 | P37: 0.08309473213
B38: <1yr Certificates | C38: 0.1 | D38: 0.175 | E38: 0.025 | F38: 0.1 | G38: 0.1 | H38: 0.2 | I38: 0.1 | J38: 0.075 | K38: 0.2 | L38: 0.1 | M38: 0.175 | N38: 0.15 | O38: 0.175 | P38: 0.05152065248
B39: Job Placements | C39: 0.15 | D39: 0.15 | E39: 0.05 | F39: 0.125 | G39: 0.15 | H39: 0.075 | I39: 0.075 | J39: 0.15 | K39: 0.075 | L39: 0.05 | M39: 0.05 | N39: 0.075 | O39: 0.075 | P39: 0.09615384615
B40: Transfers Out with 12 hrs | C40: 0.1 | D40: 0.05 | E40: 0.15 | F40: 0.1 | G40: 0.05 | H40: 0.125 | I40: 0.1 | J40: 0.05 | K40: 0.15 | L40: 0.1 | M40: 0.125 | N40: 0.15 | O40: 0.15 | P40: 0.1076923077
B41: Workforce Training (Contact Hours) | C41: 0.075 | D41: 0.125 | E41: 0.1 | F41: 0.05 | G41: 0.1 | H41: 0.1 | I41: 0.05 | J41: 0.075 | K41: 0.05 | L41: 0.075 | M41: 0.125 | N41: 0.1 | O41: 0.05 | P41: 0.08269230769
B42: Awards per 100 FTE | C42: 0.05 | D42: 0.05 | E42: 0.05 | F42: 0.05 | G42: 0.05 | H42: 0.05 | I42: 0.05 | J42: 0.05 | K42: 0.05 | L42: 0.05 | M42: 0.05 | N42: 0.05 | O42: 0.05 | P42: 0.05
C43: =SUM(C32:C42) -> 1 | D43: 1 | E43: 1 | F43: 1 | G43: 1 | H43: 1 | I43: 1 | J43: 1 | K43: 1 | L43: 1 | M43: 1 | N43: 1 | O43: 1 | P43: =(SUM(P32:P42)) -> 0.9346153846
B45: Weighted Outcomes | C45: Chattanooga | D45: Cleveland | E45: Columbia | F45: Dyersburg | G45: Jackson | H45: Motlow | I45: Nashville | J45: Northeast | K45: Pellissippi | L45: Roane | M45: Southwest | N45: Volunteer | O45: Walters | P45: All CC
B46: Students Accumulating 12 hrs | C46: =C19*C32 -> 16.27540984 | D46: =D19*D32 -> 8.553442623 | E46: =E19*E32 -> 14.70491803 | F46: 7.157377049 | G46: 12.06032787 | H46: 19.14196721 | I46: 16.80491803 | J46: 13.42393443 | K46: 24.09081967 | L46: 13.67836066 | M46: 23.47311475 | N46: 21.60459016 | O46: 15.39245902 | P46: =SUM(C46:O46) -> 206.3616393
B47: Students Accumulating 24 hrs | C47: =C20*C33 -> 40.66262626 | D47: 17.53232323 | E47: 37.73333333 | F47: 15.08484848 | G47: 25.18181818 | H47: 43.0010101 | I47: 41.61111111 | J47: 35.85353535 | K47: 69.8979798 | L47: 34.10505051 | M47: 58.18080808 | N47: 48.87474747 | O47: 34.46161616 | P47: =SUM(C47:O47) -> 502.1808081
B48: Students Accumulating 36 hrs | C48: 71.91130435 | D48: 30.37391304 | E48: 61.46608696 | F48: 25.26086957 | G48: 43.32695652 | H48: 73.63188406 | I48: 75.81710145 | J48: 66.47768116 | K48: 114.7411594 | L48: 61.04 | M48: 92.76115942 | N48: 83.72202899 | O48: 61.04811594 | P48: =SUM(C48:O48) -> 861.5782609
B49: Dual Enrollment | C49: 28.73333333 | D49: 24.4 | E49: 42.65 | F49: 41.2 | G49: 54.8 | H49: 56.65 | I49: 77.12 | J49: 43.82666667 | K49: 73.26666667 | L49: 105.92 | M49: 28.1 | N49: 41.54 | O49: 72.44 | P49: =SUM(C49:O49) -> 690.6466667
B50: Associates | C50: 301.865 | D50: 116.35 | E50: 198.895 | F50: 100.455 | G50: 138.435 | H50: 267.9 | I50: 247.83 | J50: 254.345 | K50: 377.7 | L50: 257.24 | M50: 255.545 | N50: 305.39 | O50: 240.29 | P50: =SUM(C50:O50) -> 3062.24
B51: 1-2 Year Certificates | C51: 3.786666667 | D51: 0.6206666667 | E51: 6.188 | F51: 2.589333333 | G51: 2.026666667 | H51: 0 | I51: 12.384 | J51: 17.89666667 | K51: 0 | L51: 6.008 | M51: 0.7486666667 | N51: 4.653333333 | O51: 1.092666667 | P51: =SUM(C51:O51) -> 57.99466667
B52: <1yr Certificates | C52: 19.23111111 | D52: 24.76444444 | E52: 1.745 | F52: 5.268888889 | G52: 4.317777778 | H52: 14.20444444 | I52: 4.151111111 | J52: 11.72833333 | K52: 75.95111111 | L52: 6.522222222 | M52: 25.35944444 | N52: 21.82 | O52: 25.95055556 | P52: 241.0144444
B53: Job Placements | C53: 165.125 | D53: 85.125 | E53: 30.91666667 | F53: 37.5 | G53: 67.875 | H53: 23.625 | I53: 57.625 | J53: 186.875 | K53: 69.375 | L53: 38.5 | M53: 39.95833333 | N53: 70.75 | O53: 86.6875 | P53: 959.9375
B54: Transfers Out with 12 hrs | C54: 37.57777778 | D54: 8.711111111 | E54: 50.7 | F54: 10.77777778 | G54: 10.57777778 | H54: 54.27777778 | I54: 40.66666667 | J54: 15.75555556 | K54: 93.73333333 | L54: 26.86666667 | M54: 53.69444444 | N54: 63.63333333 | O54: 43.33333333 | P54: 510.3055556
B55: Workforce Training (Contact Hours) | C55: 29.29660828 | D55: 14.00788217 | E55: 43.30554777 | F55: 2.937547771 | G55: 14.87087856 | H55: 15.09808917 | I55: 9.722394904 | J55: 33.64982166 | K55: 15.79848832 | L55: 56.35544108 | M55: 37.73288217 | N55: 162.6984713 | O55: 23.94428875 | P55: 459.4183419
B56: Awards per 100 FTE | C56: 23.57030127 | D56: 24.94673215 | E56: 21.0137826 | F56: 27.33840531 | G56: 21.11147048 | H56: 26.39157925 | I56: 21.437133 | J56: 29.29216184 | K56: 22.23353016 | L56: 30.454147 | M56: 15.48794706 | N56: 23.41578486 | O56: 26.22660154 | P56: 312.9195765
B57: Total | C57: =SUM(C46:C56) -> 738.0351389 | D57: =SUM(D46:D56) -> 355.3855154 | E57: 509.3183354 | F57: 275.5700482 | G57: 394.5836738 | H57: 593.921752 | I57: 605.1694363 | J57: 709.1243567 | K57: 936.7880885 | L57: 636.6898881 | M57: =SUM(M46:M56) -> 631.0418004 | N57: 848.1022895 | O57: =SUM(O46:O56) -> 630.867137 | P57: 7864.59746
B59: Weighted Outcomes Breakdown | C59: Chattanooga | D59: Cleveland | E59: Columbia | F59: Dyersburg | G59: Jackson | H59: Motlow | I59: Nashville | J59: Northeast | K59: Pellissippi | L59: Roane | M59: Southwest | N59: Volunteer | O59: Walters | P59: All CC
B60: Students Accumulating 12 hrs | C60: =C46/$C$57 -> 0.02205235087 | D60: =D46/$D$57 -> 0.02406806764 | E60: =E46/$E$57 -> 0.02887176253 | F60: =F46/$F$57 -> 0.02597298617 | G60: =G46/$G$57 -> 0.0305646905 | H60: =H46/$H$57 -> 0.03222977968 | I60: =I46/$I$57 -> 0.02776894705 | J60: =J46/$J$57 -> 0.01893029664 | K60: =K46/$K$57 -> 0.02571640264 | L60: =L46/$L$57 -> 0.02148355253 | M60: =M46/$M$57 -> 0.03719740078 | N60: =N46/$N$57 -> 0.02547403825 | O60: =O46/$O$57 -> 0.0243988918 | P60: =P46/$P$57 -> 0.02623931363
B61: Students Accumulating 24 hrs | C61: 0.05509578626 | D61: 0.04933325212 | E61: 0.07408595119 | F61: 0.05474052273 | G61: 0.06381870273 | H61: 0.07240181043 | I61: 0.06875943929 | J61: 0.05056029315 | K61: 0.07461450531 | L61: 0.05356618841 | M61: 0.09219802562 | N61: 0.05762836403 | O61: 0.05462579067 | P61: 0.06385333905
B62: Students Accumulating 36 hrs | C62: 0.09743615251 | D62: 0.08546750423 | E62: 0.1206830438 | F62: 0.09166768933 | G62: 0.1098042301 | H62: 0.1239757322 | I62: 0.1252824365 | J62: 0.09374615402 | K62: 0.1224835807 | L62: 0.0958708488 | M62: 0.146996854 | N62: 0.0987169001 | O62: 0.0967685783 | P62: 0.1095514761
B63: Dual Enrollment | C63: 0.0389322023 | D63: 0.06865783477 | E63: 0.08373937681 | F63: 0.1495082658 | G63: 0.138880556 | H63: 0.09538293522 | I63: 0.1274353848 | J63: 0.06180392234 | K63: 0.078210502 | L63: 0.1663604244 | M63: 0.04452953827 | N63: 0.04897994088 | O63: 0.1148260795 | P63: 0.08781716676
B64: Associates | C64: 0.4090116908 | D64: 0.3273909457 | E64: 0.3905121536 | F64: 0.364535263 | G64: 0.3508381344 | H64: 0.4510695207 | I64: 0.409521673 | J64: 0.3586747481 | K64: 0.4031861684 | L64: 0.4040271485 | M64: 0.4049573259 | N64: 0.3600862818 | O64: 0.3808884406 | P64: 0.3893702145
B65: 1-2 Year Certificates | C65: 0.00513074035 | D65: 0.001746460223 | E65: 0.01214957242 | F65: 0.009396280004 | G65: 0.005136215209 | H65: 0 | I65: 0.02046369043 | J65: 0.02523769844 | K65: 0 | L65: 0.00943630504 | M65: 0.0011863979 | N65: 0.005486759547 | O65: 0.001732007586 | P65: 0.007374143046
B66: <1yr Certificates | C66: 0.02605717546 | D66: 0.0696833252 | E66: 0.003426148008 | F66: 0.01911996214 | G66: 0.01094261639 | H66: 0.02391635665 | I66: 0.006859419631 | J66: 0.01653917712 | K66: 0.08107608545 | L66: 0.01024395446 | M66: 0.04018663174 | N66: 0.02572802865 | O66: 0.04113473984 | P66: 0.03064549021
B67: Job Placements | C67: 0.2237359596 | D67: 0.2395286141 | E67: 0.06070204923 | F67: 0.1360815526 | G67: 0.172016747 | H67: 0.03977796725 | I67: 0.09522126622 | J67: 0.2635292361 | K67: 0.07405623625 | L67: 0.06046899867 | M67: 0.06332121471 | N67: 0.0834215411 | O67: 0.137410074 | P67: 0.1220580589
B68: Transfers Out with 12 hrs | C68: 0.05091597378 | D68: 0.02451172243 | E68: 0.09954481604 | F68: 0.03911084622 | G68: 0.02680743903 | H68: 0.09138876896 | I68: 0.06719881116 | J68: 0.02221832519 | K68: 0.1000582036 | L68: 0.04219741379 | M68: 0.08508857006 | N68: 0.0750302577 | O68: 0.06868852536 | P68: 0.06488641766
B69: Workforce Training (Contact Hours) | C69: 0.03969541115 | D69: 0.03941601882 | E69: 0.08502648494 | F69: 0.01065989497 | G69: 0.03768751609 | H69: 0.02542100726 | I69: 0.0160655749 | J69: 0.04745263837 | K69: 0.01686452733 | L69: 0.08851317122 | M69: 0.05979458436 | N69: 0.1918382645 | O69: 0.03795456657 | P69: 0.05841600212
B70: Awards per 100 FTE | C70: 0.03193655698 | D70: 0.07019625468 | E70: 0.04125864148 | F70: 0.09920673705 | G70: 0.05350315251 | H70: 0.04443612169 | I70: 0.03542335702 | J70: 0.04130751054 | K70: 0.02373378828 | L70: 0.04783199414 | M70: 0.02454345663 | N70: 0.02760962345 | O70: 0.0415723058 | P70: 0.03978837799
B71: Total | C71: =SUM(C60:C70) -> 1 | D71: 1 | E71: 1 | F71: 1 | G71: 1 | H71: 1 | I71: 1 | J71: 1 | K71: 1 | L71: 1 | M71: 1 | N71: 1 | O71: 1 | P71: 1
B74: W.O. % Change from 19-20 | C74: Chattanooga | D74: Cleveland | E74: Columbia | F74: Dyersburg | G74: Jackson | H74: Motlow | I74: Nashville | J74: Northeast | K74: Pellissippi | L74: Roane | M74: Southwest | N74: Volunteer | O74: Walters | P74: All CC
B75: Students Accumulating 12 hrs | C75: =C46/'2020-21 CC'!C46-1 -> -0.0188172043 | D75: =D46/'2020-21 CC'!D46-1 -> 0.01588785047 | E75: =E46/'2020-21 CC'!E46-1 -> 0.04983497577 | F75: =F46/'2020-21 CC'!F46-1 -> 0.006918819188 | G75: =G46/'2020-21 CC'!G46-1 -> -0.002954490012 | H75: =H46/'2020-21 CC'!H46-1 -> 0.06404344894 | I75: =I46/'2020-21 CC'!I46-1 -> -0.03926897844 | J75: =J46/'2020-21 CC'!J46-1 -> -0.02893532244 | K75: =K46/'2020-21 CC'!K46-1 -> 0.02277251152 | L75: =L46/'2020-21 CC'!L46-1 -> 0.02609572532 | M75: =M46/'2020-21 CC'!M46-1 -> 0.01521554169 | N75: =N46/'2020-21 CC'!N46-1 -> 0.007923396965 | O75: =O46/'2020-21 CC'!O46-1 -> 0.01037339933 | P75: =P46/'2020-21 CC'!P46-1 -> 0.01058913823
B76: Students Accumulating 24 hrs | C76: =C47/'2020-21 CC'!C47-1 -> -0.01175892967 | D76: =D47/'2020-21 CC'!D47-1 -> -0.01184173071 | E76: =E47/'2020-21 CC'!E47-1 -> 0.05579108021 | F76: =F47/'2020-21 CC'!F47-1 -> 0.04638452915 | G76: =G47/'2020-21 CC'!G47-1 -> -0.0006413853924 | H76: =H47/'2020-21 CC'!H47-1 -> 0.01499690048 | I76: =I47/'2020-21 CC'!I47-1 -> -0.046765087 | J76: =J47/'2020-21 CC'!J47-1 -> -0.01836333969 | K76: =K47/'2020-21 CC'!K47-1 -> 0.05085801063 | L76: =L47/'2020-21 CC'!L47-1 -> 0.004880952381 | M76: =M47/'2020-21 CC'!M47-1 -> 0.01707515186 | N76: =N47/'2020-21 CC'!N47-1 -> 0.005590539726 | O76: =O47/'2020-21 CC'!O47-1 -> -0.001492624678 | P76: =P47/'2020-21 CC'!P47-1 -> 0.009287755997
B77: Students Accumulating 36 hrs | C77: =C48/'2020-21 CC'!C48-1 -> -0.01508962068 | D77: =D48/'2020-21 CC'!D48-1 -> 0.001404776239 | E77: =E48/'2020-21 CC'!E48-1 -> 0.04591907195 | F77: =F48/'2020-21 CC'!F48-1 -> 0.0742945897 | G77: =G48/'2020-21 CC'!G48-1 -> 0.007074136955 | H77: =H48/'2020-21 CC'!H48-1 -> 0.005123944052 | I77: =I48/'2020-21 CC'!I48-1 -> -0.03179250661 | J77: =J48/'2020-21 CC'!J48-1 -> 0.004537650233 | K77: =K48/'2020-21 CC'!K48-1 -> 0.05334624769 | L77: =L48/'2020-21 CC'!L48-1 -> 0.004541204755 | M77: =M48/'2020-21 CC'!M48-1 -> -0.007403547624 | N77: =N48/'2020-21 CC'!N48-1 -> -0.01600133543 | O77: =O48/'2020-21 CC'!O48-1 -> 0.03034038764 | P77: =P48/'2020-21 CC'!P48-1 -> 0.00902726953
B78: Dual Enrollment | C78: =C49/'2020-21 CC'!C49-1 -> -0.02993472879 | D78: =D49/'2020-21 CC'!D49-1 -> 0.07805596465 | E78: =E49/'2020-21 CC'!E49-1 -> 0.03243766642 | F78: =F49/'2020-21 CC'!F49-1 -> -0.01623686724 | G78: =G49/'2020-21 CC'!G49-1 -> 0.01443909663 | H78: =H49/'2020-21 CC'!H49-1 -> 0.1716649431 | I78: =I49/'2020-21 CC'!I49-1 -> -0.02181633688 | J78: =J49/'2020-21 CC'!J49-1 -> 0.0003043213634 | K78: =K49/'2020-21 CC'!K49-1 -> 0.01122561649 | L78: =L49/'2020-21 CC'!L49-1 -> 0.01494825604 | M78: =M49/'2020-21 CC'!M49-1 -> 0.02367941712 | N78: =N49/'2020-21 CC'!N49-1 -> 0 | O78: =O49/'2020-21 CC'!O49-1 -> 0.02897727273 | P78: =P49/'2020-21 CC'!P49-1 -> 0.02065507066
B79: Associates | C79: =C50/'2020-21 CC'!C50-1 -> 0.003040372155 | D79: =D50/'2020-21 CC'!D50-1 -> -0.01785337441 | E79: =E50/'2020-21 CC'!E50-1 -> 0.04365735275 | F79: =F50/'2020-21 CC'!F50-1 -> 0.06318463248 | G79: =G50/'2020-21 CC'!G50-1 -> 0.008927920705 | H79: =H50/'2020-21 CC'!H50-1 -> 0.0858463035 | I79: =I50/'2020-21 CC'!I50-1 -> 0.03731452609 | J79: =J50/'2020-21 CC'!J50-1 -> 0.01697321072 | K79: =K50/'2020-21 CC'!K50-1 -> -0.003338039133 | L79: =L50/'2020-21 CC'!L50-1 -> 0.01571507542 | M79: =M50/'2020-21 CC'!M50-1 -> -0.04040479901 | N79: =N50/'2020-21 CC'!N50-1 -> 0.02383666354 | O79: =O50/'2020-21 CC'!O50-1 -> 0.03361651791 | P79: =P50/'2020-21 CC'!P50-1 -> 0.01847038536
B80: 1-2 Year Certificates | C80: =C51/'2020-21 CC'!C51-1 -> -0.483824064 | D80: =D51/'2020-21 CC'!D51-1 -> 0.02195389682 | E80: =E51/'2020-21 CC'!E51-1 -> -0.1395197923 | F80: =F51/'2020-21 CC'!F51-1 -> -0.1722080136 | G80: =G51/'2020-21 CC'!G51-1 -> 0.7040358744 | H80: =H51/'2020-21 CC'!H51-1 ->  | I80: =I51/'2020-21 CC'!I51-1 -> 0.09631728045 | J80: =J51/'2020-21 CC'!J51-1 -> 0.2308574049 | K80: =K51/'2020-21 CC'!K51-1 ->  | L80: =L51/'2020-21 CC'!L51-1 -> 0.09795321637 | M80: =M51/'2020-21 CC'!M51-1 -> 0.1710114703 | N80: =N51/'2020-21 CC'!N51-1 -> 0.04679064187 | O80: =O51/'2020-21 CC'!O51-1 -> 0.4389815628 | P80: =P51/'2020-21 CC'!P51-1 -> 0.02456834617
B81: <1yr Certificates | C81: =C52/'2020-21 CC'!C52-1 -> 0.2197322058 | D81: =D52/'2020-21 CC'!D52-1 -> -0.05449146251 | E81: =E52/'2020-21 CC'!E52-1 -> 0.005763688761 | F81: =F52/'2020-21 CC'!F52-1 -> 0.2551614611 | G81: =G52/'2020-21 CC'!G52-1 -> 0.1064920273 | H81: =H52/'2020-21 CC'!H52-1 -> -0.06193131787 | I81: =I52/'2020-21 CC'!I52-1 -> -0.2067940552 | J81: =J52/'2020-21 CC'!J52-1 -> -0.1702629407 | K81: =K52/'2020-21 CC'!K52-1 -> 0.08826338916 | L81: =L52/'2020-21 CC'!L52-1 -> 0.07666911225 | M81: =M52/'2020-21 CC'!M52-1 -> -0.140730004 | N81: =N52/'2020-21 CC'!N52-1 -> -0.09909165979 | O81: =O52/'2020-21 CC'!O52-1 -> -0.1801204079 | P81: =P52/'2020-21 CC'!P52-1 -> -0.02635069473
B82: Job Placements | C82: =C53/'2020-21 CC'!C53-1 -> 0.02165506574 | D82: =D53/'2020-21 CC'!D53-1 -> 0.09838709677 | E82: =E53/'2020-21 CC'!E53-1 -> -0.002688172043 | F82: =F53/'2020-21 CC'!F53-1 -> -0.01639344262 | G82: =G53/'2020-21 CC'!G53-1 -> 0 | H82: =H53/'2020-21 CC'!H53-1 -> 0.08309455587 | I82: =I53/'2020-21 CC'!I53-1 -> -0.02123142251 | J82: =J53/'2020-21 CC'!J53-1 -> 0.1016949153 | K82: =K53/'2020-21 CC'!K53-1 -> 0.02873030584 | L82: =L53/'2020-21 CC'!L53-1 -> -0.02014846235 | M82: =M53/'2020-21 CC'!M53-1 -> 0.09725400458 | N82: =N53/'2020-21 CC'!N53-1 -> 0.04331797235 | O82: =O53/'2020-21 CC'!O53-1 -> 0.08869701727 | P82: =P53/'2020-21 CC'!P53-1 -> 0.04680009996
B83: Transfers Out with 12 hrs | C83: =C54/'2020-21 CC'!C54-1 -> 0 | D83: =D54/'2020-21 CC'!D54-1 -> 0.04533333333 | E83: =E54/'2020-21 CC'!E54-1 -> 0.1134699854 | F83: =F54/'2020-21 CC'!F54-1 -> -0.05642023346 | G83: =G54/'2020-21 CC'!G54-1 -> 0.0303030303 | H83: =H54/'2020-21 CC'!H54-1 -> 0.07421660253 | I83: =I54/'2020-21 CC'!I54-1 -> -0.1756756757 | J83: =J54/'2020-21 CC'!J54-1 -> 0.07424242424 | K83: =K54/'2020-21 CC'!K54-1 -> 0.02403495994 | L83: =L54/'2020-21 CC'!L54-1 -> 0.01002506266 | M83: =M54/'2020-21 CC'!M54-1 -> -0.02521432173 | N83: =N54/'2020-21 CC'!N54-1 -> 0.04146208402 | O83: =O54/'2020-21 CC'!O54-1 -> 0.02685624013 | P83: =P54/'2020-21 CC'!P54-1 -> 0.01215400212
B84: Workforce Training (Contact Hours) | C84: =C55/'2020-21 CC'!C55-1 -> 0.05619212104 | D84: =D55/'2020-21 CC'!D55-1 -> 0.1971163987 | E84: =E55/'2020-21 CC'!E55-1 -> 0.1510697285 | F84: =F55/'2020-21 CC'!F55-1 -> -0.008971356125 | G84: =G55/'2020-21 CC'!G55-1 -> -0.01007818269 | H84: =H55/'2020-21 CC'!H55-1 -> 0.3965024597 | I84: =I55/'2020-21 CC'!I55-1 -> 0.2169427849 | J84: =J55/'2020-21 CC'!J55-1 -> 0.4785098178 | K84: =K55/'2020-21 CC'!K55-1 -> -0.02129760645 | L84: =L55/'2020-21 CC'!L55-1 -> 0.05419447069 | M84: =M55/'2020-21 CC'!M55-1 -> -0.01344925867 | N84: =N55/'2020-21 CC'!N55-1 -> 0.1575953896 | O84: =O55/'2020-21 CC'!O55-1 -> -0.08598511756 | P84: =P55/'2020-21 CC'!P55-1 -> 0.1172600673
B85: Awards per 100 FTE | C85: =C56/'2020-21 CC'!C56-1 -> -0.02401112076 | D85: =D56/'2020-21 CC'!D56-1 -> 0.01781529952 | E85: =E56/'2020-21 CC'!E56-1 -> -0.004968357372 | F85: =F56/'2020-21 CC'!F56-1 -> 0.01786415966 | G85: =G56/'2020-21 CC'!G56-1 -> 0.03433601466 | H85: =H56/'2020-21 CC'!H56-1 -> 0.08188726845 | I85: =I56/'2020-21 CC'!I56-1 -> 0.07475625669 | J85: =J56/'2020-21 CC'!J56-1 -> 0.05538841166 | K85: =K56/'2020-21 CC'!K56-1 -> -0.02687845526 | L85: =L56/'2020-21 CC'!L56-1 -> 0.03482320226 | M85: =M56/'2020-21 CC'!M56-1 -> -0.05962053898 | N85: =N56/'2020-21 CC'!N56-1 -> 0.01920350195 | O85: =O56/'2020-21 CC'!O56-1 -> 0.04735536372 | P85: =P56/'2020-21 CC'!P56-1 -> 0.02292934711
B86: Total | C86: =C57/'2020-21 CC'!C57-1 -> 0.003432333162 | D86: =D57/'2020-21 CC'!D57-1 -> 0.02583458337 | E86: =E57/'2020-21 CC'!E57-1 -> 0.05100946033 | F86: =F57/'2020-21 CC'!F57-1 -> 0.02786671106 | G86: =G57/'2020-21 CC'!G57-1 -> 0.01120125127 | H86: =H57/'2020-21 CC'!H57-1 -> 0.0771747964 | I86: =I57/'2020-21 CC'!I57-1 -> -0.007721965091 | J86: =J57/'2020-21 CC'!J57-1 -> 0.05223863009 | K86: =K57/'2020-21 CC'!K57-1 -> 0.02027747583 | L86: =L57/'2020-21 CC'!L57-1 -> 0.01713660255 | M86: =M57/'2020-21 CC'!M57-1 -> -0.01997332378 | N86: =N57/'2020-21 CC'!N57-1 -> 0.03928711524 | O86: =O57/'2020-21 CC'!O57-1 -> 0.02190104008 | P86: =P57/'2020-21 CC'!P57-1 -> 0.02384279973

Sheet Dynamic - 2021-22 Univ
B2: 2021-22 Formula Weighted Outcomes Calculation
B4: Combined Outcomes (17-18 to 19-20 Data) | C4: UTM | D4: APSU | E4: TTU | F4: UTC | G4: MTSU | H4: ETSU | I4: TSU | J4: UM | K4: UTK | L4: All Univ | M4: Avg All Univ
B5: Students Accumulating 30 hrs | C5: =AVERAGE('Univ Data'!$P$4:$R$4) -> 1340.733333 | D5: =AVERAGE('Univ Data'!$P$20:$R$20) -> 2433.333333 | E5: =AVERAGE('Univ Data'!$P$36:$R$36) -> 1972.6 | F5: =AVERAGE('Univ Data'!$P$52:$R$52) -> 2310.266667 | G5: =AVERAGE('Univ Data'!$P$68:$R$68) -> 3816.2 | H5: =AVERAGE('Univ Data'!$P$84:$R$84) -> 2334.533333 | I5: =AVERAGE('Univ Data'!$P$100:$R$100) -> 1329.866667 | J5: =AVERAGE('Univ Data'!$P$116:$R$116) -> 3474 | K5: =AVERAGE('Univ Data'!$P$132:$R$132) -> 5478.066667 | L5: =SUM(C5:K5) -> 24489.6 | M5: =AVERAGE(C5:K5) -> 2721.066667
B6: Students Accumulating 60 hrs | C6: =AVERAGE('Univ Data'!$P$5:$R$5) -> 1344.4 | D6: =AVERAGE('Univ Data'!$P$21:$R$21) -> 2195.133333 | E6: =AVERAGE('Univ Data'!$P$37:$R$37) -> 2112.2 | F6: =AVERAGE('Univ Data'!$P$53:$R$53) -> 2253.466667 | G6: =AVERAGE('Univ Data'!$P$69:$R$69) -> 4299.6 | H6: =AVERAGE('Univ Data'!$P$85:$R$85) -> 2398.933333 | I6: =AVERAGE('Univ Data'!$P$101:$R$101) -> 1313.533333 | J6: =AVERAGE('Univ Data'!$P$117:$R$117) -> 3778.333333 | K6: =AVERAGE('Univ Data'!$P$133:$R$133) -> 5758.866667 | L6: =SUM(C6:K6) -> 25454.46667 | M6: =AVERAGE(C6:K6) -> 2828.274074
B7: Students Accumulating 90 hrs | C7: =AVERAGE('Univ Data'!$P$6:$R$6) -> 1573 | D7: =AVERAGE('Univ Data'!$P$22:$R$22) -> 2326.733333 | E7: =AVERAGE('Univ Data'!$P$38:$R$38) -> 2660.733333 | F7: =AVERAGE('Univ Data'!$P$54:$R$54) -> 2692.6 | G7: =AVERAGE('Univ Data'!$P$70:$R$70) -> 5698.6 | H7: =AVERAGE('Univ Data'!$P$86:$R$86) -> 3245.266667 | I7: =AVERAGE('Univ Data'!$P$102:$R$102) -> 1486.666667 | J7: =AVERAGE('Univ Data'!$P$118:$R$118) -> 4297.666667 | K7: =AVERAGE('Univ Data'!$P$134:$R$134) -> 6169.2 | L7: 30150.46667 | M7: 3350.051852
B8: Bachelors and Associates | C8: =AVERAGE('Univ Data'!$P$7:$R$7) -> 1782.1 | D8: =AVERAGE('Univ Data'!$P$23:$R$23) -> 3273.366667 | E8: =AVERAGE('Univ Data'!$P$39:$R$39) -> 3108.633333 | F8: =AVERAGE('Univ Data'!$P$55:$R$55) -> 3045 | G8: =AVERAGE('Univ Data'!$P$71:$R$71) -> 6477.9 | H8: =AVERAGE('Univ Data'!$P$87:$R$87) -> 3792.566667 | I8: =AVERAGE('Univ Data'!$P$103:$R$103) -> 1864.033333 | J8: =AVERAGE('Univ Data'!$P$119:$R$119) -> 4917.633333 | K8: =AVERAGE('Univ Data'!$P$135:$R$135) -> 6515.533333 | L8: 34776.76667 | M8: 3864.085185
B9: Masters/Ed Specialist Degrees | C9: =AVERAGE('Univ Data'!$P$8:$R$8) -> 109.3333333 | D9: =AVERAGE('Univ Data'!$P$24:$R$24) -> 378.3333333 | E9: =AVERAGE('Univ Data'!$P$40:$R$40) -> 384 | F9: =AVERAGE('Univ Data'!$P$56:$R$56) -> 399.6666667 | G9: =AVERAGE('Univ Data'!$P$72:$R$72) -> 796.3333333 | H9: =AVERAGE('Univ Data'!$P$88:$R$88) -> 689 | I9: =AVERAGE('Univ Data'!$P$104:$R$104) -> 344 | J9: =AVERAGE('Univ Data'!$P$120:$R$120) -> 956.3333333 | K9: =AVERAGE('Univ Data'!$P$136:$R$136) -> 1515 | L9: 5572 | M9: 619.1111111
B10: Doctoral / Law Degrees | C10: =AVERAGE('Univ Data'!$P$9:$R$9) -> 0 | D10: =AVERAGE('Univ Data'!$P$25:$R$25) -> 0 | E10: =AVERAGE('Univ Data'!$P$41:$R$41) -> 23 | F10: =AVERAGE('Univ Data'!$P$57:$R$57) -> 74 | G10: =AVERAGE('Univ Data'!$P$73:$R$73) -> 49 | H10: =AVERAGE('Univ Data'!$P$89:$R$89) -> 134.3333333 | I10: =AVERAGE('Univ Data'!$P$105:$R$105) -> 75 | J10: =AVERAGE('Univ Data'!$P$121:$R$121) -> 246 | K10: =AVERAGE('Univ Data'!$P$137:$R$137) -> 584.6666667 | L10: 1186 | M10: 131.7777778
B11: Research, Service and Sponsored Programs | C11: =AVERAGE('Univ Data'!$O$10:$Q$10) -> 4933452.773 | D11: =AVERAGE('Univ Data'!$O$26:$Q$26) -> 3559766 | E11: =AVERAGE('Univ Data'!$O$42:$Q$42) -> 16096777.51 | F11: =AVERAGE('Univ Data'!$O$58:$Q$58) -> 9369336.347 | G11: =AVERAGE('Univ Data'!$O$74:$Q$74) -> 9077988.347 | H11: =AVERAGE('Univ Data'!$O$90:$Q$90) -> 22205125.28 | I11: =AVERAGE('Univ Data'!$O$106:$Q$106) -> 34085769.1 | J11: =AVERAGE('Univ Data'!$O$122:$Q$122) -> 52235584.21 | K11: =AVERAGE('Univ Data'!$O$138:$Q$138) -> 213216665.5 | L11: 364780465 | M11: 40531162.78
B12: Degrees per 100 FTE | C12: =AVERAGE('Univ Data'!$P$11:$R$11) -> 22.50302227 | D12: =AVERAGE('Univ Data'!$P$27:$R$27) -> 24.40404245 | E12: =AVERAGE('Univ Data'!$P$43:$R$43) -> 25.18210022 | F12: =AVERAGE('Univ Data'!$P$59:$R$59) -> 22.28110345 | G12: =AVERAGE('Univ Data'!$P$75:$R$75) -> 24.96315253 | H12: =AVERAGE('Univ Data'!$P$91:$R$91) -> 24.20238392 | I12: =AVERAGE('Univ Data'!$P$107:$R$107) -> 20.59916392 | J12: =AVERAGE('Univ Data'!$P$123:$R$123) -> 23.00532231 | K12: =AVERAGE('Univ Data'!$P$139:$R$139) -> 23.18927331 | L12: 210.3295644 | M12: 23.3699516
B13: Six-Year Graduation Rate | C13: =AVERAGE('Univ Data'!$P$12:$R$12)*100 -> 55.66114628 | D13: =AVERAGE('Univ Data'!$P$28:$R$28)*100 -> 50.34217945 | E13: =AVERAGE('Univ Data'!$P$44:$R$44)*100 -> 63.77676701 | F13: =AVERAGE('Univ Data'!$P$60:$R$60)*100 -> 64.17278631 | G13: =AVERAGE('Univ Data'!$P$76:$R$76)*100 -> 52.73530051 | H13: =AVERAGE('Univ Data'!$P$92:$R$92)*100 -> 56.56385711 | I13: =AVERAGE('Univ Data'!$P$108:$R$108)*100 -> 38.15918848 | J13: =AVERAGE('Univ Data'!$P$124:$R$124)*100 -> 56.65288891 | K13: =AVERAGE('Univ Data'!$P$140:$R$140)*100 -> 82.5223254 | L13: 520.5864395 | M13: 57.84293772
A15: Scales | B15: Scaled Outcomes (17-18 to 19-20 Data) | C15: UTM | D15: APSU | E15: TTU | F15: UTC | G15: MTSU | H15: ETSU | I15: TSU | J15: UM | K15: UTK | L15: All Univ | M15: Avg All Univ
A16: 2.5 | B16: Students Accumulating 30 hrs | C16: =C5/$A16 -> 536.2933333 | D16: =D5/$A16 -> 973.3333333 | E16: =E5/$A16 -> 789.04 | F16: =F5/$A16 -> 924.1066667 | G16: =G5/$A16 -> 1526.48 | H16: =H5/$A16 -> 933.8133333 | I16: 531.9466667 | J16: 1389.6 | K16: 2191.226667 | L16: =SUM(C16:K16) -> 9795.84 | M16: =AVERAGE(C16:K16) -> 1088.426667
A17: 2 | B17: Students Accumulating 60 hrs | C17: =C6/$A17 -> 672.2 | D17: 1097.566667 | E17: 1056.1 | F17: 1126.733333 | G17: 2149.8 | H17: 1199.466667 | I17: 656.7666667 | J17: 1889.166667 | K17: 2879.433333 | L17: 12727.23333 | M17: =AVERAGE(C17:K17) -> 1414.137037
A18: 1.5 | B18: Students Accumulating 90 hrs | C18: 1048.666667 | D18: 1551.155556 | E18: 1773.822222 | F18: 1795.066667 | G18: 3799.066667 | H18: 2163.511111 | I18: 991.1111111 | J18: 2865.111111 | K18: 4112.8 | L18: 20100.31111 | M18: 2233.367901
A19: 1 | B19: Bachelors and Associates | C19: 1782.1 | D19: 3273.366667 | E19: 3108.633333 | F19: 3045 | G19: 6477.9 | H19: 3792.566667 | I19: 1864.033333 | J19: 4917.633333 | K19: 6515.533333 | L19: 34776.76667 | M19: 3864.085185
A20: 0.3 | B20: Masters/Ed Specialist Degrees | C20: 364.4444444 | D20: 1261.111111 | E20: 1280 | F20: 1332.222222 | G20: 2654.444444 | H20: 2296.666667 | I20: 1146.666667 | J20: 3187.777778 | K20: 5050 | L20: 18573.33333 | M20: 2063.703704
A21: 0.05 | B21: Doctoral / Law Degrees | C21: 0 | D21: 0 | E21: 460 | F21: 1480 | G21: 980 | H21: 2686.666667 | I21: 1500 | J21: 4920 | K21: 11693.33333 | L21: 23720 | M21: 2635.555556
A22: 15000 | B22: Research, Service and Sponsored Programs | C22: 328.8968516 | D22: 237.3177333 | E22: 1073.1185 | F22: 624.6224231 | G22: 605.1992231 | H22: 1480.341685 | I22: 2272.384606 | J22: 3482.37228 | K22: 14214.44436 | L22: 24318.69767 | M22: 2702.077519
A23: 0.02 | B23: Degrees per 100 FTE | C23: 1125.151114 | D23: 1220.202122 | E23: 1259.105011 | F23: 1114.055172 | G23: 1248.157626 | H23: 1210.119196 | I23: 1029.958196 | J23: 1150.266115 | K23: 1159.463666 | L23: 10516.47822 | M23: 1168.49758
A24: 0.01 | B24: Six-Year Graduation Rate | C24: 5566.114628 | D24: 5034.217945 | E24: 6377.676701 | F24: 6417.278631 | G24: 5273.530051 | H24: 5656.385711 | I24: 3815.918848 | J24: 5665.288891 | K24: 8252.23254 | L24: 52058.64395 | M24: 5784.293772
B26: Weights Based on Institutional Mission | C26: UTM | D26: APSU | E26: TTU | F26: UTC | G26: MTSU | H26: ETSU | I26: TSU | J26: UM | K26: UTK | L26: Average
B27: Students Accumulating 30 hrs | C27: 0.04 | D27: 0.03 | E27: 0.04 | F27: 0.04 | G27: 0.03 | H27: 0.06 | I27: 0.04 | J27: 0.03 | K27: 0.02 | L27: =AVERAGE(C27:K27) -> 0.03666666667
B28: Students Accumulating 60 hrs | C28: 0.06 | D28: 0.045 | E28: 0.06 | F28: 0.06 | G28: 0.045 | H28: 0.075 | I28: 0.06 | J28: 0.045 | K28: 0.04 | L28: =AVERAGE(C28:K28) -> 0.05444444444
B29: Students Accumulating 90 hrs | C29: 0.1 | D29: 0.075 | E29: 0.1 | F29: 0.1 | G29: 0.075 | H29: 0.09 | I29: 0.1 | J29: 0.075 | K29: 0.065 | L29: 0.08666666667
B30: Bachelors and Associates | C30: 0.3 | D30: 0.275 | E30: 0.25 | F30: 0.25 | G30: 0.225 | H30: 0.2 | I30: 0.225 | J30: 0.225 | K30: 0.2 | L30: 0.2388888889
B31: Masters/Ed Specialist Degrees | C31: 0.15 | D31: 0.2 | E31: 0.15 | F31: 0.1 | G31: 0.2 | H31: 0.15 | I31: 0.125 | J31: 0.1 | K31: 0.1 | L31: 0.1416666667
B32: Doctoral / Law Degrees | C32: 0 | D32: 0 | E32: 0.05 | F32: 0.05 | G32: 0.075 | H32: 0.15 | I32: 0.075 | J32: 0.15 | K32: 0.125 | L32: 0.075
B33: Research, Service and Sponsored Programs | C33: 0.05 | D33: 0.1 | E33: 0.1 | F33: 0.1 | G33: 0.1 | H33: 0.1 | I33: 0.15 | J33: 0.1 | K33: 0.125 | L33: 0.1027777778
B34: Degrees per 100 FTE | C34: 0.1 | D34: 0.175 | E34: 0.1 | F34: 0.15 | G34: 0.1 | H34: 0.075 | I34: 0.125 | J34: 0.1 | K34: 0.175 | L34: 0.1222222222
B35: Six-Year Graduation Rate | C35: 0.2 | D35: 0.1 | E35: 0.15 | F35: 0.15 | G35: 0.15 | H35: 0.1 | I35: 0.1 | J35: 0.175 | K35: 0.15 | L35: 0.1416666667
C36: =SUM(C27:C35) -> 1 | D36: 1 | E36: 1 | F36: 1 | G36: 1 | H36: 1 | I36: 1 | J36: 1 | K36: 1 | L36: 1
B38: Weighted Outcomes | C38: UTM | D38: APSU | E38: TTU | F38: UTC | G38: MTSU | H38: ETSU | I38: TSU | J38: UM | K38: UTK | L38: All Univ | M38: Avg All Univ
B39: Students Accumulating 30 hrs | C39: =C16*C27 -> 21.45173333 | D39: =D16*D27 -> 29.2 | E39: 31.5616 | F39: 36.96426667 | G39: 45.7944 | H39: 56.0288 | I39: 21.27786667 | J39: 41.688 | K39: 43.82453333 | L39: =SUM(C39:K39) -> 327.7912 | M39: =AVERAGE(C39:K39) -> 36.42124444
B40: Students Accumulating 60 hrs | C40: =C17*C28 -> 40.332 | D40: 49.3905 | E40: 63.366 | F40: 67.604 | G40: 96.741 | H40: 89.96 | I40: 39.406 | J40: 85.0125 | K40: 115.1773333 | L40: 646.9893333 | M40: =AVERAGE(C40:K40) -> 71.8877037
B41: Students Accumulating 90 hrs | C41: 104.8666667 | D41: 116.3366667 | E41: 177.3822222 | F41: 179.5066667 | G41: 284.93 | H41: 194.716 | I41: 99.11111111 | J41: 214.8833333 | K41: 267.332 | L41: 1639.064667 | M41: 182.1182963
B42: Bachelors and Associates | C42: 534.63 | D42: 900.1758333 | E42: 777.1583333 | F42: 761.25 | G42: 1457.5275 | H42: 758.5133333 | I42: 419.4075 | J42: 1106.4675 | K42: 1303.106667 | L42: =SUM(C42:K42) -> 8018.236667 | M42: 890.9151852
B43: Masters/Ed Specialist Degrees | C43: 54.66666667 | D43: 252.2222222 | E43: 192 | F43: 133.2222222 | G43: 530.8888889 | H43: 344.5 | I43: 143.3333333 | J43: 318.7777778 | K43: 505 | L43: 2474.611111 | M43: 274.9567901
B44: Doctoral / Law Degrees | C44: 0 | D44: 0 | E44: 23 | F44: 74 | G44: 73.5 | H44: 403 | I44: 112.5 | J44: 738 | K44: 1461.666667 | L44: 2885.666667 | M44: 320.6296296
B45: Research, Service and Sponsored Programs | C45: 16.44484258 | D45: 23.73177333 | E45: 107.31185 | F45: 62.46224231 | G45: 60.51992231 | H45: 148.0341685 | I45: 340.857691 | J45: 348.237228 | K45: 1776.805546 | L45: 2884.405264 | M45: 320.4894737
B46: Degrees per 100 FTE | C46: 112.5151114 | D46: 213.5353714 | E46: 125.9105011 | F46: 167.1082758 | G46: 124.8157626 | H46: 90.75893971 | I46: 128.7447745 | J46: 115.0266115 | K46: 202.9061415 | L46: 1281.32149 | M46: 142.3690544
B47: Six-Year Graduation Rate | C47: 1113.222926 | D47: 503.4217945 | E47: 956.6515052 | F47: 962.5917946 | G47: 791.0295077 | H47: 565.6385711 | I47: 381.5918848 | J47: 991.4255559 | K47: 1237.834881 | L47: 7503.40842 | M47: 833.7120467
B48: Total | C48: =SUM(C39:C47) -> 1998.129946 | D48: 2088.014162 | E48: 2454.342012 | F48: 2444.709468 | G48: 3465.746982 | H48: 2651.149813 | I48: 1686.230161 | J48: 3959.518507 | K48: 6913.653768 | L48: 27661.49482 | M48: 3073.499424
B50: Weighted Outcomes Breakdown | C50: UTM | D50: APSU | E50: TTU | F50: UTC | G50: MTSU | H50: ETSU | I50: TSU | J50: UM | K50: UTK | L50: All Univs
B51: Students Accumulating 24 hrs | C51: =C39/$C$48 -> 0.01073590503 | D51: =D39/$D$48 -> 0.01398457948 | E51: =E39/$E$48 -> 0.01285949548 | F51: =F39/$F$48 -> 0.01512010615 | G51: =G39/$G$48 -> 0.01321342852 | H51: =H39/$H$48 -> 0.02113377363 | I51: =I39/$I$48 -> 0.01261860163 | J51: =J39/$J$48 -> 0.01052855289 | K51: =K39/$K$48 -> 0.006338838305 | L51: =L39/$L$48 -> 0.01185008989
B52: Students Accumulating 48 hrs | C52: =C40/$C$48 -> 0.0201848734 | D52: 0.02365429359 | E52: 0.02581791767 | F52: 0.02765318369 | G52: 0.02791346296 | H52: 0.03393244681 | I52: 0.02336928902 | J52: 0.0214704136 | K52: 0.01665940141 | L52: 0.02338952893
B53: Students Accumulating 72 hrs | C53: 0.0524824058 | D53: 0.05571641649 | E53: 0.07227282154 | F53: 0.07342658463 | G53: 0.08221315679 | H53: 0.07344586831 | I53: 0.05877673961 | J53: 0.05427006667 | K53: 0.03866725309 | L53: 0.05925437788
B54: Bachelors and Associates | C54: 0.2675651806 | D54: 0.4311157702 | E54: 0.3166463067 | F54: 0.3113866944 | G54: 0.4205521949 | H54: 0.286107307 | I54: 0.2487249425 | J54: 0.2794449623 | K54: 0.188483067 | L54: 0.2898699698
B55: Masters / Ed Specialists | C55: 0.02735891465 | D55: 0.1207952642 | E55: 0.07822870613 | F55: 0.05449409181 | G55: 0.1531816638 | H55: 0.1299436186 | I55: 0.08500223553 | J55: 0.08050922789 | K55: 0.07304386609 | L55: 0.08946049833
B56: Doctoral / Law Degree | C56: 0 | D56: 0 | E56: 0.009371147089 | F56: 0.03026944549 | G56: 0.02120754931 | H56: 0.152009516 | I56: 0.06671687091 | J56: 0.1863862989 | K56: 0.2114173946 | L56: 0.1043207059
B57: Research and Service | C57: 0.00823011667 | D57: 0.01136571474 | E57: 0.04372326657 | F57: 0.02554996539 | G57: 0.01746230254 | H57: 0.05583772286 | I57: 0.2021418539 | J57: 0.08794938765 | K57: 0.2569994977 | L57: 0.1042751045
B58: Degrees per 100 FTE | C58: 0.05631020724 | D58: 0.1022672046 | E58: 0.05130112287 | F58: 0.0683550655 | G58: 0.03601410123 | H58: 0.03423380274 | I58: 0.07635065333 | J58: 0.02905065637 | K58: 0.02934861193 | L58: 0.046321484
B59: Six-Year Graduation Rate | C59: 0.5571323966 | D59: 0.2411007568 | E59: 0.389779216 | F59: 0.393744863 | G59: 0.22824214 | H59: 0.2133559441 | I59: 0.2262988135 | J59: 0.2503904337 | K59: 0.1790420699 | L59: 0.2712582407
B60: Total | C60: =SUM(C51:C59) -> 1 | D60: 1 | E60: 1 | F60: 1 | G60: 1 | H60: 1 | I60: 1 | J60: 1 | K60: 1 | L60: 1
B64: W.O. % Change from 19-20 | C64: UTM | D64: APSU | E64: TTU | F64: UTC | G64: MTSU | H64: ETSU | I64: TSU | J64: UM | K64: UTK | L64: All Univs
B65: Students Accumulating 30 hrs | C65: =C39/'2020-21 Univ'!C39-1 -> 0.0009954706087 | D65: =D39/'2020-21 Univ'!D39-1 -> 0.03291167898 | E65: =E39/'2020-21 Univ'!E39-1 -> 0.015722083 | F65: =F39/'2020-21 Univ'!F39-1 -> 0.02423597565 | G65: =G39/'2020-21 Univ'!G39-1 -> -0.01264316269 | H65: =H39/'2020-21 Univ'!H39-1 -> -0.01720412001 | I65: =I39/'2020-21 Univ'!I39-1 -> -0.05620741862 | J65: =J39/'2020-21 Univ'!J39-1 -> 0.0207639569 | K65: =K39/'2020-21 Univ'!K39-1 -> 0.01309349147 | L65: =L39/'2020-21 Univ'!L39-1 -> 0.002737667647
B66: Students Accumulating 60 hrs | C66: =C40/'2020-21 Univ'!C40-1 -> -0.01542818084 | D66: =D40/'2020-21 Univ'!D40-1 -> 0.01805645735 | E66: =E40/'2020-21 Univ'!E40-1 -> -0.04301205183 | F66: =F40/'2020-21 Univ'!F40-1 -> -0.008826202973 | G66: =G40/'2020-21 Univ'!G40-1 -> -0.03217383475 | H66: =H40/'2020-21 Univ'!H40-1 -> -0.02764341881 | I66: =I40/'2020-21 Univ'!I40-1 -> -0.06920823885 | J66: =J40/'2020-21 Univ'!J40-1 -> 0.01560820013 | K66: =K40/'2020-21 Univ'!K40-1 -> 0.001507193953 | L66: =L40/'2020-21 Univ'!L40-1 -> -0.01586456532
B67: Students Accumulating 90 hrs | C67: =C41/'2020-21 Univ'!C41-1 -> -0.03465346535 | D67: =D41/'2020-21 Univ'!D41-1 -> -0.02915241036 | E67: =E41/'2020-21 Univ'!E41-1 -> -0.04356682403 | F67: =F41/'2020-21 Univ'!F41-1 -> -0.01415704557 | G67: =G41/'2020-21 Univ'!G41-1 -> 0.00234524326 | H67: =H41/'2020-21 Univ'!H41-1 -> -0.001313009047 | I67: =I41/'2020-21 Univ'!I41-1 -> -0.04696781914 | J67: =J41/'2020-21 Univ'!J41-1 -> -0.001162070034 | K67: =K41/'2020-21 Univ'!K41-1 -> 0.01270560425 | L67: =L41/'2020-21 Univ'!L41-1 -> -0.01162922986
B68: Bachelors and Associates | C68: =C42/'2020-21 Univ'!C42-1 -> -0.0291457834 | D68: =D42/'2020-21 Univ'!D42-1 -> 0.005529331053 | E68: =E42/'2020-21 Univ'!E42-1 -> -0.02233986791 | F68: =F42/'2020-21 Univ'!F42-1 -> 0.01078838174 | G68: =G42/'2020-21 Univ'!G42-1 -> -0.01686143573 | H68: =H42/'2020-21 Univ'!H42-1 -> 0.01047985293 | I68: =I42/'2020-21 Univ'!I42-1 -> -0.02357213948 | J68: =J42/'2020-21 Univ'!J42-1 -> -0.02536847043 | K68: =K42/'2020-21 Univ'!K42-1 -> 0.007328234833 | L68: =L42/'2020-21 Univ'!L42-1 -> -0.008324628671
B69: Masters/Ed Specialist Degrees | C69: =C43/'2020-21 Univ'!C43-1 -> 0.04792332268 | D69: =D43/'2020-21 Univ'!D43-1 -> 0.02436823105 | E69: =E43/'2020-21 Univ'!E43-1 -> -0.003460207612 | F69: =F43/'2020-21 Univ'!F43-1 -> 0.0380952381 | G69: =G43/'2020-21 Univ'!G43-1 -> -0.01280991736 | H69: =H43/'2020-21 Univ'!H43-1 -> 0.0009685230024 | I69: =I43/'2020-21 Univ'!I43-1 -> -0.1002615519 | J69: =J43/'2020-21 Univ'!J43-1 -> -0.002086956522 | K69: =K43/'2020-21 Univ'!K43-1 -> -0.0106660862 | L69: =L43/'2020-21 Univ'!L43-1 -> -0.006390881005
B70: Doctoral / Law Degrees | C70: =C44/'2020-21 Univ'!C44-1 ->  | D70: =D44/'2020-21 Univ'!D44-1 ->  | E70: =E44/'2020-21 Univ'!E44-1 -> 0.02985074627 | F70: =F44/'2020-21 Univ'!F44-1 -> -0.04721030043 | G70: =G44/'2020-21 Univ'!G44-1 -> -0.16 | H70: =H44/'2020-21 Univ'!H44-1 -> -0.04502369668 | I70: =I44/'2020-21 Univ'!I44-1 -> 0.008968609865 | J70: =J44/'2020-21 Univ'!J44-1 -> -0.03403141361 | K70: =K44/'2020-21 Univ'!K44-1 -> 0.01036866359 | L70: =L44/'2020-21 Univ'!L44-1 -> -0.01569073337
B71: Research and Service | C71: =C45/'2020-21 Univ'!C45-1 -> 0.04316504852 | D71: =D45/'2020-21 Univ'!D45-1 -> 0.1475652019 | E71: =E45/'2020-21 Univ'!E45-1 -> 0.09280712189 | F71: =F45/'2020-21 Univ'!F45-1 -> -0.002812233565 | G71: =G45/'2020-21 Univ'!G45-1 -> -0.008287784653 | H71: =H45/'2020-21 Univ'!H45-1 -> 0.06220721495 | I71: =I45/'2020-21 Univ'!I45-1 -> -0.04466320827 | J71: =J45/'2020-21 Univ'!J45-1 -> 0.0988834969 | K71: =K45/'2020-21 Univ'!K45-1 -> 0.0354065176 | L71: =L45/'2020-21 Univ'!L45-1 -> 0.03479685559
B72: Degrees per 100 FTE | C72: =C46/'2020-21 Univ'!C46-1 -> -0.0035204599 | D72: =D46/'2020-21 Univ'!D46-1 -> 0.003096407015 | E72: =E46/'2020-21 Univ'!E46-1 -> -0.006491875019 | F72: =F46/'2020-21 Univ'!F46-1 -> 0.009769217058 | G72: =G46/'2020-21 Univ'!G46-1 -> 0.003456739978 | H72: =H46/'2020-21 Univ'!H46-1 -> 0.0120896908 | I72: =I46/'2020-21 Univ'!I46-1 -> 0.03222123428 | J72: =J46/'2020-21 Univ'!J46-1 -> -0.00129398531 | K72: =K46/'2020-21 Univ'!K46-1 -> 0.007231417904 | L72: =L46/'2020-21 Univ'!L46-1 -> 0.006200832789
B73: Six-Year Graduation Rate | C73: =C47/'2020-21 Univ'!C47-1 -> -0.005430790394 | D73: =D47/'2020-21 Univ'!D47-1 -> 0.02632355766 | E73: =E47/'2020-21 Univ'!E47-1 -> 0.02831140798 | F73: =F47/'2020-21 Univ'!F47-1 -> 0.008955793861 | G73: =G47/'2020-21 Univ'!G47-1 -> 0.02366829644 | H73: =H47/'2020-21 Univ'!H47-1 -> 0.04879402692 | I73: =I47/'2020-21 Univ'!I47-1 -> 0.05519393059 | J73: =J47/'2020-21 Univ'!J47-1 -> 0.06304720776 | K73: =K47/'2020-21 Univ'!K47-1 -> 0.01209015922 | L73: =L47/'2020-21 Univ'!L47-1 -> 0.02456016515
B74: Total | C74: =C48/'2020-21 Univ'!C48-1 -> -0.01173223969 | D74: =D48/'2020-21 Univ'!D48-1 -> 0.01255297556 | E74: =E48/'2020-21 Univ'!E48-1 -> 0.002627318695 | F74: =F48/'2020-21 Univ'!F48-1 -> 0.007013657298 | G74: =G48/'2020-21 Univ'!G48-1 -> -0.00881109424 | H74: =H48/'2020-21 Univ'!H48-1 -> 0.008166432851 | I74: =I48/'2020-21 Univ'!I48-1 -> -0.01526290745 | J74: =J48/'2020-21 Univ'!J48-1 -> 0.009284647041 | K74: =K48/'2020-21 Univ'!K48-1 -> 0.01469608941 | L74: =L48/'2020-21 Univ'!L48-1 -> 0.004601850181

Sheet Dynamic 21-22 Point Calculation
B2: 2021-22 Total Point Calculation
B4: Academic Formula Units | C4: 2020-21 | D4: 2021-22 | E4: 2021-22 Fixed Costs | I4: 2021-22 Quality Assurance | K4: 2021-22
C5: Total Points | D5: Weighted Outcomes | E5: Fixed Costs | F5: Fixed Cost Share | G5: Fixed Cost Points | H5: Point Subtotal | I5: QA Score | J5: QA Points | K5: Point Total | L5: Percent Change
N6: Fixed Cost Constant
B7: LGI Universities | N7: =U17 -> 0.2182859969
B8: Austin Peay | C8: ='20-21 Point Calculation'!J8 -> 2476.925081 | D8: ='Dynamic - 2021-22 Univ'!D48 -> 2088.014162 | E8: 19221413.23 | F8: =E8/$E$38 -> 0.03890304358 | G8: =$D$38*F8*$N$7 -> 301.687208 | H8: =D8+G8 -> 2389.70137 | I8: 90 | J8: =H8*$N$9*I8/100 -> 117.2148522 | K8: =H8+J8 -> 2506.916222 | L8: =K8/C8-1 -> 0.01210821476 | N8: Quality Assurance Constant
B9: East Tennessee | C9: ='20-21 Point Calculation'!J9 -> 3271.58956 | D9: ='Dynamic - 2021-22 Univ'!H48 -> 2651.149813 | E9: 31350461.22 | F9: =E9/$E$38 -> 0.06345154463 | G9: =$D$38*F9*$N$7 -> 492.0571138 | H9: =D9+G9 -> 3143.206926 | I9: 91 | J9: =H9*$N$9*I9/100 -> 155.8873475 | K9: =H9+J9 -> 3299.094274 | L9: =K9/C9-1 -> 0.008407140905 | N9: 0.0545
B10: Middle Tennessee | C10: ='20-21 Point Calculation'!J10 -> 4482.268702 | D10: ='Dynamic - 2021-22 Univ'!G48 -> 3465.746982 | E10: 50006640.7 | F10: 0.1012105874 | G10: 784.8727686 | H10: 4250.61975 | I10: 89 | J10: 206.176311 | K10: 4456.796061 | L10: -0.00568297934
B11: Tennessee State | C11: ='20-21 Point Calculation'!J11 -> 2224.67038 | D11: ='Dynamic - 2021-22 Univ'!I48 -> 1686.230161 | E11: 27034488.14 | F11: 0.0547162614 | G11: 424.316316 | H11: 2110.546477 | I11: 79 | J11: 90.86957858 | K11: 2201.416056 | L11: -0.01045293024
B12: Tennessee Tech | C12: ='20-21 Point Calculation'!J12 -> 3058.625871 | D12: ='Dynamic - 2021-22 Univ'!E48 -> 2454.342012 | E12: 29390095.07 | F12: 0.0594838754 | G12: 461.2884401 | H12: 2915.630452 | I12: 97 | J12: 154.1348038 | K12: 3069.765256 | L12: 0.003641957172
B13: University of Memphis | C13: ='20-21 Point Calculation'!J13 -> 5096.024245 | D13: ='Dynamic - 2021-22 Univ'!J48 -> 3959.518507 | E13: 59663543.55 | F13: 0.1207556077 | G13: 936.4414396 | H13: 4895.959946 | I13: 93 | J13: 248.1517299 | K13: 5144.111676 | L13: 0.009436264231 | O13: Fixed Cost Constant Rationalization
B14: Subtotal | C14: =SUM(C8:C13) -> 20610.10384 | D14: 16305.00164 | E14: =SUM(E8:E13) -> 216666641.9 | F14: 0.4385209201 | G14: =SUM(G8:G13) -> 3400.663286 | H14: =SUM(H8:H13) -> 19705.66492 | I14: NA | J14: =SUM(J8:J13) -> 972.434623 | K14: =SUM(K8:K13) -> 20678.09954 | L14: 0.003299144283 | P14: 2011-12 | Q14: 2012-13 | R14: 2013-14 | S14: 2014-15 | T14: 2015-16 | U14: Average
O15: Fixed Costs | P15: 366690869.6 | Q15: 387809994.3 | R15: 377226237.1 | S15: 399315726.2 | T15: 415758477.6 | U15: =AVERAGE(P15:T15) -> 389360261
B16: Community Colleges | O16: Monetized Outcomes | P16: 1660440474 | Q16: 1758941536 | R16: 1789558365 | S16: 1834925392 | T16: 1874715050 | U16: =AVERAGE(P16:T16) -> 1783716163
B17: Chattanooga | C17: ='20-21 Point Calculation'!J17 -> 950.0051354 | D17: ='Dynamic - 2021-22 CC'!C57 -> 738.0351389 | E17: 10826539.31 | F17: =E17/$E$38 -> 0.0219122978 | G17: =$D$38*F17*$N$7 -> 169.9265491 | H17: =D17+G17 -> 907.961688 | I17: 93 | J17: =H17*$N$9*I17/100 -> 46.02003815 | K17: =H17+J17 -> 953.9817261 | L17: =K17/C17-1 -> 0.004185862381 | O17: Ratio | P17: =P15/P16 -> 0.2208395154 | Q17: 0.2204791839 | R17: 0.2107929221 | S17: 0.217619598 | T17: 0.2217715582 | U17: =U15/U16 -> 0.2182859969
B18: Cleveland | C18: ='20-21 Point Calculation'!J18 -> 436.0324874 | D18: ='Dynamic - 2021-22 CC'!D57 -> 355.3855154 | E18: 4433718.407 | F18: 0.008973593065 | G18: 69.58885445 | H18: =D18+G18 -> 424.9743699 | I18: 91 | J18: 21.07660387 | K18: =H18+J18 -> 446.0509738 | L18: 0.02297646761
B19: Columbia | C19: ='20-21 Point Calculation'!J19 -> 602.0896897 | D19: ='Dynamic - 2021-22 CC'!E57 -> 509.3183354 | E19: 5798323.559 | F19: 0.01173547603 | G19: 91.00683831 | H19: 600.3251737 | I19: 87 | J19: 28.46441811 | K19: 628.7895918 | L19: 0.04434539
B20: Dyersburg | C20: ='20-21 Point Calculation'!J20 -> 348.2088723 | D20: ='Dynamic - 2021-22 CC'!F57 -> 275.5700482 | E20: 3994933.129 | F20: 0.0080855167 | G20: 62.70195681 | H20: 338.272005 | I20: 100 | J20: 18.43582427 | K20: 356.7078293 | L20: 0.02440764054
B21: Jackson | C21: ='20-21 Point Calculation'!J21 -> 501.5096012 | D21: ='Dynamic - 2021-22 CC'!G57 -> 394.5836738 | E21: 5632445.379 | F21: 0.01139974806 | G21: 88.40331877 | H21: 482.9869926 | I21: 91 | J21: 23.9537399 | K21: 506.9407325 | L21: 0.01082956585
B22: Motlow | C22: ='20-21 Point Calculation'!J22 -> 660.6823748 | D22: ='Dynamic - 2021-22 CC'!H57 -> 593.921752 | E22: 4957721.212 | F22: 0.01003414484 | G22: 77.81327278 | H22: 671.7350248 | I22: 94 | J22: 34.41298532 | K22: 706.1480101 | L22: 0.06881617704
B23: Nashville | C23: ='20-21 Point Calculation'!J23 -> 750.2794575 | D23: ='Dynamic - 2021-22 CC'!I57 -> 605.1694363 | E23: 7058001.364 | F23: 0.01428499203 | G23: 110.7779486 | H23: 715.9473848 | I23: 78 | J23: 30.43492333 | K23: 746.3823082 | L23: -0.005194263662
B24: Northeast | C24: ='20-21 Point Calculation'!J24 -> 842.0471522 | D24: ='Dynamic - 2021-22 CC'!J57 -> 709.1243567 | E24: 8140136.104 | F24: 0.01647517099 | G24: 127.7624546 | H24: 836.8868112 | I24: 94 | J24: 42.87371134 | K24: 879.7605226 | L24: 0.044787718
B25: Pellissippi | C25: ='20-21 Point Calculation'!J25 -> 1143.921333 | D25: ='Dynamic - 2021-22 CC'!K57 -> 936.7880885 | E25: 10965665.71 | F25: 0.0221938817 | G25: 172.1101895 | H25: 1108.898278 | I25: 93 | J25: 56.20450922 | K25: 1165.102787 | L25: 0.01851653078
B26: Roane | C26: ='20-21 Point Calculation'!J26 -> 824.1909206 | D26: ='Dynamic - 2021-22 CC'!L57 -> 636.6898881 | E26: 10225987.46 | F26: 0.02069681511 | G26: 160.500665 | H26: 797.1905531 | I26: 92 | J26: 39.97113433 | K26: 837.1616874 | L26: 0.01573757547
B27: Southwest | C27: ='20-21 Point Calculation'!J27 -> 934.0055419 | D27: ='Dynamic - 2021-22 CC'!M57 -> 631.0418004 | E27: 15782531.34 | F27: 0.03194294288 | G27: 247.7126817 | H27: 878.7544821 | I27: 92 | J27: 44.06074973 | K27: 922.8152318 | L27: -0.01198098901
B28: Volunteer | C28: ='20-21 Point Calculation'!J28 -> 996.2497802 | D28: ='Dynamic - 2021-22 CC'!N57 -> 848.1022895 | E28: 8462966.207 | F28: 0.0171285607 | G28: 132.8293927 | H28: 980.9316822 | I28: 94 | J28: 50.25313008 | K28: 1031.184812 | L28: 0.03506653934
B29: Walters | C29: ='20-21 Point Calculation'!J29 -> 830.1308882 | D29: ='Dynamic - 2021-22 CC'!O57 -> 630.867137 | E29: 11141352.48 | F29: 0.02254946169 | G29: 174.8676585 | H29: 805.7347954 | I29: 92 | J29: 40.39954264 | K29: 846.1343381 | L29: 0.01927822479
B30: Community College Subtotal | C30: =SUM(C17:C29) -> 9819.353234 | D30: 7864.59746 | E30: =SUM(E17:E29) -> 107420321.7 | F30: 0.2174126016 | G30: =SUM(G17:G29) -> 1686.001781 | H30: =SUM(H17:H29) -> 9550.599241 | I30: NA | J30: =SUM(J17:J29) -> 476.5613103 | K30: =SUM(K17:K29) -> 10027.16055 | L30: 0.02116303508
B32: UT Universities
B33: UT Chattanooga | C33: ='20-21 Point Calculation'!J33 -> 2983.82235 | D33: ='Dynamic - 2021-22 Univ'!F48 -> 2444.709468 | E33: 26796433.17 | F33: 0.05423445171 | G33: =$D$38*F33*$N$7 -> 420.5799549 | H33: =D33+G33 -> 2865.289423 | I33: 90 | J33: =H33*$N$9*I33/100 -> 140.5424462 | K33: =H33+J33 -> 3005.831869 | L33: =K33/C33-1 -> 0.007376283529
B34: UT Knoxville | C34: ='20-21 Point Calculation'!J34 -> 9182.441689 | D34: ='Dynamic - 2021-22 Univ'!K48 -> 6913.653768 | E34: 123660839 | F34: 0.2502824819 | G34: =$D$38*F34*$N$7 -> 1940.902722 | H34: =D34+G34 -> 8854.55649 | I34: 93 | J34: =H34*$N$9*I34/100 -> 448.7931957 | K34: =H34+J34 -> 9303.349686 | L34: =K34/C34-1 -> 0.01316730353
B35: UT Martin | C35: ='20-21 Point Calculation'!J35 -> 2430.91666 | D35: ='Dynamic - 2021-22 Univ'!C48 -> 1998.129946 | E35: 19540839.77 | F35: 0.03954954468 | G35: =$D$38*F35*$N$7 -> 306.700726 | H35: 2304.830672 | I35: 83 | J35: =H35*$N$9*I35/100 -> 104.2590155 | K35: 2409.089688 | L35: =K35/C35-1 -> -0.008978906104
B36: Subtotal | C36: =SUM(C33:C35) -> 14597.1807 | D36: =SUM(D33:D35) -> 11356.49318 | E36: =SUM(E33:E35) -> 169998111.9 | F36: 0.3440664783 | G36: =SUM(G33:G35) -> 2668.183403 | H36: =SUM(H33:H35) -> 14024.67659 | I36: NA | J36: =SUM(J33:J35) -> 693.5946574 | K36: =SUM(K33:K35) -> 14718.27124 | L36: =K36/C36-1 -> 0.008295474765
B38: Colleges and Universities Total | C38: =SUM(C14,C30,C36) -> 45026.63777 | D38: =SUM(D14,D30,D36) -> 35526.09228 | E38: =SUM(E14,E30,E36) -> 494085075.5 | F38: =SUM(F14,F30,F36) -> 1 | G38: =SUM(G14,G30,G36) -> 7754.84847 | H38: =SUM(H36,H30,H14) -> 43280.94075 | I38: NA | J38: =SUM(J36,J30,J14) -> 2142.590591 | K38: =SUM(K36,K30,K14) -> 45423.53134 | L38: =K38/C38-1 -> 0.008814639223

Sheet CC Data
B2: Combined Outcomes | T2: Scale Calculation | X2: General Count | AR2: Focus Population Overlap | BM2: For Reference | CG2: Full-time Enrollment for Formula
B3: Chattanooga | C3: 2004-05 | D3: 2005-06 | E3: 2006-07 | F3: 2007-08 | G3: 2008-09 | H3: 2009-10 | I3: 2010-11 | J3: 2011-12 | K3: 2012-13 | L3: 2013-14 | M3: 2014-15 | N3: 2015-16 | O3: 2016-17 | P3: 2017-18 | Q3: 2018-19 | R3: 2019-20 | T3: Standard Dev. | X3: Chattanooga | Y3: 2004-05 | Z3: 2005-06 | AA3: 2006-07 | AB3: 2007-08 | AC3: 2008-09 | AD3: 2009-10 | AE3: 2010-11 | AF3: 2011-12 | AG3: 2012-13 | AH3: 2013-14 | AI3: 2014-15 | AJ3: 2015-16 | AK3: 2016-17 | AL3: 2017-18 | AM3: 2018-19 | AN3: 2019-20 | AS3: Chattanooga | AT3: 2004-05 | AU3: 2005-06 | AV3: 2006-07 | AW3: 2007-08 | AX3: 2008-09 | AY3: 2009-10 | AZ3: 2010-11 | BA3: 2011-12 | BB3: 2012-13 | BC3: 2013-14 | BD3: 2014-15 | BE3: 2015-16 | BF3: 2016-17 | BG3: 2017-18 | BH3: 2018-19 | BI3: 2019-20 | BN3: Chattanooga | BO3: 2004-05 | BP3: 2005-06 | BQ3: 2006-07 | BR3: 2007-08 | BS3: 2008-09 | BT3: 2009-10 | BU3: 2010-11 | BV3: 2011-12 | BW3: 2012-13 | BX3: 2013-14 | BY3: 2014-15 | BZ3: 2015-16 | CA3: 2016-17 | CB3: 2017-18 | CC3: 2018-19 | CD3: 2019-20 | CH3: 2004-05 | CI3: 2005-06 | CJ3: 2006-07 | CK3: 2007-08 | CL3: 2008-09 | CM3: 2009-10 | CN3: 2010-11 | CO3: 2011-12 | CP3: 2012-13 | CQ3: 2013-14 | CR3: 2014-15 | CS3: 2015-16 | CT3: 2016-17 | CU3: 2017-18 | CV3: 2018-19 | CW3: 2019-20
B4: Students Accumulating 12 hrs | C4: =Y4+AT4*$V$6+AT11*$V$8+AT18*$V$10 -> 4900.4 | D4: 5071 | E4: 5363.8 | F4: 5669.8 | G4: 6077 | H4: 6583.2 | I4: 5084.8 | J4: 4334.2 | K4: 4186.4 | L4: 4181.6 | M4: 3798.4 | N4: 3950.8 | O4: =AK4+BF4*$V$6+BF11*$V$8+BF18*$V$10 -> 3443.6 | P4: 3421.6 | Q4: 3253.2 | R4: 3253.2 | T4: 814.2300401 | V4: Focus Premium | X4: Students Accumulating 12 hrs | Y4: 2603 | Z4: 2744 | AA4: 2912 | AB4: 3067 | AC4: 3263 | AD4: 3482 | AE4: 2716 | AF4: 2351 | AG4: 2318 | AH4: 2339 | AI4: 2159 | AJ4: 2280 | AK4: 1972 | AL4: 1995 | AM4: 1926 | AN4: =AM4*(1+'Control Data'!$C10) -> 1926 | AR4: One Focus Pop Only | AS4: Students Accumulating 12 hrs | AT4: 839 | AU4: 864 | AV4: 921 | AW4: 969 | AX4: 1020 | AY4: 946 | AZ4: 753 | BA4: 717 | BB4: 740 | BC4: 778 | BD4: 778 | BE4: 885 | BF4: 826 | BG4: 786 | BH4: 694 | BI4: =BH4*(1+'Control Data'!$C$23) -> 694 | BM4: Adults | BN4: Students Accumulating 12 hrs | BO4: 747 | BP4: 632 | BQ4: 658 | BR4: 746 | BS4: 819 | BT4: 1055 | BU4: 877 | BV4: 723 | BW4: 644 | BX4: 552 | BY4: 463 | BZ4: 379 | CA4: 296 | CB4: 330 | CC4: 336 | CG4: Chattanooga | CH4: 4833.7 | CI4: 4686.3 | CJ4: 4682.9 | CK4: 4650.366667 | CL4: 5032.266667 | CM4: 5828.6 | CN4: 6633.166667 | CO4: 6484.733333 | CP4: 6260.9 | CQ4: 5749.5 | CR4: 5306.633333 | CS4: 5412.2 | CT4: 5020.3 | CU4: 4831.266667 | CV4: 4940.066667 | CW4: =CV4*(1+'Control Data'!$C$26) -> 4940.066667
B5: Students Accumulating 24 hrs | C5: 3975.4 | D5: 3718.4 | E5: 3850.2 | F5: 3598.8 | G5: 4001 | H5: 4684.2 | I5: 3801.8 | J5: 3570.8 | K5: 3350.4 | L5: 3118.6 | M5: 2932.6 | N5: 3017.6 | O5: =AK5+BF5*$V$6+BF12*$V$8+BF19*$V$10 -> 2774.2 | P5: 2694.4 | Q5: 2678.4 | R5: 2678.4 | T5: 429.895762 | V5: One Focus Pop Only | X5: Students Accumulating 24 hrs | Y5: 2106 | Z5: 1973 | AA5: 2045 | AB5: 1908 | AC5: 2118 | AD5: 2454 | AE5: 1969 | AF5: 1872 | AG5: 1801 | AH5: 1708 | AI5: 1611 | AJ5: 1687 | AK5: 1563 | AL5: 1533 | AM5: 1536 | AN5: =AM5*(1+'Control Data'!$C11) -> 1536 | AS5: Students Accumulating 24 hrs | AT5: 599 | AU5: 596 | AV5: 638 | AW5: 568 | AX5: 665 | AY5: 661 | AZ5: 502 | BA5: 507 | BB5: 527 | BC5: 532 | BD5: 512 | BE5: 619 | BF5: 583 | BG5: 604 | BH5: 548 | BI5: =BH5*(1+'Control Data'!$C$23) -> 548 | BN5: Students Accumulating 24 hrs | BO5: 704 | BP5: 614 | BQ5: 596 | BR5: 563 | BS5: 701 | BT5: 842 | BU5: 837 | BV5: 765 | BW5: 679 | BX5: 566 | BY5: 473 | BZ5: 416 | CA5: 294 | CB5: 318 | CC5: 368 | CG5: Cleveland | CH5: 1967.333333 | CI5: 1945.4 | CJ5: 1868.966667 | CK5: 1910.233333 | CL5: 2085.033333 | CM5: 2396.5 | CN5: 2504.433333 | CO5: 2448.2 | CP5: 2324.8 | CQ5: 2187.966667 | CR5: 2039.6 | CS5: 2044.233333 | CT5: 1984.866667 | CU5: 1748.133333 | CV5: 1827.333333 | CW5: =CV5*(1+'Control Data'!$D$26) -> 1827.333333
B6: Students Accumulating 36 hrs | C6: 3725.2 | D6: 2891.2 | E6: 3032.6 | F6: 2510.8 | G6: 3055.6 | H6: 3724.2 | I6: 3159.2 | J6: 3166.6 | K6: 2992.2 | L6: 2666.8 | M6: 2491.4 | N6: 2508.8 | O6: =AK6+BF6*$V$6+BF13*$V$8+BF20*$V$10 -> 2474.2 | P6: 2357.2 | Q6: 2365.6 | R6: 2365.6 | T6: 396.246559 | V6: 0.8 | X6: Students Accumulating 36 hrs | Y6: 1996 | Z6: 1527 | AA6: 1599 | AB6: 1320 | AC6: 1609 | AD6: 1959 | AE6: 1647 | AF6: 1646 | AG6: 1591 | AH6: 1446 | AI6: 1364 | AJ6: 1387 | AK6: 1380 | AL6: 1330 | AM6: 1338 | AN6: =AM6*(1+'Control Data'!$C12) -> 1338 | AS6: Students Accumulating 36 hrs | AT6: 627 | AU6: 448 | AV6: 474 | AW6: 395 | AX6: 464 | AY6: 576 | AZ6: 448 | BA6: 413 | BB6: 453 | BC6: 436 | BD6: 426 | BE6: 465 | BF6: 507 | BG6: 513 | BH6: 478 | BI6: =BH6*(1+'Control Data'!$C$23) -> 478 | BN6: Students Accumulating 36 hrs | BO6: 724 | BP6: 604 | BQ6: 594 | BR6: 479 | BS6: 633 | BT6: 803 | BU6: 724 | BV6: 783 | BW6: 702 | BX6: 558 | BY6: 497 | BZ6: 434 | CA6: 358 | CB6: 305 | CC6: 361 | CG6: Columbia | CH6: 2930.633333 | CI6: 2876.2 | CJ6: 2771.166667 | CK6: 2817.433333 | CL6: 2926.8 | CM6: 3445.9 | CN6: 3618.333333 | CO6: 3342.633333 | CP6: 3173.433333 | CQ6: 3120.266667 | CR6: 3022.233333 | CS6: 3277.8 | CT6: 3379.766667 | CU6: 3637.666667 | CV6: 3891.3 | CW6: =CV6*(1+'Control Data'!$E$26) -> 3891.3
B7: Dual Enrollment | C7: =Y7 -> 612 | D7: 661 | E7: 865 | F7: =AB7 -> 974 | G7: 1060 | H7: 1003 | I7: 1095 | J7: 1155 | K7: 1253 | L7: 1373 | M7: 1432 | N7: 1477 | O7: =AK7 -> 1499 | P7: =AL7 -> 1578 | Q7: =AM7 -> 1366 | R7: =AN7 -> 1366 | T7: 241.2704568 | V7: Two Focus Pops Only | X7: Dual Enrollment | Y7: 612 | Z7: 661 | AA7: 865 | AB7: 974 | AC7: 1060 | AD7: 1003 | AE7: 1095 | AF7: 1155 | AG7: 1253 | AH7: 1373 | AI7: 1432 | AJ7: 1477 | AK7: 1499 | AL7: 1578 | AM7: 1366 | AN7: =AM7*(1+'Control Data'!$C13) -> 1366 | AS7: Associates | AT7: 203 | AU7: 199 | AV7: 209 | AW7: 201 | AX7: 169 | AY7: 217 | AZ7: 245 | BA7: 261 | BB7: 285 | BC7: 311 | BD7: 266 | BE7: 317 | BF7: 346 | BG7: 352 | BH7: 381 | BI7: =BH7*(1+'Control Data'!$C$23) -> 381 | BN7: Associates | BO7: 398 | BP7: 393 | BQ7: 420 | BR7: 391 | BS7: 355 | BT7: 445 | BU7: 512 | BV7: 552 | BW7: 652 | BX7: 674 | BY7: 553 | BZ7: 621 | CA7: 500 | CB7: 486 | CC7: 489 | CG7: Dyersburg | CH7: 1679.3 | CI7: 1621.266667 | CJ7: 1549.933333 | CK7: 1492.6 | CL7: 1599.066667 | CM7: 2070.033333 | CN7: 2158.333333 | CO7: 2069.9 | CP7: 1936.733333 | CQ7: 1601.966667 | CR7: 1386.4 | CS7: 1387.266667 | CT7: 1381.5 | CU7: 1304.833333 | CV7: 1447.2 | CW7: =CV7*(1+'Control Data'!$F$26) -> 1447.2
B8: Associates | C8: =Y8+$V$13*Y9+$V$6*(AT7+$V$13*AT8)+$V$8*(AT14+$V$13*AT15)+$V$10*(AT21+$V$13*AT22) -> 1200.8 | D8: 1209.8 | E8: 1300.4 | F8: 1246.6 | G8: 1174.8 | H8: 1424.8 | I8: 1613.4 | J8: 1731.6 | K8: 1946 | L8: 2019 | M8: 1755.2 | N8: 2081.4 | O8: =AK8+$V$13*AK9+$V$6*(BF7+$V$13*BF8)+$V$8*(BF14+$V$13*BF15)+$V$10*(BF21+$V$13*BF22) -> 1979 | P8: 2042.7 | Q8: 1997.3 | R8: 1997.3 | T8: 318.2365193 | V8: 1 | X8: Associates | Y8: 635 | Z8: 636 | AA8: 692 | AB8: 652 | AC8: 617 | AD8: 745 | AE8: 842 | AF8: 896 | AG8: 1002 | AH8: 1046 | AI8: 935 | AJ8: 1069 | AK8: 1055 | AL8: 1089 | AM8: 1078 | AN8: =AM8*(1+'Control Data'!$C15) -> 1078 | AS8: Reverse Articulated Associates | AT8: 0 | AU8: 0 | AV8: 0 | AW8: 0 | AX8: 0 | AY8: 0 | AZ8: 0 | BA8: 0 | BB8: 0 | BC8: 0 | BD8: 0 | BE8: 20 | BF8: 3 | BG8: 18 | BH8: 19 | BI8: =BH8*(1+'Control Data'!$C$23) -> 19 | BN8: Reverse Articulated Associates | BO8: 0 | BP8: 0 | BQ8: 0 | BR8: 0 | BS8: 0 | BT8: 0 | BU8: 0 | BV8: 0 | BW8: 0 | BX8: 0 | BY8: 0 | BZ8: 25 | CA8: 10 | CB8: 9 | CC8: 15 | CG8: Jackson | CH8: 2713.566667 | CI8: 2617.833333 | CJ8: 2781.666667 | CK8: 2843.866667 | CL8: 2837.666667 | CM8: 3278.4 | CN8: 3312.433333 | CO8: 3087.2 | CP8: 2685.866667 | CQ8: 2393.8 | CR8: 2319.233333 | CS8: 2409.966667 | CT8: 2496.2 | CU8: 2414.4 | CV8: 2472.1 | CW8: =CV8*(1+'Control Data'!$G$26) -> 2472.1
B9: 1-2 Year Certificates | C9: =Y10+AT9*$V$6+AT16*$V$8+AT23*$V$10 -> 104.6 | D9: 137.8 | E9: 105 | F9: 158 | G9: 187.2 | H9: 181.2 | I9: 229.2 | J9: 271.6 | K9: 430.6 | L9: 335 | M9: 303.6 | N9: 224.4 | O9: =AK10+BF9*$V$6+BF16*$V$8+BF23*$V$10 -> 297.8 | P9: 220.8 | Q9: 31.6 | R9: 31.6 | T9: 104.8902686 | V9: All Three Focus Pops | X9: Reverse Articulated Associates | Y9: 0 | Z9: 0 | AA9: 0 | AB9: 0 | AC9: 0 | AD9: 0 | AE9: 0 | AF9: 0 | AG9: 0 | AH9: 0 | AI9: 0 | AJ9: 60 | AK9: 22 | AL9: 43 | AM9: 49 | AN9: =AM9*(1+'Control Data'!$C16) -> 49 | AS9: 1-2 Year Certificates | AT9: 32 | AU9: 45 | AV9: 34 | AW9: 38 | AX9: 40 | AY9: 42 | AZ9: 49 | BA9: 63 | BB9: 86 | BC9: 64 | BD9: 51 | BE9: 51 | BF9: 43 | BG9: 36 | BH9: 3 | BI9: =BH9*(1+'Control Data'!$C$23) -> 3 | BN9: 1-2 Year Certificates | BO9: 36 | BP9: 53 | BQ9: 45 | BR9: 59 | BS9: 62 | BT9: 51 | BU9: 72 | BV9: 94 | BW9: 149 | BX9: 104 | BY9: 93 | BZ9: 61 | CA9: 86 | CB9: 62 | CC9: 11 | CG9: Motlow | CH9: 2299.366667 | CI9: 2263.833333 | CJ9: 2439.366667 | CK9: 2639.266667 | CL9: 2850.6 | CM9: 3258.333333 | CN9: 3202.566667 | CO9: 3025.033333 | CP9: 2758.766667 | CQ9: 2703.933333 | CR9: 2748.1 | CS9: 3372.266667 | CT9: 3756.766667 | CU9: 3760.166667 | CV9: 3817.255333 | CW9: =CV9*(1+'Control Data'!$H$26) -> 3817.255333
B10: <1yr Certificates | C10: 30.6 | D10: 71.8 | E10: 37.8 | F10: 39.4 | G10: 34.6 | H10: 159.8 | I10: 384.6 | J10: 513.2 | K10: 439 | L10: 489.4 | M10: 305.2 | N10: 310.2 | O10: =AK11+BF10*$V$6+BF17*$V$8+BF24*$V$10 -> 328.4 | P10: 450.4 | Q10: 640.2 | R10: 640.2 | T10: 209.3046435 | V10: 1.2 | X10: 1-2 Year Certificates | Y10: 62 | Z10: 78 | AA10: 60 | AB10: 86 | AC10: 101 | AD10: 99 | AE10: 123 | AF10: 146 | AG10: 229 | AH10: 179 | AI10: 162 | AJ10: 123 | AK10: 158 | AL10: 118 | AM10: 16 | AN10: =AM10*(1+'Control Data'!$C17) -> 16 | AS10: <1yr Certificates | AT10: 4 | AU10: 10 | AV10: 9 | AW10: 8 | AX10: 5 | AY10: 34 | AZ10: 61 | BA10: 102 | BB10: 75 | BC10: 80 | BD10: 46 | BE10: 54 | BF10: 46 | BG10: 70 | BH10: 141 | BI10: =BH10*(1+'Control Data'!$C$23) -> 141 | BN10: <1yr Certificates | BO10: 10 | BP10: 28 | BQ10: 10 | BR10: 12 | BS10: 10 | BT10: 42 | BU10: 100 | BV10: 174 | BW10: 155 | BX10: 157 | BY10: 90 | BZ10: 81 | CA10: 85 | CB10: 108 | CC10: 168 | CG10: Nashville | CH10: 3316.866667 | CI10: 3731.46 | CJ10: 3796.266667 | CK10: 3974.2 | CL10: 4212.183333 | CM10: 5178.283333 | CN10: 5589.583333 | CO10: 5837.166667 | CP10: 5695.766667 | CQ10: 5701.65 | CR10: 5729.483333 | CS10: 5846.333333 | CT10: 5112.95 | CU10: 4635.783333 | CV10: 4753.383333 | CW10: =CV10*(1+'Control Data'!$I$26) -> 4753.383333
B11: Job Placements | C11: =Y12 -> 0 | D11: 0 | E11: 0 | F11: 424 | G11: 407 | H11: 381 | I11: 429 | J11: 429 | K11: 369 | L11: 462 | M11: 425 | N11: 453 | O11: =AK12 -> 409 | P11: =AL12 -> 447 | Q11: =AM12 -> 437 | R11: =AN12 -> 437 | T11: 85.66574022 | X11: <1yr Certificates | Y11: 16 | Z11: 37 | AA11: 21 | AB11: 20 | AC11: 18 | AD11: 86 | AE11: 203 | AF11: 268 | AG11: 232 | AH11: 262 | AI11: 167 | AJ11: 172 | AK11: 176 | AL11: 248 | AM11: 350 | AN11: =AM11*(1+'Control Data'!$C18) -> 350 | AR11: Two Focus Pops Only | AS11: Students Accumulating 12 hrs | AT11: 1127 | AU11: 1169 | AV11: 1211 | AW11: 1308 | AX11: 1386 | AY11: 1436 | AZ11: 1032 | BA11: 866 | BB11: 782 | BC11: 811 | BD11: 699 | BE11: 754 | BF11: 650 | BG11: 649 | BH11: 628 | BI11: =BH11*(1+'Control Data'!$C$24) -> 628 | BM11: Low-Income | BN11: Students Accumulating 12 hrs | BO11: 1568 | BP11: 1678 | BQ11: 1803 | BR11: 1935 | BS11: 2114 | BT11: 2322 | BU11: 1787 | BV11: 1478 | BW11: 1345 | BX11: 1388 | BY11: 1205 | BZ11: 1208 | CA11: 1077 | CB11: 1053 | CC11: 942 | CG11: Northeast | CH11: 3405.533333 | CI11: 3203.666667 | CJ11: 3370.233333 | CK11: 3387.1 | CL11: 3666.366667 | CM11: 4318.833333 | CN11: 4750.666667 | CO11: 4433.2 | CP11: 4182.566667 | CQ11: 3724.333333 | CR11: 3616.133333 | CS11: 3874.966667 | CT11: 3808.633333 | CU11: 3759.866667 | CV11: 3801.466667 | CW11: =CV11*(1+'Control Data'!$J$26) -> 3801.466667
B12: Transfers Out with 12 hrs | C12: 437 | D12: 399 | E12: 418 | F12: 405 | G12: 345 | H12: 360 | I12: 440 | J12: 531 | K12: 568 | L12: 499 | M12: 536 | N12: 606 | O12: 535 | P12: 621 | Q12: 535 | R12: 535 | T12: 72.24157006 | V12: R.A. Assoc. Credit | X12: Job Placements | AB12: 424 | AC12: 407 | AD12: 381 | AE12: 429 | AF12: 429 | AG12: 369 | AH12: 462 | AI12: 425 | AJ12: 453 | AK12: 409 | AL12: 447 | AM12: 437 | AN12: =AM12*(1+'Control Data'!$C19) -> 437 | AS12: Students Accumulating 24 hrs | AT12: 909 | AU12: 845 | AV12: 858 | AW12: 826 | AX12: 841 | AY12: 1027 | AZ12: 710 | BA12: 686 | BB12: 649 | BC12: 577 | BD12: 582 | BE12: 569 | BF12: 572 | BG12: 497 | BH12: 512 | BI12: =BH12*(1+'Control Data'!$C$24) -> 512 | BN12: Students Accumulating 24 hrs | BO12: 1300 | BP12: 1220 | BQ12: 1305 | BR12: 1241 | BS12: 1377 | BT12: 1645 | BU12: 1381 | BV12: 1247 | BW12: 1115 | BX12: 1025 | BY12: 980 | BZ12: 979 | CA12: 897 | CB12: 857 | CC12: 826 | CG12: Pellissippi | CH12: 4855.566667 | CI12: 4709.266667 | CJ12: 4897.266667 | CK12: 5202.266667 | CL12: 5456.766667 | CM12: 6377.4 | CN12: 7063.566667 | CO12: 7145.766667 | CP12: 6734.466667 | CQ12: 6478.333333 | CR12: 6143.2 | CS12: 6117.766667 | CT12: 5841.966667 | CU12: 6334.233333 | CV12: 6371.433333 | CW12: =CV12*(1+'Control Data'!$K$26) -> 6371.433333
B13: Workforce Training (Contact Hours) | C13: 0 | D13: 0 | E13: 0 | F13: 71596 | G13: 41149 | H13: 97351 | I13: 163769.5 | J13: 241977 | K13: 149621 | L13: 116198 | M13: 66340 | N13: 50083.5 | O13: 51974.5 | P13: 60457 | Q13: 61762.85 | R13: 61762.85 | T13: 66371.55023 | V13: 0.5 | X13: Transfers Out with 12 hrs | Y13: 437 | Z13: 399 | AA13: 418 | AB13: 405 | AC13: 345 | AD13: 360 | AE13: 440 | AF13: 531 | AG13: 568 | AH13: 499 | AI13: 536 | AJ13: 606 | AK13: 535 | AL13: 621 | AM13: 535 | AN13: =AM13*(1+'Control Data'!$C20) -> 535 | AS13: Students Accumulating 36 hrs | AT13: 762 | AU13: 605 | AV13: 656 | AW13: 546 | AX13: 629 | AY13: 750 | AZ13: 591 | BA13: 595 | BB13: 548 | BC13: 494 | BD13: 465 | BE13: 457 | BF13: 457 | BG13: 450 | BH13: 416 | BI13: =BH13*(1+'Control Data'!$C$24) -> 416 | BN13: Students Accumulating 36 hrs | BO13: 1138 | BP13: 920 | BQ13: 994 | BR13: 842 | BS13: 1045 | BT13: 1280 | BU13: 1123 | BV13: 1116 | BW13: 1022 | BX13: 902 | BY13: 789 | BZ13: 849 | CA13: 835 | CB13: 739 | CC13: 757 | CG13: Roane | CH13: 3650.966667 | CI13: 3450.933333 | CJ13: 3533.7 | CK13: 3577.066667 | CL13: 3602.433333 | CM13: 4089.666667 | CN13: 4344.633333 | CO13: 4083.533333 | CP13: 3856.033333 | CQ13: 3627.333333 | CR13: 3413.466667 | CS13: 3410.733333 | CT13: 3447.166667 | CU13: 3219.133333 | CV13: 3391.2 | CW13: =CV13*(1+'Control Data'!$L$26) -> 3391.2
B14: Awards per 100 FTE | C14: 14.41959575 | D14: 15.23590039 | E14: 16.05842533 | F14: 15.86971637 | G14: 14.26792433 | H14: 14.48032117 | I14: 14.54810422 | J14: 16.06850963 | K14: 19.66170998 | L14: 21.30620054 | M14: 20.6722404 | N14: 22.57861868 | O14: 24.38101309 | P14: 25.42811409 | Q14: 22.64139485 | R14: 22.64139485 | T14: 2.397237767 | X14: Workforce Training (Contact Hours) | AB14: 71596 | AC14: 41149 | AD14: 97351 | AE14: 163769.5 | AF14: 241977 | AG14: 149621 | AH14: 116198 | AI14: 66340 | AJ14: 50083.5 | AK14: 51974.5 | AL14: 60457 | AM14: 61762.85 | AN14: =AM14*(1+'Control Data'!$C21) -> 61762.85 | AS14: Associates | AT14: 251 | AU14: 213 | AV14: 254 | AW14: 225 | AX14: 233 | AY14: 283 | AZ14: 297 | BA14: 304 | BB14: 344 | BC14: 345 | BD14: 305 | BE14: 356 | BF14: 334 | BG14: 357 | BH14: 331 | BI14: =BH14*(1+'Control Data'!$C$24) -> 331 | BN14: Associates | BO14: 274 | BP14: 337 | BQ14: 340 | BR14: 345 | BS14: 365 | BT14: 429 | BU14: 519 | BV14: 570 | BW14: 638 | BX14: 658 | BY14: 557 | BZ14: 656 | CA14: 645 | CB14: 667 | CC14: 608 | CG14: Southwest | CH14: 7459.5 | CI14: 7381.6 | CJ14: 7285.533333 | CK14: 6942.3 | CL14: 7517.966667 | CM14: 8765.8 | CN14: 9083.933333 | CO14: 9108 | CP14: 7692.266667 | CQ14: 6825.233333 | CR14: 6336.3 | CS14: 5754.1 | CT14: 5388.766667 | CU14: 5731.433333 | CV14: 5863.433333 | CW14: =CV14*(1+'Control Data'!$M$26) -> 5863.433333
X15: Awards per 100 FTE | Y15: 14.41959575 | Z15: 15.23590039 | AA15: 16.05842533 | AB15: 15.86971637 | AC15: 14.26792433 | AD15: 14.48032117 | AE15: 14.54810422 | AF15: 16.06850963 | AG15: 19.66170998 | AH15: 21.30620054 | AI15: 20.6722404 | AJ15: 22.57861868 | AK15: 24.38101309 | AL15: 25.42811409 | AM15: 22.64139485 | AN15: =AM15*(1+'Control Data'!$C22) -> 22.64139485 | AS15: Reverse Articulated Associates | AT15: 0 | AU15: 0 | AV15: 0 | AW15: 0 | AX15: 0 | AY15: 0 | AZ15: 0 | BA15: 0 | BB15: 0 | BC15: 0 | BD15: 0 | BE15: 30 | BF15: 14 | BG15: 10 | BH15: 12 | BI15: =BH15*(1+'Control Data'!$C$24) -> 12 | BN15: Reverse Articulated Associates | BO15: 0 | BP15: 0 | BQ15: 0 | BR15: 0 | BS15: 0 | BT15: 0 | BU15: 0 | BV15: 0 | BW15: 0 | BX15: 0 | BY15: 0 | BZ15: 44 | CA15: 16 | CB15: 29 | CC15: 31 | CG15: Volunteer | CH15: 4312.966667 | CI15: 4266.1 | CJ15: 4289.8 | CK15: 4131.166667 | CL15: 4385.066667 | CM15: 5362.3 | CN15: 5577.133333 | CO15: 5265.366667 | CP15: 4762.6 | CQ15: 4539.566667 | CR15: 4355.666667 | CS15: 4805.066667 | CT15: 5196.766667 | CU15: 5198.8 | CV15: 5440.933333 | CW15: =CV15*(1+'Control Data'!$N$26) -> 5440.933333
AS16: 1-2 Year Certificates | AT16: 11 | AU16: 13 | AV16: 13 | AW16: 26 | AX16: 35 | AY16: 27 | AZ16: 37 | BA16: 32 | BB16: 86 | BC16: 58 | BD16: 54 | BE16: 33 | BF16: 61 | BG16: 44 | BH16: 6 | BI16: =BH16*(1+'Control Data'!$C$24) -> 6 | BN16: 1-2 Year Certificates | BO16: 13 | BP16: 19 | BQ16: 14 | BR16: 34 | BS16: 40 | BT16: 43 | BU16: 60 | BV16: 64 | BW16: 128 | BX16: 96 | BY16: 99 | BZ16: 68 | CA16: 103 | CB16: 68 | CC16: 10 | CG16: Walters | CH16: 3600.8 | CI16: 3602.8 | CJ16: 3640.066667 | CK16: 3637.166667 | CL16: 3951.433333 | CM16: 4533.566667 | CN16: 4604.8 | CO16: 4270.733333 | CP16: 3965.7 | CQ16: 3631.366667 | CR16: 3442.6 | CS16: 3481.533333 | CT16: 3490.533333 | CU16: 3572.1 | CV16: 3617.3 | CW16: =CV16*(1+'Control Data'!$O$26) -> 3617.3
AS17: <1yr Certificates | AT17: 9 | AU17: 16 | AV17: 6 | AW17: 7 | AX17: 9 | AY17: 25 | AZ17: 68 | BA17: 106 | BB17: 93 | BC17: 77 | BD17: 51 | BE17: 53 | BF17: 76 | BG17: 90 | BH17: 109 | BI17: =BH17*(1+'Control Data'!$C$24) -> 109 | BN17: <1yr Certificates | BO17: 9 | BP17: 18 | BQ17: 8 | BR17: 7 | BS17: 11 | BT17: 50 | BU17: 136 | BV17: 146 | BW17: 137 | BX17: 156 | BY17: 103 | BZ17: 96 | CA17: 114 | CB17: 157 | CC17: 185 | CG17: Total | CH17: =SUM(CH4:CH16) -> 47026.1 | CI17: 46356.66 | CJ17: 46906.86667 | CK17: 47205.03333 | CL17: 50123.65 | CM17: 58903.61667 | CN17: 62443.58333 | CO17: 60601.46667 | CP17: 56029.9 | CQ17: 52285.25 | CR17: =SUM(CR4:CR16) -> 49859.05 | CS17: 51194.23333 | CT17: 50306.18333 | CU17: =SUM(CU4:CU16) -> 50147.81667 | CV17: 51634.40533 | CW17: 51634.40533
AR18: All Three Focus Pops | AS18: Students Accumulating 12 hrs | AT18: 416 | AU18: 389 | AV18: 420 | AW18: 433 | AX18: 510 | AY18: 757 | AZ18: 612 | BA18: 453 | BB18: 412 | BC18: 341 | BD18: 265 | BE18: 174 | BF18: 134 | BG18: 124 | BH18: 120 | BI18: =BH18*(1+'Control Data'!$C$25) -> 120 | BM18: Academically Underprepared | BN18: Students Accumulating 12 hrs | BO18: 2026 | BP18: 2059 | BQ18: 2142 | BR18: 2203 | BS18: 2389 | BT18: 2712 | BU18: 1989 | BV18: 1607 | BW18: 1551 | BX18: 1483 | BY18: 1303 | BZ18: 1328 | CA18: 1155 | CB18: 1073 | CC18: 1032
AS19: Students Accumulating 24 hrs | AT19: 401 | AU19: 353 | AV19: 364 | AW19: 342 | AX19: 425 | AY19: 562 | AZ19: 601 | BA19: 506 | BB19: 399 | BC19: 340 | BD19: 275 | BE19: 222 | BF19: 144 | BG19: 151 | BH19: 160 | BI19: =BH19*(1+'Control Data'!$C$25) -> 160 | BN19: Students Accumulating 24 hrs | BO19: 1616 | BP19: 1511 | BQ19: 1545 | BR19: 1442 | BS19: 1544 | BT19: 1914 | BU19: 1507 | BV19: 1385 | BW19: 1228 | BX19: 1115 | BY19: 1048 | BZ19: 1028 | CA19: 968 | CB19: 876 | CC19: 858
AS20: Students Accumulating 36 hrs | AT20: 388 | AU20: 334 | AV20: 332 | AW20: 274 | AX20: 372 | AY20: 462 | AZ20: 469 | BA20: 496 | BB20: 409 | BC20: 315 | BD20: 268 | BE20: 244 | BF20: 193 | BG20: 139 | BH20: 191 | BI20: =BH20*(1+'Control Data'!$C$25) -> 191 | BN20: Students Accumulating 36 hrs | BO20: 1453 | BP20: 1136 | BQ20: 1194 | BR20: 988 | BS20: 1160 | BT20: 1379 | BU20: 1190 | BV20: 1192 | BW20: 1052 | BX20: 909 | BY20: 874 | BZ20: 828 | CA20: 807 | CB20: 786 | CC20: 765
AS21: Associates | AT21: 127 | AU21: 168 | AV21: 156 | AW21: 174 | AX21: 158 | AY21: 186 | AZ21: 232 | BA21: 269 | BB21: 310 | BC21: 316 | BD21: 252 | BE21: 288 | BF21: 243 | BG21: 231 | BH21: 199 | BI21: =BH21*(1+'Control Data'!$C$25) -> 199 | BN21: Associates | BO21: 414 | BP21: 399 | BQ21: 425 | BR21: 437 | BS21: 389 | BT21: 467 | BU21: 504 | BV21: 554 | BW21: 613 | BX21: 617 | BY21: 522 | BZ21: 616 | CA21: 598 | CB21: 606 | CC21: 543
AS22: Reverse Articulated Associates | AT22: 0 | AU22: 0 | AV22: 0 | AW22: 0 | AX22: 0 | AY22: 0 | AZ22: 0 | BA22: 0 | BB22: 0 | BC22: 0 | BD22: 0 | BE22: 7 | BF22: 4 | BG22: 7 | BH22: 11 | BI22: =BH22*(1+'Control Data'!$C$25) -> 11 | BN22: Reverse Articulated Associates | BO22: 0 | BP22: 0 | BQ22: 0 | BR22: 0 | BS22: 0 | BT22: 0 | BU22: 0 | BV22: 0 | BW22: 0 | BX22: 0 | BY22: 0 | BZ22: 32 | CA22: 17 | CB22: 21 | CC22: 30
AS23: 1-2 Year Certificates | AT23: 5 | AU23: 9 | AV23: 4 | AW23: 13 | AX23: 16 | AY23: 18 | AZ23: 25 | BA23: 36 | BB23: 39 | BC23: 39 | BD23: 39 | BE23: 23 | BF23: 37 | BG23: 25 | BH23: 6 | BI23: =BH23*(1+'Control Data'!$C$25) -> 6 | BN23: 1-2 Year Certificates | BO23: 20 | BP23: 26 | BQ23: 13 | BR23: 36 | BS23: 56 | BT23: 56 | BU23: 66 | BV23: 77 | BW23: 98 | BX23: 97 | BY23: 84 | BZ23: 57 | CA23: 87 | CB23: 69 | CC23: 12
AS24: <1yr Certificates | AT24: 2 | AU24: 9 | AV24: 3 | AW24: 5 | AX24: 3 | AY24: 18 | AZ24: 54 | BA24: 48 | BB24: 45 | BC24: 72 | BD24: 42 | BE24: 35 | BF24: 33 | BG24: 47 | BH24: 57 | BI24: =BH24*(1+'Control Data'!$C$25) -> 57 | BN24: <1yr Certificates | BO24: 9 | BP24: 23 | BQ24: 12 | BR24: 18 | BS24: 11 | BT24: 46 | BU24: 123 | BV24: 138 | BW24: 104 | BX24: 137 | BY24: 81 | BZ24: 88 | CA24: 98 | CB24: 126 | CC24: 177
B26: Cleveland | C26: 2004-05 | D26: 2005-06 | E26: 2006-07 | F26: 2007-08 | G26: 2008-09 | H26: 2009-10 | I26: 2010-11 | J26: 2011-12 | K26: 2012-13 | L26: 2013-14 | M26: 2014-15 | N26: 2015-16 | O26: 2016-17 | P26: 2017-18 | Q26: =Q3 -> 2018-19 | R26: 2019-20 | T26: Standard Dev. | X26: Cleveland | Y26: 2004-05 | Z26: 2005-06 | AA26: 2006-07 | AB26: 2007-08 | AC26: 2008-09 | AD26: 2009-10 | AE26: 2010-11 | AF26: 2011-12 | AG26: 2012-13 | AH26: 2013-14 | AI26: 2014-15 | AJ26: 2015-16 | AK26: 2016-17 | AL26: 2017-18 | AM26: 2018-19 | AN26: 2019-20 | AS26: Cleveland | AT26: 2004-05 | AU26: 2005-06 | AV26: 2006-07 | AW26: 2007-08 | AX26: 2008-09 | AY26: 2009-10 | AZ26: 2010-11 | BA26: 2011-12 | BB26: 2012-13 | BC26: 2013-14 | BD26: 2014-15 | BE26: 2015-16 | BF26: 2016-17 | BG26: 2017-18 | BH26: 2018-19 | BI26: 2019-20 | BN26: Cleveland | BO26: 2004-05 | BP26: 2005-06 | BQ26: 2006-07 | BR26: 2007-08 | BS26: 2008-09 | BT26: 2009-10 | BU26: 2010-11 | BV26: 2011-12 | BW26: 2012-13 | BX26: 2013-14 | BY26: 2014-15 | BZ26: 2015-16 | CA26: 2016-17 | CB26: 2017-18 | CC26: 2018-19 | CD26: 2019-20
B27: Students Accumulating 12 hrs | C27: =Y27+AT27*$V$6+AT34*$V$8+AT41*$V$10 -> 2019.6 | D27: 2304.4 | E27: 2286.2 | F27: 2297.4 | G27: 2707 | H27: 3235.2 | I27: 2175 | J27: 2178 | K27: 1941.8 | L27: 1799.4 | M27: 1730.4 | N27: 1813 | O27: =AK27+BF27*$V$6+BF34*$V$8+BF41*$V$10 -> 1730.8 | P27: 1592.8 | Q27: 1812.4 | R27: 1812.4 | T27: 416.1578034 | X27: Students Accumulating 12 hrs | Y27: 1080 | Z27: 1233 | AA27: 1220 | AB27: 1226 | AC27: 1448 | AD27: 1707 | AE27: 1141 | AF27: 1164 | AG27: 1060 | AH27: 987 | AI27: 979 | AJ27: 1054 | AK27: 981 | AL27: 919 | AM27: 1062 | AN27: =AM27*(1+'Control Data'!$D10) -> 1062 | AR27: One Focus Pop Only | AS27: Students Accumulating 12 hrs | AT27: 380 | AU27: 440 | AV27: 426 | AW27: 420 | AX27: 491 | AY27: 491 | AZ27: 336 | BA27: 351 | BB27: 343 | BC27: 358 | BD27: 368 | BE27: 408 | BF27: 377 | BG27: 380 | BH27: 372 | BI27: =BH27*(1+'Control Data'!$D$23) -> 372 | BM27: Adults | BN27: Students Accumulating 12 hrs | BO27: 325 | BP27: 380 | BQ27: 382 | BR27: 373 | BS27: 467 | BT27: 571 | BU27: 438 | BV27: 371 | BW27: 277 | BX27: 228 | BY27: 200 | BZ27: 164 | CA27: 156 | CB27: 131 | CC27: 231
B28: Students Accumulating 24 hrs | C28: 1468.4 | D28: 1643.2 | E28: 1574.8 | F28: 1675 | G28: 1706.4 | H28: 2041.8 | I28: 1742.8 | J28: 1575.6 | K28: 1365.8 | L28: 1403.8 | M28: 1179.2 | N28: 1247.2 | O28: =AK28+BF28*$V$6+BF35*$V$8+BF42*$V$10 -> 1222 | P28: 1110.6 | Q28: 1180.4 | R28: 1180.4 | T28: 196.7250411 | X28: Students Accumulating 24 hrs | Y28: 770 | Z28: 869 | AA28: 826 | AB28: 879 | AC28: 894 | AD28: 1056 | AE28: 897 | AF28: 817 | AG28: 716 | AH28: 752 | AI28: 645 | AJ28: 683 | AK28: 669 | AL28: 622 | AM28: 658 | AN28: =AM28*(1+'Control Data'!$D11) -> 658 | AS28: Students Accumulating 24 hrs | AT28: 252 | AU28: 284 | AV28: 267 | AW28: 245 | AX28: 274 | AY28: 275 | AZ28: 233 | BA28: 201 | BB28: 206 | BC28: 224 | BD28: 218 | BE28: 269 | BF28: 245 | BG28: 255 | BH28: 223 | BI28: =BH28*(1+'Control Data'!$D$23) -> 223 | BN28: Students Accumulating 24 hrs | BO28: 293 | BP28: 291 | BQ28: 286 | BR28: 332 | BS28: 330 | BT28: 420 | BU28: 386 | BV28: 328 | BW28: 245 | BX28: 211 | BY28: 139 | BZ28: 165 | CA28: 133 | CB28: 103 | CC28: 158
B29: Students Accumulating 36 hrs | C29: 1645.6 | D29: 1237.4 | E29: 1184.8 | F29: 1278.4 | G29: 1316.2 | H29: 1495.2 | I29: 1452.8 | J29: 1285 | K29: 1162.2 | L29: 1175.4 | M29: 964.2 | N29: 1071 | O29: =AK29+BF29*$V$6+BF36*$V$8+BF43*$V$10 -> 1024 | P29: 937.6 | Q29: 1028.2 | R29: 1028.2 | T29: 160.7720484 | X29: Students Accumulating 36 hrs | Y29: 882 | Z29: 646 | AA29: 620 | AB29: 669 | AC29: 688 | AD29: 769 | AE29: 744 | AF29: 659 | AG29: 605 | AH29: 627 | AI29: 520 | AJ29: 578 | AK29: 550 | AL29: 511 | AM29: 559 | AN29: =AM29*(1+'Control Data'!$D12) -> 559 | AS29: Students Accumulating 36 hrs | AT29: 323 | AU29: 198 | AV29: 190 | AW29: 196 | AX29: 187 | AY29: 192 | AZ29: 192 | BA29: 177 | BB29: 168 | BC29: 182 | BD29: 162 | BE29: 179 | BF29: 202 | BG29: 194 | BH29: 194 | BI29: =BH29*(1+'Control Data'!$D$23) -> 194 | BN29: Students Accumulating 36 hrs | BO29: 284 | BP29: 261 | BQ29: 226 | BR29: 274 | BS29: 277 | BT29: 334 | BU29: 342 | BV29: 315 | BW29: 240 | BX29: 192 | BY29: 148 | BZ29: 155 | CA29: 135 | CB29: 103 | CC29: 173
B30: Dual Enrollment | C30: =Y30 -> 134 | D30: 215 | E30: 269 | F30: 382 | G30: 527 | H30: 582 | I30: 626 | J30: 627 | K30: 615 | L30: 945 | M30: 1061 | N30: 1085 | O30: =AK30 -> 1057 | P30: =AL30 -> 1016 | Q30: =AM30 -> 1322 | R30: =AN30 -> 1322 | T30: 243.2569743 | X30: Dual Enrollment | Y30: 134 | Z30: 215 | AA30: 269 | AB30: 382 | AC30: 527 | AD30: 582 | AE30: 626 | AF30: 627 | AG30: 615 | AH30: 945 | AI30: 1061 | AJ30: 1085 | AK30: 1057 | AL30: 1016 | AM30: 1322 | AN30: =AM30*(1+'Control Data'!$D13) -> 1322 | AS30: Associates | AT30: 85 | AU30: 83 | AV30: 69 | AW30: 72 | AX30: 76 | AY30: 78 | AZ30: 90 | BA30: 92 | BB30: 84 | BC30: 111 | BD30: 103 | BE30: 102 | BF30: 112 | BG30: 157 | BH30: 140 | BI30: =BH30*(1+'Control Data'!$D$23) -> 140 | BN30: Associates | BO30: 165 | BP30: 166 | BQ30: 123 | BR30: 167 | BS30: 176 | BT30: 190 | BU30: 202 | BV30: 214 | BW30: 210 | BX30: 249 | BY30: 169 | BZ30: 187 | CA30: 141 | CB30: 172 | CC30: 119
B31: Associates | C31: =Y31+$V$13*Y32+$V$6*(AT30+$V$13*AT31)+$V$8*(AT37+$V$13*AT38)+$V$10*(AT44+$V$13*AT45) -> 554.2 | D31: 547.6 | E31: 481.8 | F31: 541.2 | G31: 571.6 | H31: 636.6 | I31: 689 | J31: 729 | K31: 727.6 | L31: 872.4 | M31: 696.2 | N31: 750.4 | O31: =AK31+$V$13*AK32+$V$6*(BF30+$V$13*BF31)+$V$8*(BF37+$V$13*BF38)+$V$10*(BF44+$V$13*BF45) -> 736.8 | P31: 938 | Q31: 694.5 | R31: 694.5 | T31: 117.6657337 | X31: Associates | Y31: 291 | Z31: 291 | AA31: 252 | AB31: 277 | AC31: 291 | AD31: 327 | AE31: 354 | AF31: 370 | AG31: 372 | AH31: 447 | AI31: 365 | AJ31: 384 | AK31: 382 | AL31: 491 | AM31: 366 | AN31: =AM31*(1+'Control Data'!$D15) -> 366 | AS31: Reverse Articulated Associates | AT31: 0 | AU31: 0 | AV31: 0 | AW31: 0 | AX31: 0 | AY31: 0 | AZ31: 0 | BA31: 0 | BB31: 0 | BC31: 0 | BD31: 0 | BE31: 6 | BF31: 4 | BG31: 7 | BH31: 10 | BI31: =BH31*(1+'Control Data'!$D$23) -> 10 | BN31: Reverse Articulated Associates | BO31: 0 | BP31: 0 | BQ31: 0 | BR31: 0 | BS31: 0 | BT31: 0 | BU31: 0 | BV31: 0 | BW31: 0 | BX31: 0 | BY31: 0 | BZ31: 1 | CA31: 2 | CB31: 6 | CC31: 2
B32: 1-2 Year Certificates | C32: =Y33+AT32*$V$6+AT39*$V$8+AT46*$V$10 -> 16.4 | D32: 35.4 | E32: 67.2 | F32: 20.4 | G32: 14.2 | H32: 42.4 | I32: 72.8 | J32: 97.4 | K32: 60.6 | L32: 54.6 | M32: 14.8 | N32: 30.4 | O32: =AK33+BF32*$V$6+BF39*$V$8+BF46*$V$10 -> 57 | P32: 64.2 | Q32: 61 | R32: 61 | T32: 27.32325831 | X32: Reverse Articulated Associates | Y32: 0 | Z32: 0 | AA32: 0 | AB32: 0 | AC32: 0 | AD32: 0 | AE32: 0 | AF32: 0 | AG32: 0 | AH32: 0 | AI32: 0 | AJ32: 12 | AK32: 10 | AL32: 17 | AM32: 20 | AN32: =AM32*(1+'Control Data'!$D16) -> 20 | AS32: 1-2 Year Certificates | AT32: 4 | AU32: 7 | AV32: 25 | AW32: 3 | AX32: 2 | AY32: 9 | AZ32: 13 | BA32: 10 | BB32: 5 | BC32: 5 | BD32: 1 | BE32: 5 | BF32: 3 | BG32: 7 | BH32: 7 | BI32: =BH32*(1+'Control Data'!$D$23) -> 7 | BN32: 1-2 Year Certificates | BO32: 6 | BP32: 14 | BQ32: 26 | BR32: 7 | BS32: 6 | BT32: 15 | BU32: 29 | BV32: 34 | BW32: 25 | BX32: 19 | BY32: 5 | BZ32: 11 | CA32: 22 | CB32: 14 | CC32: 22
B33: <1yr Certificates | C33: 121.8 | D33: 109.2 | E33: 79 | F33: 62.2 | G33: 108.4 | H33: 288 | I33: 353 | J33: 649.2 | K33: 376 | L33: 641.8 | M33: 492.8 | N33: 460 | O33: =AK34+BF33*$V$6+BF40*$V$8+BF47*$V$10 -> 501.2 | P33: 418 | Q33: 427.8 | R33: 427.8 | T33: 223.8391327 | X33: 1-2 Year Certificates | Y33: 9 | Z33: 18 | AA33: 36 | AB33: 11 | AC33: 7 | AD33: 22 | AE33: 39 | AF33: 49 | AG33: 29 | AH33: 27 | AI33: 7 | AJ33: 15 | AK33: 28 | AL33: 32 | AM33: 30 | AN33: =AM33*(1+'Control Data'!$D17) -> 30 | AS33: <1yr Certificates | AT33: 33 | AU33: 24 | AV33: 9 | AW33: 12 | AX33: 37 | AY33: 63 | AZ33: 63 | BA33: 84 | BB33: 62 | BC33: 94 | BD33: 78 | BE33: 67 | BF33: 70 | BG33: 53 | BH33: 64 | BI33: =BH33*(1+'Control Data'!$D$23) -> 64 | BN33: <1yr Certificates | BO33: 56 | BP33: 42 | BQ33: 30 | BR33: 26 | BS33: 51 | BT33: 93 | BU33: 112 | BV33: 216 | BW33: 119 | BX33: 208 | BY33: 141 | BZ33: 131 | CA33: 131 | CB33: 121 | CC33: 131
B34: Job Placements | C34: =Y35 -> 0 | D34: 0 | E34: 0 | F34: 125 | G34: 135 | H34: 124 | I34: 200 | J34: 216 | K34: 215 | L34: 218 | M34: 196 | N34: 306 | O34: =AK35 -> 168 | P34: =AL35 -> 223 | Q34: =AM35 -> 229 | R34: =AN35 -> 229 | T34: 37.95987857 | X34: <1yr Certificates | Y34: 64 | Z34: 57 | AA34: 41 | AB34: 34 | AC34: 57 | AD34: 154 | AE34: 186 | AF34: 331 | AG34: 196 | AH34: 330 | AI34: 258 | AJ34: 241 | AK34: 257 | AL34: 218 | AM34: 229 | AN34: =AM34*(1+'Control Data'!$D18) -> 229 | AR34: Two Focus Pops Only | AS34: Students Accumulating 12 hrs | AT34: 446 | AU34: 525 | AV34: 507 | AW34: 529 | AX34: 613 | AY34: 743 | AZ34: 458 | BA34: 468 | BB34: 419 | BC34: 388 | BD34: 319 | BE34: 339 | BF34: 351 | BG34: 293 | BH34: 340 | BI34: =BH34*(1+'Control Data'!$D$24) -> 340 | BM34: Low-Income | BN34: Students Accumulating 12 hrs | BO34: 663 | BP34: 755 | BQ34: 755 | BR34: 775 | BS34: 920 | BT34: 1195 | BU34: 799 | BV34: 812 | BW34: 698 | BX34: 644 | BY34: 594 | BZ34: 594 | CA34: 593 | CB34: 532 | CC34: 584
B35: Transfers Out with 12 hrs | C35: 183 | D35: 199 | E35: 200 | F35: 187 | G35: 148 | H35: 183 | I35: 201 | J35: 236 | K35: 209 | L35: 195 | M35: 209 | N35: 272 | O35: 230 | P35: 256 | Q35: 264 | R35: 264 | T35: 22.3778164 | X35: Job Placements | AB35: 125 | AC35: 135 | AD35: 124 | AE35: 200 | AF35: 216 | AG35: 215 | AH35: 218 | AI35: 196 | AJ35: 306 | AK35: 168 | AL35: 223 | AM35: 229 | AN35: =AM35*(1+'Control Data'!$D19) -> 229 | AS35: Students Accumulating 24 hrs | AT35: 312 | AU35: 355 | AV35: 354 | AW35: 378 | AX35: 376 | AY35: 449 | AZ35: 369 | BA35: 329 | BB35: 293 | BC35: 289 | BD35: 259 | BE35: 223 | BF35: 255 | BG35: 209 | BH35: 242 | BI35: =BH35*(1+'Control Data'!$D$24) -> 242 | BN35: Students Accumulating 24 hrs | BO35: 474 | BP35: 553 | BQ35: 528 | BR35: 594 | BS35: 610 | BT35: 772 | BU35: 660 | BV35: 590 | BW35: 499 | BX35: 521 | BY35: 423 | BZ35: 443 | CA35: 414 | CB35: 369 | CC35: 411
B36: Workforce Training (Contact Hours) | C36: 0 | D36: 0 | E36: 0 | F36: 231 | G36: 379 | H36: 3582 | I36: 7276 | J36: 4014 | K36: 7596 | L36: 10131.5 | M36: 3882 | N36: 7760 | O36: 10000.5 | P36: 15398.7 | Q36: 18691.5 | R36: 18691.5 | T36: 3761.064165 | X36: Transfers Out with 12 hrs | Y36: 183 | Z36: 199 | AA36: 200 | AB36: 187 | AC36: 148 | AD36: 183 | AE36: 201 | AF36: 236 | AG36: 209 | AH36: 195 | AI36: 209 | AJ36: 272 | AK36: 230 | AL36: 256 | AM36: 264 | AN36: =AM36*(1+'Control Data'!$D20) -> 264 | AS36: Students Accumulating 36 hrs | AT36: 342 | AU36: 271 | AV36: 258 | AW36: 281 | AX36: 283 | AY36: 311 | AZ36: 302 | BA36: 242 | BB36: 232 | BC36: 248 | BD36: 185 | BE36: 225 | BF36: 208 | BG36: 191 | BH36: 200 | BI36: =BH36*(1+'Control Data'!$D$24) -> 200 | BN36: Students Accumulating 36 hrs | BO36: 506 | BP36: 416 | BQ36: 411 | BR36: 427 | BS36: 469 | BT36: 559 | BU36: 559 | BV36: 472 | BW36: 430 | BX36: 443 | BY36: 357 | BZ36: 401 | CA36: 356 | CB36: 320 | CC36: 358
B37: Awards per 100 FTE | C37: 15.24906811 | D37: 15.88362291 | E37: 15.40958462 | F37: 15.0766922 | G37: 14.29233745 | H37: 14.56290424 | I37: 15.69217255 | J37: 17.11461482 | K37: 17.2487956 | L37: 21.66394979 | M37: 18.23887037 | N37: 19.8118284 | O37: 20.90820542 | P37: 30.40385935 | Q37: 22.21816855 | R37: 22.21816855 | T37: 2.141016804 | X37: Workforce Training (Contact Hours) | AB37: 231 | AC37: 379 | AD37: 3582 | AE37: 7276 | AF37: 4014 | AG37: 7596 | AH37: 10131.5 | AI37: 3882 | AJ37: 7760 | AK37: 10000.5 | AL37: 15398.7 | AM37: 18691.5 | AN37: =AM37*(1+'Control Data'!$D21) -> 18691.5 | AS37: Associates | AT37: 128 | AU37: 117 | AV37: 105 | AW37: 119 | AX37: 107 | AY37: 132 | AZ37: 131 | BA37: 139 | BB37: 124 | BC37: 165 | BD37: 124 | BE37: 145 | BF37: 158 | BG37: 187 | BH37: 124 | BI37: =BH37*(1+'Control Data'!$D$24) -> 124 | BN37: Associates | BO37: 138 | BP37: 139 | BQ37: 149 | BR37: 168 | BS37: 187 | BT37: 217 | BU37: 235 | BV37: 269 | BW37: 277 | BX37: 329 | BY37: 261 | BZ37: 274 | CA37: 287 | CB37: 320 | CC37: 233
X38: Awards per 100 FTE | Y38: 15.24906811 | Z38: 15.88362291 | AA38: 15.40958462 | AB38: 15.0766922 | AC38: 14.29233745 | AD38: 14.56290424 | AE38: 15.69217255 | AF38: 17.11461482 | AG38: 17.2487956 | AH38: 21.66394979 | AI38: 18.23887037 | AJ38: 19.8118284 | AK38: 20.90820542 | AL38: 30.40385935 | AM38: 22.21816855 | AN38: =AM38*(1+'Control Data'!$D22) -> 22.21816855 | AS38: Reverse Articulated Associates | AT38: 0 | AU38: 0 | AV38: 0 | AW38: 0 | AX38: 0 | AY38: 0 | AZ38: 0 | BA38: 0 | BB38: 0 | BC38: 0 | BD38: 0 | BE38: 6 | BF38: 2 | BG38: 5 | BH38: 7 | BI38: =BH38*(1+'Control Data'!$D$24) -> 7 | BN38: Reverse Articulated Associates | BO38: 0 | BP38: 0 | BQ38: 0 | BR38: 0 | BS38: 0 | BT38: 0 | BU38: 0 | BV38: 0 | BW38: 0 | BX38: 0 | BY38: 0 | BZ38: 8 | CA38: 6 | CB38: 9 | CC38: 12
AS39: 1-2 Year Certificates | AT39: 3 | AU39: 7 | AV39: 10 | AW39: 7 | AX39: 2 | AY39: 6 | AZ39: 15 | BA39: 32 | BB39: 6 | BC39: 14 | BD39: 1 | BE39: 3 | BF39: 17 | BG39: 17 | BH39: 11 | BI39: =BH39*(1+'Control Data'!$D$24) -> 11 | BN39: 1-2 Year Certificates | BO39: 2 | BP39: 9 | BQ39: 8 | BR39: 3 | BS39: 5 | BT39: 11 | BU39: 23 | BV39: 34 | BW39: 24 | BX39: 22 | BY39: 6 | BZ39: 11 | CA39: 25 | CB39: 25 | CC39: 22
AS40: <1yr Certificates | AT40: 17 | AU40: 21 | AV40: 14 | AW40: 9 | AX40: 11 | AY40: 44 | AZ40: 71 | BA40: 131 | BB40: 80 | BC40: 143 | BD40: 110 | BE40: 97 | BF40: 139 | BG40: 88 | BH40: 102 | BI40: =BH40*(1+'Control Data'!$D$24) -> 102 | BN40: <1yr Certificates | BO40: 22 | BP40: 26 | BQ40: 26 | BR40: 14 | BS40: 19 | BT40: 82 | BU40: 120 | BV40: 230 | BW40: 134 | BX40: 224 | BY40: 173 | BZ40: 172 | CA40: 196 | CB40: 147 | CC40: 143
AR41: All Three Focus Pops | AS41: Students Accumulating 12 hrs | AT41: 158 | AU41: 162 | AV41: 182 | AW41: 172 | AX41: 211 | AY41: 327 | AZ41: 256 | BA41: 221 | BB41: 157 | BC41: 115 | BD41: 115 | BE41: 78 | BF41: 81 | BG41: 64 | BH41: 94 | BI41: =BH41*(1+'Control Data'!$D$25) -> 94 | BM41: Academically Underprepared | BN41: Students Accumulating 12 hrs | BO41: 758 | BP41: 841 | BQ41: 849 | BR41: 846 | BS41: 963 | BT41: 1192 | BU41: 783 | BV41: 767 | BW41: 677 | BX41: 607 | BY41: 557 | BZ41: 562 | CA41: 573 | CB41: 495 | CC41: 519
AS42: Students Accumulating 24 hrs | AT42: 154 | AU42: 160 | AV42: 151 | AW42: 185 | AX42: 181 | AY42: 264 | AZ42: 242 | BA42: 224 | BB42: 160 | BC42: 153 | BD42: 84 | BE42: 105 | BF42: 85 | BG42: 63 | BH42: 85 | BI42: =BH42*(1+'Control Data'!$D$25) -> 85 | BN42: Students Accumulating 24 hrs | BO42: 571 | BP42: 630 | BQ42: 614 | BR42: 630 | BS42: 629 | BT42: 773 | BU42: 651 | BV42: 613 | BW42: 528 | BX42: 529 | BY42: 426 | BZ42: 422 | CA42: 463 | CB42: 390 | CC42: 393
AS43: Students Accumulating 36 hrs | AT43: 136 | AU43: 135 | AV43: 129 | AW43: 143 | AX43: 163 | AY43: 218 | AZ43: 211 | BA43: 202 | BB43: 159 | BC43: 129 | BD43: 108 | BE43: 104 | BF43: 87 | BG43: 67 | BH43: 95 | BI43: =BH43*(1+'Control Data'!$D$25) -> 95 | BN43: Students Accumulating 36 hrs | BO43: 625 | BP43: 468 | BQ43: 456 | BR43: 486 | BS43: 496 | BT43: 575 | BU43: 528 | BV43: 480 | BW43: 439 | BX43: 430 | BY43: 351 | BZ43: 385 | CA43: 388 | CB43: 354 | CC43: 348
AS44: Associates | AT44: 56 | AU44: 61 | AV44: 58 | AW44: 73 | AX44: 94 | AY44: 96 | AZ44: 110 | BA44: 122 | BB44: 137 | BC44: 143 | BD44: 104 | BE44: 107 | BF44: 82 | BG44: 99 | BH44: 62 | BI44: =BH44*(1+'Control Data'!$D$25) -> 62 | BN44: Associates | BO44: 206 | BP44: 195 | BQ44: 181 | BR44: 194 | BS44: 209 | BT44: 223 | BU44: 245 | BV44: 253 | BW44: 256 | BX44: 292 | BY44: 233 | BZ44: 252 | CA44: 246 | CB44: 336 | CC44: 222
AS45: Reverse Articulated Associates | AT45: 0 | AU45: 0 | AV45: 0 | AW45: 0 | AX45: 0 | AY45: 0 | AZ45: 0 | BA45: 0 | BB45: 0 | BC45: 0 | BD45: 0 | BE45: 0 | BF45: 2 | BG45: 3 | BH45: 1 | BI45: =BH45*(1+'Control Data'!$D$25) -> 1 | BN45: Reverse Articulated Associates | BO45: 0 | BP45: 0 | BQ45: 0 | BR45: 0 | BS45: 0 | BT45: 0 | BU45: 0 | BV45: 0 | BW45: 0 | BX45: 0 | BY45: 0 | BZ45: 9 | CA45: 6 | CB45: 11 | CC45: 13
AS46: 1-2 Year Certificates | AT46: 1 | AU46: 4 | AV46: 1 | AW46: 0 | AX46: 3 | AY46: 6 | AZ46: 7 | BA46: 7 | BB46: 18 | BC46: 8 | BD46: 5 | BE46: 7 | BF46: 8 | BG46: 8 | BH46: 12 | BI46: =BH46*(1+'Control Data'!$D$25) -> 12 | BN46: 1-2 Year Certificates | BO46: 5 | BP46: 10 | BQ46: 14 | BR46: 7 | BS46: 4 | BT46: 13 | BU46: 12 | BV46: 27 | BW46: 22 | BX46: 16 | BY46: 7 | BZ46: 10 | CA46: 14 | CB46: 26 | CC46: 21
AS47: <1yr Certificates | AT47: 12 | AU47: 10 | AV47: 14 | AW47: 8 | AX47: 9 | AY47: 33 | AZ47: 38 | BA47: 100 | BB47: 42 | BC47: 78 | BD47: 52 | BE47: 57 | BF47: 41 | BG47: 58 | BH47: 38 | BI47: =BH47*(1+'Control Data'!$D$25) -> 38 | BN47: <1yr Certificates | BO47: 25 | BP47: 28 | BQ47: 23 | BR47: 14 | BS47: 16 | BT47: 75 | BU47: 87 | BV47: 200 | BW47: 95 | BX47: 182 | BY47: 140 | BZ47: 129 | CA47: 144 | CB47: 135 | CC47: 108
B49: Columbia | C49: 2004-05 | D49: 2005-06 | E49: 2006-07 | F49: 2007-08 | G49: 2008-09 | H49: 2009-10 | I49: 2010-11 | J49: 2011-12 | K49: 2012-13 | L49: 2013-14 | M49: 2014-15 | N49: 2015-16 | O49: 2016-17 | P49: 2017-18 | Q49: =Q26 -> 2018-19 | R49: 2019-20 | T49: Standard Dev. | X49: Columbia | Y49: 2004-05 | Z49: 2005-06 | AA49: 2006-07 | AB49: 2007-08 | AC49: 2008-09 | AD49: 2009-10 | AE49: 2010-11 | AF49: 2011-12 | AG49: 2012-13 | AH49: 2013-14 | AI49: 2014-15 | AJ49: 2015-16 | AK49: 2016-17 | AL49: 2017-18 | AM49: 2018-19 | AN49: 2019-20 | AS49: Columbia | AT49: 2004-05 | AU49: 2005-06 | AV49: 2006-07 | AW49: 2007-08 | AX49: 2008-09 | AY49: 2009-10 | AZ49: 2010-11 | BA49: 2011-12 | BB49: 2012-13 | BC49: 2013-14 | BD49: 2014-15 | BE49: 2015-16 | BF49: 2016-17 | BG49: 2017-18 | BH49: 2018-19 | BI49: 2019-20 | BN49: Columbia | BO49: 2004-05 | BP49: 2005-06 | BQ49: 2006-07 | BR49: 2007-08 | BS49: 2008-09 | BT49: 2009-10 | BU49: 2010-11 | BV49: 2011-12 | BW49: 2012-13 | BX49: 2013-14 | BY49: 2014-15 | BZ49: 2015-16 | CA49: 2016-17 | CB49: 2017-18 | CC49: 2018-19 | CD49: 2019-20
B50: Students Accumulating 12 hrs | C50: =Y50+AT50*$V$6+AT57*$V$8+AT64*$V$10 -> 3066.8 | D50: 3256.6 | E50: 3263.8 | F50: 3492.2 | G50: 3192 | H50: 3887.4 | I50: 2949.8 | J50: 2787.2 | K50: 2718.4 | L50: 2565 | M50: 2285.2 | N50: 2498 | O50: =AK50+BF50*$V$6+BF57*$V$8+BF64*$V$10 -> 2643.6 | P50: 2831.2 | Q50: 3069.4 | R50: 3069.4 | T50: 398.4551947 | X50: Students Accumulating 12 hrs | Y50: 1673 | Z50: 1779 | AA50: 1804 | AB50: 1920 | AC50: 1789 | AD50: 2144 | AE50: 1620 | AF50: 1558 | AG50: 1538 | AH50: 1489 | AI50: 1330 | AJ50: 1466 | AK50: 1581 | AL50: 1699 | AM50: 1851 | AN50: =AM50*(1+'Control Data'!$E10) -> 1851 | AR50: One Focus Pop Only | AS50: Students Accumulating 12 hrs | AT50: 623 | AU50: 688 | AV50: 686 | AW50: 721 | AX50: 652 | AY50: 693 | AZ50: 561 | BA50: 476 | BB50: 556 | BC50: 553 | BD50: 523 | BE50: 553 | BF50: 612 | BG50: 642 | BH50: 718 | BI50: =BH50*(1+'Control Data'!$E$23) -> 718 | BM50: Adults | BN50: Students Accumulating 12 hrs | BO50: 333 | BP50: 375 | BQ50: 345 | BR50: 389 | BS50: 328 | BT50: 459 | BU50: 386 | BV50: 350 | BW50: 289 | BX50: 229 | BY50: 191 | BZ50: 162 | CA50: 139 | CB50: 172 | CC50: 217
B51: Students Accumulating 24 hrs | C51: 2234.6 | D51: 2490 | E51: 2482.4 | F51: 2512.2 | G51: 2571.8 | H51: 2937.6 | I51: 2620.2 | J51: 2387.8 | K51: 2347.6 | L51: 2163.6 | M51: 1953.2 | N51: 2121.8 | O51: =AK51+BF51*$V$6+BF58*$V$8+BF65*$V$10 -> 2188.6 | P51: 2304.4 | Q51: 2583.4 | R51: 2583.4 | T51: 220.4386586 | X51: Students Accumulating 24 hrs | Y51: 1188 | Z51: 1342 | AA51: 1349 | AB51: 1357 | AC51: 1401 | AD51: 1599 | AE51: 1412 | AF51: 1304 | AG51: 1284 | AH51: 1202 | AI51: 1104 | AJ51: 1210 | AK51: 1265 | AL51: 1356 | AM51: 1521 | AN51: =AM51*(1+'Control Data'!$E11) -> 1521 | AS51: Students Accumulating 24 hrs | AT51: 377 | AU51: 492 | AV51: 457 | AW51: 501 | AX51: 491 | AY51: 545 | AZ51: 476 | BA51: 409 | BB51: 425 | BC51: 428 | BD51: 428 | BE51: 491 | BF51: 494 | BG51: 518 | BH51: 604 | BI51: =BH51*(1+'Control Data'!$E$23) -> 604 | BN51: Students Accumulating 24 hrs | BO51: 366 | BP51: 350 | BQ51: 329 | BR51: 295 | BS51: 363 | BT51: 428 | BU51: 422 | BV51: 380 | BW51: 351 | BX51: 303 | BY51: 232 | BZ51: 189 | CA51: 166 | CB51: 172 | CC51: 219
B52: Students Accumulating 36 hrs | C52: 2451.2 | D52: 1848.8 | E52: 1871 | F52: 1769.6 | G52: 2038.4 | H52: 2312.2 | I52: 2107.6 | J52: 1947 | K52: 1862 | L52: 1885 | M52: 1712.2 | N52: 1600.2 | O52: =AK52+BF52*$V$6+BF59*$V$8+BF66*$V$10 -> 1757 | P52: 2012.8 | Q52: 2023 | R52: 2023 | T52: 222.7626779 | X52: Students Accumulating 36 hrs | Y52: 1344 | Z52: 998 | AA52: 999 | AB52: 957 | AC52: 1097 | AD52: 1239 | AE52: 1140 | AF52: 1050 | AG52: 1012 | AH52: 1037 | AI52: 955 | AJ52: 901 | AK52: 1006 | AL52: 1169 | AM52: 1187 | AN52: =AM52*(1+'Control Data'!$E12) -> 1187 | AS52: Students Accumulating 36 hrs | AT52: 450 | AU52: 335 | AV52: 343 | AW52: 326 | AX52: 361 | AY52: 397 | AZ52: 375 | BA52: 376 | BB52: 318 | BC52: 357 | BD52: 348 | BE52: 324 | BF52: 385 | BG52: 444 | BH52: 437 | BI52: =BH52*(1+'Control Data'!$E$23) -> 437 | BN52: Students Accumulating 36 hrs | BO52: 346 | BP52: 288 | BQ52: 321 | BR52: 284 | BS52: 342 | BT52: 421 | BU52: 390 | BV52: 355 | BW52: 329 | BX52: 322 | BY52: 251 | BZ52: 196 | CA52: 165 | CB52: 190 | CC52: 221
B53: Dual Enrollment | C53: =Y53 -> 273 | D53: 340 | E53: 379 | F53: 556 | G53: 649 | H53: 735 | I53: 674 | J53: 791 | K53: 843 | L53: 959 | M53: 1118 | N53: 1075 | O53: =AK53 -> 1341 | P53: =AL53 -> 1315 | Q53: =AM53 -> 1475 | R53: =AN53 -> 1475 | T53: 228.9732881 | X53: Dual Enrollment | Y53: 273 | Z53: 340 | AA53: 379 | AB53: 556 | AC53: 649 | AD53: 735 | AE53: 674 | AF53: 791 | AG53: 843 | AH53: 959 | AI53: 1118 | AJ53: 1075 | AK53: 1341 | AL53: 1315 | AM53: 1475 | AN53: =AM53*(1+'Control Data'!$E13) -> 1475 | AS53: Associates | AT53: 182 | AU53: 161 | AV53: 172 | AW53: 126 | AX53: 170 | AY53: 157 | AZ53: 156 | BA53: 205 | BB53: 195 | BC53: 212 | BD53: 206 | BE53: 181 | BF53: 214 | BG53: 249 | BH53: 271 | BI53: =BH53*(1+'Control Data'!$E$23) -> 271 | BN53: Associates | BO53: 279 | BP53: 255 | BQ53: 267 | BR53: 248 | BS53: 215 | BT53: 267 | BU53: 269 | BV53: 286 | BW53: 288 | BX53: 285 | BY53: 303 | BZ53: 241 | CA53: 217 | CB53: 212 | CC53: 210
B54: Associates | C54: =Y54+$V$13*Y55+$V$6*(AT53+$V$13*AT54)+$V$8*(AT60+$V$13*AT61)+$V$10*(AT67+$V$13*AT68) -> 992.2 | D54: 948.2 | E54: 987.6 | F54: 899.2 | G54: 908.6 | H54: 1027.2 | I54: 1022.6 | J54: 1152.4 | K54: 1132 | L54: 1190.2 | M54: 1288.2 | N54: 1153 | O54: =AK54+$V$13*AK55+$V$6*(BF53+$V$13*BF54)+$V$8*(BF60+$V$13*BF61)+$V$10*(BF67+$V$13*BF68) -> 1157.3 | P54: 1330.5 | Q54: 1323.7 | R54: 1323.7 | T54: 100.0131569 | X54: Associates | Y54: 534 | Z54: 517 | AA54: 526 | AB54: 472 | AC54: 483 | AD54: 543 | AE54: 540 | AF54: 611 | AG54: 599 | AH54: 626 | AI54: 687 | AJ54: 595 | AK54: 611 | AL54: 709 | AM54: 727 | AN54: =AM54*(1+'Control Data'!$E15) -> 727 | AS54: Reverse Articulated Associates | AT54: 0 | AU54: 0 | AV54: 0 | AW54: 0 | AX54: 0 | AY54: 0 | AZ54: 0 | BA54: 0 | BB54: 0 | BC54: 0 | BD54: 0 | BE54: 17 | BF54: 15 | BG54: 24 | BH54: 18 | BI54: =BH54*(1+'Control Data'!$E$23) -> 18 | BN54: Reverse Articulated Associates | BO54: 0 | BP54: 0 | BQ54: 0 | BR54: 0 | BS54: 0 | BT54: 0 | BU54: 0 | BV54: 0 | BW54: 0 | BX54: 0 | BY54: 0 | BZ54: 23 | CA54: 19 | CB54: 16 | CC54: 8
B55: 1-2 Year Certificates | C55: =Y56+AT55*$V$6+AT62*$V$8+AT69*$V$10 -> 100.8 | D55: 83 | E55: 21 | F55: 27.2 | G55: 127.2 | H55: 121.4 | I55: 93.8 | J55: 90.6 | K55: 98.2 | L55: 94.8 | M55: 105.6 | N55: 127 | O55: =AK56+BF55*$V$6+BF62*$V$8+BF69*$V$10 -> 120 | P55: 111.2 | Q55: 77 | R55: 77 | T55: 35.22214581 | X55: Reverse Articulated Associates | Y55: 0 | Z55: 0 | AA55: 0 | AB55: 0 | AC55: 0 | AD55: 0 | AE55: 0 | AF55: 0 | AG55: 0 | AH55: 0 | AI55: 0 | AJ55: 65 | AK55: 50 | AL55: 70 | AM55: 52 | AN55: =AM55*(1+'Control Data'!$E16) -> 52 | AS55: 1-2 Year Certificates | AT55: 38 | AU55: 19 | AV55: 7 | AW55: 5 | AX55: 26 | AY55: 28 | AZ55: 21 | BA55: 19 | BB55: 16 | BC55: 24 | BD55: 24 | BE55: 28 | BF55: 27 | BG55: 19 | BH55: 19 | BI55: =BH55*(1+'Control Data'!$E$23) -> 19 | BN55: 1-2 Year Certificates | BO55: 37 | BP55: 26 | BQ55: 8 | BR55: 10 | BS55: 51 | BT55: 49 | BU55: 34 | BV55: 28 | BW55: 35 | BX55: 27 | BY55: 27 | BZ55: 34 | CA55: 25 | CB55: 20 | CC55: 19
B56: <1yr Certificates | C56: 6.6 | D56: 6.8 | E56: 2 | F56: 35 | G56: 6 | H56: 0 | I56: 4.4 | J56: 0 | K56: 0 | L56: 142.8 | M56: 170.2 | N56: 214.2 | O56: =AK57+BF56*$V$6+BF63*$V$8+BF70*$V$10 -> 213.8 | P56: 193.4 | Q56: 217.4 | R56: 217.4 | T56: 43.81734309 | X56: 1-2 Year Certificates | Y56: 56 | Z56: 48 | AA56: 11 | AB56: 14 | AC56: 68 | AD56: 63 | AE56: 51 | AF56: 47 | AG56: 52 | AH56: 51 | AI56: 57 | AJ56: 70 | AK56: 66 | AL56: 61 | AM56: 43 | AN56: =AM56*(1+'Control Data'!$E17) -> 43 | AS56: <1yr Certificates | AT56: 2 | AU56: 1 | AV56: 0 | AW56: 2 | AX56: 0 | AY56: 0 | AZ56: 0 | BA56: 0 | BB56: 0 | BC56: 29 | BD56: 39 | BE56: 50 | BF56: 48 | BG56: 35 | BH56: 50 | BI56: =BH56*(1+'Control Data'!$E$23) -> 50 | BN56: <1yr Certificates | BO56: 3 | BP56: 3 | BQ56: 1 | BR56: 12 | BS56: 3 | BT56: 0 | BU56: 2 | BV56: 0 | BW56: 0 | BX56: 34 | BY56: 46 | BZ56: 40 | CA56: 47 | CB56: 29 | CC56: 46
B57: Job Placements | C57: =Y58 -> 0 | D57: 0 | E57: 0 | F57: 222 | G57: 158 | H57: 218 | I57: 240 | J57: 234 | K57: 189 | L57: 208 | M57: 188 | N57: 244 | O57: =AK58 -> 251 | P57: =AL58 -> 244 | Q57: =AM58 -> 249 | R57: =AN58 -> 249 | T57: 26.82482858 | X57: <1yr Certificates | Y57: 4 | Z57: 4 | AA57: 1 | AB57: 17 | AC57: 3 | AD57: 0 | AE57: 2 | AF57: 0 | AG57: 0 | AH57: 78 | AI57: 98 | AJ57: 120 | AK57: 118 | AL57: 114 | AM57: 128 | AN57: =AM57*(1+'Control Data'!$E18) -> 128 | AR57: Two Focus Pops Only | AS57: Students Accumulating 12 hrs | AT57: 677 | AU57: 680 | AV57: 659 | AW57: 747 | AX57: 657 | AY57: 817 | AZ57: 575 | BA57: 576 | BB57: 534 | BC57: 486 | BD57: 394 | BE57: 472 | BF57: 471 | BG57: 507 | BH57: 530 | BI57: =BH57*(1+'Control Data'!$E$24) -> 530 | BM57: Low-Income | BN57: Students Accumulating 12 hrs | BO57: 945 | BP57: 1008 | BQ57: 1022 | BR57: 1112 | BS57: 1036 | BT57: 1338 | BU57: 995 | BV57: 957 | BW57: 880 | BX57: 814 | BY57: 733 | BZ57: 795 | CA57: 772 | CB57: 831 | CC57: 838
B58: Transfers Out with 12 hrs | C58: 342 | D58: 401 | E58: 437 | F58: 384 | G58: 386 | H58: 359 | I58: 410 | J58: 449 | K58: 415 | L58: 391 | M58: 436 | N58: 439 | O58: 391 | P58: 429 | Q58: 546 | R58: 546 | T58: 32.67074804 | X58: Job Placements | AB58: 222 | AC58: 158 | AD58: 218 | AE58: 240 | AF58: 234 | AG58: 189 | AH58: 208 | AI58: 188 | AJ58: 244 | AK58: 251 | AL58: 244 | AM58: 249 | AN58: =AM58*(1+'Control Data'!$E19) -> 249 | AS58: Students Accumulating 24 hrs | AT58: 505 | AU58: 524 | AV58: 517 | AW58: 554 | AX58: 532 | AY58: 599 | AZ58: 555 | BA58: 483 | BB58: 468 | BC58: 420 | BD58: 334 | BE58: 399 | BF58: 406 | BG58: 414 | BH58: 452 | BI58: =BH58*(1+'Control Data'!$E$24) -> 452 | BN58: Students Accumulating 24 hrs | BO58: 704 | BP58: 784 | BQ58: 805 | BR58: 827 | BS58: 861 | BT58: 1004 | BU58: 893 | BV58: 809 | BW58: 811 | BX58: 720 | BY58: 649 | BZ58: 713 | CA58: 688 | CB58: 698 | CC58: 748
B59: Workforce Training (Contact Hours) | C59: 0 | D59: 0 | E59: 0 | F59: 84335 | G59: 44440 | H59: 71585 | I59: 67122 | J59: 54072 | K59: 63095 | L59: 60894 | M59: 49671 | N59: 41839 | O59: 51592 | P59: 47246.13 | Q59: 78361.5 | R59: 78361.5 | T59: 12725.01048 | X59: Transfers Out with 12 hrs | Y59: 342 | Z59: 401 | AA59: 437 | AB59: 384 | AC59: 386 | AD59: 359 | AE59: 410 | AF59: 449 | AG59: 415 | AH59: 391 | AI59: 436 | AJ59: 439 | AK59: 391 | AL59: 429 | AM59: 546 | AN59: =AM59*(1+'Control Data'!$E20) -> 546 | AS59: Students Accumulating 36 hrs | AT59: 506 | AU59: 392 | AV59: 384 | AW59: 355 | AX59: 439 | AY59: 476 | AZ59: 424 | BA59: 373 | BB59: 358 | BC59: 356 | BD59: 306 | BE59: 308 | BF59: 323 | BG59: 359 | BH59: 340 | BI59: =BH59*(1+'Control Data'!$E$24) -> 340 | BN59: Students Accumulating 36 hrs | BO59: 755 | BP59: 592 | BQ59: 597 | BR59: 571 | BS59: 667 | BT59: 803 | BU59: 701 | BV59: 670 | BW59: 657 | BX59: 653 | BY59: 575 | BZ59: 570 | CA59: 592 | CB59: 632 | CC59: 603
B60: Awards per 100 FTE | C60: 20.13216711 | D60: 19.64397469 | E60: 19.37811993 | F60: 17.24974267 | G60: 18.82602159 | H60: 17.58611683 | I60: 16.33348687 | J60: 19.68507863 | K60: 20.51405943 | L60: 21.69686352 | M60: 24.61755655 | N60: 21.27951675 | O60: 20.77066464 | P60: 22.12957024 | Q60: 20.45588878 | R60: 20.45588878 | T60: 1.631902589 | X60: Workforce Training (Contact Hours) | AB60: 84335 | AC60: 44440 | AD60: 71585 | AE60: 67122 | AF60: 54072 | AG60: 63095 | AH60: 60894 | AI60: 49671 | AJ60: 41839 | AK60: 51592 | AL60: 47246.13 | AM60: 78361.5 | AN60: =AM60*(1+'Control Data'!$E21) -> 78361.5 | AS60: Associates | AT60: 195 | AU60: 186 | AV60: 186 | AW60: 180 | AX60: 166 | AY60: 205 | AZ60: 185 | BA60: 201 | BB60: 203 | BC60: 205 | BD60: 230 | BE60: 202 | BF60: 204 | BG60: 227 | BH60: 221 | BI60: =BH60*(1+'Control Data'!$E$24) -> 221 | BN60: Associates | BO60: 250 | BP60: 235 | BQ60: 278 | BR60: 267 | BS60: 270 | BT60: 314 | BU60: 330 | BV60: 393 | BW60: 388 | BX60: 421 | BY60: 457 | BZ60: 378 | CA60: 402 | CB60: 421 | CC60: 404
X61: Awards per 100 FTE | Y61: 20.13216711 | Z61: 19.64397469 | AA61: 19.37811993 | AB61: 17.24974267 | AC61: 18.82602159 | AD61: 17.58611683 | AE61: 16.33348687 | AF61: 19.68507863 | AG61: 20.51405943 | AH61: 21.69686352 | AI61: 24.61755655 | AJ61: 21.27951675 | AK61: 20.77066464 | AL61: 22.12957024 | AM61: 20.45588878 | AN61: =AM61*(1+'Control Data'!$E22) -> 20.45588878 | AS61: Reverse Articulated Associates | AT61: 0 | AU61: 0 | AV61: 0 | AW61: 0 | AX61: 0 | AY61: 0 | AZ61: 0 | BA61: 0 | BB61: 0 | BC61: 0 | BD61: 0 | BE61: 27 | BF61: 15 | BG61: 23 | BH61: 21 | BI61: =BH61*(1+'Control Data'!$E$24) -> 21 | BN61: Reverse Articulated Associates | BO61: 0 | BP61: 0 | BQ61: 0 | BR61: 0 | BS61: 0 | BT61: 0 | BU61: 0 | BV61: 0 | BW61: 0 | BX61: 0 | BY61: 0 | BZ61: 49 | CA61: 36 | CB61: 47 | CC61: 33
AS62: 1-2 Year Certificates | AT62: 12 | AU62: 15 | AV62: 2 | AW62: 8 | AX62: 30 | AY62: 24 | AZ62: 20 | BA62: 14 | BB62: 19 | BC62: 15 | BD62: 21 | BE62: 19 | BF62: 24 | BG62: 23 | BH62: 8 | BI62: =BH62*(1+'Control Data'!$E$24) -> 8 | BN62: 1-2 Year Certificates | BO62: 9 | BP62: 9 | BQ62: 4 | BR62: 8 | BS62: 28 | BT62: 25 | BU62: 18 | BV62: 25 | BW62: 25 | BX62: 24 | BY62: 27 | BZ62: 37 | CA62: 36 | CB62: 42 | CC62: 23
AS63: <1yr Certificates | AT63: 1 | AU63: 2 | AV63: 1 | AW63: 8 | AX63: 3 | AY63: 0 | AZ63: 0 | BA63: 0 | BB63: 0 | BC63: 32 | BD63: 29 | BE63: 35 | BF63: 37 | BG63: 43 | BH63: 35 | BI63: =BH63*(1+'Control Data'!$E$24) -> 35 | BN63: <1yr Certificates | BO63: 0 | BP63: 0 | BQ63: 1 | BR63: 12 | BS63: 0 | BT63: 0 | BU63: 2 | BV63: 0 | BW63: 0 | BX63: 42 | BY63: 40 | BZ63: 64 | CA63: 66 | CB63: 65 | CC63: 59
AR64: All Three Focus Pops | AS64: Students Accumulating 12 hrs | AT64: 182 | AU64: 206 | AV64: 210 | AW64: 207 | AX64: 187 | AY64: 310 | AZ64: 255 | BA64: 227 | BB64: 168 | BC64: 123 | BD64: 119 | BE64: 98 | BF64: 85 | BG64: 93 | BH64: 95 | BI64: =BH64*(1+'Control Data'!$E$25) -> 95 | BM64: Academically Underprepared | BN64: Students Accumulating 12 hrs | BO64: 1245 | BP64: 1283 | BQ64: 1267 | BR64: 1335 | BS64: 1163 | BT64: 1460 | BU64: 1095 | BV64: 1002 | BW64: 959 | BX64: 851 | BY64: 744 | BZ64: 834 | CA64: 898 | CB64: 932 | CC64: 1008
AS65: Students Accumulating 24 hrs | AT65: 200 | AU65: 192 | AV65: 209 | AW65: 167 | AX65: 205 | AY65: 253 | AZ65: 227 | BA65: 228 | BB65: 213 | BC65: 166 | BD65: 144 | BE65: 100 | BF65: 102 | BG65: 100 | BH65: 106 | BI65: =BH65*(1+'Control Data'!$E$25) -> 106 | BN65: Students Accumulating 24 hrs | BO65: 917 | BP65: 982 | BQ65: 984 | BR65: 988 | BS65: 946 | BT65: 1070 | BU65: 952 | BV65: 870 | BW65: 838 | BX65: 743 | BY65: 647 | BZ65: 687 | CA65: 758 | CB65: 776 | CC65: 859
AS66: Students Accumulating 36 hrs | AT66: 201 | AU66: 159 | AV66: 178 | AW66: 164 | AX66: 178 | AY66: 233 | AZ66: 203 | BA66: 186 | BB66: 198 | BC66: 172 | BD66: 144 | BE66: 110 | BF66: 100 | BG66: 108 | BH66: 122 | BI66: =BH66*(1+'Control Data'!$E$25) -> 122 | BN66: Students Accumulating 36 hrs | BO66: 964 | BP66: 716 | BQ66: 727 | BR66: 673 | BS66: 764 | BT66: 824 | BU66: 741 | BV66: 655 | BW66: 642 | BX66: 610 | BY66: 566 | BZ66: 504 | CA66: 574 | CB66: 664 | CC66: 659
AS67: Associates | AT67: 98 | AU67: 97 | AV67: 115 | AW67: 122 | AX67: 103 | AY67: 128 | AZ67: 144 | BA67: 147 | BB67: 145 | BC67: 158 | BD67: 172 | BE67: 126 | BF67: 104 | BG67: 111 | BH67: 95 | BI67: =BH67*(1+'Control Data'!$E$25) -> 95 | BN67: Associates | BO67: 337 | BP67: 334 | BQ67: 344 | BR67: 337 | BS67: 326 | BT67: 370 | BU67: 359 | BV67: 369 | BW67: 360 | BX67: 390 | BY67: 422 | BZ67: 344 | CA67: 315 | CB67: 403 | CC67: 384
AS68: Reverse Articulated Associates | AT68: 0 | AU68: 0 | AV68: 0 | AW68: 0 | AX68: 0 | AY68: 0 | AZ68: 0 | BA68: 0 | BB68: 0 | BC68: 0 | BD68: 0 | BE68: 12 | BF68: 13 | BG68: 10 | BH68: 2 | BI68: =BH68*(1+'Control Data'!$E$25) -> 2 | BN68: Reverse Articulated Associates | BO68: 0 | BP68: 0 | BQ68: 0 | BR68: 0 | BS68: 0 | BT68: 0 | BU68: 0 | BV68: 0 | BW68: 0 | BX68: 0 | BY68: 0 | BZ68: 35 | CA68: 29 | CB68: 37 | CC68: 25
AS69: 1-2 Year Certificates | AT69: 2 | AU69: 4 | AV69: 2 | AW69: 1 | AX69: 7 | AY69: 10 | AZ69: 5 | BA69: 12 | BB69: 12 | BC69: 8 | BD69: 7 | BE69: 13 | BF69: 7 | BG69: 10 | BH69: 9 | BI69: =BH69*(1+'Control Data'!$E$25) -> 9 | BN69: 1-2 Year Certificates | BO69: 22 | BP69: 26 | BQ69: 5 | BR69: 6 | BS69: 28 | BT69: 32 | BU69: 24 | BV69: 30 | BW69: 30 | BX69: 27 | BY69: 33 | BZ69: 34 | CA69: 35 | CB69: 33 | CC69: 20
AS70: <1yr Certificates | AT70: 0 | AU70: 0 | AV70: 0 | AW70: 7 | AX70: 0 | AY70: 0 | AZ70: 2 | BA70: 0 | BB70: 0 | BC70: 8 | BD70: 10 | BE70: 16 | BF70: 17 | BG70: 7 | BH70: 12 | BI70: =BH70*(1+'Control Data'!$E$25) -> 12 | BN70: <1yr Certificates | BO70: 1 | BP70: 2 | BQ70: 0 | BR70: 15 | BS70: 3 | BT70: 0 | BU70: 2 | BV70: 0 | BW70: 0 | BX70: 41 | BY70: 41 | BZ70: 64 | CA70: 60 | CB70: 48 | CC70: 51
B72: Dyersburg | C72: 2004-05 | D72: 2005-06 | E72: 2006-07 | F72: 2007-08 | G72: 2008-09 | H72: 2009-10 | I72: 2010-11 | J72: 2011-12 | K72: 2012-13 | L72: 2013-14 | M72: 2014-15 | N72: 2015-16 | O72: 2016-17 | P72: 2017-18 | Q72: =Q49 -> 2018-19 | R72: 2019-20 | T72: Standard Dev. | X72: Dyersburg | Y72: 2004-05 | Z72: 2005-06 | AA72: 2006-07 | AB72: 2007-08 | AC72: 2008-09 | AD72: 2009-10 | AE72: 2010-11 | AF72: 2011-12 | AG72: 2012-13 | AH72: 2013-14 | AI72: 2014-15 | AJ72: 2015-16 | AK72: 2016-17 | AL72: 2017-18 | AM72: 2018-19 | AN72: 2019-20 | AS72: Dyersburg | AT72: 2004-05 | AU72: 2005-06 | AV72: 2006-07 | AW72: 2007-08 | AX72: 2008-09 | AY72: 2009-10 | AZ72: 2010-11 | BA72: 2011-12 | BB72: 2012-13 | BC72: 2013-14 | BD72: 2014-15 | BE72: 2015-16 | BF72: 2016-17 | BG72: 2017-18 | BH72: 2018-19 | BI72: 2019-20 | BN72: Dyersburg | BO72: 2004-05 | BP72: 2005-06 | BQ72: 2006-07 | BR72: 2007-08 | BS72: 2008-09 | BT72: 2009-10 | BU72: 2010-11 | BV72: 2011-12 | BW72: 2012-13 | BX72: 2013-14 | BY72: 2014-15 | BZ72: 2015-16 | CA72: 2016-17 | CB72: 2017-18 | CC72: 2018-19 | CD72: 2019-20
B73: Students Accumulating 12 hrs | C73: =Y73+AT73*$V$6+AT80*$V$8+AT87*$V$10 -> 1897.6 | D73: 2023 | E73: 1931.2 | F73: 1952.6 | G73: 2293 | H73: 3134 | I73: 2121 | J73: 1954.8 | K73: 1735.4 | L73: 1495.2 | M73: 1328 | N73: 1335.4 | O73: =AK73+BF73*$V$6+BF80*$V$8+BF87*$V$10 -> 1357.2 | P73: 1591.6 | Q73: 1387.2 | R73: 1387.2 | T73: 439.6637346 | X73: Students Accumulating 12 hrs | Y73: 970 | Z73: 1047 | AA73: 1008 | AB73: 1036 | AC73: 1208 | AD73: 1611 | AE73: 1122 | AF73: 1039 | AG73: 959 | AH73: 834 | AI73: 768 | AJ73: 768 | AK73: 779 | AL73: 948 | AM73: 780 | AN73: =AM73*(1+'Control Data'!$F10) -> 780 | AR73: One Focus Pop Only | AS73: Students Accumulating 12 hrs | AT73: 246 | AU73: 266 | AV73: 258 | AW73: 319 | AX73: 300 | AY73: 362 | AZ73: 295 | BA73: 287 | BB73: 254 | BC73: 271 | BD73: 264 | BE73: 289 | BF73: 280 | BG73: 327 | BH73: 248 | BI73: =BH73*(1+'Control Data'!$F$23) -> 248 | BM73: Adults | BN73: Students Accumulating 12 hrs | BO73: 298 | BP73: 316 | BQ73: 279 | BR73: 251 | BS73: 336 | BT73: 525 | BU73: 331 | BV73: 327 | BW73: 253 | BX73: 152 | BY73: 93 | BZ73: 99 | CA73: 101 | CB73: 110 | CC73: 197
B74: Students Accumulating 24 hrs | C74: 1408 | D74: 1389 | E74: 1438.4 | F74: 1262.8 | G74: 1404.8 | H74: 2028 | I74: 1379.8 | J74: 1501.4 | K74: 1208.6 | L74: 1024.6 | M74: 911.8 | N74: 936.8 | O74: =AK74+BF74*$V$6+BF81*$V$8+BF88*$V$10 -> 887.8 | P74: 946.4 | Q74: 1020.2 | R74: 1020.2 | T74: 260.4994562 | X74: Students Accumulating 24 hrs | Y74: 714 | Z74: 719 | AA74: 736 | AB74: 658 | AC74: 732 | AD74: 1028 | AE74: 707 | AF74: 780 | AG74: 625 | AH74: 539 | AI74: 489 | AJ74: 514 | AK74: 479 | AL74: 523 | AM74: 569 | AN74: =AM74*(1+'Control Data'!$F11) -> 569 | AS74: Students Accumulating 24 hrs | AT74: 173 | AU74: 181 | AV74: 188 | AW74: 176 | AX74: 192 | AY74: 217 | AZ74: 161 | BA74: 184 | BB74: 128 | BC74: 151 | BD74: 157 | BE74: 169 | BF74: 161 | BG74: 183 | BH74: 174 | BI74: =BH74*(1+'Control Data'!$F$23) -> 174 | BN74: Students Accumulating 24 hrs | BO74: 257 | BP74: 228 | BQ74: 251 | BR74: 191 | BS74: 219 | BT74: 389 | BU74: 277 | BV74: 277 | BW74: 253 | BX74: 162 | BY74: 98 | BZ74: 95 | CA74: 107 | CB74: 106 | CC74: 158
B75: Students Accumulating 36 hrs | C75: 1377.4 | D75: 1036.8 | E75: 1010.2 | F75: 1000.6 | G75: 977.4 | H75: 1192.4 | I75: 1043.4 | J75: 1068.6 | K75: 1059.2 | L75: 885.4 | M75: 825.8 | N75: 728.6 | O75: =AK75+BF75*$V$6+BF82*$V$8+BF89*$V$10 -> 710.4 | P75: 724.8 | Q75: 882.6 | R75: 882.6 | T75: 135.4267018 | X75: Students Accumulating 36 hrs | Y75: 712 | Z75: 533 | AA75: 522 | AB75: 511 | AC75: 502 | AD75: 609 | AE75: 530 | AF75: 542 | AG75: 542 | AH75: 459 | AI75: 440 | AJ75: 392 | AK75: 387 | AL75: 386 | AM75: 481 | AN75: =AM75*(1+'Control Data'!$F12) -> 481 | AS75: Students Accumulating 36 hrs | AT75: 205 | AU75: 146 | AV75: 132 | AW75: 131 | AX75: 122 | AY75: 133 | AZ75: 123 | BA75: 117 | BB75: 119 | BC75: 106 | BD75: 124 | BE75: 127 | BF75: 137 | BG75: 115 | BH75: 150 | BI75: =BH75*(1+'Control Data'!$F$23) -> 150 | BN75: Students Accumulating 36 hrs | BO75: 253 | BP75: 202 | BQ75: 194 | BR75: 204 | BS75: 197 | BT75: 252 | BU75: 228 | BV75: 252 | BW75: 232 | BX75: 170 | BY75: 119 | BZ75: 102 | CA75: 95 | CB75: 102 | CC75: 151
B76: Dual Enrollment | C76: =Y76 -> 81 | D76: 112 | E76: 356 | F76: 430 | G76: 551 | H76: 599 | I76: 765 | J76: 803 | K76: 887 | L76: 1025 | M76: 981 | N76: 1071 | O76: =AK76 -> 1048 | P76: =AL76 -> 1096 | Q76: =AM76 -> 997 | R76: =AN76 -> 997 | T76: 318.7619976 | X76: Dual Enrollment | Y76: 81 | Z76: 112 | AA76: 356 | AB76: 430 | AC76: 551 | AD76: 599 | AE76: 765 | AF76: 803 | AG76: 887 | AH76: 1025 | AI76: 981 | AJ76: 1071 | AK76: 1048 | AL76: 1096 | AM76: 997 | AN76: =AM76*(1+'Control Data'!$F13) -> 997 | AS76: Associates | AT76: 67 | AU76: 62 | AV76: 63 | AW76: 43 | AX76: 62 | AY76: 57 | AZ76: 60 | BA76: 56 | BB76: 68 | BC76: 68 | BD76: 73 | BE76: 83 | BF76: 84 | BG76: 93 | BH76: 96 | BI76: =BH76*(1+'Control Data'!$F$23) -> 96 | BN76: Associates | BO76: 138 | BP76: 140 | BQ76: 118 | BR76: 112 | BS76: 127 | BT76: 128 | BU76: 164 | BV76: 173 | BW76: 176 | BX76: 193 | BY76: 183 | BZ76: 132 | CA76: 133 | CB76: 149 | CC76: 162
B77: Associates | C77: =Y77+$V$13*Y78+$V$6*(AT76+$V$13*AT77)+$V$8*(AT83+$V$13*AT84)+$V$10*(AT90+$V$13*AT91) -> 453.6 | D77: 438.2 | E77: 420 | F77: 365.6 | G77: 416.2 | H77: 424.4 | I77: 511.8 | J77: 556 | K77: 587.4 | L77: 648.4 | M77: 605 | N77: 540 | O77: =AK77+$V$13*AK78+$V$6*(BF76+$V$13*BF77)+$V$8*(BF83+$V$13*BF84)+$V$10*(BF90+$V$13*BF91) -> 562.4 | P77: 645.5 | Q77: 681.8 | R77: 681.8 | T77: 89.50005587 | X77: Associates | Y77: 235 | Z77: 227 | AA77: 215 | AB77: 187 | AC77: 213 | AD77: 215 | AE77: 260 | AF77: 280 | AG77: 300 | AH77: 326 | AI77: 308 | AJ77: 270 | AK77: 292 | AL77: 320 | AM77: 352 | AN77: =AM77*(1+'Control Data'!$F15) -> 352 | AS77: Reverse Articulated Associates | AT77: 0 | AU77: 0 | AV77: 0 | AW77: 0 | AX77: 0 | AY77: 0 | AZ77: 0 | BA77: 0 | BB77: 0 | BC77: 0 | BD77: 0 | BE77: 6 | BF77: 2 | BG77: 7 | BH77: 4 | BI77: =BH77*(1+'Control Data'!$F$23) -> 4 | BN77: Reverse Articulated Associates | BO77: 0 | BP77: 0 | BQ77: 0 | BR77: 0 | BS77: 0 | BT77: 0 | BU77: 0 | BV77: 0 | BW77: 0 | BX77: 0 | BY77: 0 | BZ77: 3 | CA77: 3 | CB77: 13 | CC77: 1
B78: 1-2 Year Certificates | C78: =Y79+AT78*$V$6+AT85*$V$8+AT92*$V$10 -> 21.8 | D78: 16.6 | E78: 23.8 | F78: 0 | G78: 0 | H78: 0 | I78: 30 | J78: 62.6 | K78: 50.6 | L78: 67 | M78: 42 | N78: 42.8 | O78: =AK79+BF78*$V$6+BF85*$V$8+BF92*$V$10 -> 106.6 | P78: 61.8 | Q78: 66.2 | R78: 66.2 | T78: 25.27474805 | X78: Reverse Articulated Associates | Y78: 0 | Z78: 0 | AA78: 0 | AB78: 0 | AC78: 0 | AD78: 0 | AE78: 0 | AF78: 0 | AG78: 0 | AH78: 0 | AI78: 0 | AJ78: 14 | AK78: 7 | AL78: 39 | AM78: 8 | AN78: =AM78*(1+'Control Data'!$F16) -> 8 | AS78: 1-2 Year Certificates | AT78: 4 | AU78: 2 | AV78: 4 | AW78: 0 | AX78: 0 | AY78: 0 | AZ78: 5 | BA78: 6 | BB78: 6 | BC78: 6 | BD78: 2 | BE78: 6 | BF78: 14 | BG78: 8 | BH78: 5 | BI78: =BH78*(1+'Control Data'!$F$23) -> 5 | BN78: 1-2 Year Certificates | BO78: 5 | BP78: 6 | BQ78: 6 | BR78: 0 | BS78: 0 | BT78: 0 | BU78: 11 | BV78: 22 | BW78: 18 | BX78: 24 | BY78: 15 | BZ78: 8 | CA78: 38 | CB78: 22 | CC78: 27
B79: <1yr Certificates | C79: 31.4 | D79: 20 | E79: 41.2 | F79: 11.4 | G79: 30 | H79: 24.8 | I79: 0 | J79: 41.4 | K79: 43 | L79: 39.6 | M79: 87.6 | N79: 85.6 | O79: =AK80+BF79*$V$6+BF86*$V$8+BF93*$V$10 -> 67.8 | P79: 145.8 | Q79: 164.2 | R79: 164.2 | T79: 14.36602473 | X79: 1-2 Year Certificates | Y79: 11 | Z79: 8 | AA79: 12 | AB79: 0 | AC79: 0 | AD79: 0 | AE79: 15 | AF79: 32 | AG79: 26 | AH79: 33 | AI79: 20 | AJ79: 23 | AK79: 55 | AL79: 31 | AM79: 32 | AN79: =AM79*(1+'Control Data'!$F17) -> 32 | AS79: <1yr Certificates | AT79: 1 | AU79: 2 | AV79: 10 | AW79: 4 | AX79: 4 | AY79: 4 | AZ79: 0 | BA79: 3 | BB79: 4 | BC79: 2 | BD79: 11 | BE79: 15 | BF79: 8 | BG79: 25 | BH79: 21 | BI79: =BH79*(1+'Control Data'!$F$23) -> 21 | BN79: <1yr Certificates | BO79: 14 | BP79: 9 | BQ79: 19 | BR79: 5 | BS79: 14 | BT79: 12 | BU79: 0 | BV79: 15 | BW79: 12 | BX79: 13 | BY79: 22 | BZ79: 17 | CA79: 20 | CB79: 36 | CC79: 46
B80: Job Placements | C80: =Y81 -> 0 | D80: 0 | E80: 0 | F80: 92 | G80: 77 | H80: 72 | I80: 98 | J80: 101 | K80: 92 | L80: 113 | M80: 102 | N80: 123 | O80: =AK81 -> 125 | P80: =AL81 -> 122 | Q80: =AM81 -> 119 | R80: =AN81 -> 119 | T80: 22.01081985 | X80: <1yr Certificates | Y80: 15 | Z80: 10 | AA80: 21 | AB80: 6 | AC80: 15 | AD80: 12 | AE80: 0 | AF80: 20 | AG80: 21 | AH80: 19 | AI80: 46 | AJ80: 45 | AK80: 34 | AL80: 78 | AM80: 85 | AN80: =AM80*(1+'Control Data'!$F18) -> 85 | AR80: Two Focus Pops Only | AS80: Students Accumulating 12 hrs | AT80: 474 | AU80: 516 | AV80: 490 | AW80: 455 | AX80: 563 | AY80: 745 | AZ80: 445 | BA80: 391 | BB80: 356 | BC80: 304 | BD80: 278 | BE80: 263 | BF80: 287 | BG80: 304 | BH80: 248 | BI80: =BH80*(1+'Control Data'!$F$24) -> 248 | BM80: Low-Income | BN80: Students Accumulating 12 hrs | BO80: 738 | BP80: 762 | BQ80: 743 | BR80: 739 | BS80: 876 | BT80: 1265 | BU80: 841 | BV80: 756 | BW80: 657 | BX80: 568 | BY80: 493 | BZ80: 482 | CA80: 489 | CB80: 556 | CC80: 450
B81: Transfers Out with 12 hrs | C81: 201 | D81: 207 | E81: 188 | F81: 191 | G81: 170 | H81: 180 | I81: 190 | J81: 218 | K81: 243 | L81: 209 | M81: 183 | N81: 173 | O81: 183 | P81: 177 | Q81: 154 | R81: 154 | T81: 20.89151875 | X81: Job Placements | AB81: 92 | AC81: 77 | AD81: 72 | AE81: 98 | AF81: 101 | AG81: 92 | AH81: 113 | AI81: 102 | AJ81: 123 | AK81: 125 | AL81: 122 | AM81: 119 | AN81: =AM81*(1+'Control Data'!$F19) -> 119 | AS81: Students Accumulating 24 hrs | AT81: 342 | AU81: 338 | AV81: 342 | AW81: 290 | AX81: 320 | AY81: 458 | AZ81: 280 | BA81: 315 | BB81: 240 | BC81: 210 | BD81: 206 | BE81: 212 | BF81: 202 | BG81: 205 | BH81: 180 | BI81: =BH81*(1+'Control Data'!$F$24) -> 180 | BN81: Students Accumulating 24 hrs | BO81: 521 | BP81: 507 | BQ81: 554 | BR81: 499 | BS81: 544 | BT81: 828 | BU81: 565 | BV81: 598 | BW81: 483 | BX81: 415 | BY81: 365 | BZ81: 357 | CA81: 346 | CB81: 353 | CC81: 349
B82: Workforce Training (Contact Hours) | C82: 0 | D82: 0 | E82: 0 | F82: 6793 | G82: 6373 | H82: 5938 | I82: 5909 | J82: 6027 | K82: 7114 | L82: 18945 | M82: 12239 | N82: 14434 | O82: 8528.5 | P82: 11115.7 | Q82: 8278 | R82: 8278 | T82: 4778.844916 | X82: Transfers Out with 12 hrs | Y82: 201 | Z82: 207 | AA82: 188 | AB82: 191 | AC82: 170 | AD82: 180 | AE82: 190 | AF82: 218 | AG82: 243 | AH82: 209 | AI82: 183 | AJ82: 173 | AK82: 183 | AL82: 177 | AM82: 154 | AN82: =AM82*(1+'Control Data'!$F20) -> 154 | AS82: Students Accumulating 36 hrs | AT82: 289 | AU82: 225 | AV82: 223 | AW82: 218 | AX82: 205 | AY82: 249 | AZ82: 205 | BA82: 187 | BB82: 212 | BC82: 176 | BD82: 175 | BE82: 151 | BF82: 143 | BG82: 170 | BH82: 170 | BI82: =BH82*(1+'Control Data'!$F$24) -> 170 | BN82: Students Accumulating 36 hrs | BO82: 511 | BP82: 378 | BQ82: 376 | BR82: 390 | BS82: 377 | BT82: 483 | BU82: 422 | BV82: 429 | BW82: 430 | BX82: 371 | BY82: 338 | BZ82: 282 | CA82: 279 | CB82: 285 | CC82: 321
B83: Awards per 100 FTE | C83: 14.64896088 | D83: 14.49483943 | E83: 14.64579122 | F83: 12.5284738 | G83: 13.32027016 | H83: 10.38630618 | I83: 12.74131274 | J83: 15.07319194 | K83: 16.83246704 | L83: 22.40995443 | M83: 23.65839585 | N83: 21.6252583 | O83: 25.37097358 | P83: 28.39443096 | Q83: 26.81039248 | R83: 26.81039248 | T83: 3.21870652 | X83: Workforce Training (Contact Hours) | AB83: 6793 | AC83: 6373 | AD83: 5938 | AE83: 5909 | AF83: 6027 | AG83: 7114 | AH83: 18945 | AI83: 12239 | AJ83: 14434 | AK83: 8528.5 | AL83: 11115.7 | AM83: 8278 | AN83: =AM83*(1+'Control Data'!$F21) -> 8278 | AS83: Associates | AT83: 87 | AU83: 74 | AV83: 73 | AW83: 71 | AX83: 78 | AY83: 69 | AZ83: 85 | BA83: 104 | BB83: 101 | BC83: 106 | BD83: 91 | BE83: 93 | BF83: 97 | BG83: 114 | BH83: 151 | BI83: =BH83*(1+'Control Data'!$F$24) -> 151 | BN83: Associates | BO83: 131 | BP83: 140 | BQ83: 147 | BR83: 124 | BS83: 141 | BT83: 146 | BU83: 194 | BV83: 209 | BW83: 224 | BX83: 260 | BY83: 241 | BZ83: 214 | CA83: 219 | CB83: 232 | CC83: 263
X84: Awards per 100 FTE | Y84: 14.64896088 | Z84: 14.49483943 | AA84: 14.64579122 | AB84: 12.5284738 | AC84: 13.32027016 | AD84: 10.38630618 | AE84: 12.74131274 | AF84: 15.07319194 | AG84: 16.83246704 | AH84: 22.40995443 | AI84: 23.65839585 | AJ84: 21.6252583 | AK84: 25.37097358 | AL84: 28.39443096 | AM84: 26.81039248 | AN84: =AM84*(1+'Control Data'!$F22) -> 26.81039248 | AS84: Reverse Articulated Associates | AT84: 0 | AU84: 0 | AV84: 0 | AW84: 0 | AX84: 0 | AY84: 0 | AZ84: 0 | BA84: 0 | BB84: 0 | BC84: 0 | BD84: 0 | BE84: 2 | BF84: 1 | BG84: 16 | BH84: 2 | BI84: =BH84*(1+'Control Data'!$F$24) -> 2 | BN84: Reverse Articulated Associates | BO84: 0 | BP84: 0 | BQ84: 0 | BR84: 0 | BS84: 0 | BT84: 0 | BU84: 0 | BV84: 0 | BW84: 0 | BX84: 0 | BY84: 0 | BZ84: 11 | CA84: 6 | CB84: 27 | CC84: 7
AS85: 1-2 Year Certificates | AT85: 4 | AU85: 1 | AV85: 5 | AW85: 0 | AX85: 0 | AY85: 0 | AZ85: 5 | BA85: 15 | BB85: 3 | BC85: 10 | BD85: 6 | BE85: 9 | BF85: 20 | BG85: 10 | BH85: 11 | BI85: =BH85*(1+'Control Data'!$F$24) -> 11 | BN85: 1-2 Year Certificates | BO85: 8 | BP85: 7 | BQ85: 7 | BR85: 0 | BS85: 0 | BT85: 0 | BU85: 11 | BV85: 22 | BW85: 18 | BX85: 24 | BY85: 17 | BZ85: 16 | CA85: 39 | CB85: 23 | CC85: 27
AS86: <1yr Certificates | AT86: 6 | AU86: 6 | AV86: 5 | AW86: 1 | AX86: 7 | AY86: 0 | AZ86: 0 | BA86: 7 | BB86: 8 | BC86: 7 | BD86: 16 | BE86: 19 | BF86: 13 | BG86: 25 | BH86: 30 | BI86: =BH86*(1+'Control Data'!$F$24) -> 30 | BN86: <1yr Certificates | BO86: 14 | BP86: 7 | BQ86: 10 | BR86: 2 | BS86: 10 | BT86: 8 | BU86: 0 | BV86: 16 | BW86: 19 | BX86: 17 | BY86: 32 | BZ86: 29 | CA86: 28 | CB86: 52 | CC86: 64
AR87: All Three Focus Pops | AS87: Students Accumulating 12 hrs | AT87: 214 | AU87: 206 | AV87: 189 | AW87: 172 | AX87: 235 | AY87: 407 | AZ87: 265 | BA87: 246 | BB87: 181 | BC87: 117 | BD87: 59 | BE87: 61 | BF87: 56 | BG87: 65 | BH87: 134 | BI87: =BH87*(1+'Control Data'!$F$25) -> 134 | BM87: Academically Underprepared | BN87: Students Accumulating 12 hrs | BO87: 800 | BP87: 838 | BQ87: 783 | BR87: 755 | BS87: 919 | BT87: 1283 | BU87: 808 | BV87: 724 | BW87: 599 | BX87: 510 | BY87: 411 | BZ87: 417 | CA87: 432 | CB87: 464 | CC87: 499
AS88: Students Accumulating 24 hrs | AT88: 178 | AU88: 156 | AV88: 175 | AW88: 145 | AX88: 166 | AY88: 307 | AZ88: 220 | BA88: 216 | BB88: 201 | BC88: 129 | BD88: 76 | BE88: 63 | BF88: 65 | BG88: 60 | BH88: 110 | BI88: =BH88*(1+'Control Data'!$F$25) -> 110 | BN88: Students Accumulating 24 hrs | BO88: 613 | BP88: 590 | BQ88: 592 | BR88: 501 | BS88: 567 | BT88: 837 | BU88: 539 | BV88: 587 | BW88: 475 | BX88: 381 | BY88: 334 | BZ88: 330 | CA88: 307 | CB88: 314 | CC88: 357
AS89: Students Accumulating 36 hrs | AT89: 177 | AU89: 135 | AV89: 133 | AW89: 139 | AX89: 144 | AY89: 190 | AZ89: 175 | BA89: 205 | BB89: 175 | BC89: 138 | BD89: 93 | BE89: 70 | BF89: 59 | BG89: 64 | BH89: 93 | BI89: =BH89*(1+'Control Data'!$F$25) -> 93 | BN89: Students Accumulating 36 hrs | BO89: 550 | BP89: 421 | BQ89: 407 | BR89: 390 | BS89: 390 | BT89: 466 | BU89: 408 | BV89: 425 | BW89: 406 | BX89: 331 | BY89: 296 | BZ89: 255 | CA89: 226 | CB89: 260 | CC89: 297
AS90: Associates | AT90: 65 | AU90: 73 | AV90: 68 | AW90: 61 | AX90: 63 | AY90: 79 | AZ90: 99 | BA90: 106 | BB90: 110 | BC90: 135 | BD90: 123 | BE90: 82 | BF90: 83 | BG90: 85 | BH90: 79 | BI90: =BH90*(1+'Control Data'!$F$25) -> 79 | BN90: Associates | BO90: 167 | BP90: 149 | BQ90: 148 | BR90: 132 | BS90: 139 | BT90: 158 | BU90: 169 | BV90: 200 | BW90: 200 | BX90: 232 | BY90: 200 | BZ90: 169 | CA90: 175 | CB90: 195 | CC90: 210
AS91: Reverse Articulated Associates | AT91: 0 | AU91: 0 | AV91: 0 | AW91: 0 | AX91: 0 | AY91: 0 | AZ91: 0 | BA91: 0 | BB91: 0 | BC91: 0 | BD91: 0 | BE91: 3 | BF91: 3 | BG91: 8 | BH91: 1 | BI91: =BH91*(1+'Control Data'!$F$25) -> 1 | BN91: Reverse Articulated Associates | BO91: 0 | BP91: 0 | BQ91: 0 | BR91: 0 | BS91: 0 | BT91: 0 | BU91: 0 | BV91: 0 | BW91: 0 | BX91: 0 | BY91: 0 | BZ91: 5 | CA91: 4 | CB91: 23 | CC91: 3
AS92: 1-2 Year Certificates | AT92: 3 | AU92: 5 | AV92: 3 | AW92: 0 | AX92: 0 | AY92: 0 | AZ92: 5 | BA92: 9 | BB92: 14 | BC92: 16 | BD92: 12 | BE92: 5 | BF92: 17 | BG92: 12 | BH92: 16 | BI92: =BH92*(1+'Control Data'!$F$25) -> 16 | BN92: 1-2 Year Certificates | BO92: 8 | BP92: 6 | BQ92: 10 | BR92: 0 | BS92: 0 | BT92: 0 | BU92: 8 | BV92: 19 | BW92: 18 | BX92: 26 | BY92: 18 | BZ92: 15 | CA92: 28 | CB92: 19 | CC92: 21
AS93: <1yr Certificates | AT93: 8 | AU93: 2 | AV93: 6 | AW93: 1 | AX93: 4 | AY93: 8 | AZ93: 0 | BA93: 10 | BB93: 9 | BC93: 10 | BD93: 14 | BE93: 8 | BF93: 12 | BG93: 19 | BH93: 27 | BI93: =BH93*(1+'Control Data'!$F$25) -> 27 | BN93: <1yr Certificates | BO93: 9 | BP93: 4 | BQ93: 9 | BR93: 2 | BS93: 6 | BT93: 8 | BU93: 0 | BV93: 16 | BW93: 16 | BX93: 16 | BY93: 31 | BZ93: 31 | CA93: 22 | CB93: 44 | CC93: 52
B95: Jackson | C95: 2004-05 | D95: 2005-06 | E95: 2006-07 | F95: 2007-08 | G95: 2008-09 | H95: 2009-10 | I95: 2010-11 | J95: 2011-12 | K95: 2012-13 | L95: 2013-14 | M95: 2014-15 | N95: 2015-16 | O95: 2016-17 | P95: 2017-18 | Q95: =Q72 -> 2018-19 | R95: 2019-20 | T95: Standard Dev. | X95: Jackson | Y95: 2004-05 | Z95: 2005-06 | AA95: 2006-07 | AB95: 2007-08 | AC95: 2008-09 | AD95: 2009-10 | AE95: 2010-11 | AF95: 2011-12 | AG95: 2012-13 | AH95: 2013-14 | AI95: 2014-15 | AJ95: 2015-16 | AK95: 2016-17 | AL95: 2017-18 | AM95: 2018-19 | AN95: 2019-20 | AS95: Jackson | AT95: 2004-05 | AU95: 2005-06 | AV95: 2006-07 | AW95: 2007-08 | AX95: 2008-09 | AY95: 2009-10 | AZ95: 2010-11 | BA95: 2011-12 | BB95: 2012-13 | BC95: 2013-14 | BD95: 2014-15 | BE95: 2015-16 | BF95: 2016-17 | BG95: 2017-18 | BH95: 2018-19 | BI95: 2019-20 | BN95: Jackson | BO95: 2004-05 | BP95: 2005-06 | BQ95: 2006-07 | BR95: 2007-08 | BS95: 2008-09 | BT95: 2009-10 | BU95: 2010-11 | BV95: 2011-12 | BW95: 2012-13 | BX95: 2013-14 | BY95: 2014-15 | BZ95: 2015-16 | CA95: 2016-17 | CB95: 2017-18 | CC95: 2018-19 | CD95: 2019-20
B96: Students Accumulating 12 hrs | C96: =Y96+AT96*$V$6+AT103*$V$8+AT110*$V$10 -> 2945.4 | D96: 3244.2 | E96: 3557 | F96: 3606.4 | G96: 3550.8 | H96: 4577.4 | I96: 2565.4 | J96: 2259.4 | K96: 2093.8 | L96: 2131.4 | M96: 2301.6 | N96: 2577.4 | O96: =AK96+BF96*$V$6+BF103*$V$8+BF110*$V$10 -> 2501 | P96: 2398.4 | Q96: 2479.2 | R96: 2479.2 | T96: 807.786271 | X96: Students Accumulating 12 hrs | Y96: 1574 | Z96: 1748 | AA96: 1890 | AB96: 1915 | AC96: 1882 | AD96: 2375 | AE96: 1351 | AF96: 1194 | AG96: 1127 | AH96: 1179 | AI96: 1318 | AJ96: 1464 | AK96: 1409 | AL96: 1363 | AM96: 1416 | AN96: =AM96*(1+'Control Data'!$G10) -> 1416 | AR96: One Focus Pop Only | AS96: Students Accumulating 12 hrs | AT96: 489 | AU96: 537 | AV96: 576 | AW96: 539 | AX96: 524 | AY96: 545 | AZ96: 294 | BA96: 305 | BB96: 331 | BC96: 373 | BD96: 427 | BE96: 533 | BF96: 450 | BG96: 480 | BH96: 427 | BI96: =BH96*(1+'Control Data'!$G$23) -> 427 | BM96: Adults | BN96: Students Accumulating 12 hrs | BO96: 354 | BP96: 409 | BQ96: 480 | BR96: 429 | BS96: 430 | BT96: 699 | BU96: 397 | BV96: 292 | BW96: 263 | BX96: 189 | BY96: 175 | BZ96: 136 | CA96: 146 | CB96: 145 | CC96: 267
B97: Students Accumulating 24 hrs | C97: 1850.6 | D97: 1801 | E97: 2019.2 | F97: 2079.4 | G97: 2087.4 | H97: 2573 | I97: 1972.8 | J97: 1793.8 | K97: 1734.2 | L97: 1443.6 | M97: 1529 | N97: 1762.2 | O97: =AK97+BF97*$V$6+BF104*$V$8+BF111*$V$10 -> 1685.4 | P97: 1621.6 | Q97: 1682.2 | R97: 1682.2 | T97: 297.6470692 | X97: Students Accumulating 24 hrs | Y97: 955 | Z97: 947 | AA97: 1056 | AB97: 1086 | AC97: 1088 | AD97: 1314 | AE97: 1010 | AF97: 921 | AG97: 899 | AH97: 763 | AI97: 831 | AJ97: 941 | AK97: 907 | AL97: 875 | AM97: 896 | AN97: =AM97*(1+'Control Data'!$G11) -> 896 | AS97: Students Accumulating 24 hrs | AT97: 230 | AU97: 255 | AV97: 299 | AW97: 316 | AX97: 294 | AY97: 297 | AZ97: 212 | BA97: 214 | BB97: 237 | BC97: 205 | BD97: 250 | BE97: 305 | BF97: 279 | BG97: 288 | BH97: 249 | BI97: =BH97*(1+'Control Data'!$G$23) -> 249 | BN97: Students Accumulating 24 hrs | BO97: 309 | BP97: 282 | BQ97: 326 | BR97: 302 | BS97: 298 | BT97: 471 | BU97: 383 | BV97: 313 | BW97: 274 | BX97: 212 | BY97: 177 | BZ97: 171 | CA97: 169 | CB97: 166 | CC97: 248
B98: Students Accumulating 36 hrs | C98: 1922.6 | D98: 1381.6 | E98: 1529 | F98: 1578.2 | G98: 1662.4 | H98: 1885.6 | I98: 1654.4 | J98: 1505.6 | K98: 1340.2 | L98: 1393.2 | M98: 1335 | N98: 1260.2 | O98: =AK98+BF98*$V$6+BF105*$V$8+BF112*$V$10 -> 1443.8 | P98: 1323.2 | Q98: 1473.8 | R98: 1473.8 | T98: 201.9400362 | X98: Students Accumulating 36 hrs | Y98: 1033 | Z98: 731 | AA98: 804 | AB98: 824 | AC98: 863 | AD98: 976 | AE98: 847 | AF98: 782 | AG98: 691 | AH98: 721 | AI98: 704 | AJ98: 684 | AK98: 779 | AL98: 705 | AM98: 786 | AN98: =AM98*(1+'Control Data'!$G12) -> 786 | AS98: Students Accumulating 36 hrs | AT98: 349 | AU98: 205 | AV98: 226 | AW98: 241 | AX98: 226 | AY98: 246 | AZ98: 201 | BA98: 187 | BB98: 172 | BC98: 175 | BD98: 194 | BE98: 209 | BF98: 256 | BG98: 224 | BH98: 234 | BI98: =BH98*(1+'Control Data'!$G$23) -> 234 | BN98: Students Accumulating 36 hrs | BO98: 274 | BP98: 230 | BQ98: 264 | BR98: 306 | BS98: 297 | BT98: 356 | BU98: 349 | BV98: 279 | BW98: 243 | BX98: 256 | BY98: 211 | BZ98: 143 | CA98: 159 | CB98: 162 | CC98: 213
B99: Dual Enrollment | C99: =Y99 -> 66 | D99: 97 | E99: 87 | F99: 361 | G99: 666 | H99: 837 | I99: 971 | J99: 815 | K99: 800 | L99: 1324 | M99: 2005 | N99: 1983 | O99: =AK99 -> 1696 | P99: =AL99 -> 1932 | Q99: =AM99 -> 1774 | R99: =AN99 -> 1774 | T99: 430.3699184 | X99: Dual Enrollment | Y99: 66 | Z99: 97 | AA99: 87 | AB99: 361 | AC99: 666 | AD99: 837 | AE99: 971 | AF99: 815 | AG99: 800 | AH99: 1324 | AI99: 2005 | AJ99: 1983 | AK99: 1696 | AL99: 1932 | AM99: 1774 | AN99: =AM99*(1+'Control Data'!$G13) -> 1774 | AS99: Associates | AT99: 147 | AU99: 165 | AV99: 130 | AW99: 142 | AX99: 151 | AY99: 167 | AZ99: 182 | BA99: 125 | BB99: 127 | BC99: 114 | BD99: 108 | BE99: 116 | BF99: 131 | BG99: 143 | BH99: 148 | BI99: =BH99*(1+'Control Data'!$G$23) -> 148 | BN99: Associates | BO99: 227 | BP99: 213 | BQ99: 232 | BR99: 263 | BS99: 258 | BT99: 297 | BU99: 312 | BV99: 322 | BW99: 282 | BX99: 236 | BY99: 209 | BZ99: 182 | CA99: 170 | CB99: 158 | CC99: 165
B100: Associates | C100: =Y100+$V$13*Y101+$V$6*(AT99+$V$13*AT100)+$V$8*(AT106+$V$13*AT107)+$V$10*(AT113+$V$13*AT114) -> 833.8 | D100: 817.4 | E100: 784.2 | F100: 902.4 | G100: 877.4 | H100: 1000.8 | I100: 1112 | J100: 1086.4 | K100: 983.4 | L100: 913.8 | M100: 812 | N100: 826.3 | O100: =AK100+$V$13*AK101+$V$6*(BF99+$V$13*BF100)+$V$8*(BF106+$V$13*BF107)+$V$10*(BF113+$V$13*BF114) -> 876.1 | P100: 967.5 | Q100: 900.6 | R100: 900.6 | T100: 111.4503896 | X100: Associates | Y100: 449 | Z100: 438 | AA100: 419 | AB100: 470 | AC100: 462 | AD100: 524 | AE100: 576 | AF100: 554 | AG100: 509 | AH100: 470 | AI100: 416 | AJ100: 416 | AK100: 440 | AL100: 494 | AM100: 462 | AN100: =AM100*(1+'Control Data'!$G15) -> 462 | AS100: Reverse Articulated Associates | AT100: 0 | AU100: 0 | AV100: 0 | AW100: 0 | AX100: 0 | AY100: 0 | AZ100: 0 | BA100: 0 | BB100: 0 | BC100: 0 | BD100: 0 | BE100: 5 | BF100: 11 | BG100: 15 | BH100: 15 | BI100: =BH100*(1+'Control Data'!$G$23) -> 15 | BN100: Reverse Articulated Associates | BO100: 0 | BP100: 0 | BQ100: 0 | BR100: 0 | BS100: 0 | BT100: 0 | BU100: 0 | BV100: 0 | BW100: 0 | BX100: 0 | BY100: 0 | BZ100: 14 | CA100: 19 | CB100: 14 | CC100: 12
B101: 1-2 Year Certificates | C101: =Y102+AT101*$V$6+AT108*$V$8+AT115*$V$10 -> 1.8 | D101: 46.8 | E101: 19.8 | F101: 18.8 | G101: 38.2 | H101: 24.2 | I101: 0 | J101: 65.6 | K101: 67.2 | L101: 73.2 | M101: 27.8 | N101: 18.4 | O101: =AK102+BF101*$V$6+BF108*$V$8+BF115*$V$10 -> 0 | P101: 26.4 | Q101: 62.8 | R101: 62.8 | T101: 26.87651598 | X101: Reverse Articulated Associates | Y101: 0 | Z101: 0 | AA101: 0 | AB101: 0 | AC101: 0 | AD101: 0 | AE101: 0 | AF101: 0 | AG101: 0 | AH101: 0 | AI101: 0 | AJ101: 40 | AK101: 47 | AL101: 48 | AM101: 36 | AN101: =AM101*(1+'Control Data'!$G16) -> 36 | AS101: 1-2 Year Certificates | AT101: 1 | AU101: 8 | AV101: 3 | AW101: 3 | AX101: 8 | AY101: 5 | AZ101: 0 | BA101: 8 | BB101: 7 | BC101: 9 | BD101: 0 | BE101: 2 | BF101: 0 | BG101: 4 | BH101: 2 | BI101: =BH101*(1+'Control Data'!$G$23) -> 2 | BN101: 1-2 Year Certificates | BO101: 1 | BP101: 19 | BQ101: 8 | BR101: 5 | BS101: 13 | BT101: 7 | BU101: 0 | BV101: 16 | BW101: 17 | BX101: 20 | BY101: 10 | BZ101: 7 | CA101: 0 | CB101: 9 | CC101: 17
B102: <1yr Certificates | C102: 15.6 | D102: 55.6 | E102: 22.4 | F102: 29.6 | G102: 43.8 | H102: 63 | I102: 53.8 | J102: 32.4 | K102: 53.6 | L102: 70.8 | M102: 164.2 | N102: 119.2 | O102: =AK103+BF102*$V$6+BF109*$V$8+BF116*$V$10 -> 69.6 | P102: 174.6 | Q102: 107 | R102: 107 | T102: 18.30920837 | X102: 1-2 Year Certificates | Y102: 1 | Z102: 24 | AA102: 10 | AB102: 10 | AC102: 20 | AD102: 13 | AE102: 0 | AF102: 34 | AG102: 34 | AH102: 37 | AI102: 14 | AJ102: 9 | AK102: 0 | AL102: 13 | AM102: 31 | AN102: =AM102*(1+'Control Data'!$G17) -> 31 | AS102: <1yr Certificates | AT102: 4 | AU102: 16 | AV102: 5 | AW102: 7 | AX102: 10 | AY102: 11 | AZ102: 10 | BA102: 7 | BB102: 7 | BC102: 6 | BD102: 23 | BE102: 14 | BF102: 11 | BG102: 29 | BH102: 7 | BI102: =BH102*(1+'Control Data'!$G$23) -> 7 | BN102: <1yr Certificates | BO102: 8 | BP102: 24 | BQ102: 6 | BR102: 9 | BS102: 19 | BT102: 23 | BU102: 16 | BV102: 7 | BW102: 8 | BX102: 12 | BY102: 37 | BZ102: 30 | CA102: 19 | CB102: 38 | CC102: 28
B103: Job Placements | C103: =Y104 -> 0 | D103: 0 | E103: 0 | F103: 246 | G103: 246 | H103: 289 | I103: 279 | J103: 284 | K103: 273 | L103: 247 | M103: 229 | N103: 219 | O103: =AK104 -> 175 | P103: =AL104 -> 193 | Q103: =AM104 -> 175 | R103: =AN104 -> 175 | T103: 40.59439323 | X103: <1yr Certificates | Y103: 8 | Z103: 29 | AA103: 13 | AB103: 15 | AC103: 23 | AD103: 32 | AE103: 27 | AF103: 17 | AG103: 27 | AH103: 35 | AI103: 83 | AJ103: 62 | AK103: 37 | AL103: 93 | AM103: 54 | AN103: =AM103*(1+'Control Data'!$G18) -> 54 | AR103: Two Focus Pops Only | AS103: Students Accumulating 12 hrs | AT103: 757 | AU103: 793 | AV103: 845 | AW103: 947 | AX103: 904 | AY103: 1134 | AZ103: 612 | BA103: 561 | BB103: 474 | BC103: 486 | BD103: 486 | BE103: 579 | BF103: 606 | BG103: 523 | BH103: 490 | BI103: =BH103*(1+'Control Data'!$G$24) -> 490 | BM103: Low-Income | BN103: Students Accumulating 12 hrs | BO103: 1055 | BP103: 1155 | BQ103: 1322 | BR103: 1382 | BS103: 1398 | BT103: 1855 | BU103: 1036 | BV103: 906 | BW103: 794 | BX103: 842 | BY103: 839 | BZ103: 948 | CA103: 966 | CB103: 889 | CC103: 856
B104: Transfers Out with 12 hrs | C104: 254 | D104: 284 | E104: 233 | F104: 213 | G104: 241 | H104: 252 | I104: 288 | J104: 280 | K104: 299 | L104: 341 | M104: 266 | N104: 277 | O104: 286 | P104: 324 | Q104: 314 | R104: 314 | T104: 37.2953676 | X104: Job Placements | AB104: 246 | AC104: 246 | AD104: 289 | AE104: 279 | AF104: 284 | AG104: 273 | AH104: 247 | AI104: 229 | AJ104: 219 | AK104: 175 | AL104: 193 | AM104: 175 | AN104: =AM104*(1+'Control Data'!$G19) -> 175 | AS104: Students Accumulating 24 hrs | AT104: 474 | AU104: 446 | AV104: 472 | AW104: 515 | AX104: 523 | AY104: 593 | AZ104: 444 | BA104: 416 | BB104: 420 | BC104: 345 | BD104: 348 | BE104: 432 | BF104: 422 | BG104: 365 | BH104: 359 | BI104: =BH104*(1+'Control Data'!$G$24) -> 359 | BN104: Students Accumulating 24 hrs | BO104: 686 | BP104: 644 | BQ104: 733 | BR104: 782 | BS104: 828 | BT104: 1050 | BU104: 808 | BV104: 741 | BW104: 695 | BX104: 565 | BY104: 583 | BZ104: 681 | CA104: 652 | CB104: 638 | CC104: 649
B105: Workforce Training (Contact Hours) | C105: 0 | D105: 0 | E105: 0 | F105: 35506 | G105: 2704 | H105: 21008 | I105: 17182 | J105: 14019 | K105: 17853 | L105: 20571 | M105: 28337 | N105: 22283 | O105: 25371.5 | P105: 20725 | Q105: 24658.419 | R105: 24658.419 | T105: 9759.35978 | X105: Transfers Out with 12 hrs | Y105: 254 | Z105: 284 | AA105: 233 | AB105: 213 | AC105: 241 | AD105: 252 | AE105: 288 | AF105: 280 | AG105: 299 | AH105: 341 | AI105: 266 | AJ105: 277 | AK105: 286 | AL105: 324 | AM105: 314 | AN105: =AM105*(1+'Control Data'!$G20) -> 314 | AS105: Students Accumulating 36 hrs | AT105: 410 | AU105: 315 | AV105: 351 | AW105: 349 | AX105: 399 | AY105: 432 | AZ105: 349 | BA105: 340 | BB105: 304 | BC105: 339 | BD105: 303 | BE105: 289 | BF105: 334 | BG105: 301 | BH105: 323 | BI105: =BH105*(1+'Control Data'!$G$24) -> 323 | BN105: Students Accumulating 36 hrs | BO105: 657 | BP105: 491 | BQ105: 554 | BR105: 572 | BS105: 641 | BT105: 743 | BU105: 677 | BV105: 607 | BW105: 544 | BX105: 564 | BY105: 536 | BZ105: 485 | CA105: 544 | CB105: 520 | CC105: 578
B106: Awards per 100 FTE | C106: 16.5833405 | D106: 17.64818234 | E106: 15.42240863 | F106: 16.87842843 | G106: 16.98578644 | H106: 16.37994143 | I106: 17.38902921 | J106: 19.04638507 | K106: 20.21693805 | L106: 21.17971426 | M106: 18.54060968 | N106: 18.46498568 | O106: 18.5682237 | P106: 21.99304175 | Q106: 20.67068484 | R106: 20.67068484 | T106: 1.815495126 | X106: Workforce Training (Contact Hours) | AB106: 35506 | AC106: 2704 | AD106: 21008 | AE106: 17182 | AF106: 14019 | AG106: 17853 | AH106: 20571 | AI106: 28337 | AJ106: 22283 | AK106: 25371.5 | AL106: 20725 | AM106: 24658.419 | AN106: =AM106*(1+'Control Data'!$G21) -> 24658.419 | AS106: Associates | AT106: 164 | AU106: 149 | AV106: 140 | AW106: 188 | AX106: 159 | AY106: 186 | AZ106: 202 | BA106: 208 | BB106: 200 | BC106: 187 | BD106: 168 | BE106: 171 | BF106: 161 | BG106: 196 | BH106: 170 | BI106: =BH106*(1+'Control Data'!$G$24) -> 170 | BN106: Associates | BO106: 230 | BP106: 223 | BQ106: 228 | BR106: 284 | BS106: 288 | BT106: 329 | BU106: 393 | BV106: 411 | BW106: 374 | BX106: 364 | BY106: 311 | BZ106: 302 | CA106: 324 | CB106: 344 | CC106: 334
X107: Awards per 100 FTE | Y107: 16.5833405 | Z107: 17.64818234 | AA107: 15.42240863 | AB107: 16.87842843 | AC107: 16.98578644 | AD107: 16.37994143 | AE107: 17.38902921 | AF107: 19.04638507 | AG107: 20.21693805 | AH107: 21.17971426 | AI107: 18.54060968 | AJ107: 18.46498568 | AK107: 18.5682237 | AL107: 21.99304175 | AM107: 20.67068484 | AN107: =AM107*(1+'Control Data'!$G22) -> 20.67068484 | AS107: Reverse Articulated Associates | AT107: 0 | AU107: 0 | AV107: 0 | AW107: 0 | AX107: 0 | AY107: 0 | AZ107: 0 | BA107: 0 | BB107: 0 | BC107: 0 | BD107: 0 | BE107: 21 | BF107: 22 | BG107: 19 | BH107: 10 | BI107: =BH107*(1+'Control Data'!$G$24) -> 10 | BN107: Reverse Articulated Associates | BO107: 0 | BP107: 0 | BQ107: 0 | BR107: 0 | BS107: 0 | BT107: 0 | BU107: 0 | BV107: 0 | BW107: 0 | BX107: 0 | BY107: 0 | BZ107: 35 | CA107: 39 | CB107: 37 | CC107: 25
AS108: 1-2 Year Certificates | AT108: 0 | AU108: 8 | AV108: 5 | AW108: 4 | AX108: 7 | AY108: 6 | AZ108: 0 | BA108: 12 | BB108: 18 | BC108: 17 | BD108: 9 | BE108: 3 | BF108: 0 | BG108: 3 | BH108: 17 | BI108: =BH108*(1+'Control Data'!$G$24) -> 17 | BN108: 1-2 Year Certificates | BO108: 0 | BP108: 11 | BQ108: 3 | BR108: 4 | BS108: 7 | BT108: 6 | BU108: 0 | BV108: 25 | BW108: 23 | BX108: 30 | BY108: 10 | BZ108: 8 | CA108: 0 | CB108: 10 | CC108: 28
AS109: <1yr Certificates | AT109: 2 | AU109: 9 | AV109: 3 | AW109: 3 | AX109: 8 | AY109: 9 | AZ109: 8 | BA109: 5 | BB109: 15 | BC109: 19 | BD109: 34 | BE109: 28 | BF109: 13 | BG109: 26 | BH109: 27 | BI109: =BH109*(1+'Control Data'!$G$24) -> 27 | BN109: <1yr Certificates | BO109: 4 | BP109: 10 | BQ109: 5 | BR109: 9 | BS109: 12 | BT109: 19 | BU109: 19 | BV109: 11 | BW109: 23 | BX109: 31 | BY109: 67 | BZ109: 42 | CA109: 24 | CB109: 64 | CC109: 43
AR110: All Three Focus Pops | AS110: Students Accumulating 12 hrs | AT110: 186 | AU110: 228 | AV110: 301 | AW110: 261 | AX110: 288 | AY110: 527 | AZ110: 306 | BA110: 217 | BB110: 190 | BC110: 140 | BD110: 130 | BE110: 90 | BF110: 105 | BG110: 107 | BH110: 193 | BI110: =BH110*(1+'Control Data'!$G$25) -> 193 | BM110: Academically Underprepared | BN110: Students Accumulating 12 hrs | BO110: 1152 | BP110: 1243 | BQ110: 1367 | BR110: 1405 | BS110: 1368 | BT110: 1840 | BU110: 1003 | BV110: 880 | BW110: 792 | BX110: 734 | BY110: 775 | BZ110: 877 | CA110: 865 | CB110: 813 | CC110: 863
AS111: Students Accumulating 24 hrs | AT111: 198 | AU111: 170 | AV111: 210 | AW111: 188 | AX111: 201 | AY111: 357 | AZ111: 291 | BA111: 238 | BB111: 188 | BC111: 143 | BD111: 125 | BE111: 121 | BF111: 111 | BG111: 126 | BH111: 190 | BI111: =BH111*(1+'Control Data'!$G$25) -> 190 | BN111: Students Accumulating 24 hrs | BO111: 777 | BP111: 731 | BQ111: 814 | BR111: 826 | BS111: 817 | BT111: 1033 | BU111: 782 | BV111: 706 | BW111: 672 | BX111: 547 | BY111: 561 | BZ111: 680 | CA111: 635 | CB111: 592 | CC111: 640
AS112: Students Accumulating 36 hrs | AT112: 167 | AU112: 143 | AV112: 161 | AW112: 177 | AX112: 183 | AY112: 234 | AZ112: 248 | BA112: 195 | BB112: 173 | BC112: 161 | BD112: 144 | BE112: 100 | BF112: 105 | BG112: 115 | BH112: 148 | BI112: =BH112*(1+'Control Data'!$G$25) -> 148 | BN112: Students Accumulating 36 hrs | BO112: 739 | BP112: 543 | BQ112: 593 | BR112: 592 | BS112: 635 | BT112: 713 | BU112: 617 | BV112: 566 | BW112: 512 | BX112: 516 | BY112: 485 | BZ112: 459 | CA112: 536 | CB112: 489 | CC112: 533
AS113: Associates | AT113: 86 | AU113: 82 | AV113: 101 | AW113: 109 | AX113: 113 | AY113: 131 | AZ113: 157 | BA113: 187 | BB113: 144 | BC113: 138 | BD113: 118 | BE113: 90 | BF113: 104 | BG113: 98 | BH113: 97 | BI113: =BH113*(1+'Control Data'!$G$25) -> 97 | BN113: Associates | BO113: 276 | BP113: 273 | BQ113: 253 | BR113: 298 | BS113: 262 | BT113: 306 | BU113: 352 | BV113: 369 | BW113: 303 | BX113: 302 | BY113: 278 | BZ113: 244 | CA113: 271 | CB113: 327 | CC113: 280
AS114: Reverse Articulated Associates | AT114: 0 | AU114: 0 | AV114: 0 | AW114: 0 | AX114: 0 | AY114: 0 | AZ114: 0 | BA114: 0 | BB114: 0 | BC114: 0 | BD114: 0 | BE114: 10 | BF114: 11 | BG114: 10 | BH114: 8 | BI114: =BH114*(1+'Control Data'!$G$25) -> 8 | BN114: Reverse Articulated Associates | BO114: 0 | BP114: 0 | BQ114: 0 | BR114: 0 | BS114: 0 | BT114: 0 | BU114: 0 | BV114: 0 | BW114: 0 | BX114: 0 | BY114: 0 | BZ114: 28 | CA114: 30 | CB114: 32 | CC114: 22
AS115: 1-2 Year Certificates | AT115: 0 | AU115: 7 | AV115: 2 | AW115: 2 | AX115: 4 | AY115: 1 | AZ115: 0 | BA115: 11 | BB115: 8 | BC115: 10 | BD115: 4 | BE115: 4 | BF115: 0 | BG115: 6 | BH115: 11 | BI115: =BH115*(1+'Control Data'!$G$25) -> 11 | BN115: 1-2 Year Certificates | BO115: 0 | BP115: 15 | BQ115: 8 | BR115: 8 | BS115: 14 | BT115: 7 | BU115: 0 | BV115: 24 | BW115: 27 | BX115: 23 | BY115: 10 | BZ115: 5 | CA115: 0 | CB115: 9 | CC115: 24
AS116: <1yr Certificates | AT116: 2 | AU116: 4 | AV116: 2 | AW116: 5 | AX116: 4 | AY116: 11 | AZ116: 9 | BA116: 4 | BB116: 5 | BC116: 10 | BD116: 24 | BE116: 15 | BF116: 9 | BG116: 27 | BH116: 17 | BI116: =BH116*(1+'Control Data'!$G$25) -> 17 | BN116: <1yr Certificates | BO116: 2 | BP116: 12 | BQ116: 6 | BR116: 10 | BS116: 7 | BT116: 20 | BU116: 18 | BV116: 11 | BW116: 21 | BX116: 31 | BY116: 59 | BZ116: 43 | CA116: 21 | CB116: 60 | CC116: 41
B118: Motlow | C118: 2004-05 | D118: 2005-06 | E118: 2006-07 | F118: 2007-08 | G118: 2008-09 | H118: 2009-10 | I118: 2010-11 | J118: 2011-12 | K118: 2012-13 | L118: 2013-14 | M118: 2014-15 | N118: 2015-16 | O118: 2016-17 | P118: 2017-18 | Q118: =Q95 -> 2018-19 | R118: 2019-20 | T118: Standard Dev. | X118: Motlow | Y118: 2004-05 | Z118: 2005-06 | AA118: 2006-07 | AB118: 2007-08 | AC118: 2008-09 | AD118: 2009-10 | AE118: 2010-11 | AF118: 2011-12 | AG118: 2012-13 | AH118: 2013-14 | AI118: 2014-15 | AJ118: 2015-16 | AK118: 2016-17 | AL118: 2017-18 | AM118: 2018-19 | AN118: 2019-20 | AS118: Motlow | AT118: 2004-05 | AU118: 2005-06 | AV118: 2006-07 | AW118: 2007-08 | AX118: 2008-09 | AY118: 2009-10 | AZ118: 2010-11 | BA118: 2011-12 | BB118: 2012-13 | BC118: 2013-14 | BD118: 2014-15 | BE118: 2015-16 | BF118: 2016-17 | BG118: 2017-18 | BH118: 2018-19 | BI118: 2019-20 | BN118: Motlow | BO118: 2004-05 | BP118: 2005-06 | BQ118: 2006-07 | BR118: 2007-08 | BS118: 2008-09 | BT118: 2009-10 | BU118: 2010-11 | BV118: 2011-12 | BW118: 2012-13 | BX118: 2013-14 | BY118: 2014-15 | BZ118: 2015-16 | CA118: 2016-17 | CB118: 2017-18 | CC118: 2018-19 | CD118: 2019-20
B119: Students Accumulating 12 hrs | C119: =Y119+AT119*$V$6+AT126*$V$8+AT133*$V$10 -> 2552.6 | D119: 2815.2 | E119: 3023.2 | F119: 3378.2 | G119: 3641.6 | H119: 4114.6 | I119: 2708.4 | J119: 2567.8 | K119: 2450.2 | L119: 2631 | M119: 2580.2 | N119: 3528.4 | O119: =AK119+BF119*$V$6+BF126*$V$8+BF133*$V$10 -> 3351 | P119: 3569 | Q119: 4053.8 | R119: 4053.8 | T119: 556.1658046 | X119: Students Accumulating 12 hrs | Y119: 1381 | Z119: 1519 | AA119: 1625 | AB119: 1830 | AC119: 1956 | AD119: 2202 | AE119: 1457 | AF119: 1410 | AG119: 1363 | AH119: 1495 | AI119: 1485 | AJ119: 1992 | AK119: 1902 | AL119: 2053 | AM119: 2396 | AN119: =AM119*(1+'Control Data'!$H10) -> 2396 | AR119: One Focus Pop Only | AS119: Students Accumulating 12 hrs | AT119: 470 | AU119: 554 | AV119: 523 | AW119: 641 | AX119: 654 | AY119: 721 | AZ119: 468 | BA119: 453 | BB119: 512 | BC119: 565 | BD119: 586 | BE119: 815 | BF119: 766 | BG119: 825 | BH119: 815 | BI119: =BH119*(1+'Control Data'!$H$23) -> 815 | BM119: Adults | BN119: Students Accumulating 12 hrs | BO119: 246 | BP119: 301 | BQ119: 290 | BR119: 308 | BS119: 385 | BT119: 442 | BU119: 377 | BV119: 284 | BW119: 262 | BX119: 210 | BY119: 197 | BZ119: 171 | CA119: 167 | CB119: 174 | CC119: 398
B120: Students Accumulating 24 hrs | C120: 1675.4 | D120: 1946 | E120: 2121 | F120: 2359.8 | G120: 2499.4 | H120: 3025.4 | I120: 2155.2 | J120: 2135.4 | K120: 1927.6 | L120: 2034.2 | M120: 2115 | N120: 2691.8 | O120: =AK120+BF120*$V$6+BF127*$V$8+BF134*$V$10 -> 2797.4 | P120: 2667.8 | Q120: 2923.2 | R120: 2923.2 | T120: 373.9475685 | X120: Students Accumulating 24 hrs | Y120: 882 | Z120: 1045 | AA120: 1133 | AB120: 1257 | AC120: 1330 | AD120: 1599 | AE120: 1139 | AF120: 1133 | AG120: 1044 | AH120: 1104 | AI120: 1184 | AJ120: 1511 | AK120: 1563 | AL120: 1502 | AM120: 1648 | AN120: =AM120*(1+'Control Data'!$H11) -> 1648 | AS120: Students Accumulating 24 hrs | AT120: 285 | AU120: 359 | AV120: 391 | AW120: 409 | AX120: 435 | AY120: 495 | AZ120: 367 | BA120: 348 | BB120: 351 | BC120: 372 | BD120: 469 | BE120: 627 | BF120: 622 | BG120: 597 | BH120: 574 | BI120: =BH120*(1+'Control Data'!$H$23) -> 574 | BN120: Students Accumulating 24 hrs | BO120: 212 | BP120: 247 | BQ120: 268 | BR120: 279 | BS120: 321 | BT120: 370 | BU120: 323 | BV120: 338 | BW120: 242 | BX120: 232 | BY120: 194 | BZ120: 151 | CA120: 159 | CB120: 162 | CC120: 336
B121: Students Accumulating 36 hrs | C121: 1882.8 | D121: 1428.6 | E121: 1474.2 | F121: 1691.4 | G121: 1820 | H121: 2170.8 | I121: 1871.2 | J121: 1828.8 | K121: 1677.4 | L121: 1574.6 | M121: 1706.8 | N121: 1767 | O121: =AK121+BF121*$V$6+BF128*$V$8+BF135*$V$10 -> 2388.4 | P121: 2407.2 | Q121: 2425.4 | R121: 2425.4 | T121: 222.3062562 | X121: Students Accumulating 36 hrs | Y121: 1020 | Z121: 769 | AA121: 797 | AB121: 909 | AC121: 970 | AD121: 1140 | AE121: 993 | AF121: 962 | AG121: 901 | AH121: 854 | AI121: 941 | AJ121: 985 | AK121: 1331 | AL121: 1348 | AM121: 1345 | AN121: =AM121*(1+'Control Data'!$H12) -> 1345 | AS121: Students Accumulating 36 hrs | AT121: 383 | AU121: 258 | AV121: 279 | AW121: 281 | AX121: 285 | AY121: 350 | AZ121: 312 | BA121: 276 | BB121: 286 | BC121: 295 | BD121: 331 | BE121: 388 | BF121: 536 | BG121: 527 | BH121: 507 | BI121: =BH121*(1+'Control Data'!$H$23) -> 507 | BN121: Students Accumulating 36 hrs | BO121: 206 | BP121: 208 | BQ121: 231 | BR121: 249 | BS121: 270 | BT121: 340 | BU121: 285 | BV121: 331 | BW121: 267 | BX121: 224 | BY121: 205 | BZ121: 179 | CA121: 168 | CB121: 150 | CC121: 286
B122: Dual Enrollment | C122: =Y122 -> 244 | D122: 266 | E122: 436 | F122: 563 | G122: 585 | H122: 686 | I122: 787 | J122: 854 | K122: 859 | L122: 1061 | M122: 970 | N122: 850 | O122: =AK122 -> 1112 | P122: =AL122 -> 1781 | Q122: =AM122 -> 1942 | R122: =AN122 -> 1942 | T122: 267.0074697 | X122: Dual Enrollment | Y122: 244 | Z122: 266 | AA122: 436 | AB122: 563 | AC122: 585 | AD122: 686 | AE122: 787 | AF122: 854 | AG122: 859 | AH122: 1061 | AI122: 970 | AJ122: 850 | AK122: 1112 | AL122: 1781 | AM122: 1942 | AN122: =AM122*(1+'Control Data'!$H13) -> 1942 | AS122: Associates | AT122: 153 | AU122: 142 | AV122: 131 | AW122: 129 | AX122: 139 | AY122: 154 | AZ122: 167 | BA122: 197 | BB122: 155 | BC122: 175 | BD122: 175 | BE122: 225 | BF122: 278 | BG122: 344 | BH122: 387 | BI122: =BH122*(1+'Control Data'!$H$23) -> 387 | BN122: Associates | BO122: 184 | BP122: 173 | BQ122: 185 | BR122: 190 | BS122: 217 | BT122: 251 | BU122: 240 | BV122: 284 | BW122: 275 | BX122: 247 | BY122: 224 | BZ122: 200 | CA122: 170 | CB122: 188 | CC122: 197
B123: Associates | C123: =Y123+$V$13*Y124+$V$6*(AT122+$V$13*AT123)+$V$8*(AT129+$V$13*AT130)+$V$10*(AT136+$V$13*AT137) -> 789.8 | D123: 741.4 | E123: 757.8 | F123: 748.6 | G123: 874.6 | H123: 1022.4 | I123: 1006 | J123: 1194.6 | K123: 1095.2 | L123: 1138.6 | M123: 1104.2 | N123: 1241.8 | O123: =AK123+$V$13*AK124+$V$6*(BF122+$V$13*BF123)+$V$8*(BF129+$V$13*BF130)+$V$10*(BF136+$V$13*BF137) -> 1414.4 | P123: 1682 | Q123: 1838 | R123: 1838 | T123: 174.1191686 | X123: Associates | Y123: 426 | Z123: 395 | AA123: 409 | AB123: 404 | AC123: 460 | AD123: 537 | AE123: 526 | AF123: 627 | AG123: 568 | AH123: 602 | AI123: 597 | AJ123: 640 | AK123: 739 | AL123: 887 | AM123: 980 | AN123: =AM123*(1+'Control Data'!$H15) -> 980 | AS123: Reverse Articulated Associates | AT123: 0 | AU123: 0 | AV123: 0 | AW123: 0 | AX123: 0 | AY123: 0 | AZ123: 0 | BA123: 0 | BB123: 0 | BC123: 0 | BD123: 0 | BE123: 21 | BF123: 33 | BG123: 30 | BH123: 37 | BI123: =BH123*(1+'Control Data'!$H$23) -> 37 | BN123: Reverse Articulated Associates | BO123: 0 | BP123: 0 | BQ123: 0 | BR123: 0 | BS123: 0 | BT123: 0 | BU123: 0 | BV123: 0 | BW123: 0 | BX123: 0 | BY123: 0 | BZ123: 26 | CA123: 23 | CB123: 25 | CC123: 18
B124: 1-2 Year Certificates | C124: =Y125+AT124*$V$6+AT131*$V$8+AT138*$V$10 -> 0 | D124: 0 | E124: 0 | F124: 0 | G124: 0 | H124: 0 | I124: 0 | J124: 0 | K124: 2 | L124: 0 | M124: 0 | N124: 20 | O124: =AK125+BF124*$V$6+BF131*$V$8+BF138*$V$10 -> 15 | P124: 13.6 | Q124: 15.8 | R124: 15.8 | X124: Reverse Articulated Associates | Y124: 0 | Z124: 0 | AA124: 0 | AB124: 0 | AC124: 0 | AD124: 0 | AE124: 0 | AF124: 0 | AG124: 0 | AH124: 0 | AI124: 0 | AJ124: 74 | AK124: 89 | AL124: 94 | AM124: 90 | AN124: =AM124*(1+'Control Data'!$H16) -> 90 | AS124: 1-2 Year Certificates | AT124: 0 | AU124: 0 | AV124: 0 | AW124: 0 | AX124: 0 | AY124: 0 | AZ124: 0 | BA124: 0 | BB124: 0 | BC124: 0 | BD124: 0 | BE124: 2 | BF124: 2 | BG124: 3 | BH124: 4 | BI124: =BH124*(1+'Control Data'!$H$23) -> 4 | BN124: 1-2 Year Certificates | BO124: 0 | BP124: 0 | BQ124: 0 | BR124: 0 | BS124: 0 | BT124: 0 | BU124: 0 | BV124: 0 | BW124: 1 | BX124: 0 | BY124: 0 | BZ124: 9 | CA124: 6 | CB124: 5 | CC124: 6
B125: <1yr Certificates | C125: 25.4 | D125: 0 | E125: 19.4 | F125: 0 | G125: 0 | H125: 118.8 | I125: 111.6 | J125: 39 | K125: 129.4 | L125: 105 | M125: 198 | N125: 230.4 | O125: =AK126+BF125*$V$6+BF132*$V$8+BF139*$V$10 -> 234.8 | P125: 254 | Q125: 192.6 | R125: 192.6 | T125: 54.34991567 | X125: 1-2 Year Certificates | Y125: 0 | Z125: 0 | AA125: 0 | AB125: 0 | AC125: 0 | AD125: 0 | AE125: 0 | AF125: 0 | AG125: 1 | AH125: 0 | AI125: 0 | AJ125: 10 | AK125: 8 | AL125: 8 | AM125: 8 | AN125: =AM125*(1+'Control Data'!$H17) -> 8 | AS125: <1yr Certificates | AT125: 8 | AU125: 0 | AV125: 5 | AW125: 0 | AX125: 0 | AY125: 17 | AZ125: 19 | BA125: 5 | BB125: 37 | BC125: 25 | BD125: 52 | BE125: 56 | BF125: 52 | BG125: 53 | BH125: 34 | BI125: =BH125*(1+'Control Data'!$H$23) -> 34 | BN125: <1yr Certificates | BO125: 13 | BP125: 0 | BQ125: 10 | BR125: 0 | BS125: 0 | BT125: 46 | BU125: 47 | BV125: 14 | BW125: 49 | BX125: 23 | BY125: 49 | BZ125: 47 | CA125: 43 | CB125: 50 | CC125: 47
B126: Job Placements | C126: =Y127 -> 0 | D126: 0 | E126: 0 | F126: 74 | G126: 74 | H126: 72 | I126: 70 | J126: 105 | K126: 86 | L126: 75 | M126: 97 | N126: 102 | O126: =AK127 -> 100 | P126: =AL127 -> 120 | Q126: =AM127 -> 129 | R126: =AN127 -> 129 | T126: 12.15181742 | X126: <1yr Certificates | Y126: 14 | Z126: 0 | AA126: 10 | AB126: 0 | AC126: 0 | AD126: 60 | AE126: 58 | AF126: 20 | AG126: 69 | AH126: 59 | AI126: 111 | AJ126: 126 | AK126: 134 | AL126: 144 | AM126: 104 | AN126: =AM126*(1+'Control Data'!$H18) -> 104 | AR126: Two Focus Pops Only | AS126: Students Accumulating 12 hrs | AT126: 606 | AU126: 637 | AV126: 765 | AW126: 823 | AX126: 872 | AY126: 965 | AZ126: 583 | BA126: 577 | BB126: 506 | BC126: 540 | BD126: 492 | BE126: 780 | BF126: 745 | BG126: 730 | BH126: 743 | BI126: =BH126*(1+'Control Data'!$H$24) -> 743 | BM126: Low-Income | BN126: Students Accumulating 12 hrs | BO126: 841 | BP126: 885 | BQ126: 1039 | BR126: 1139 | BS126: 1236 | BT126: 1445 | BU126: 935 | BV126: 886 | BW126: 785 | BX126: 876 | BY126: 797 | BZ126: 1176 | CA126: 1063 | CB126: 1165 | CC126: 1221
B127: Transfers Out with 12 hrs | C127: 337 | D127: 402 | E127: 342 | F127: 426 | G127: 406 | H127: 423 | I127: 508 | J127: 540 | K127: 499 | L127: 456 | M127: 442 | N127: 574 | O127: 502 | P127: 680 | Q127: 637 | R127: 637 | T127: 67.73059378 | X127: Job Placements | AB127: 74 | AC127: 74 | AD127: 72 | AE127: 70 | AF127: 105 | AG127: 86 | AH127: 75 | AI127: 97 | AJ127: 102 | AK127: 100 | AL127: 120 | AM127: 129 | AN127: =AM127*(1+'Control Data'!$H19) -> 129 | AS127: Students Accumulating 24 hrs | AT127: 401 | AU127: 441 | AV127: 482 | AW127: 562 | AX127: 591 | AY127: 734 | AZ127: 461 | BA127: 466 | BB127: 430 | BC127: 461 | BD127: 413 | BE127: 564 | BF127: 636 | BG127: 573 | BH127: 582 | BI127: =BH127*(1+'Control Data'!$H$24) -> 582 | BN127: Students Accumulating 24 hrs | BO127: 564 | BP127: 620 | BQ127: 704 | BR127: 817 | BS127: 849 | BT127: 1081 | BU127: 751 | BV127: 758 | BW127: 654 | BX127: 722 | BY127: 697 | BZ127: 890 | CA127: 910 | CB127: 893 | CC127: 951
B128: Workforce Training (Contact Hours) | C128: 0 | D128: 0 | E128: 0 | F128: 1355 | G128: 1990 | H128: 12078 | I128: 5513 | J128: 8803 | K128: 5493 | L128: 3289 | M128: 3273 | N128: 5133 | O128: 9848.5 | P128: 11034 | Q128: 30039 | R128: 30039 | T128: 3842.132832 | X128: Transfers Out with 12 hrs | Y128: 337 | Z128: 402 | AA128: 342 | AB128: 426 | AC128: 406 | AD128: 423 | AE128: 508 | AF128: 540 | AG128: 499 | AH128: 456 | AI128: 442 | AJ128: 574 | AK128: 502 | AL128: 680 | AM128: 637 | AN128: =AM128*(1+'Control Data'!$H20) -> 637 | AS128: Students Accumulating 36 hrs | AT128: 422 | AU128: 308 | AV128: 286 | AW128: 386 | AX128: 448 | AY128: 500 | AZ128: 421 | BA128: 400 | BB128: 352 | BC128: 337 | BD128: 357 | BE128: 342 | BF128: 505 | BG128: 526 | BH128: 478 | BI128: =BH128*(1+'Control Data'!$H$24) -> 478 | BN128: Students Accumulating 36 hrs | BO128: 575 | BP128: 447 | BQ128: 468 | BR128: 569 | BS128: 647 | BT128: 788 | BU128: 652 | BV128: 662 | BW128: 591 | BX128: 546 | BY128: 565 | BZ128: 614 | CA128: 821 | CB128: 786 | CC128: 821
B129: Awards per 100 FTE | C129: 18.52684072 | D129: 17.44828094 | E129: 16.76664708 | F129: 15.30728233 | G129: 16.13695362 | H129: 16.48081841 | I129: 16.42432632 | J129: 20.72704433 | K129: 20.62515859 | L129: 22.26386252 | M129: 21.72410029 | N129: 20.3720544 | O129: 21.06864946 | P129: 25.05208102 | Q129: 27.06132836 | R129: 27.06132836 | T129: 2.358770435 | X129: Workforce Training (Contact Hours) | AB129: 1355 | AC129: 1990 | AD129: 12078 | AE129: 5513 | AF129: 8803 | AG129: 5493 | AH129: 3289 | AI129: 3273 | AJ129: 5133 | AK129: 9848.5 | AL129: 11034 | AM129: 30039 | AN129: =AM129*(1+'Control Data'!$H21) -> 30039 | AS129: Associates | AT129: 149 | AU129: 150 | AV129: 142 | AW129: 149 | AX129: 175 | AY129: 217 | AZ129: 194 | BA129: 218 | BB129: 222 | BC129: 237 | BD129: 228 | BE129: 230 | BF129: 258 | BG129: 326 | BH129: 337 | BI129: =BH129*(1+'Control Data'!$H$24) -> 337 | BN129: Associates | BO129: 213 | BP129: 213 | BQ129: 208 | BR129: 209 | BS129: 283 | BT129: 344 | BU129: 349 | BV129: 409 | BW129: 371 | BX129: 408 | BY129: 377 | BZ129: 399 | CA129: 463 | CB129: 514 | CC129: 583
X130: Awards per 100 FTE | Y130: 18.52684072 | Z130: 17.44828094 | AA130: 16.76664708 | AB130: 15.30728233 | AC130: 16.13695362 | AD130: 16.48081841 | AE130: 16.42432632 | AF130: 20.72704433 | AG130: 20.62515859 | AH130: 22.26386252 | AI130: 21.72410029 | AJ130: 20.3720544 | AK130: 21.06864946 | AL130: 25.05208102 | AM130: 27.06132836 | AN130: =AM130*(1+'Control Data'!$H22) -> 27.06132836 | AS130: Reverse Articulated Associates | AT130: 0 | AU130: 0 | AV130: 0 | AW130: 0 | AX130: 0 | AY130: 0 | AZ130: 0 | BA130: 0 | BB130: 0 | BC130: 0 | BD130: 0 | BE130: 24 | BF130: 31 | BG130: 38 | BH130: 32 | BI130: =BH130*(1+'Control Data'!$H$24) -> 32 | BN130: Reverse Articulated Associates | BO130: 0 | BP130: 0 | BQ130: 0 | BR130: 0 | BS130: 0 | BT130: 0 | BU130: 0 | BV130: 0 | BW130: 0 | BX130: 0 | BY130: 0 | BZ130: 55 | CA130: 61 | CB130: 62 | CC130: 62
AS131: 1-2 Year Certificates | AT131: 0 | AU131: 0 | AV131: 0 | AW131: 0 | AX131: 0 | AY131: 0 | AZ131: 0 | BA131: 0 | BB131: 1 | BC131: 0 | BD131: 0 | BE131: 6 | BF131: 3 | BG131: 2 | BH131: 1 | BI131: =BH131*(1+'Control Data'!$H$24) -> 1 | BN131: 1-2 Year Certificates | BO131: 0 | BP131: 0 | BQ131: 0 | BR131: 0 | BS131: 0 | BT131: 0 | BU131: 0 | BV131: 0 | BW131: 0 | BX131: 0 | BY131: 0 | BZ131: 7 | CA131: 5 | CB131: 3 | CC131: 4
AS132: <1yr Certificates | AT132: 5 | AU132: 0 | AV132: 3 | AW132: 0 | AX132: 0 | AY132: 20 | AZ132: 24 | BA132: 9 | BB132: 20 | BC132: 20 | BD132: 25 | BE132: 38 | BF132: 46 | BG132: 58 | BH132: 47 | BI132: =BH132*(1+'Control Data'!$H$24) -> 47 | BN132: <1yr Certificates | BO132: 3 | BP132: 0 | BQ132: 2 | BR132: 0 | BS132: 0 | BT132: 36 | BU132: 25 | BV132: 13 | BW132: 29 | BX132: 29 | BY132: 59 | BZ132: 69 | CA132: 66 | CB132: 85 | CC132: 64
AR133: All Three Focus Pops | AS133: Students Accumulating 12 hrs | AT133: 158 | AU133: 180 | AV133: 179 | AW133: 177 | AX133: 242 | AY133: 309 | AZ133: 245 | BA133: 182 | BB133: 143 | BC133: 120 | BD133: 112 | BE133: 87 | BF133: 76 | BG133: 105 | BH133: 219 | BI133: =BH133*(1+'Control Data'!$H$25) -> 219 | BM133: Academically Underprepared | BN133: Students Accumulating 12 hrs | BO133: 1069 | BP133: 1182 | BQ133: 1261 | BR133: 1371 | BS133: 1503 | BT133: 1691 | BU133: 1057 | BV133: 983 | BW133: 906 | BX133: 919 | BY133: 912 | BZ133: 1289 | CA133: 1254 | CB133: 1261 | CC133: 1339
AS134: Students Accumulating 24 hrs | AT134: 137 | AU134: 144 | AV134: 161 | AW134: 178 | AX134: 192 | AY134: 247 | AZ134: 218 | BA134: 215 | BB134: 144 | BC134: 143 | BD134: 119 | BE134: 96 | BF134: 84 | BG134: 96 | BH134: 195 | BI134: =BH134*(1+'Control Data'!$H$25) -> 195 | BN134: Students Accumulating 24 hrs | BO134: 722 | BP134: 806 | BQ134: 866 | BR134: 971 | BS134: 1023 | BT134: 1253 | BU134: 869 | BV134: 829 | BW134: 747 | BX134: 769 | BY134: 761 | BZ134: 1002 | CA134: 1077 | CB134: 976 | CC134: 1036
AS135: Students Accumulating 36 hrs | AT135: 112 | AU135: 121 | AV135: 140 | AW135: 143 | AX135: 145 | AY135: 209 | AZ135: 173 | BA135: 205 | BB135: 163 | BC135: 123 | BD135: 120 | BE135: 108 | BF135: 103 | BG135: 93 | BH135: 164 | BI135: =BH135*(1+'Control Data'!$H$25) -> 164 | BN135: Students Accumulating 36 hrs | BO135: 782 | BP135: 582 | BQ135: 572 | BR135: 664 | BS135: 699 | BT135: 849 | BU135: 736 | BV135: 698 | BW135: 621 | BX135: 568 | BY135: 635 | BZ135: 603 | CA135: 866 | CB135: 922 | CC135: 848
AS136: Associates | AT136: 77 | AU136: 69 | AV136: 85 | AW136: 77 | AX136: 107 | AY136: 121 | AZ136: 127 | BA136: 160 | BB136: 151 | BC136: 133 | BD136: 116 | BE136: 102 | BF136: 94 | BG136: 90 | BH136: 108 | BI136: =BH136*(1+'Control Data'!$H$25) -> 108 | BN136: Associates | BO136: 285 | BP136: 263 | BQ136: 277 | BR136: 259 | BS136: 310 | BT136: 356 | BU136: 347 | BV136: 420 | BW136: 406 | BX136: 393 | BY136: 378 | BZ136: 392 | CA136: 443 | CB136: 564 | CC136: 605
AS137: Reverse Articulated Associates | AT137: 0 | AU137: 0 | AV137: 0 | AW137: 0 | AX137: 0 | AY137: 0 | AZ137: 0 | BA137: 0 | BB137: 0 | BC137: 0 | BD137: 0 | BE137: 20 | BF137: 15 | BG137: 13 | BH137: 10 | BI137: =BH137*(1+'Control Data'!$H$25) -> 10 | BN137: Reverse Articulated Associates | BO137: 0 | BP137: 0 | BQ137: 0 | BR137: 0 | BS137: 0 | BT137: 0 | BU137: 0 | BV137: 0 | BW137: 0 | BX137: 0 | BY137: 0 | BZ137: 48 | CA137: 56 | CB137: 58 | CC137: 51
AS138: 1-2 Year Certificates | AT138: 0 | AU138: 0 | AV138: 0 | AW138: 0 | AX138: 0 | AY138: 0 | AZ138: 0 | BA138: 0 | BB138: 0 | BC138: 0 | BD138: 0 | BE138: 2 | BF138: 2 | BG138: 1 | BH138: 3 | BI138: =BH138*(1+'Control Data'!$H$25) -> 3 | BN138: 1-2 Year Certificates | BO138: 0 | BP138: 0 | BQ138: 0 | BR138: 0 | BS138: 0 | BT138: 0 | BU138: 0 | BV138: 0 | BW138: 1 | BX138: 0 | BY138: 0 | BZ138: 4 | CA138: 3 | CB138: 2 | CC138: 5
AS139: <1yr Certificates | AT139: 0 | AU139: 0 | AV139: 2 | AW139: 0 | AX139: 0 | AY139: 21 | AZ139: 12 | BA139: 5 | BB139: 9 | BC139: 5 | BD139: 17 | BE139: 18 | BF139: 11 | BG139: 8 | BH139: 12 | BI139: =BH139*(1+'Control Data'!$H$25) -> 12 | BN139: <1yr Certificates | BO139: 2 | BP139: 0 | BQ139: 5 | BR139: 0 | BS139: 0 | BT139: 38 | BU139: 31 | BV139: 11 | BW139: 26 | BX139: 28 | BY139: 45 | BZ139: 70 | CA139: 68 | CB139: 58 | CC139: 53
B141: Nashville | C141: 2004-05 | D141: 2005-06 | E141: 2006-07 | F141: 2007-08 | G141: 2008-09 | H141: 2009-10 | I141: 2010-11 | J141: 2011-12 | K141: 2012-13 | L141: 2013-14 | M141: 2014-15 | N141: 2015-16 | O141: 2016-17 | P141: 2017-18 | Q141: =Q118 -> 2018-19 | R141: 2019-20 | T141: Standard Dev. | X141: Nashville | Y141: 2004-05 | Z141: 2005-06 | AA141: 2006-07 | AB141: 2007-08 | AC141: 2008-09 | AD141: 2009-10 | AE141: 2010-11 | AF141: 2011-12 | AG141: 2012-13 | AH141: 2013-14 | AI141: 2014-15 | AJ141: 2015-16 | AK141: 2016-17 | AL141: 2017-18 | AM141: 2018-19 | AN141: 2019-20 | AS141: Nashville | AT141: 2004-05 | AU141: 2005-06 | AV141: 2006-07 | AW141: 2007-08 | AX141: 2008-09 | AY141: 2009-10 | AZ141: 2010-11 | BA141: 2011-12 | BB141: 2012-13 | BC141: 2013-14 | BD141: 2014-15 | BE141: 2015-16 | BF141: 2016-17 | BG141: 2017-18 | BH141: 2018-19 | BI141: 2019-20 | BN141: Nashville | BO141: 2004-05 | BP141: 2005-06 | BQ141: 2006-07 | BR141: 2007-08 | BS141: 2008-09 | BT141: 2009-10 | BU141: 2010-11 | BV141: 2011-12 | BW141: 2012-13 | BX141: 2013-14 | BY141: 2014-15 | BZ141: 2015-16 | CA141: 2016-17 | CB141: 2017-18 | CC141: 2018-19 | CD141: 2019-20
B142: Students Accumulating 12 hrs | C142: =Y142+AT142*$V$6+AT149*$V$8+AT156*$V$10 -> 4324.6 | D142: 4985.2 | E142: 4754.4 | F142: 4817.4 | G142: 5456.2 | H142: 6824.8 | I142: 4646.8 | J142: 4501.2 | K142: 4447.8 | L142: 4666.4 | M142: 4637.2 | N142: 4896.2 | O142: =AK142+BF142*$V$6+BF149*$V$8+BF156*$V$10 -> 3918.4 | P142: 3252.2 | Q142: 3499.4 | R142: 3499.4 | T142: 737.5066451 | X142: Students Accumulating 12 hrs | Y142: 2278 | Z142: 2596 | AA142: 2460 | AB142: 2510 | AC142: 2837 | AD142: 3509 | AE142: 2375 | AF142: 2305 | AG142: 2338 | AH142: 2438 | AI142: 2477 | AJ142: 2646 | AK142: 2106 | AL142: 1754 | AM142: 1896 | AN142: =AM142*(1+'Control Data'!$I10) -> 1896 | AR142: One Focus Pop Only | AS142: Students Accumulating 12 hrs | AT142: 715 | AU142: 734 | AV142: 670 | AW142: 662 | AX142: 755 | AY142: 848 | AZ142: 529 | BA142: 497 | BB142: 542 | BC142: 576 | BD142: 673 | BE142: 801 | BF142: 619 | BG142: 485 | BH142: 527 | BI142: =BH142*(1+'Control Data'!$I$23) -> 527 | BM142: Adults | BN142: Students Accumulating 12 hrs | BO142: 945 | BP142: 1023 | BQ142: 937 | BR142: 930 | BS142: 968 | BT142: 1375 | BU142: 1093 | BV142: 1028 | BW142: 969 | BX142: 1014 | BY142: 772 | BZ142: 650 | CA142: 580 | CB142: 428 | CC142: 577
B143: Students Accumulating 24 hrs | C143: 3289.8 | D143: 3671.2 | E143: 3793.6 | F143: 3508 | G143: 3795 | H143: 4974.6 | I143: 3994.6 | J143: 3782.8 | K143: 3550 | L143: 3596.4 | M143: 3634.4 | N143: 3688.4 | O143: =AK143+BF143*$V$6+BF150*$V$8+BF157*$V$10 -> 3170 | P143: 2707.4 | Q143: 2765.8 | R143: 2765.8 | T143: 458.9913197 | X143: Students Accumulating 24 hrs | Y143: 1700 | Z143: 1896 | AA143: 1967 | AB143: 1812 | AC143: 1973 | AD143: 2554 | AE143: 2048 | AF143: 1937 | AG143: 1824 | AH143: 1853 | AI143: 1878 | AJ143: 1948 | AK143: 1664 | AL143: 1419 | AM143: 1464 | AN143: =AM143*(1+'Control Data'!$I11) -> 1464 | AS143: Students Accumulating 24 hrs | AT143: 497 | AU143: 490 | AV143: 536 | AW143: 463 | AX143: 515 | AY143: 620 | AZ143: 479 | BA143: 404 | BB143: 376 | BC143: 394 | BD143: 431 | BE143: 552 | BF143: 443 | BG143: 346 | BH143: 365 | BI143: =BH143*(1+'Control Data'!$I$23) -> 365 | BN143: Students Accumulating 24 hrs | BO143: 768 | BP143: 835 | BQ143: 854 | BR143: 800 | BS143: 788 | BT143: 1102 | BU143: 979 | BV143: 925 | BW143: 881 | BX143: 877 | BY143: 775 | BZ143: 602 | CA143: 507 | CB143: 442 | CC143: 503
B144: Students Accumulating 36 hrs | C144: 2729.4 | D144: 2786.6 | E144: 2987.8 | F144: 2832.6 | G144: 3071.4 | H144: 3688.6 | I144: 3262.6 | J144: 3382.2 | K144: 3146.8 | L144: 2962.4 | M144: 2986.8 | N144: 3037.2 | O144: =AK144+BF144*$V$6+BF151*$V$8+BF158*$V$10 -> 2695.4 | P144: 2573.4 | Q144: 2450 | R144: 2450 | T144: 297.3365927 | X144: Students Accumulating 36 hrs | Y144: 1417 | Z144: 1445 | AA144: 1547 | AB144: 1468 | AC144: 1586 | AD144: 1903 | AE144: 1671 | AF144: 1717 | AG144: 1611 | AH144: 1510 | AI144: 1540 | AJ144: 1567 | AK144: 1408 | AL144: 1340 | AM144: 1279 | AN144: =AM144*(1+'Control Data'!$I12) -> 1279 | AS144: Students Accumulating 36 hrs | AT144: 410 | AU144: 420 | AV144: 381 | AW144: 387 | AX144: 381 | AY144: 471 | AZ144: 382 | BA144: 343 | BB144: 338 | BC144: 272 | BD144: 308 | BE144: 355 | BF144: 355 | BG144: 344 | BH144: 306 | BI144: =BH144*(1+'Control Data'!$I$23) -> 306 | BN144: Students Accumulating 36 hrs | BO144: 659 | BP144: 697 | BQ144: 736 | BR144: 691 | BS144: 736 | BT144: 916 | BU144: 860 | BV144: 905 | BW144: 845 | BX144: 798 | BY144: 778 | BZ144: 659 | CA144: 524 | CB144: 470 | CC144: 500
B145: Dual Enrollment | C145: =Y145 -> 240 | D145: 291 | E145: 321 | F145: 322 | G145: 790 | H145: 926 | I145: 1092 | J145: 997 | K145: 1119 | L145: 1126 | M145: 1375 | N145: 1506 | O145: =AK145 -> 1384 | P145: =AL145 -> 1260 | Q145: =AM145 -> 1298 | R145: =AN145 -> 1298 | T145: 382.7494684 | X145: Dual Enrollment | Y145: 240 | Z145: 291 | AA145: 321 | AB145: 322 | AC145: 790 | AD145: 926 | AE145: 1092 | AF145: 997 | AG145: 1119 | AH145: 1126 | AI145: 1375 | AJ145: 1506 | AK145: 1384 | AL145: 1260 | AM145: 1298 | AN145: =AM145*(1+'Control Data'!$I13) -> 1298 | AS145: Associates | AT145: 156 | AU145: 162 | AV145: 137 | AW145: 103 | AX145: 123 | AY145: 91 | AZ145: 113 | BA145: 158 | BB145: 126 | BC145: 116 | BD145: 110 | BE145: 154 | BF145: 156 | BG145: 199 | BH145: 210 | BI145: =BH145*(1+'Control Data'!$I$23) -> 210 | BN145: Associates | BO145: 352 | BP145: 334 | BQ145: 378 | BR145: 342 | BS145: 356 | BT145: 321 | BU145: 371 | BV145: 503 | BW145: 456 | BX145: 483 | BY145: 485 | BZ145: 450 | CA145: 424 | CB145: 446 | CC145: 439
B146: Associates | C146: =Y146+$V$13*Y147+$V$6*(AT145+$V$13*AT146)+$V$8*(AT152+$V$13*AT153)+$V$10*(AT159+$V$13*AT160) -> 957 | D146: 977 | E146: 1039.8 | F146: 986.4 | G146: 1038.8 | H146: 950.2 | I146: 1051.2 | J146: 1437.6 | K146: 1255.6 | L146: 1302.8 | M146: 1350.2 | N146: 1472 | O146: =AK146+$V$13*AK147+$V$6*(BF145+$V$13*BF146)+$V$8*(BF152+$V$13*BF153)+$V$10*(BF159+$V$13*BF160) -> 1494.4 | P146: 1611.2 | Q146: 1672.7 | R146: 1672.7 | T146: 169.0558146 | X146: Associates | Y146: 495 | Z146: 501 | AA146: 527 | AB146: 501 | AC146: 529 | AD146: 481 | AE146: 531 | AF146: 718 | AG146: 624 | AH146: 646 | AI146: 669 | AJ146: 703 | AK146: 717 | AL146: 779 | AM146: 827 | AN146: =AM146*(1+'Control Data'!$I15) -> 827 | AS146: Reverse Articulated Associates | AT146: 0 | AU146: 0 | AV146: 0 | AW146: 0 | AX146: 0 | AY146: 0 | AZ146: 0 | BA146: 0 | BB146: 0 | BC146: 0 | BD146: 0 | BE146: 17 | BF146: 11 | BG146: 10 | BH146: 18 | BI146: =BH146*(1+'Control Data'!$I$23) -> 18 | BN146: Reverse Articulated Associates | BO146: 0 | BP146: 0 | BQ146: 0 | BR146: 0 | BS146: 0 | BT146: 0 | BU146: 0 | BV146: 0 | BW146: 0 | BX146: 0 | BY146: 0 | BZ146: 42 | CA146: 49 | CB146: 47 | CC146: 27
B147: 1-2 Year Certificates | C147: =Y148+AT147*$V$6+AT154*$V$8+AT161*$V$10 -> 162 | D147: 172.4 | E147: 99.2 | F147: 132.2 | G147: 136.8 | H147: 78.6 | I147: 73.6 | J147: 219.8 | K147: 194.4 | L147: 186.2 | M147: 265.8 | N147: 286.6 | O147: =AK148+BF147*$V$6+BF154*$V$8+BF161*$V$10 -> 245.8 | P147: 274 | Q147: 327.4 | R147: 327.4 | T147: 50.01022118 | X147: Reverse Articulated Associates | Y147: 0 | Z147: 0 | AA147: 0 | AB147: 0 | AC147: 0 | AD147: 0 | AE147: 0 | AF147: 0 | AG147: 0 | AH147: 0 | AI147: 0 | AJ147: 79 | AK147: 83 | AL147: 89 | AM147: 72 | AN147: =AM147*(1+'Control Data'!$I16) -> 72 | AS147: 1-2 Year Certificates | AT147: 50 | AU147: 35 | AV147: 22 | AW147: 25 | AX147: 31 | AY147: 16 | AZ147: 11 | BA147: 38 | BB147: 28 | BC147: 26 | BD147: 40 | BE147: 37 | BF147: 33 | BG147: 34 | BH147: 56 | BI147: =BH147*(1+'Control Data'!$I$23) -> 56 | BN147: 1-2 Year Certificates | BO147: 66 | BP147: 67 | BQ147: 40 | BR147: 45 | BS147: 52 | BT147: 27 | BU147: 26 | BV147: 82 | BW147: 85 | BX147: 73 | BY147: 96 | BZ147: 100 | CA147: 87 | CB147: 80 | CC147: 93
B148: <1yr Certificates | C148: 134.8 | D148: 107 | E148: 102 | F148: 103.8 | G148: 93.2 | H148: 221.6 | I148: 289.2 | J148: 116.2 | K148: 107.2 | L148: 99.4 | M148: 169.4 | N148: 269 | O148: =AK149+BF148*$V$6+BF155*$V$8+BF162*$V$10 -> 213.8 | P148: 140.8 | Q148: 116.4 | R148: 116.4 | T148: 65.20266184 | X148: 1-2 Year Certificates | Y148: 85 | Z148: 89 | AA148: 52 | AB148: 70 | AC148: 73 | AD148: 41 | AE148: 38 | AF148: 113 | AG148: 99 | AH148: 95 | AI148: 135 | AJ148: 145 | AK148: 125 | AL148: 141 | AM148: 171 | AN148: =AM148*(1+'Control Data'!$I17) -> 171 | AS148: <1yr Certificates | AT148: 38 | AU148: 32 | AV148: 20 | AW148: 22 | AX148: 21 | AY148: 49 | AZ148: 60 | BA148: 21 | BB148: 13 | BC148: 12 | BD148: 21 | BE148: 55 | BF148: 53 | BG148: 26 | BH148: 26 | BI148: =BH148*(1+'Control Data'!$I$23) -> 26 | BN148: <1yr Certificates | BO148: 64 | BP148: 45 | BQ148: 48 | BR148: 46 | BS148: 41 | BT148: 102 | BU148: 127 | BV148: 52 | BW148: 42 | BX148: 42 | BY148: 75 | BZ148: 117 | CA148: 94 | CB148: 57 | CC148: 45
B149: Job Placements | C149: =Y150 -> 0 | D149: 0 | E149: 0 | F149: 312 | G149: 268 | H149: 258 | I149: 263 | J149: 263 | K149: 226 | L149: 267 | M149: 250 | N149: 269 | O149: =AK150 -> 311 | P149: =AL150 -> 340 | Q149: =AM150 -> 291 | R149: =AN150 -> 291 | T149: 30.92386965 | X149: <1yr Certificates | Y149: 72 | Z149: 56 | AA149: 52 | AB149: 53 | AC149: 48 | AD149: 114 | AE149: 147 | AF149: 58 | AG149: 54 | AH149: 50 | AI149: 84 | AJ149: 142 | AK149: 114 | AL149: 76 | AM149: 62 | AN149: =AM149*(1+'Control Data'!$I18) -> 62 | AR149: Two Focus Pops Only | AS149: Students Accumulating 12 hrs | AT149: 943 | AU149: 1166 | AV149: 1138 | AW149: 1173 | AX149: 1300 | AY149: 1603 | AZ149: 1047 | BA149: 1015 | BB149: 979 | BC149: 1056 | BD149: 1119 | BE149: 1199 | BF149: 980 | BG149: 833 | BH149: 799 | BI149: =BH149*(1+'Control Data'!$I$24) -> 799 | BM149: Low-Income | BN149: Students Accumulating 12 hrs | BO149: 1321 | BP149: 1662 | BQ149: 1641 | BR149: 1679 | BS149: 1958 | BT149: 2568 | BU149: 1747 | BV149: 1758 | BW149: 1678 | BX149: 1812 | BY149: 1749 | BZ149: 1860 | CA149: 1435 | CB149: 1219 | CC149: 1238
B150: Transfers Out with 12 hrs | C150: 346 | D150: 530 | E150: 511 | F150: 472 | G150: 466 | H150: 533 | I150: 552 | J150: 675 | K150: 640 | L150: 617 | M150: 581 | N150: 683 | O150: 991 | P150: 628 | Q150: 601 | R150: 601 | T150: 95.85150552 | X150: Job Placements | AB150: 312 | AC150: 268 | AD150: 258 | AE150: 263 | AF150: 263 | AG150: 226 | AH150: 267 | AI150: 250 | AJ150: 269 | AK150: 311 | AL150: 340 | AM150: 291 | AN150: =AM150*(1+'Control Data'!$I19) -> 291 | AS150: Students Accumulating 24 hrs | AT150: 699 | AU150: 830 | AV150: 847 | AW150: 788 | AX150: 852 | AY150: 1117 | AZ150: 799 | BA150: 817 | BB150: 740 | BC150: 773 | BD150: 832 | BE150: 868 | BF150: 788 | BG150: 684 | BH150: 663 | BI150: =BH150*(1+'Control Data'!$I$24) -> 663 | BN150: Students Accumulating 24 hrs | BO150: 1037 | BP150: 1225 | BQ150: 1247 | BR150: 1218 | BS150: 1319 | BT150: 1837 | BU150: 1473 | BV150: 1452 | BW150: 1344 | BX150: 1412 | BY150: 1427 | BZ150: 1433 | CA150: 1231 | CB150: 1060 | CC150: 1041
B151: Workforce Training (Contact Hours) | C151: 0 | D151: 0 | E151: 0 | F151: 71959 | G151: 48134 | H151: 67613 | I151: 32948 | J151: 39563 | K151: 35965 | L151: 35107 | M151: 23562 | N151: 33706 | O151: 23221 | P151: 12489.5 | Q151: 39547.73 | R151: 39547.73 | T151: 16147.13323 | X151: Transfers Out with 12 hrs | Y151: 346 | Z151: 530 | AA151: 511 | AB151: 472 | AC151: 466 | AD151: 533 | AE151: 552 | AF151: 675 | AG151: 640 | AH151: 617 | AI151: 581 | AJ151: 683 | AK151: 991 | AL151: 628 | AM151: 601 | AN151: =AM151*(1+'Control Data'!$I20) -> 601 | AS151: Students Accumulating 36 hrs | AT151: 574 | AU151: 558 | AV151: 668 | AW151: 605 | AX151: 673 | AY151: 768 | AZ151: 650 | BA151: 696 | BB151: 621 | BC151: 594 | BD151: 616 | BE151: 675 | BF151: 611 | BG151: 621 | BH151: 559 | BI151: =BH151*(1+'Control Data'!$I$24) -> 559 | BN151: Students Accumulating 36 hrs | BO151: 842 | BP151: 883 | BQ151: 969 | BR151: 946 | BS151: 1097 | BT151: 1307 | BU151: 1214 | BV151: 1302 | BW151: 1202 | BX151: 1163 | BY151: 1166 | BZ151: 1222 | CA151: 1065 | CB151: 995 | CC151: 933
B152: Awards per 100 FTE | C152: 17.48638273 | D152: 15.81150542 | E152: 15.25182636 | F152: 14.36767148 | G152: 14.29187555 | H152: 10.0805608 | I152: 10.17964965 | J152: 14.23635896 | K152: 12.69363797 | L152: 12.99623793 | M152: 14.03267892 | N152: 15.18045499 | O152: 17.27965265 | P152: 20.80554527 | Q152: 21.75292686 | R152: 21.75292686 | T152: 2.33981697 | X152: Workforce Training (Contact Hours) | AB152: 71959 | AC152: 48134 | AD152: 67613 | AE152: 32948 | AF152: 39563 | AG152: 35965 | AH152: 35107 | AI152: 23562 | AJ152: 33706 | AK152: 23221 | AL152: 12489.5 | AM152: 39547.73 | AN152: =AM152*(1+'Control Data'!$I21) -> 39547.73 | AS152: Associates | AT152: 210 | AU152: 182 | AV152: 204 | AW152: 205 | AX152: 223 | AY152: 202 | AZ152: 191 | BA152: 268 | BB152: 214 | BC152: 228 | BD152: 250 | BE152: 249 | BF152: 273 | BG152: 291 | BH152: 349 | BI152: =BH152*(1+'Control Data'!$I$24) -> 349 | BN152: Associates | BO152: 212 | BP152: 252 | BQ152: 285 | BR152: 290 | BS152: 293 | BT152: 305 | BU152: 343 | BV152: 507 | BW152: 456 | BX152: 485 | BY152: 511 | BZ152: 535 | CA152: 534 | CB152: 545 | CC152: 577
X153: Awards per 100 FTE | Y153: 17.48638273 | Z153: 15.81150542 | AA153: 15.25182636 | AB153: 14.36767148 | AC153: 14.29187555 | AD153: 10.0805608 | AE153: 10.17964965 | AF153: 14.23635896 | AG153: 12.69363797 | AH153: 12.99623793 | AI153: 14.03267892 | AJ153: 15.18045499 | AK153: 17.27965265 | AL153: 20.80554527 | AM153: 21.75292686 | AN153: =AM153*(1+'Control Data'!$I22) -> 21.75292686 | AS153: Reverse Articulated Associates | AT153: 0 | AU153: 0 | AV153: 0 | AW153: 0 | AX153: 0 | AY153: 0 | AZ153: 0 | BA153: 0 | BB153: 0 | BC153: 0 | BD153: 0 | BE153: 29 | BF153: 41 | BG153: 37 | BH153: 31 | BI153: =BH153*(1+'Control Data'!$I$24) -> 31 | BN153: Reverse Articulated Associates | BO153: 0 | BP153: 0 | BQ153: 0 | BR153: 0 | BS153: 0 | BT153: 0 | BU153: 0 | BV153: 0 | BW153: 0 | BX153: 0 | BY153: 0 | BZ153: 63 | CA153: 73 | CB153: 79 | CC153: 59
AS154: 1-2 Year Certificates | AT154: 25 | AU154: 35 | AV154: 20 | AW154: 29 | AX154: 27 | AY154: 20 | AZ154: 16 | BA154: 38 | BB154: 31 | BC154: 38 | BD154: 58 | BE154: 52 | BF154: 44 | BG154: 59 | BH154: 60 | BI154: =BH154*(1+'Control Data'!$I$24) -> 60 | BN154: 1-2 Year Certificates | BO154: 29 | BP154: 41 | BQ154: 17 | BR154: 31 | BS154: 31 | BT154: 22 | BU154: 25 | BV154: 62 | BW154: 53 | BX154: 62 | BY154: 85 | BZ154: 101 | CA154: 88 | CB154: 98 | CC154: 106
AS155: <1yr Certificates | AT155: 18 | AU155: 11 | AV155: 16 | AW155: 20 | AX155: 20 | AY155: 36 | AZ155: 45 | BA155: 15 | BB155: 26 | BC155: 17 | BD155: 35 | BE155: 41 | BF155: 31 | BG155: 26 | BH155: 18 | BI155: =BH155*(1+'Control Data'!$I$24) -> 18 | BN155: <1yr Certificates | BO155: 15 | BP155: 19 | BQ155: 22 | BR155: 24 | BS155: 15 | BT155: 48 | BU155: 66 | BV155: 34 | BW155: 37 | BX155: 32 | BY155: 59 | BZ155: 64 | CA155: 50 | CB155: 35 | CC155: 34
AR156: All Three Focus Pops | AS156: Students Accumulating 12 hrs | AT156: 443 | AU156: 530 | AV156: 517 | AW156: 504 | AX156: 596 | AY156: 862 | AZ156: 668 | BA156: 653 | BB156: 581 | BC156: 593 | BD156: 419 | BE156: 342 | BF156: 281 | BG156: 231 | BH156: 319 | BI156: =BH156*(1+'Control Data'!$I$25) -> 319 | BM156: Academically Underprepared | BN156: Students Accumulating 12 hrs | BO156: 1664 | BP156: 1971 | BQ156: 1919 | BR156: 1911 | BS156: 2217 | BT156: 2697 | BU156: 1787 | BV156: 1700 | BW156: 1596 | BX156: 1641 | BY156: 1647 | BZ156: 1715 | CA156: 1407 | CB156: 1197 | CC156: 1267
AS157: Students Accumulating 24 hrs | AT157: 411 | AU157: 461 | AV157: 459 | AW157: 448 | AX157: 465 | AY157: 673 | AZ157: 637 | BA157: 588 | BB157: 571 | BC157: 546 | BD157: 483 | BE157: 359 | BF157: 303 | BG157: 273 | BH157: 289 | BI157: =BH157*(1+'Control Data'!$I$25) -> 289 | BN157: Students Accumulating 24 hrs | BO157: 1323 | BP157: 1473 | BQ157: 1506 | BR157: 1365 | BS157: 1507 | BT157: 1934 | BU157: 1536 | BV157: 1425 | BW157: 1344 | BX157: 1289 | BY157: 1342 | BZ157: 1330 | CA157: 1190 | CB157: 1031 | CC157: 1014
AS158: Students Accumulating 36 hrs | AT158: 342 | AU158: 373 | AV158: 390 | AW158: 375 | AX158: 423 | AY158: 534 | AZ158: 530 | BA158: 579 | BB158: 537 | BC158: 534 | BD158: 487 | BE158: 426 | BF158: 327 | BG158: 281 | BH158: 306 | BI158: =BH158*(1+'Control Data'!$I$25) -> 306 | BN158: Students Accumulating 36 hrs | BO158: 1083 | BP158: 1075 | BQ158: 1182 | BR158: 1085 | BS158: 1163 | BT158: 1386 | BU158: 1198 | BV158: 1265 | BW158: 1144 | BX158: 1101 | BY158: 1057 | BZ158: 1102 | CA158: 969 | CB158: 964 | CC158: 909
AS159: Associates | AT159: 106 | AU159: 137 | AV159: 166 | AW159: 165 | AX159: 157 | AY159: 162 | AZ159: 199 | BA159: 271 | BB159: 264 | BC159: 280 | BD159: 286 | BE159: 266 | BF159: 246 | BG159: 244 | BH159: 216 | BI159: =BH159*(1+'Control Data'!$I$25) -> 216 | BN159: Associates | BO159: 330 | BP159: 351 | BQ159: 380 | BR159: 376 | BS159: 391 | BT159: 355 | BU159: 378 | BV159: 497 | BW159: 434 | BX159: 444 | BY159: 472 | BZ159: 465 | CA159: 482 | CB159: 522 | CC159: 540
AS160: Reverse Articulated Associates | AT160: 0 | AU160: 0 | AV160: 0 | AW160: 0 | AX160: 0 | AY160: 0 | AZ160: 0 | BA160: 0 | BB160: 0 | BC160: 0 | BD160: 0 | BE160: 28 | BF160: 30 | BG160: 37 | BH160: 18 | BI160: =BH160*(1+'Control Data'!$I$25) -> 18 | BN160: Reverse Articulated Associates | BO160: 0 | BP160: 0 | BQ160: 0 | BR160: 0 | BS160: 0 | BT160: 0 | BU160: 0 | BV160: 0 | BW160: 0 | BX160: 0 | BY160: 0 | BZ160: 54 | CA160: 61 | CB160: 69 | CC160: 48
AS161: 1-2 Year Certificates | AT161: 10 | AU161: 17 | AV161: 8 | AW161: 11 | AX161: 10 | AY161: 4 | AZ161: 9 | BA161: 32 | BB161: 35 | BC161: 27 | BD161: 34 | BE161: 50 | BF161: 42 | BG161: 39 | BH161: 43 | BI161: =BH161*(1+'Control Data'!$I$25) -> 43 | BN161: 1-2 Year Certificates | BO161: 35 | BP161: 48 | BQ161: 29 | BR161: 40 | BS161: 32 | BT161: 19 | BU161: 19 | BV161: 66 | BW161: 57 | BX161: 48 | BY161: 77 | BZ161: 90 | CA161: 72 | CB161: 91 | CC161: 106
AS162: <1yr Certificates | AT162: 12 | AU162: 12 | AV162: 15 | AW162: 11 | AX162: 7 | AY162: 27 | AZ162: 41 | BA162: 22 | BB162: 14 | BC162: 19 | BD162: 28 | BE162: 35 | BF162: 22 | BG162: 15 | BH162: 13 | BI162: =BH162*(1+'Control Data'!$I$25) -> 13 | BN162: <1yr Certificates | BO162: 31 | BP162: 26 | BQ162: 27 | BR162: 25 | BS162: 26 | BT162: 52 | BU162: 80 | BV162: 31 | BW162: 28 | BX162: 29 | BY162: 41 | BZ162: 61 | CA162: 37 | CB162: 31 | CC162: 22
B164: Northeast | C164: 2004-05 | D164: 2005-06 | E164: 2006-07 | F164: 2007-08 | G164: 2008-09 | H164: 2009-10 | I164: 2010-11 | J164: 2011-12 | K164: 2012-13 | L164: 2013-14 | M164: 2014-15 | N164: 2015-16 | O164: 2016-17 | P164: 2017-18 | Q164: =Q141 -> 2018-19 | R164: 2019-20 | T164: Standard Dev. | X164: Northeast | Y164: 2004-05 | Z164: 2005-06 | AA164: 2006-07 | AB164: 2007-08 | AC164: 2008-09 | AD164: 2009-10 | AE164: 2010-11 | AF164: 2011-12 | AG164: 2012-13 | AH164: 2013-14 | AI164: 2014-15 | AJ164: 2015-16 | AK164: 2016-17 | AL164: 2017-18 | AM164: 2018-19 | AN164: 2019-20 | AS164: Northeast | AT164: 2004-05 | AU164: 2005-06 | AV164: 2006-07 | AW164: 2007-08 | AX164: 2008-09 | AY164: 2009-10 | AZ164: 2010-11 | BA164: 2011-12 | BB164: 2012-13 | BC164: 2013-14 | BD164: 2014-15 | BE164: 2015-16 | BF164: 2016-17 | BG164: 2017-18 | BH164: 2018-19 | BI164: 2019-20 | BN164: Northeast | BO164: 2004-05 | BP164: 2005-06 | BQ164: 2006-07 | BR164: 2007-08 | BS164: 2008-09 | BT164: 2009-10 | BU164: 2010-11 | BV164: 2011-12 | BW164: 2012-13 | BX164: 2013-14 | BY164: 2014-15 | BZ164: 2015-16 | CA164: 2016-17 | CB164: 2017-18 | CC164: 2018-19 | CD164: 2019-20
B165: Students Accumulating 12 hrs | C165: =Y165+AT165*$V$6+AT172*$V$8+AT179*$V$10 -> 3513.2 | D165: 3252.8 | E165: 3549.2 | F165: 3600.2 | G165: 3953.4 | H165: 4713.4 | I165: 3363.8 | J165: 2816.6 | K165: 3076.4 | L165: 2678.2 | M165: 2746.4 | N165: 2894.4 | O165: =AK165+BF165*$V$6+BF172*$V$8+BF179*$V$10 -> 2907 | P165: 2862.6 | Q165: 2663 | R165: 2663 | T165: 588.5359976 | X165: Students Accumulating 12 hrs | Y165: 1849 | Z165: 1714 | AA165: 1863 | AB165: 1890 | AC165: 2084 | AD165: 2427 | AE165: 1744 | AF165: 1485 | AG165: 1664 | AH165: 1475 | AI165: 1545 | AJ165: 1595 | AK165: 1601 | AL165: 1582 | AM165: 1454 | AN165: =AM165*(1+'Control Data'!$J10) -> 1454 | AR165: One Focus Pop Only | AS165: Students Accumulating 12 hrs | AT165: 540 | AU165: 536 | AV165: 582 | AW165: 580 | AX165: 603 | AY165: 577 | AZ165: 401 | BA165: 436 | BB165: 521 | BC165: 466 | BD165: 483 | BE165: 564 | BF165: 596 | BG165: 564 | BH165: 466 | BI165: =BH165*(1+'Control Data'!$J$23) -> 466 | BM165: Adults | BN165: Students Accumulating 12 hrs | BO165: 544 | BP165: 456 | BQ165: 520 | BR165: 577 | BS165: 557 | BT165: 814 | BU165: 619 | BV165: 488 | BW165: 487 | BX165: 356 | BY165: 337 | BZ165: 295 | CA165: 313 | CB165: 238 | CC165: 360
B166: Students Accumulating 24 hrs | C166: 2725.2 | D166: 2544.2 | E166: 2840.4 | F166: 2776.6 | G166: 3043.8 | H166: 3595.6 | I166: 2883.6 | J166: 2562.6 | K166: 2558.4 | L166: 2280 | M166: 2137.8 | N166: 2610.4 | O166: =AK166+BF166*$V$6+BF173*$V$8+BF180*$V$10 -> 2441 | P166: 2482.6 | Q166: 2308.2 | R166: 2308.2 | T166: 360.9261322 | X166: Students Accumulating 24 hrs | Y166: 1396 | Z166: 1339 | AA166: 1486 | AB166: 1458 | AC166: 1595 | AD166: 1864 | AE166: 1480 | AF166: 1326 | AG166: 1348 | AH166: 1200 | AI166: 1157 | AJ166: 1419 | AK166: 1328 | AL166: 1363 | AM166: 1255 | AN166: =AM166*(1+'Control Data'!$J11) -> 1255 | AS166: Students Accumulating 24 hrs | AT166: 382 | AU166: 415 | AV166: 458 | AW166: 431 | AX166: 479 | AY166: 507 | AZ166: 350 | BA166: 335 | BB166: 380 | BC166: 333 | BD166: 353 | BE166: 482 | BF166: 435 | BG166: 462 | BH166: 408 | BI166: =BH166*(1+'Control Data'!$J$23) -> 408 | BN166: Students Accumulating 24 hrs | BO166: 573 | BP166: 408 | BQ166: 488 | BR166: 480 | BS166: 520 | BT166: 682 | BU166: 647 | BV166: 537 | BW166: 448 | BX166: 414 | BY166: 352 | BZ166: 304 | CA166: 256 | CB166: 236 | CC166: 337
B167: Students Accumulating 36 hrs | C167: 2753.6 | D167: 2092.6 | E167: 2260.2 | F167: 2112.2 | G167: 2234.6 | H167: 2698.6 | I167: 2442.8 | J167: 2378.8 | K167: 2147.8 | L167: 2146 | M167: 1840.8 | N167: 1945 | O167: =AK167+BF167*$V$6+BF174*$V$8+BF181*$V$10 -> 2175.6 | P167: 2142.4 | Q167: 2205.2 | R167: 2205.2 | T167: 241.0110039 | X167: Students Accumulating 36 hrs | Y167: 1448 | Z167: 1095 | AA167: 1184 | AB167: 1106 | AC167: 1170 | AD167: 1400 | AE167: 1262 | AF167: 1217 | AG167: 1125 | AH167: 1126 | AI167: 993 | AJ167: 1070 | AK167: 1178 | AL167: 1178 | AM167: 1205 | AN167: =AM167*(1+'Control Data'!$J12) -> 1205 | AS167: Students Accumulating 36 hrs | AT167: 443 | AU167: 325 | AV167: 357 | AW167: 331 | AX167: 351 | AY167: 374 | AZ167: 318 | BA167: 301 | BB167: 292 | BC167: 318 | BD167: 296 | BE167: 343 | BF167: 393 | BG167: 392 | BH167: 405 | BI167: =BH167*(1+'Control Data'!$J$23) -> 405 | BN167: Students Accumulating 36 hrs | BO167: 521 | BP167: 429 | BQ167: 461 | BR167: 398 | BS167: 460 | BT167: 575 | BU167: 554 | BV167: 561 | BW167: 453 | BX167: 425 | BY167: 301 | BZ167: 281 | CA167: 277 | CB167: 241 | CC167: 316
B168: Dual Enrollment | C168: =Y168 -> 184 | D168: 185 | E168: 299 | F168: 364 | G168: 402 | H168: 487 | I168: 566 | J168: 585 | K168: 723 | L168: 791 | M168: 923 | N168: 901 | O168: =AK168 -> 1113 | P168: =AL168 -> 1059 | Q168: =AM168 -> 1114 | R168: =AN168 -> 1114 | T168: 209.9212551 | X168: Dual Enrollment | Y168: 184 | Z168: 185 | AA168: 299 | AB168: 364 | AC168: 402 | AD168: 487 | AE168: 566 | AF168: 585 | AG168: 723 | AH168: 791 | AI168: 923 | AJ168: 901 | AK168: 1113 | AL168: 1059 | AM168: 1114 | AN168: =AM168*(1+'Control Data'!$J13) -> 1114 | AS168: Associates | AT168: 135 | AU168: 149 | AV168: 158 | AW168: 176 | AX168: 167 | AY168: 188 | AZ168: 202 | BA168: 185 | BB168: 154 | BC168: 197 | BD168: 206 | BE168: 192 | BF168: 243 | BG168: 272 | BH168: 298 | BI168: =BH168*(1+'Control Data'!$J$23) -> 298 | BN168: Associates | BO168: 281 | BP168: 271 | BQ168: 279 | BR168: 274 | BS168: 341 | BT168: 357 | BU168: 367 | BV168: 434 | BW168: 417 | BX168: 423 | BY168: 430 | BZ168: 348 | CA168: 357 | CB168: 299 | CC168: 292
B169: Associates | C169: =Y169+$V$13*Y170+$V$6*(AT168+$V$13*AT169)+$V$8*(AT175+$V$13*AT176)+$V$10*(AT182+$V$13*AT183) -> 919.6 | D169: 936.8 | E169: 1017.6 | F169: 1029 | G169: 1227.4 | H169: 1328.6 | I169: 1350.8 | J169: 1489.2 | K169: 1409.4 | L169: 1521.8 | M169: 1508.6 | N169: 1507.3 | O169: =AK169+$V$13*AK170+$V$6*(BF168+$V$13*BF169)+$V$8*(BF175+$V$13*BF176)+$V$10*(BF182+$V$13*BF183) -> 1634.6 | P169: 1647.9 | Q169: 1719.5 | R169: 1719.5 | T169: 228.101039 | X169: Associates | Y169: 481 | Z169: 492 | AA169: 535 | AB169: 536 | AC169: 635 | AD169: 687 | AE169: 696 | AF169: 764 | AG169: 720 | AH169: 781 | AI169: 777 | AJ169: 757 | AK169: 840 | AL169: 849 | AM169: 894 | AN169: =AM169*(1+'Control Data'!$J15) -> 894 | AS169: Reverse Articulated Associates | AT169: 0 | AU169: 0 | AV169: 0 | AW169: 0 | AX169: 0 | AY169: 0 | AZ169: 0 | BA169: 0 | BB169: 0 | BC169: 0 | BD169: 0 | BE169: 15 | BF169: 16 | BG169: 23 | BH169: 12 | BI169: =BH169*(1+'Control Data'!$J$23) -> 12 | BN169: Reverse Articulated Associates | BO169: 0 | BP169: 0 | BQ169: 0 | BR169: 0 | BS169: 0 | BT169: 0 | BU169: 0 | BV169: 0 | BW169: 0 | BX169: 0 | BY169: 0 | BZ169: 34 | CA169: 25 | CB169: 29 | CC169: 31
B170: 1-2 Year Certificates | C170: =Y171+AT170*$V$6+AT177*$V$8+AT184*$V$10 -> 273 | D170: 309.4 | E170: 229.8 | F170: 256.6 | G170: 248.8 | H170: 429.2 | I170: 253.2 | J170: 217.8 | K170: 207 | L170: 269.8 | M170: 247.2 | N170: 207.6 | O170: =AK171+BF170*$V$6+BF177*$V$8+BF184*$V$10 -> 185.2 | P170: 300.6 | Q170: 386.6 | R170: 386.6 | T170: 63.35448419 | X170: Reverse Articulated Associates | Y170: 0 | Z170: 0 | AA170: 0 | AB170: 0 | AC170: 0 | AD170: 0 | AE170: 0 | AF170: 0 | AG170: 0 | AH170: 0 | AI170: 0 | AJ170: 67 | AK170: 58 | AL170: 82 | AM170: 79 | AN170: =AM170*(1+'Control Data'!$J16) -> 79 | AS170: 1-2 Year Certificates | AT170: 53 | AU170: 68 | AV170: 51 | AW170: 42 | AX170: 45 | AY170: 55 | AZ170: 43 | BA170: 22 | BB170: 27 | BC170: 33 | BD170: 28 | BE170: 27 | BF170: 33 | BG170: 41 | BH170: 57 | BI170: =BH170*(1+'Control Data'!$J$23) -> 57 | BN170: 1-2 Year Certificates | BO170: 90 | BP170: 105 | BQ170: 54 | BR170: 81 | BS170: 72 | BT170: 147 | BU170: 79 | BV170: 68 | BW170: 62 | BX170: 77 | BY170: 79 | BZ170: 52 | CA170: 43 | CB170: 68 | CC170: 72
B171: <1yr Certificates | C171: 101 | D171: 95.8 | E171: 65.6 | F171: 7.6 | G171: 85.2 | H171: 30.6 | I171: 61 | J171: 163.2 | K171: 682 | L171: 337 | M171: 299.6 | N171: 471.2 | O171: =AK172+BF171*$V$6+BF178*$V$8+BF185*$V$10 -> 688.6 | P171: 607.8 | Q171: 399.8 | R171: 399.8 | T171: 204.216987 | X171: 1-2 Year Certificates | Y171: 143 | Z171: 163 | AA171: 123 | AB171: 132 | AC171: 128 | AD171: 218 | AE171: 132 | AF171: 110 | AG171: 104 | AH171: 139 | AI171: 123 | AJ171: 110 | AK171: 98 | AL171: 158 | AM171: 207 | AN171: =AM171*(1+'Control Data'!$J17) -> 207 | AS171: <1yr Certificates | AT171: 17 | AU171: 26 | AV171: 15 | AW171: 2 | AX171: 8 | AY171: 4 | AZ171: 11 | BA171: 21 | BB171: 229 | BC171: 80 | BD171: 66 | BE171: 112 | BF171: 183 | BG171: 137 | BH171: 88 | BI171: =BH171*(1+'Control Data'!$J$23) -> 88 | BN171: <1yr Certificates | BO171: 40 | BP171: 40 | BQ171: 21 | BR171: 2 | BS171: 33 | BT171: 11 | BU171: 22 | BV171: 56 | BW171: 353 | BX171: 147 | BY171: 121 | BZ171: 185 | CA171: 293 | CB171: 193 | CC171: 125
B172: Job Placements | C172: =Y173 -> 0 | D172: 0 | E172: 0 | F172: 238 | G172: 248 | H172: 163 | I172: 249 | J172: 261 | K172: 194 | L172: 238 | M172: 524 | N172: 341 | O172: =AK173 -> 402 | P172: =AL173 -> 415 | Q172: =AM173 -> 540 | R172: =AN173 -> 540 | T172: 129.79526 | X172: <1yr Certificates | Y172: 53 | Z172: 50 | AA172: 34 | AB172: 4 | AC172: 43 | AD172: 15 | AE172: 31 | AF172: 84 | AG172: 362 | AH172: 176 | AI172: 158 | AJ172: 249 | AK172: 366 | AL172: 332 | AM172: 218 | AN172: =AM172*(1+'Control Data'!$J18) -> 218 | AR172: Two Focus Pops Only | AS172: Students Accumulating 12 hrs | AT172: 823 | AU172: 780 | AV172: 821 | AW172: 825 | AX172: 955 | AY172: 1088 | AZ172: 735 | BA172: 576 | BB172: 620 | BC172: 540 | BD172: 539 | BE172: 643 | BF172: 648 | BG172: 659 | BH172: 601 | BI172: =BH172*(1+'Control Data'!$J$24) -> 601 | BM172: Low-Income | BN172: Students Accumulating 12 hrs | BO172: 1233 | BP172: 1148 | BQ172: 1247 | BR172: 1273 | BS172: 1458 | BT172: 1841 | BU172: 1298 | BV172: 1054 | BW172: 1087 | BX172: 959 | BY172: 979 | BZ172: 1002 | CA172: 986 | CB172: 1011 | CC172: 947
B173: Transfers Out with 12 hrs | C173: 410 | D173: 431 | E173: 432 | F173: 388 | G173: 257 | H173: 340 | I173: 366 | J173: 404 | K173: 380 | L173: 397 | M173: 352 | N173: 347 | O173: 380 | P173: 462 | Q173: 478 | R173: 478 | T173: 51.70052654 | X173: Job Placements | AB173: 238 | AC173: 248 | AD173: 163 | AE173: 249 | AF173: 261 | AG173: 194 | AH173: 238 | AI173: 524 | AJ173: 341 | AK173: 402 | AL173: 415 | AM173: 540 | AN173: =AM173*(1+'Control Data'!$J19) -> 540 | AS173: Students Accumulating 24 hrs | AT173: 606 | AU173: 578 | AV173: 628 | AW173: 627 | AX173: 672 | AY173: 768 | AZ173: 556 | BA173: 509 | BB173: 544 | BC173: 468 | BD173: 414 | BE173: 567 | BF173: 567 | BG173: 552 | BH173: 470 | BI173: =BH173*(1+'Control Data'!$J$24) -> 470 | BN173: Students Accumulating 24 hrs | BO173: 949 | BP173: 905 | BQ173: 1000 | BR173: 991 | BS173: 1109 | BT173: 1371 | BU173: 1114 | BV173: 980 | BW173: 943 | BX173: 861 | BY173: 784 | BZ173: 929 | CA173: 881 | CB173: 891 | CC173: 835
B174: Workforce Training (Contact Hours) | C174: 0 | D174: 0 | E174: 0 | F174: 4440 | G174: 6011 | H174: 4717 | I174: 5556 | J174: 6558 | K174: 6434 | L174: 9778 | M174: 14143 | N174: 18055.75 | O174: 20979.6 | P174: 32576.5 | Q174: 89372.19 | R174: 89372.19 | T174: 1766.707076 | X174: Transfers Out with 12 hrs | Y174: 410 | Z174: 431 | AA174: 432 | AB174: 388 | AC174: 257 | AD174: 340 | AE174: 366 | AF174: 404 | AG174: 380 | AH174: 397 | AI174: 352 | AJ174: 347 | AK174: 380 | AL174: 462 | AM174: 478 | AN174: =AM174*(1+'Control Data'!$J20) -> 478 | AS174: Students Accumulating 36 hrs | AT174: 560 | AU174: 440 | AV174: 469 | AW174: 439 | AX174: 449 | AY174: 559 | AZ174: 474 | BA174: 459 | BB174: 410 | BC174: 438 | BD174: 365 | BE174: 375 | BF174: 472 | BG174: 478 | BH174: 453 | BI174: =BH174*(1+'Control Data'!$J$24) -> 453 | BN174: Students Accumulating 36 hrs | BO174: 941 | BP174: 725 | BQ174: 781 | BR174: 756 | BS174: 797 | BT174: 1026 | BU174: 935 | BV174: 908 | BW174: 829 | BX174: 810 | BY174: 689 | BZ174: 697 | CA174: 774 | CB174: 761 | CC174: 780
B175: Awards per 100 FTE | C175: 18.32312119 | D175: 20.44532307 | E175: 19.52387075 | F175: 19.72188598 | G175: 20.81079361 | H175: 20.95473315 | I175: 17.42913275 | J175: 19.71487864 | K175: 19.70082166 | L175: 24.70240759 | M175: 24.88846281 | N175: 23.23890958 | O175: 25.38968484 | P175: 27.87332884 | Q175: 30.00157834 | R175: 30.00157834 | T175: 1.932180581 | X175: Workforce Training (Contact Hours) | AB175: 4440 | AC175: 6011 | AD175: 4717 | AE175: 5556 | AF175: 6558 | AG175: 6434 | AH175: 9778 | AI175: 14143 | AJ175: 18055.75 | AK175: 20979.6 | AL175: 32576.5 | AM175: 89372.19 | AN175: =AM175*(1+'Control Data'!$J21) -> 89372.19 | AS175: Associates | AT175: 165 | AU175: 178 | AV175: 181 | AW175: 189 | AX175: 244 | AY175: 238 | AZ175: 246 | BA175: 288 | BB175: 247 | BC175: 258 | BD175: 256 | BE175: 271 | BF175: 295 | BG175: 274 | BH175: 305 | BI175: =BH175*(1+'Control Data'!$J$24) -> 305 | BN175: Associates | BO175: 257 | BP175: 269 | BQ175: 310 | BR175: 325 | BS175: 409 | BT175: 460 | BU175: 472 | BV175: 549 | BW175: 525 | BX175: 574 | BY175: 548 | BZ175: 566 | CA175: 592 | CB175: 551 | CC175: 576
X176: Awards per 100 FTE | Y176: 18.32312119 | Z176: 20.44532307 | AA176: 19.52387075 | AB176: 19.72188598 | AC176: 20.81079361 | AD176: 20.95473315 | AE176: 17.42913275 | AF176: 19.71487864 | AG176: 19.70082166 | AH176: 24.70240759 | AI176: 24.88846281 | AJ176: 23.23890958 | AK176: 25.38968484 | AL176: 27.87332884 | AM176: 30.00157834 | AN176: =AM176*(1+'Control Data'!$J22) -> 30.00157834 | AS176: Reverse Articulated Associates | AT176: 0 | AU176: 0 | AV176: 0 | AW176: 0 | AX176: 0 | AY176: 0 | AZ176: 0 | BA176: 0 | BB176: 0 | BC176: 0 | BD176: 0 | BE176: 24 | BF176: 20 | BG176: 27 | BH176: 28 | BI176: =BH176*(1+'Control Data'!$J$24) -> 28 | BN176: Reverse Articulated Associates | BO176: 0 | BP176: 0 | BQ176: 0 | BR176: 0 | BS176: 0 | BT176: 0 | BU176: 0 | BV176: 0 | BW176: 0 | BX176: 0 | BY176: 0 | BZ176: 53 | CA176: 47 | CB176: 63 | CC176: 53
AS177: 1-2 Year Certificates | AT177: 54 | AU177: 50 | AV177: 42 | AW177: 49 | AX177: 44 | AY177: 76 | AZ177: 40 | BA177: 41 | BB177: 37 | BC177: 54 | BD177: 43 | BE177: 40 | BF177: 32 | BG177: 63 | BH177: 92 | BI177: =BH177*(1+'Control Data'!$J$24) -> 92 | BN177: 1-2 Year Certificates | BO177: 62 | BP177: 74 | BQ177: 64 | BR177: 69 | BS177: 70 | BT177: 124 | BU177: 77 | BV177: 83 | BW177: 66 | BX177: 89 | BY177: 96 | BZ177: 74 | CA177: 62 | CB177: 106 | CC177: 135
AS178: <1yr Certificates | AT178: 20 | AU178: 13 | AV178: 10 | AW178: 2 | AX178: 19 | AY178: 4 | AZ178: 8 | BA178: 24 | BB178: 102 | BC178: 61 | BD178: 48 | BE178: 81 | BF178: 115 | BG178: 105 | BH178: 73 | BI178: =BH178*(1+'Control Data'!$J$24) -> 73 | BN178: <1yr Certificates | BO178: 23 | BP178: 17 | BQ178: 17 | BR178: 1 | BS178: 24 | BT178: 8 | BU178: 17 | BV178: 51 | BW178: 52 | BX178: 59 | BY178: 66 | BZ178: 108 | CA178: 128 | CB178: 159 | CC178: 90
AR179: All Three Focus Pops | AS179: Students Accumulating 12 hrs | AT179: 341 | AU179: 275 | AV179: 333 | AW179: 351 | AX179: 360 | AY179: 614 | AZ179: 470 | BA179: 339 | BB179: 313 | BC179: 242 | BD179: 230 | BE179: 171 | BF179: 151 | BG179: 142 | BH179: 196 | BI179: =BH179*(1+'Control Data'!$J$25) -> 196 | BM179: Academically Underprepared | BN179: Students Accumulating 12 hrs | BO179: 1432 | BP179: 1317 | BQ179: 1456 | BR179: 1433 | BS179: 1578 | BT179: 1940 | BU179: 1364 | BV179: 1063 | BW179: 1126 | BX179: 957 | BY179: 935 | BZ179: 1066 | CA179: 1046 | CB179: 1059 | CC179: 949
AS180: Students Accumulating 24 hrs | AT180: 348 | AU180: 246 | AV180: 300 | AW180: 289 | AX180: 328 | AY180: 465 | AZ180: 473 | BA180: 383 | BB180: 302 | BC180: 288 | BD180: 237 | BE180: 199 | BF180: 165 | BG180: 165 | BH180: 214 | BI180: =BH180*(1+'Control Data'!$J$25) -> 214 | BN180: Students Accumulating 24 hrs | BO180: 1116 | BP180: 996 | BQ180: 1126 | BR180: 1081 | BS180: 1178 | BT180: 1385 | BU180: 1120 | BV180: 985 | BW180: 983 | BX180: 858 | BY180: 756 | BZ180: 980 | CA180: 927 | CB180: 934 | CC180: 818
AS181: Students Accumulating 36 hrs | AT181: 326 | AU181: 248 | AV181: 268 | AW181: 252 | AX181: 279 | AY181: 367 | AZ181: 377 | BA181: 385 | BB181: 316 | BC181: 273 | BD181: 205 | BE181: 188 | BF181: 176 | BG181: 144 | BH181: 186 | BI181: =BH181*(1+'Control Data'!$J$25) -> 186 | BN181: Students Accumulating 36 hrs | BO181: 1079 | BP181: 795 | BQ181: 857 | BR181: 811 | BS181: 829 | BT181: 992 | BU181: 908 | BV181: 905 | BW181: 778 | BX181: 778 | BY181: 651 | BZ181: 679 | CA181: 814 | CB181: 778 | CC181: 773
AS182: Associates | AT182: 138 | AU182: 123 | AV182: 146 | AW182: 136 | AX182: 179 | AY182: 211 | AZ182: 206 | BA182: 241 | BB182: 266 | BC182: 271 | BD182: 259 | BE182: 217 | BF182: 209 | BG182: 192 | BH182: 175 | BI182: =BH182*(1+'Control Data'!$J$25) -> 175 | BN182: Associates | BO182: 341 | BP182: 334 | BQ182: 369 | BR182: 363 | BS182: 442 | BT182: 480 | BU182: 473 | BV182: 501 | BW182: 504 | BX182: 529 | BY182: 517 | BZ182: 471 | CA182: 511 | CB182: 546 | CC182: 565
AS183: Reverse Articulated Associates | AT183: 0 | AU183: 0 | AV183: 0 | AW183: 0 | AX183: 0 | AY183: 0 | AZ183: 0 | BA183: 0 | BB183: 0 | BC183: 0 | BD183: 0 | BE183: 23 | BF183: 15 | BG183: 22 | BH183: 23 | BI183: =BH183*(1+'Control Data'!$J$25) -> 23 | BN183: Reverse Articulated Associates | BO183: 0 | BP183: 0 | BQ183: 0 | BR183: 0 | BS183: 0 | BT183: 0 | BU183: 0 | BV183: 0 | BW183: 0 | BX183: 0 | BY183: 0 | BZ183: 45 | CA183: 29 | CB183: 51 | CC183: 53
AS184: 1-2 Year Certificates | AT184: 28 | AU184: 35 | AV184: 20 | AW184: 35 | AX184: 34 | AY184: 76 | AZ184: 39 | BA184: 41 | BB184: 37 | BC184: 42 | BD184: 49 | BE184: 30 | BF184: 24 | BG184: 39 | BH184: 35 | BI184: =BH184*(1+'Control Data'!$J$25) -> 35 | BN184: 1-2 Year Certificates | BO184: 93 | BP184: 94 | BQ184: 77 | BR184: 95 | BS184: 93 | BT184: 164 | BU184: 84 | BV184: 76 | BW184: 84 | BX184: 101 | BY184: 86 | BZ184: 71 | CA184: 64 | CB184: 110 | CC184: 139
AS185: <1yr Certificates | AT185: 12 | AU185: 10 | AV185: 8 | AW185: 0 | AX185: 14 | AY185: 7 | AZ185: 11 | BA185: 32 | BB185: 29 | BC185: 30 | BD185: 34 | BE185: 43 | BF185: 51 | BG185: 51 | BH185: 32 | BI185: =BH185*(1+'Control Data'!$J$25) -> 32 | BN185: <1yr Certificates | BO185: 30 | BP185: 25 | BQ185: 21 | BR185: 3 | BS185: 31 | BT185: 14 | BU185: 21 | BV185: 58 | BW185: 115 | BX185: 86 | BY185: 77 | BZ185: 110 | CA185: 145 | CB185: 148 | CC185: 115
B187: Pellissippi | C187: 2004-05 | D187: 2005-06 | E187: 2006-07 | F187: 2007-08 | G187: 2008-09 | H187: 2009-10 | I187: 2010-11 | J187: 2011-12 | K187: 2012-13 | L187: 2013-14 | M187: 2014-15 | N187: 2015-16 | O187: 2016-17 | P187: 2017-18 | Q187: =Q164 -> 2018-19 | R187: 2019-20 | T187: Standard Dev. | X187: Pellissippi | Y187: 2004-05 | Z187: 2005-06 | AA187: 2006-07 | AB187: 2007-08 | AC187: 2008-09 | AD187: 2009-10 | AE187: 2010-11 | AF187: 2011-12 | AG187: 2012-13 | AH187: 2013-14 | AI187: 2014-15 | AJ187: 2015-16 | AK187: 2016-17 | AL187: 2017-18 | AM187: 2018-19 | AN187: 2019-20 | AS187: Pellissippi | AT187: 2004-05 | AU187: 2005-06 | AV187: 2006-07 | AW187: 2007-08 | AX187: 2008-09 | AY187: 2009-10 | AZ187: 2010-11 | BA187: 2011-12 | BB187: 2012-13 | BC187: 2013-14 | BD187: 2014-15 | BE187: 2015-16 | BF187: 2016-17 | BG187: 2017-18 | BH187: 2018-19 | BI187: 2019-20 | BN187: Pellissippi | BO187: 2004-05 | BP187: 2005-06 | BQ187: 2006-07 | BR187: 2007-08 | BS187: 2008-09 | BT187: 2009-10 | BU187: 2010-11 | BV187: 2011-12 | BW187: 2012-13 | BX187: 2013-14 | BY187: 2014-15 | BZ187: 2015-16 | CA187: 2016-17 | CB187: 2017-18 | CC187: 2018-19 | CD187: 2019-20
B188: Students Accumulating 12 hrs | C188: =Y188+AT188*$V$6+AT195*$V$8+AT202*$V$10 -> 5014.8 | D188: 5453.4 | E188: 5681.8 | F188: 6057.6 | G188: 6624.2 | H188: 7986.6 | I188: 5282.2 | J188: 5295.4 | K188: 4868.2 | L188: 4853.8 | M188: 4405.6 | N188: 4617 | O188: =AK188+BF188*$V$6+BF195*$V$8+BF202*$V$10 -> 4442.4 | P188: 5156.2 | Q188: 4769.6 | R188: 4769.6 | T188: 977.7107932 | X188: Students Accumulating 12 hrs | Y188: 2806 | Z188: 3039 | AA188: 3195 | AB188: 3423 | AC188: 3689 | AD188: 4389 | AE188: 2943 | AF188: 3001 | AG188: 2823 | AH188: 2798 | AI188: 2549 | AJ188: 2673 | AK188: 2590 | AL188: 2986 | AM188: 2812 | AN188: =AM188*(1+'Control Data'!$K10) -> 2812 | AR188: One Focus Pop Only | AS188: Students Accumulating 12 hrs | AT188: 1023 | AU188: 1110 | AV188: 1182 | AW188: 1341 | AX188: 1394 | AY188: 1407 | AZ188: 869 | BA188: 1002 | BB188: 978 | BC188: 1003 | BD188: 943 | BE188: 967 | BF188: 965 | BG188: 1055 | BH188: 991 | BI188: =BH188*(1+'Control Data'!$K$23) -> 991 | BM188: Adults | BN188: Students Accumulating 12 hrs | BO188: 579 | BP188: 662 | BQ188: 661 | BR188: 603 | BS188: 709 | BT188: 1049 | BU188: 791 | BV188: 697 | BW188: 596 | BX188: 506 | BY188: 378 | BZ188: 358 | CA188: 303 | CB188: 612 | CC188: 506
B189: Students Accumulating 24 hrs | C189: 3623 | D189: 3680.2 | E189: 4004.4 | F189: 4024 | G189: 4546.4 | H189: 5195.2 | I189: 4557.4 | J189: 4300.2 | K189: 4170.6 | L189: 4077.4 | M189: 3969 | N189: 4149.4 | O189: =AK189+BF189*$V$6+BF196*$V$8+BF203*$V$10 -> 3969.6 | P189: 4561 | Q189: 4639.4 | R189: 4639.4 | T189: 465.2886535 | X189: Students Accumulating 24 hrs | Y189: 2016 | Z189: 2064 | AA189: 2228 | AB189: 2262 | AC189: 2513 | AD189: 2847 | AE189: 2490 | AF189: 2350 | AG189: 2346 | AH189: 2316 | AI189: 2297 | AJ189: 2409 | AK189: 2315 | AL189: 2666 | AM189: 2724 | AN189: =AM189*(1+'Control Data'!$K11) -> 2724 | AS189: Students Accumulating 24 hrs | AT189: 725 | AU189: 750 | AV189: 831 | AW189: 858 | AX189: 945 | AY189: 946 | AZ189: 771 | BA189: 754 | BB189: 812 | BC189: 818 | BD189: 830 | BE189: 878 | BF189: 883 | BG189: 949 | BH189: 930 | BI189: =BH189*(1+'Control Data'!$K$23) -> 930 | BN189: Students Accumulating 24 hrs | BO189: 511 | BP189: 462 | BQ189: 541 | BR189: 534 | BS189: 592 | BT189: 775 | BU189: 819 | BV189: 700 | BW189: 610 | BX189: 541 | BY189: 473 | BZ189: 402 | CA189: 350 | CB189: 535 | CC189: 623
B190: Students Accumulating 36 hrs | C190: 3622.2 | D190: 2891.2 | E190: 3134.6 | F190: 3310.8 | G190: 3367.8 | H190: 3922.4 | I190: 3880.6 | J190: 3726.6 | K190: 3563.8 | L190: 3398.2 | M190: 3361.2 | N190: 3365.8 | O190: =AK190+BF190*$V$6+BF197*$V$8+BF204*$V$10 -> 3276.8 | P190: 3611 | Q190: 3849.6 | R190: 3849.6 | T190: 327.5781983 | X190: Students Accumulating 36 hrs | Y190: 2024 | Z190: 1595 | AA190: 1724 | AB190: 1820 | AC190: 1842 | AD190: 2137 | AE190: 2092 | AF190: 2012 | AG190: 1947 | AH190: 1870 | AI190: 1915 | AJ190: 1908 | AK190: 1884 | AL190: 2057 | AM190: 2199 | AN190: =AM190*(1+'Control Data'!$K12) -> 2199 | AS190: Students Accumulating 36 hrs | AT190: 726 | AU190: 562 | AV190: 601 | AW190: 686 | AX190: 688 | AY190: 734 | AZ190: 657 | BA190: 604 | BB190: 605 | BC190: 668 | BD190: 665 | BE190: 683 | BF190: 698 | BG190: 733 | BH190: 744 | BI190: =BH190*(1+'Control Data'!$K$23) -> 744 | BN190: Students Accumulating 36 hrs | BO190: 502 | BP190: 456 | BQ190: 504 | BR190: 515 | BS190: 522 | BT190: 671 | BU190: 787 | BV190: 727 | BW190: 640 | BX190: 545 | BY190: 478 | BZ190: 426 | CA190: 356 | CB190: 500 | CC190: 613
B191: Dual Enrollment | C191: =Y191 -> 169 | D191: 249 | E191: 582 | F191: 675 | G191: 829 | H191: 1164 | I191: 1245 | J191: 1525 | K191: 1213 | L191: 1577 | M191: 1619 | N191: 1743 | O191: =AK191 -> 1777 | P191: =AL191 -> 1819 | Q191: =AM191 -> 1838 | R191: =AN191 -> 1838 | T191: 499.4883604 | X191: Dual Enrollment | Y191: 169 | Z191: 249 | AA191: 582 | AB191: 675 | AC191: 829 | AD191: 1164 | AE191: 1245 | AF191: 1525 | AG191: 1213 | AH191: 1577 | AI191: 1619 | AJ191: 1743 | AK191: 1777 | AL191: 1819 | AM191: 1838 | AN191: =AM191*(1+'Control Data'!$K13) -> 1838 | AS191: Associates | AT191: 231 | AU191: 202 | AV191: 218 | AW191: 230 | AX191: 217 | AY191: 260 | AZ191: 320 | BA191: 322 | BB191: 352 | BC191: 383 | BD191: 384 | BE191: 442 | BF191: 424 | BG191: 452 | BH191: 447 | BI191: =BH191*(1+'Control Data'!$K$23) -> 447 | BN191: Associates | BO191: 361 | BP191: 332 | BQ191: 313 | BR191: 316 | BS191: 326 | BT191: 383 | BU191: 464 | BV191: 580 | BW191: 620 | BX191: 644 | BY191: 588 | BZ191: 570 | CA191: 510 | CB191: 467 | CC191: 522
B192: Associates | C192: =Y192+$V$13*Y193+$V$6*(AT191+$V$13*AT192)+$V$8*(AT198+$V$13*AT199)+$V$10*(AT205+$V$13*AT206) -> 1244.4 | D192: 1199.8 | E192: 1174.6 | F192: 1225.2 | G192: 1245 | H192: 1492.8 | I192: 1757.2 | J192: 2120 | K192: 2370 | L192: 2434 | M192: 2425.2 | N192: 2537.3 | O192: =AK192+$V$13*AK193+$V$6*(BF191+$V$13*BF192)+$V$8*(BF198+$V$13*BF199)+$V$10*(BF205+$V$13*BF206) -> 2543.8 | P192: 2517 | Q192: 2518.5 | R192: 2518.5 | T192: 501.7744606 | X192: Associates | Y192: 672 | Z192: 645 | AA192: 635 | AB192: 652 | AC192: 670 | AD192: 794 | AE192: 932 | AF192: 1101 | AG192: 1258 | AH192: 1286 | AI192: 1290 | AJ192: 1296 | AK192: 1322 | AL192: 1312 | AM192: 1336 | AN192: =AM192*(1+'Control Data'!$K15) -> 1336 | AS192: Reverse Articulated Associates | AT192: 0 | AU192: 0 | AV192: 0 | AW192: 0 | AX192: 0 | AY192: 0 | AZ192: 0 | BA192: 0 | BB192: 0 | BC192: 0 | BD192: 0 | BE192: 42 | BF192: 49 | BG192: 50 | BH192: 44 | BI192: =BH192*(1+'Control Data'!$K$23) -> 44 | BN192: Reverse Articulated Associates | BO192: 0 | BP192: 0 | BQ192: 0 | BR192: 0 | BS192: 0 | BT192: 0 | BU192: 0 | BV192: 0 | BW192: 0 | BX192: 0 | BY192: 0 | BZ192: 49 | CA192: 46 | CB192: 39 | CC192: 25
B193: 1-2 Year Certificates | C193: =Y194+AT193*$V$6+AT200*$V$8+AT207*$V$10 -> 0 | D193: 0 | E193: 0 | F193: 0 | G193: 0 | H193: 0 | I193: 0 | J193: 0 | K193: 0 | L193: 0 | M193: 6 | N193: 40.8 | O193: =AK194+BF193*$V$6+BF200*$V$8+BF207*$V$10 -> 35.6 | P193: 46 | Q193: 33.2 | R193: 33.2 | X193: Reverse Articulated Associates | Y193: 0 | Z193: 0 | AA193: 0 | AB193: 0 | AC193: 0 | AD193: 0 | AE193: 0 | AF193: 0 | AG193: 0 | AH193: 0 | AI193: 0 | AJ193: 135 | AK193: 131 | AL193: 145 | AM193: 125 | AN193: =AM193*(1+'Control Data'!$K16) -> 125 | AS193: 1-2 Year Certificates | AT193: 0 | AU193: 0 | AV193: 0 | AW193: 0 | AX193: 0 | AY193: 0 | AZ193: 0 | BA193: 0 | BB193: 0 | BC193: 0 | BD193: 1 | BE193: 5 | BF193: 7 | BG193: 9 | BH193: 8 | BI193: =BH193*(1+'Control Data'!$K$23) -> 8 | BN193: 1-2 Year Certificates | BO193: 0 | BP193: 0 | BQ193: 0 | BR193: 0 | BS193: 0 | BT193: 0 | BU193: 0 | BV193: 0 | BW193: 0 | BX193: 0 | BY193: 2 | BZ193: 18 | CA193: 14 | CB193: 8 | CC193: 7
B194: <1yr Certificates | C194: 34.4 | D194: 39.2 | E194: 57 | F194: 60.2 | G194: 5.8 | H194: 0 | I194: 830 | J194: 923 | K194: 1006.8 | L194: 798.4 | M194: 1120.8 | N194: 944.4 | O194: =AK195+BF194*$V$6+BF201*$V$8+BF208*$V$10 -> 797 | P194: 1269.4 | Q194: 1074.2 | R194: 1074.2 | T194: 445.6391809 | X194: 1-2 Year Certificates | Y194: 0 | Z194: 0 | AA194: 0 | AB194: 0 | AC194: 0 | AD194: 0 | AE194: 0 | AF194: 0 | AG194: 0 | AH194: 0 | AI194: 4 | AJ194: 21 | AK194: 18 | AL194: 26 | AM194: 17 | AN194: =AM194*(1+'Control Data'!$K17) -> 17 | AS194: <1yr Certificates | AT194: 7 | AU194: 11 | AV194: 12 | AW194: 7 | AX194: 1 | AY194: 0 | AZ194: 162 | BA194: 153 | BB194: 159 | BC194: 138 | BD194: 193 | BE194: 163 | BF194: 145 | BG194: 225 | BH194: 188 | BI194: =BH194*(1+'Control Data'!$K$23) -> 188 | BN194: <1yr Certificates | BO194: 10 | BP194: 12 | BQ194: 18 | BR194: 23 | BS194: 3 | BT194: 0 | BU194: 290 | BV194: 313 | BW194: 304 | BX194: 233 | BY194: 351 | BZ194: 254 | CA194: 206 | CB194: 368 | CC194: 337
B195: Job Placements | C195: =Y196 -> 0 | D195: 0 | E195: 0 | F195: 168 | G195: 190 | H195: 156 | I195: 189 | J195: 395 | K195: 219 | L195: =AH196 -> 230 | M195: =AI196 -> 284 | N195: =AJ196 -> 309 | O195: =AK196 -> 338 | P195: =AL196 -> 372 | Q195: =AM196 -> 369 | R195: =AN196 -> 369 | T195: 100.7304276 | X195: <1yr Certificates | Y195: 18 | Z195: 21 | AA195: 30 | AB195: 30 | AC195: 3 | AD195: 0 | AE195: 435 | AF195: 493 | AG195: 524 | AH195: 421 | AI195: 583 | AJ195: 501 | AK195: 424 | AL195: 676 | AM195: 569 | AN195: =AM195*(1+'Control Data'!$K18) -> 569 | AR195: Two Focus Pops Only | AS195: Students Accumulating 12 hrs | AT195: 1046 | AU195: 1122 | AV195: 1144 | AW195: 1221 | AX195: 1364 | AY195: 1686 | AZ195: 1002 | BA195: 978 | BB195: 832 | BC195: 885 | BD195: 831 | BE195: 898 | BF195: 874 | BG195: 905 | BH195: 806 | BI195: =BH195*(1+'Control Data'!$K$24) -> 806 | BM195: Low-Income | BN195: Students Accumulating 12 hrs | BO195: 1604 | BP195: 1772 | BQ195: 1823 | BR195: 1921 | BS195: 2218 | BT195: 2747 | BU195: 1786 | BV195: 1765 | BW195: 1567 | BX195: 1566 | BY195: 1383 | BZ195: 1492 | CA195: 1397 | CB195: 1583 | CC195: 1433
B196: Transfers Out with 12 hrs | C196: 490 | D196: 760 | E196: 608 | F196: 665 | G196: 704 | H196: 720 | I196: 614 | J196: 736 | K196: 850 | L196: 861 | M196: =AI197 -> 835 | N196: 863 | O196: 885 | P196: 910 | Q196: 951 | R196: 951 | T196: 112.9953785 | X196: Job Placements | AB196: 168 | AC196: 190 | AD196: 156 | AE196: 189 | AF196: 395 | AG196: 219 | AH196: 230 | AI196: 284 | AJ196: 309 | AK196: 338 | AL196: 372 | AM196: 369 | AN196: =AM196*(1+'Control Data'!$K19) -> 369 | AS196: Students Accumulating 24 hrs | AT196: 739 | AU196: 709 | AV196: 790 | AW196: 736 | AX196: 897 | AY196: 1031 | AZ196: 841 | BA196: 795 | BB196: 719 | BC196: 705 | BD196: 684 | BE196: 762 | BF196: 713 | BG196: 777 | BH196: 749 | BI196: =BH196*(1+'Control Data'!$K$24) -> 749 | BN196: Students Accumulating 24 hrs | BO196: 1139 | BP196: 1208 | BQ196: 1293 | BR196: 1301 | BS196: 1557 | BT196: 1806 | BU196: 1561 | BV196: 1524 | BW196: 1413 | BX196: 1382 | BY196: 1235 | BZ196: 1313 | CA196: 1248 | CB196: 1427 | CC196: 1423
B197: Workforce Training (Contact Hours) | C197: 0 | D197: 0 | E197: 0 | F197: 22230 | G197: 19668 | H197: 34325 | I197: 62867 | J197: 46118 | K197: 45598 | L197: 48273 | M197: 49799 | N197: 50016.15 | O197: 53090.5 | P197: 49117.8 | Q197: 49851.98 | R197: 49851.98 | T197: 15391.28863 | X197: Transfers Out with 12 hrs | Y197: 490 | Z197: 760 | AA197: 608 | AB197: 665 | AC197: 704 | AD197: 720 | AE197: 614 | AF197: 736 | AG197: 850 | AH197: 861 | AI197: 835 | AJ197: 863 | AK197: 885 | AL197: 910 | AM197: 951 | AN197: =AM197*(1+'Control Data'!$K20) -> 951 | AS197: Students Accumulating 36 hrs | AT197: 709 | AU197: 555 | AV197: 631 | AW197: 642 | AX197: 637 | AY197: 747 | AZ197: 699 | BA197: 671 | BB197: 672 | BC197: 581 | BD197: 595 | BE197: 615 | BF197: 604 | BG197: 640 | BH197: 657 | BI197: =BH197*(1+'Control Data'!$K$24) -> 657 | BN197: Students Accumulating 36 hrs | BO197: 1152 | BP197: 968 | BQ197: 1036 | BR197: 1103 | BS197: 1162 | BT197: 1383 | BU197: 1387 | BV197: 1326 | BW197: 1254 | BX197: 1221 | BY197: 1095 | BZ197: 1133 | CA197: 1064 | CB197: 1172 | CC197: 1209
B198: Awards per 100 FTE | C198: 13.83978526 | D198: 13.69640001 | E198: 12.96641664 | F198: 12.53299844 | G198: 12.27833332 | H198: 12.45021482 | I198: 13.19446738 | J198: 15.40772392 | K198: 18.68002415 | L198: 19.85078467 | M198: 21.06394062 | N198: 22.63080754 | O198: 24.05867887 | P198: 22.26788825 | Q198: 22.21635111 | R198: 22.21635111 | T198: 2.688883915 | X198: Workforce Training (Contact Hours) | AB198: 22230 | AC198: 19668 | AD198: 34325 | AE198: 62867 | AF198: 46118 | AG198: 45598 | AH198: 48273 | AI198: 49799 | AJ198: 50016.15 | AK198: 53090.5 | AL198: 49117.8 | AM198: 49851.98 | AN198: =AM198*(1+'Control Data'!$K21) -> 49851.98 | AS198: Associates | AT198: 210 | AU198: 236 | AV198: 208 | AW198: 232 | AX198: 255 | AY198: 282 | AZ198: 298 | BA198: 393 | BB198: 432 | BC198: 430 | BD198: 456 | BE198: 422 | BF198: 456 | BG198: 442 | BH198: 454 | BI198: =BH198*(1+'Control Data'!$K$24) -> 454 | BN198: Associates | BO198: 320 | BP198: 347 | BQ198: 347 | BR198: 379 | BS198: 387 | BT198: 495 | BU198: 602 | BV198: 778 | BW198: 852 | BX198: 909 | BY198: 876 | BZ198: 865 | CA198: 863 | CB198: 833 | CC198: 766
X199: Awards per 100 FTE | Y199: 13.83978526 | Z199: 13.69640001 | AA199: 12.96641664 | AB199: 12.53299844 | AC199: 12.27833332 | AD199: 12.45021482 | AE199: 13.19446738 | AF199: 15.40772392 | AG199: 18.68002415 | AH199: 19.85078467 | AI199: 21.06394062 | AJ199: 22.63080754 | AK199: 24.05867887 | AL199: 22.26788825 | AM199: 22.21635111 | AN199: =AM199*(1+'Control Data'!$K22) -> 22.21635111 | AS199: Reverse Articulated Associates | AT199: 0 | AU199: 0 | AV199: 0 | AW199: 0 | AX199: 0 | AY199: 0 | AZ199: 0 | BA199: 0 | BB199: 0 | BC199: 0 | BD199: 0 | BE199: 44 | BF199: 47 | BG199: 55 | BH199: 38 | BI199: =BH199*(1+'Control Data'!$K$24) -> 38 | BN199: Reverse Articulated Associates | BO199: 0 | BP199: 0 | BQ199: 0 | BR199: 0 | BS199: 0 | BT199: 0 | BU199: 0 | BV199: 0 | BW199: 0 | BX199: 0 | BY199: 0 | BZ199: 89 | CA199: 86 | CB199: 89 | CC199: 73
AS200: 1-2 Year Certificates | AT200: 0 | AU200: 0 | AV200: 0 | AW200: 0 | AX200: 0 | AY200: 0 | AZ200: 0 | BA200: 0 | BB200: 0 | BC200: 0 | BD200: 0 | BE200: 11 | BF200: 6 | BG200: 8 | BH200: 5 | BI200: =BH200*(1+'Control Data'!$K$24) -> 5 | BN200: 1-2 Year Certificates | BO200: 0 | BP200: 0 | BQ200: 0 | BR200: 0 | BS200: 0 | BT200: 0 | BU200: 0 | BV200: 0 | BW200: 0 | BX200: 0 | BY200: 1 | BZ200: 10 | CA200: 9 | CB200: 17 | CC200: 13
AS201: <1yr Certificates | AT201: 6 | AU201: 7 | AV201: 9 | AW201: 15 | AX201: 2 | AY201: 0 | AZ201: 143 | BA201: 166 | BB201: 184 | BC201: 141 | BD201: 201 | BE201: 187 | BF201: 137 | BG201: 243 | BH201: 200 | BI201: =BH201*(1+'Control Data'!$K$24) -> 200 | BN201: <1yr Certificates | BO201: 11 | BP201: 8 | BQ201: 15 | BR201: 17 | BS201: 0 | BT201: 0 | BU201: 246 | BV201: 275 | BW201: 337 | BX201: 268 | BY201: 347 | BZ201: 300 | CA201: 239 | CB201: 388 | CC201: 321
AR202: All Three Focus Pops | AS202: Students Accumulating 12 hrs | AT202: 287 | AU202: 337 | AV202: 331 | AW202: 284 | AX202: 380 | AY202: 655 | AZ202: 535 | BA202: 429 | BB202: 359 | BC202: 307 | BD202: 226 | BE202: 227 | BF202: 172 | BG202: 351 | BH202: 299 | BI202: =BH202*(1+'Control Data'!$K$25) -> 299 | BM202: Academically Underprepared | BN202: Students Accumulating 12 hrs | BO202: 1793 | BP202: 1931 | BQ202: 1979 | BR202: 2111 | BS202: 2335 | BT202: 2948 | BU202: 1901 | BV202: 1783 | BW202: 1556 | BX202: 1622 | BY202: 1522 | BZ202: 1594 | CA202: 1529 | CB202: 1723 | CC202: 1561
AS203: Students Accumulating 24 hrs | AT203: 240 | AU203: 256 | AV203: 268 | AW203: 283 | AX203: 317 | AY203: 467 | AZ203: 508 | BA203: 460 | BB203: 380 | BC203: 335 | BD203: 270 | BE203: 230 | BF203: 196 | BG203: 299 | BH203: 352 | BI203: =BH203*(1+'Control Data'!$K$25) -> 352 | BN203: Students Accumulating 24 hrs | BO203: 1273 | BP203: 1266 | BQ203: 1381 | BR203: 1344 | BS203: 1541 | BT203: 1828 | BU203: 1597 | BV203: 1500 | BW203: 1367 | BX203: 1310 | BY203: 1300 | BZ203: 1377 | CA203: 1299 | CB203: 1438 | CC203: 1438
AS204: Students Accumulating 36 hrs | AT204: 257 | AU204: 243 | AV204: 249 | AW204: 250 | AX204: 282 | AY204: 376 | AZ204: 470 | BA204: 467 | BB204: 384 | BC204: 344 | BD204: 266 | BE204: 247 | BF204: 192 | BG204: 273 | BH204: 332 | BI204: =BH204*(1+'Control Data'!$K$25) -> 332 | BN204: Students Accumulating 36 hrs | BO204: 1261 | BP204: 977 | BQ204: 1070 | BR204: 1102 | BS204: 1124 | BT204: 1302 | BU204: 1291 | BV204: 1294 | BW204: 1207 | BX204: 1096 | BY204: 1080 | BZ204: 1095 | CA204: 1062 | CB204: 1160 | CC204: 1232
AS205: Associates | AT205: 148 | AU205: 131 | AV205: 131 | AW205: 131 | AX205: 122 | AY205: 174 | AZ205: 226 | BA205: 307 | BB205: 332 | BC205: 343 | BD205: 310 | BE205: 287 | BF205: 256 | BG205: 226 | BH205: 220 | BI205: =BH205*(1+'Control Data'!$K$25) -> 220 | BN205: Associates | BO205: 414 | BP205: 388 | BQ205: 367 | BR205: 392 | BS205: 380 | BT205: 468 | BU205: 528 | BV205: 671 | BW205: 740 | BX205: 719 | BY205: 762 | BZ205: 712 | CA205: 731 | CB205: 714 | CC205: 727
AS206: Reverse Articulated Associates | AT206: 0 | AU206: 0 | AV206: 0 | AW206: 0 | AX206: 0 | AY206: 0 | AZ206: 0 | BA206: 0 | BB206: 0 | BC206: 0 | BD206: 0 | BE206: 25 | BF206: 18 | BG206: 17 | BH206: 13 | BI206: =BH206*(1+'Control Data'!$K$25) -> 13 | BN206: Reverse Articulated Associates | BO206: 0 | BP206: 0 | BQ206: 0 | BR206: 0 | BS206: 0 | BT206: 0 | BU206: 0 | BV206: 0 | BW206: 0 | BX206: 0 | BY206: 0 | BZ206: 67 | CA206: 65 | CB206: 83 | CC206: 61
AS207: 1-2 Year Certificates | AT207: 0 | AU207: 0 | AV207: 0 | AW207: 0 | AX207: 0 | AY207: 0 | AZ207: 0 | BA207: 0 | BB207: 0 | BC207: 0 | BD207: 1 | BE207: 4 | BF207: 5 | BG207: 4 | BH207: 4 | BI207: =BH207*(1+'Control Data'!$K$25) -> 4 | BN207: 1-2 Year Certificates | BO207: 0 | BP207: 0 | BQ207: 0 | BR207: 0 | BS207: 0 | BT207: 0 | BU207: 0 | BV207: 0 | BW207: 0 | BX207: 0 | BY207: 1 | BZ207: 11 | CA207: 11 | CB207: 12 | CC207: 10
AS208: <1yr Certificates | AT208: 4 | AU208: 2 | AV208: 7 | AW208: 8 | AX208: 0 | AY208: 0 | AZ208: 102 | BA208: 118 | BB208: 143 | BC208: 105 | BD208: 152 | BE208: 105 | BF208: 100 | BG208: 142 | BH208: 129 | BI208: =BH208*(1+'Control Data'!$K$25) -> 129 | BN208: <1yr Certificates | BO208: 10 | BP208: 11 | BQ208: 18 | BR208: 21 | BS208: 2 | BT208: 0 | BU208: 218 | BV208: 251 | BW208: 315 | BX208: 234 | BY208: 353 | BZ208: 298 | CA208: 274 | CB208: 381 | CC208: 317
B210: Roane | C210: 2004-05 | D210: 2005-06 | E210: 2006-07 | F210: 2007-08 | G210: 2008-09 | H210: 2009-10 | I210: 2010-11 | J210: 2011-12 | K210: 2012-13 | L210: 2013-14 | M210: 2014-15 | N210: 2015-16 | O210: 2016-17 | P210: 2017-18 | Q210: =Q187 -> 2018-19 | R210: 2019-20 | T210: Standard Dev. | X210: Roane | Y210: 2004-05 | Z210: 2005-06 | AA210: 2006-07 | AB210: 2007-08 | AC210: 2008-09 | AD210: 2009-10 | AE210: 2010-11 | AF210: 2011-12 | AG210: 2012-13 | AH210: 2013-14 | AI210: 2014-15 | AJ210: 2015-16 | AK210: 2016-17 | AL210: 2017-18 | AM210: 2018-19 | AN210: 2019-20 | AS210: Roane | AT210: 2004-05 | AU210: 2005-06 | AV210: 2006-07 | AW210: 2007-08 | AX210: 2008-09 | AY210: 2009-10 | AZ210: 2010-11 | BA210: 2011-12 | BB210: 2012-13 | BC210: 2013-14 | BD210: 2014-15 | BE210: 2015-16 | BF210: 2016-17 | BG210: 2017-18 | BH210: 2018-19 | BI210: 2019-20 | BN210: Roane | BO210: 2004-05 | BP210: 2005-06 | BQ210: 2006-07 | BR210: 2007-08 | BS210: 2008-09 | BT210: 2009-10 | BU210: 2010-11 | BV210: 2011-12 | BW210: 2012-13 | BX210: 2013-14 | BY210: 2014-15 | BZ210: 2015-16 | CA210: 2016-17 | CB210: 2017-18 | CC210: 2018-19 | CD210: 2019-20
... 148 more rows

Sheet Univ Data
B2: Combined Outcomes | T2: Scale Calculation | AG2: NEW RSSP DEFINITION STARTS HERE | BJ2: Focus Population Overlap | CD2: For Reference | CY2: Full-time Enrollment for Formula
B3: UTM | C3: 2004-05 | D3: 2005-06 | E3: 2006-07 | F3: 2007-08 | G3: 2008-09 | H3: 2009-10 | I3: 2010-11 | J3: 2011-12 | K3: 2012-13 | L3: 2013-14 | M3: 2014-15 | N3: 2015-16 | O3: 2016-17 | P3: 2017-18 | Q3: 2018-19 | R3: 2019-20 | T3: Standard Dev. | X3: UTM | Y3: 2004-05 | Z3: 2005-06 | AA3: 2006-07 | AB3: 2007-08 | AC3: 2008-09 | AD3: 2009-10 | AE3: 2010-11 | AF3: 2011-12 | AG3: 2012-13 | AH3: 2013-14 | AI3: 2014-15 | AJ3: 2015-16 | AK3: 2016-17 | AL3: 2017-18 | AM3: 2018-19 | AN3: 2019-20 | AQ3: UTM | AR3: 2004-05 | AS3: 2005-06 | AT3: 2006-07 | AU3: 2007-08 | AV3: 2008-09 | AW3: 2009-10 | AX3: 2010-11 | AY3: 2011-12 | AZ3: 2012-13 | BA3: 2013-14 | BB3: 2014-15 | BC3: 2015-16 | BD3: 2016-17 | BE3: 2017-18 | BF3: 2018-19 | BG3: 2019-20 | BK3: UTM | BL3: 2004-05 | BM3: 2005-06 | BN3: 2006-07 | BO3: 2007-08 | BP3: 2008-09 | BQ3: 2009-10 | BR3: 2010-11 | BS3: 2011-12 | BT3: 2012-13 | BU3: 2013-14 | BV3: 2014-15 | BW3: 2015-16 | BX3: 2016-17 | BY3: 2017-18 | BZ3: 2018-19 | CA3: 2019-20 | CE3: UTM | CF3: 2004-05 | CG3: 2005-06 | CH3: 2006-07 | CI3: 2007-08 | CJ3: 2008-09 | CK3: 2009-10 | CL3: 2010-11 | CM3: 2011-12 | CN3: 2012-13 | CO3: 2013-14 | CP3: 2014-15 | CQ3: 2015-16 | CR3: 2016-17 | CS3: 2017-18 | CT3: 2018-19 | CU3: 2019-20 | CZ3: 2004-05 | DA3: 2005-06 | DB3: 2006-07 | DC3: 2007-08 | DD3: 2008-09 | DE3: 2009-10 | DF3: 2010-11 | DG3: 2011-12 | DH3: 2012-13 | DI3: 2013-14 | DJ3: 2014-15 | DK3: 2015-16 | DL3: 2016-17 | DM3: 2017-18 | DN3: 2018-19 | DO3: 2019-20
B4: Students Accumulating 30 hrs | C4: =Y4+BL4*$V$6+BL11*$V$8 -> 1720 | D4: 1737.6 | E4: 1780 | F4: 1906.2 | G4: 2136.6 | H4: 2179.4 | I4: 2103.4 | J4: 1809.4 | K4: 1800.2 | L4: 1597.4 | M4: 1564.4 | N4: 1452.4 | O4: =AK4+BX4*$V$6+BX11*$V$8 -> 1325.2 | P4: 1363.8 | Q4: 1329.2 | R4: 1329.2 | T4: 202.944047 | V4: Focus Premium | X4: Students Accumulating 30 hrs | Y4: 1191 | Z4: 1194 | AA4: 1208 | AB4: 1274 | AC4: 1428 | AD4: 1434 | AE4: 1385 | AF4: 1189 | AG4: 1217 | AH4: 1074 | AI4: 1083 | AJ4: 1006 | AK4: 908 | AL4: 946 | AM4: 935 | AN4: =AM4*(1+'Control Data'!$C31) -> 935 | AQ4: Associate | AR4: 0 | AS4: 0 | AT4: 0 | AU4: 0 | AV4: 0 | AW4: 0 | AX4: 0 | AY4: 0 | AZ4: 0 | BA4: 0 | BB4: 0 | BC4: 0 | BD4: 0 | BE4: 0 | BF4: 0 | BG4: =BF4*(1+'Control Data'!$C35) -> 0 | BJ4: One Focus Pop Only | BK4: Students Accumulating 30 hrs | BL4: 560 | BM4: 597 | BN4: 620 | BO4: 679 | BP4: 767 | BQ4: 753 | BR4: 743 | BS4: 638 | BT4: 624 | BU4: 593 | BV4: 558 | BW4: 508 | BX4: 464 | BY4: 466 | BZ4: 444 | CA4: =BZ4*(1+'Control Data'!$C$48) -> 444 | CD4: Adults | CE4: Students Accumulating 30 hrs | CF4: 102 | CG4: 89 | CH4: 102 | CI4: 109 | CJ4: 122 | CK4: 163 | CL4: 143 | CM4: 129 | CN4: 101 | CO4: 75 | CP4: 49 | CQ4: 61 | CR4: 66 | CS4: 59 | CT4: 54 | CY4: UTM | CZ4: 5398.233333 | DA4: 5548.133333 | DB4: 5668.466667 | DC4: 5812.3 | DD4: 5969.6 | DE4: 6342.233333 | DF4: 6600.366667 | DG4: 6646.666667 | DH4: 6560.333333 | DI4: 6318.366667 | DJ4: 6127.8 | DK4: 5768.333333 | DL4: 5369.066667 | DM4: 5361.233333 | DN4: 5148.833333 | DO4: =DN4*(1+'Control Data'!$C$50) -> 5148.833333
B5: Students Accumulating 60 hrs | C5: 1310.6 | D5: 1525.6 | E5: 1440.6 | F5: 1511.6 | G5: 1729.2 | H5: 1870.8 | I5: 1926.4 | J5: 1831.4 | K5: 1680.8 | L5: 1713.6 | M5: 1645.8 | N5: 1588.8 | O5: =AK5+BX5*$V$6+BX12*$V$8 -> 1408.2 | P5: 1343.2 | Q5: 1345 | R5: 1345 | T5: 199.8334373 | V5: One Focus Pop Only | X5: Students Accumulating 60 hrs | Y5: 911 | Z5: 1052 | AA5: 996 | AB5: 1032 | AC5: 1152 | AD5: 1233 | AE5: 1254 | AF5: 1192 | AG5: 1111 | AH5: 1133 | AI5: 1093 | AJ5: 1069 | AK5: 965 | AL5: 919 | AM5: 937 | AN5: =AM5*(1+'Control Data'!$C32) -> 937 | AQ5: Reverse Articulated Associates | AR5: 0 | AS5: 0 | AT5: 0 | AU5: 0 | AV5: 0 | AW5: 0 | AX5: 0 | AY5: 0 | AZ5: 0 | BA5: 0 | BB5: 0 | BC5: 7 | BD5: 13 | BE5: 43 | BF5: 19 | BG5: =BF5*(1+'Control Data'!$C36) -> 19 | BK5: Students Accumulating 60 hrs | BL5: 417 | BM5: 472 | BN5: 457 | BO5: 492 | BP5: 594 | BQ5: 651 | BR5: 668 | BS5: 633 | BT5: 566 | BU5: 597 | BV5: 596 | BW5: 576 | BX5: 464 | BY5: 444 | BZ5: 435 | CA5: =BZ5*(1+'Control Data'!$C$48) -> 435 | CE5: Students Accumulating 60 hrs | CF5: 89 | CG5: 127 | CH5: 109 | CI5: 123 | CJ5: 132 | CK5: 150 | CL5: 171 | CM5: 156 | CN5: 142 | CO5: 128 | CP5: 111 | CQ5: 74 | CR5: 95 | CS5: 98 | CT5: 75 | CY5: APSU | CZ5: 6521 | DA5: 7122.566667 | DB5: 7211.1 | DC5: 7054.133333 | DD5: 7206.9 | DE5: 7543.133333 | DF5: 8093.266667 | DG5: 8418.533333 | DH5: 8314.033333 | DI5: 8134.066667 | DJ5: 7574.066667 | DK5: 7849.666667 | DL5: 8000 | DM5: 7937.5 | DN5: 8101.933333 | DO5: =DN5*(1+'Control Data'!$D$50) -> 8101.933333
B6: Students Accumulating 90 hrs | C6: 1329.4 | D6: 1299.4 | E6: 1523.8 | F6: 1505.4 | G6: 1581 | H6: 1784.6 | I6: 1335.8 | J6: 1870.2 | K6: 1849.6 | L6: 1886 | M6: 1911.8 | N6: 1767.4 | O6: =AK6+BX6*$V$6+BX13*$V$8 -> 1688 | P6: 1681.8 | Q6: 1518.6 | R6: 1518.6 | T6: 232.7947308 | V6: 0.8 | X6: Students Accumulating 90 hrs | Y6: 924 | Z6: 904 | AA6: 1051 | AB6: 1021 | AC6: 1072 | AD6: 1168 | AE6: 854 | AF6: 1206 | AG6: 1199 | AH6: 1212 | AI6: 1244 | AJ6: 1151 | AK6: 1131 | AL6: 1121 | AM6: 1038 | AN6: =AM6*(1+'Control Data'!$C33) -> 1038 | AQ6: Bachelors | AR6: 835 | AS6: 890 | AT6: 958 | AU6: 998 | AV6: 1018 | AW6: 1017 | AX6: 1038 | AY6: 1116 | AZ6: 1247 | BA6: 1223 | BB6: 1199 | BC6: 1252 | BD6: 1230 | BE6: 1154 | BF6: 1164 | BG6: =BF6*(1+'Control Data'!$C37) -> 1164 | BK6: Students Accumulating 90 hrs | BL6: 373 | BM6: 383 | BN6: 446 | BO6: 443 | BP6: 460 | BQ6: 557 | BR6: 391 | BS6: 614 | BT6: 602 | BU6: 615 | BV6: 626 | BW6: 593 | BX6: 550 | BY6: 521 | BZ6: 477 | CA6: =BZ6*(1+'Control Data'!$C$48) -> 477 | CE6: Students Accumulating 90 hrs | CF6: 158 | CG6: 130 | CH6: 168 | CI6: 183 | CJ6: 179 | CK6: 220 | CL6: 212 | CM6: 230 | CN6: 208 | CO6: 232 | CP6: 195 | CQ6: 191 | CR6: 154 | CS6: 195 | CT6: 145 | CY6: TTU | CZ6: 6424.4 | DA6: 6617.2 | DB6: 6921.633333 | DC6: 7300.033333 | DD6: 7536.4 | DE6: 8007.433333 | DF6: 8458 | DG6: 8812.866667 | DH6: 8943.466667 | DI6: 9221.666667 | DJ6: 9409.166667 | DK6: 8961.9 | DL6: 8630.9 | DM6: 8434.133333 | DN6: 8264.733333 | DO6: =DN6*(1+'Control Data'!$E$50) -> 8264.733333
B7: Bachelors and Associates | C7: =Y7+BL10*$V$6+BL17*$V$8 -> 1181.6 | D7: 1312.4 | E7: 1421.8 | F7: 1488.8 | G7: 1498.6 | H7: 1524.2 | I7: 1591.8 | J7: 1734.2 | K7: 1976.6 | L7: 1958.8 | M7: 1874 | N7: 1962.7 | O7: =AK7+BX10*$V$6+BX17*$V$8 -> 1941.2 | P7: 1784.9 | Q7: 1780.7 | R7: 1780.7 | T7: 257.0830121 | V7: Two Focus Pops Only | X7: Bachelors and Associates | Y7: 835 | Z7: 890 | AA7: 958 | AB7: 998 | AC7: 1018 | AD7: 1017 | AE7: 1038 | AF7: 1116 | AG7: =AZ4+AZ6+$V$11*AZ5 -> 1247 | AH7: =BA4+BA6+$V$11*BA5 -> 1223 | AI7: 1199 | AJ7: 1255.5 | AK7: 1236.5 | AL7: 1175.5 | AM7: 1173.5 | AN7: =BG4+BG6+$V$11*BG5 -> 1173.5 | AQ7: Masters | AR7: 119 | AS7: 142 | AT7: 170 | AU7: 140 | AV7: 115 | AW7: 129 | AX7: 131 | AY7: 132 | AZ7: 122 | BA7: 104 | BB7: 119 | BC7: 102 | BD7: 94 | BE7: 110 | BF7: 109 | BG7: =BF7*(1+'Control Data'!$C39) -> 109 | BK7: Associates | BL7: 0 | BM7: 0 | BN7: 0 | BO7: 0 | BP7: 0 | BQ7: 0 | BR7: 0 | BS7: 0 | BT7: 0 | BU7: 0 | BV7: 0 | BW7: 0 | BX7: 0 | BY7: 0 | BZ7: 0 | CA7: =BZ7*(1+'Control Data'!$C$48) -> 0 | CE7: Associates | CF7: 0 | CG7: 0 | CH7: 0 | CI7: 0 | CJ7: 0 | CK7: 0 | CL7: 0 | CM7: 0 | CN7: 0 | CO7: 0 | CP7: 0 | CQ7: 0 | CR7: 0 | CS7: 0 | CT7: 0 | CY7: UTC | CZ7: 6702.233333 | DA7: 6640.938 | DB7: 6823.633333 | DC7: 7183.333333 | DD7: 7628.1 | DE7: 8252.666667 | DF7: 8528.143333 | DG7: 8886.633333 | DH7: 9054.866667 | DI7: 9326.6 | DJ7: 9211.266667 | DK7: 9119.533333 | DL7: 9234.666667 | DM7: 9317.366667 | DN7: 9391.966667 | DO7: =DN7*(1+'Control Data'!$F$50) -> 9391.966667
B8: Masters/Ed Specialist Degrees | C8: =Y8 -> 119 | D8: 142 | E8: 170 | F8: =AB8 -> 140 | G8: =AC8 -> 115 | H8: 129 | I8: 131 | J8: 132 | K8: 122 | L8: 104 | M8: 119 | N8: 102 | O8: =AK8 -> 94 | P8: =AL8 -> 110 | Q8: =AM8 -> 109 | R8: =AN8 -> 109 | T8: 18.05670082 | V8: 1 | X8: Masters/Ed Specialist Degrees | Y8: 119 | Z8: 142 | AA8: 170 | AB8: 140 | AC8: 115 | AD8: 129 | AE8: 131 | AF8: 132 | AG8: =AZ7+AZ8 -> 122 | AH8: =BA7+BA8 -> 104 | AI8: 119 | AJ8: 102 | AK8: 94 | AL8: 110 | AM8: 109 | AN8: =BG7+BG8 -> 109 | AQ8: Education Specialist | AR8: 0 | AS8: 0 | AT8: 0 | AU8: 0 | AV8: 0 | AW8: 0 | AX8: 0 | AY8: 0 | AZ8: 0 | BA8: 0 | BB8: 0 | BC8: 0 | BD8: 0 | BE8: 0 | BF8: 0 | BG8: =BF8*(1+'Control Data'!$C40) -> 0 | BK8: Reverse Articulated Associates | BL8: 0 | BM8: 0 | BN8: 0 | BO8: 0 | BP8: 0 | BQ8: 0 | BR8: 0 | BS8: 0 | BT8: 0 | BU8: 0 | BV8: 0 | BW8: 5 | BX8: 8 | BY8: 16 | BZ8: 7 | CA8: =BZ8*(1+'Control Data'!$C$48) -> 7 | CE8: Reverse Articulated Associates | CF8: 0 | CG8: 0 | CH8: 0 | CI8: 0 | CJ8: 0 | CK8: 0 | CL8: 0 | CM8: 0 | CN8: 0 | CO8: 0 | CP8: 0 | CQ8: 2 | CR8: 5 | CS8: 16 | CT8: 4 | CY8: MTSU | CZ8: 18157.7 | DA8: 18573.73333 | DB8: 18767.6 | DC8: 18926.73333 | DD8: 19212.33333 | DE8: 19973.56667 | DF8: 20916.03333 | DG8: 20591.2 | DH8: 19483.66667 | DI8: 18344.33333 | DJ8: 17811.76667 | DK8: 17308.6 | DL8: 16967.76667 | DM8: 16713.4 | DN8: 16410.13333 | DO8: =DN8*(1+'Control Data'!$G$50) -> 16410.13333
B9: Doctoral / Law Degrees | C9: 0 | D9: 0 | E9: 0 | F9: =AB9 -> 0 | G9: 0 | H9: 0 | I9: 0 | J9: 0 | K9: 0 | L9: 0 | M9: 0 | N9: 0 | O9: 0 | P9: 0 | Q9: 0 | R9: 0 | X9: Doctoral / Law Degrees | Y9: 0 | Z9: 0 | AA9: 0 | AB9: 0 | AC9: 0 | AD9: 0 | AE9: 0 | AF9: 0 | AG9: =SUM(AZ9:AZ11) -> 0 | AH9: =SUM(BA9:BA11) -> 0 | AI9: 0 | AJ9: 0 | AK9: 0 | AL9: 0 | AM9: 0 | AN9: =SUM(BG9:BG11) -> 0 | AQ9: Law Degrees | AR9: 0 | AS9: 0 | AT9: 0 | AU9: 0 | AV9: 0 | AW9: 0 | AX9: 0 | AY9: 0 | AZ9: 0 | BA9: 0 | BB9: 0 | BC9: 0 | BD9: 0 | BE9: 0 | BF9: 0 | BG9: =BF9*(1+'Control Data'!$C42) -> 0 | BK9: Bachelors | BL9: 287 | BM9: 343 | BN9: 371 | BO9: 396 | BP9: 367 | BQ9: 369 | BR9: 441 | BS9: 454 | BT9: 522 | BU9: 546 | BV9: 510 | BW9: 549 | BX9: 550 | BY9: 485 | BZ9: 453 | CA9: =BZ9*(1+'Control Data'!$C$48) -> 453 | CE9: Bachelors | CF9: 246 | CG9: 272 | CH9: 311 | CI9: 313 | CJ9: 273 | CK9: 316 | CL9: 300 | CM9: 358 | CN9: 407 | CO9: 390 | CP9: 338 | CQ9: 321 | CR9: 331 | CS9: 257 | CT9: 314 | CY9: ETSU | CZ9: 8865.766667 | DA9: 8909.9 | DB9: 9158.066667 | DC9: 9506.9 | DD9: 9833 | DE9: 10402.4 | DF9: 10899.93333 | DG9: 11145.36667 | DH9: 10789.03333 | DI9: 10355.3 | DJ9: 10254.5 | DK9: 10292.36667 | DL9: 10196.6 | DM9: 10358.86667 | DN9: 10364.5 | DO9: =DN9*(1+'Control Data'!$H$50) -> 10364.5
B10: Research, Service and Sponsored Programs | F10: =AB10 -> 4527799.72 | G10: 4386318 | H10: 4311201.52 | I10: 3646780.32 | J10: 3036994.36 | K10: 4394441.16 | L10: =AH10 -> 4482158.24 | M10: 3479219.1 | N10: 4338019.5 | O10: 4899473.48 | P10: 4950442.42 | Q10: 4950442.42 | R10: 0 | T10: 1046055.904 | V10: R.A. Assoc. Credit | X10: Research, Service and Sponsored Programs | AB10: 4527799.72 | AC10: 4386318 | AD10: 4311201.52 | AE10: 3646780.32 | AF10: 3036994.36 | AG10: 4394441.16 | AH10: 4482158.24 | AI10: 3479219.1 | AJ10: 4338019.5 | AK10: 4899473.48 | AL10: 4950442.42 | AM10: =AL10*(1+'Control Data'!$C$45) -> 4950442.42 | AQ10: Degrees of Veterinary Medicine | AR10: 0 | AS10: 0 | AT10: 0 | AU10: 0 | AV10: 0 | AW10: 0 | AX10: 0 | AY10: 0 | AZ10: 0 | BA10: 0 | BB10: 0 | BC10: 0 | BD10: 0 | BE10: 0 | BF10: 0 | BG10: =BF10*(1+'Control Data'!$C43) -> 0 | BK10: Bach & Assoc | BL10: =BL7+BL9+$V$11*BL8 -> 287 | BM10: =BM7+BM9+$V$11*BM8 -> 343 | BN10: 371 | BO10: 396 | BP10: 367 | BQ10: 369 | BR10: 441 | BS10: 454 | BT10: 522 | BU10: 546 | BV10: 510 | BW10: 551.5 | BX10: 554 | BY10: =BY7+BY9+$V$11*BY8 -> 493 | BZ10: 456.5 | CA10: 456.5 | CE10: Bach & Assoc | CF10: =CF7+CF9+$V$11*CF8 -> 246 | CG10: 272 | CH10: 311 | CI10: 313 | CJ10: 273 | CK10: 316 | CL10: 300 | CM10: 358 | CN10: 407 | CO10: 390 | CP10: 338 | CQ10: 322 | CR10: 333.5 | CS10: 265 | CT10: 316 | CU10: =CU7+CU9+$V$11*CU8 -> 0 | CY10: TSU | CZ10: 6750.866667 | DA10: 6536.866667 | DB10: 6466.066667 | DC10: 6406.4 | DD10: 5749.566667 | DE10: 5992.166667 | DF10: 6025.433333 | DG10: 6166.9 | DH10: 5832.966667 | DI10: 5941.5 | DJ10: 6255.9 | DK10: 6411.166667 | DL10: 6160.2 | DM10: 5973.7 | DN10: 5366.1 | DO10: =DN10*(1+'Control Data'!$I$50) -> 5366.1
B11: Degrees per 100 FTE | C11: =Y11 -> 15.46802349 | D11: =Z11 -> 16.04143135 | E11: =AA11 -> 16.90051395 | F11: =AB11 -> 17.17048329 | G11: =AC11 -> 17.05306888 | H11: =AD11 -> 16.03536084 | I11: =AE11 -> 15.72639904 | J11: =AF11 -> 16.79037111 | K11: =AG11 -> 19.00818048 | L11: =AH11 -> 19.35626823 | M11: 19.56656549 | N11: =AJ11 -> 21.76538573 | O11: 23.03007351 | P11: 21.925925 | Q11: 22.79157091 | R11: 22.79157091 | T11: 1.311007437 | V11: 0.5 | X11: Degrees per 100 FTE | Y11: 15.46802349 | Z11: 16.04143135 | AA11: 16.90051395 | AB11: 17.17048329 | AC11: 17.05306888 | AD11: 16.03536084 | AE11: 15.72639904 | AF11: 16.79037111 | AG11: =(AZ4+AZ6)/DH4*100 -> 19.00818048 | AH11: =(BA4+BA6+$V$11*BA5)/DI4*100 -> 19.35626823 | AI11: 19.56656549 | AJ11: 21.76538573 | AK11: 23.03007351 | AL11: 21.925925 | AM11: 22.79157091 | AN11: =(BG4+BG6+$V$11*BG5)/DO4*100 -> 22.79157091 | AQ11: Doctoral | AR11: 0 | AS11: 0 | AT11: 0 | AU11: 0 | AV11: 0 | AW11: 0 | AX11: 0 | AY11: 0 | AZ11: 0 | BA11: 0 | BB11: 0 | BC11: 0 | BD11: 0 | BE11: 0 | BF11: 0 | BG11: =BF11*(1+'Control Data'!$C44) -> 0 | BJ11: Two Focus Pops Only | BK11: Students Accumulating 30 hrs | BL11: 81 | BM11: 66 | BN11: 76 | BO11: 89 | BP11: 95 | BQ11: 143 | BR11: 124 | BS11: 110 | BT11: 84 | BU11: 49 | BV11: 35 | BW11: 40 | BX11: 46 | BY11: 45 | BZ11: 39 | CA11: =BZ11*(1+'Control Data'!$C$49) -> 39 | CD11: Low-Income | CE11: Students Accumulating 30 hrs | CF11: 620 | CG11: 640 | CH11: 670 | CI11: 748 | CJ11: 835 | CK11: 876 | CL11: 848 | CM11: 729 | CN11: 691 | CO11: 616 | CP11: 579 | CQ11: 527 | CR11: 490 | CS11: 497 | CT11: 468 | CY11: UM | CZ11: 13549.3 | DA11: 13122.5 | DB11: 13132.43333 | DC11: 13071.33333 | DD11: 13261.23333 | DE11: 13793.6 | DF11: 14612.23333 | DG11: 14916.6 | DH11: 14433.66667 | DI11: 13835.7 | DJ11: 13799.06667 | DK11: 13530.6 | DL11: 13904.03333 | DM11: 13587.03333 | DN11: 13311.2 | DO11: =DN11*(1+'Control Data'!$J$50) -> 13311.2
B12: Six-Year Graduation Rate | C12: 0.4667381974 | D12: 0.4817586529 | E12: 0.4774193548 | F12: 0.5303867403 | G12: 0.5428276574 | H12: 0.5308537616 | I12: 0.5925324675 | J12: 0.5961698585 | K12: 0.570537802 | L12: 0.5835172921 | M12: 0.5809037901 | N12: 0.5858267717 | O12: 0.5635658915 | P12: 0.5609386828 | Q12: 0.5544478528 | R12: 0.5544478528 | T12: 4.635508082 | X12: Six-Year Graduation Rate | Y12: 0.4667381974 | Z12: 0.4817586529 | AA12: 0.4774193548 | AB12: 0.5303867403 | AC12: 0.5428276574 | AD12: 0.5308537616 | AE12: 0.5925324675 | AF12: 0.5961698585 | AG12: 0.570537802 | AH12: 0.5835172921 | AI12: 0.5809037901 | AJ12: 0.5858267717 | AK12: 0.5635658915 | AL12: 0.5609386828 | AM12: 0.5544478528 | AN12: =AM12*(1+'Control Data'!$C$47) -> 0.5544478528 | BK12: Students Accumulating 60 hrs | BL12: 66 | BM12: 96 | BN12: 79 | BO12: 86 | BP12: 102 | BQ12: 117 | BR12: 138 | BS12: 133 | BT12: 117 | BU12: 103 | BV12: 76 | BW12: 59 | BX12: 72 | BY12: 69 | BZ12: 60 | CA12: =BZ12*(1+'Control Data'!$C$49) -> 60 | CE12: Students Accumulating 60 hrs | CF12: 460 | CG12: 537 | CH12: 506 | CI12: 541 | CJ12: 666 | CK12: 735 | CL12: 773 | CM12: 743 | CN12: 658 | CO12: 675 | CP12: 637 | CQ12: 620 | CR12: 513 | CS12: 484 | CT12: 480 | CY12: UTK | CZ12: 18460.86667 | DA12: 18884.56667 | DB12: 19417.76667 | DC12: 19959.56667 | DD12: 20486.16667 | DE12: 20065.43333 | DF12: 19605.27667 | DG12: 19227 | DH12: 19184.16667 | DI12: 19397.86667 | DJ12: 19716.03333 | DK12: 20209.3 | DL12: 20561.16667 | DM12: 20869.06667 | DN12: 21264.95 | DO12: =DN12*(1+'Control Data'!$K$50) -> 21264.95
BK13: Students Accumulating 90 hrs | BL13: 107 | BM13: 89 | BN13: 116 | BO13: 130 | BP13: 141 | BQ13: 171 | BR13: 169 | BS13: 173 | BT13: 169 | BU13: 182 | BV13: 167 | BW13: 142 | BX13: 117 | BY13: 144 | BZ13: 99 | CA13: =BZ13*(1+'Control Data'!$C$49) -> 99 | CE13: Students Accumulating 90 hrs | CF13: 429 | CG13: 431 | CH13: 510 | CI13: 520 | CJ13: 563 | CK13: 679 | CL13: 517 | CM13: 730 | CN13: 732 | CO13: 747 | CP13: 765 | CQ13: 686 | CR13: 630 | CS13: 614 | CT13: 530 | CY13: Total | CZ13: =SUM(CZ4:CZ12) -> 90830.36667 | DA13: 91956.40467 | DB13: 93566.76667 | DC13: 95220.73333 | DD13: 96883.3 | DE13: 100372.6333 | DF13: 103738.6867 | DG13: 104811.7667 | DH13: 102596.2 | DI13: 100875.4 | DJ13: =SUM(DJ4:DJ12) -> 100159.5667 | DK13: 99451.46667 | DL13: 99024.4 | DM13: 98552.3 | DN13: 97624.35 | DO13: 97624.35
BK14: Associates | BL14: 0 | BM14: 0 | BN14: 0 | BO14: 0 | BP14: 0 | BQ14: 0 | BR14: 0 | BS14: 0 | BT14: 0 | BU14: 0 | BV14: 0 | BW14: 0 | BX14: 0 | BY14: 0 | BZ14: 0 | CA14: =BZ14*(1+'Control Data'!$C$49) -> 0 | CE14: Associates | CF14: 0 | CG14: 0 | CH14: 0 | CI14: 0 | CJ14: 0 | CK14: 0 | CL14: 0 | CM14: 0 | CN14: 0 | CO14: 0 | CP14: 0 | CQ14: 0 | CR14: 0 | CS14: 0 | CT14: 0
BK15: Reverse Articulated Associates | BL15: 0 | BM15: 0 | BN15: 0 | BO15: 0 | BP15: 0 | BQ15: 0 | BR15: 0 | BS15: 0 | BT15: 0 | BU15: 0 | BV15: 0 | BW15: 2 | BX15: 3 | BY15: 14 | BZ15: 4 | CA15: =BZ15*(1+'Control Data'!$C$49) -> 4 | CE15: Reverse Articulated Associates | CF15: 0 | CG15: 0 | CH15: 0 | CI15: 0 | CJ15: 0 | CK15: 0 | CL15: 0 | CM15: 0 | CN15: 0 | CO15: 0 | CP15: 0 | CQ15: 7 | CR15: 9 | CS15: 28 | CT15: 11
BK16: Bachelors | BL16: 117 | BM16: 148 | BN16: 167 | BO16: 174 | BP16: 187 | BQ16: 212 | BR16: 201 | BS16: 255 | BT16: 312 | BU16: 299 | BV16: 267 | BW16: 265 | BX16: 260 | BY16: 208 | BZ16: 240 | CA16: =BZ16*(1+'Control Data'!$C$49) -> 240 | CE16: Bachelors | CF16: 275 | CG16: 367 | CH16: 394 | CI16: 431 | CJ16: 468 | CK16: 477 | CL16: 543 | CM16: 606 | CN16: 739 | CO16: 754 | CP16: 706 | CQ16: 758 | CR16: 739 | CS16: 644 | CT16: 619
BK17: Bach & Assoc | BL17: =BL14+BL16+$V$11*BL15 -> 117 | BM17: =BM14+BM16+$V$11*BM15 -> 148 | BN17: =BN14+BN16+$V$11*BN15 -> 167 | BO17: =BO14+BO16+$V$11*BO15 -> 174 | BP17: =BP14+BP16+$V$11*BP15 -> 187 | BQ17: =BQ14+BQ16+$V$11*BQ15 -> 212 | BR17: =BR14+BR16+$V$11*BR15 -> 201 | BS17: =BS14+BS16+$V$11*BS15 -> 255 | BT17: =BT14+BT16+$V$11*BT15 -> 312 | BU17: =BU14+BU16+$V$11*BU15 -> 299 | BV17: 267 | BW17: 266 | BX17: 261.5 | BY17: =BY14+BY16+$V$11*BY15 -> 215 | BZ17: 242 | CA17: 242 | CE17: Bach & Assoc | CF17: =CF14+CF16+$V$11*CF15 -> 275 | CG17: =CG14+CG16+$V$11*CG15 -> 367 | CH17: =CH14+CH16+$V$11*CH15 -> 394 | CI17: =CI14+CI16+$V$11*CI15 -> 431 | CJ17: =CJ14+CJ16+$V$11*CJ15 -> 468 | CK17: =CK14+CK16+$V$11*CK15 -> 477 | CL17: =CL14+CL16+$V$11*CL15 -> 543 | CM17: =CM14+CM16+$V$11*CM15 -> 606 | CN17: =CN14+CN16+$V$11*CN15 -> 739 | CO17: 754 | CP17: 706 | CQ17: 761.5 | CR17: 743.5 | CS17: 658 | CT17: 624.5 | CU17: =CU14+CU16+$V$11*CU15 -> 0
B19: APSU | C19: 2004-05 | D19: 2005-06 | E19: 2006-07 | F19: 2007-08 | G19: 2008-09 | H19: 2009-10 | I19: 2010-11 | J19: 2011-12 | K19: 2012-13 | L19: 2013-14 | M19: 2014-15 | N19: 2015-16 | O19: 2016-17 | P19: 2017-18 | Q19: =Q3 -> 2018-19 | R19: =R3 -> 2019-20 | T19: Standard Dev. | X19: APSU | Y19: 2004-05 | Z19: 2005-06 | AA19: 2006-07 | AB19: 2007-08 | AC19: 2008-09 | AD19: 2009-10 | AE19: 2010-11 | AF19: 2011-12 | AG19: 2012-13 | AH19: 2013-14 | AI19: 2014-15 | AJ19: 2015-16 | AK19: 2016-17 | AL19: 2017-18 | AM19: 2018-19 | AN19: 2019-20 | AQ19: APSU | AR19: 2004-05 | AS19: 2005-06 | AT19: 2006-07 | AU19: 2007-08 | AV19: 2008-09 | AW19: 2009-10 | AX19: 2010-11 | AY19: 2011-12 | AZ19: 2012-13 | BA19: 2013-14 | BB19: 2014-15 | BC19: 2015-16 | BD19: 2016-17 | BE19: 2017-18 | BF19: 2018-19 | BG19: 2019-20 | BK19: APSU | BL19: 2004-05 | BM19: 2005-06 | BN19: 2006-07 | BO19: 2007-08 | BP19: 2008-09 | BQ19: 2009-10 | BR19: 2010-11 | BS19: 2011-12 | BT19: 2012-13 | BU19: 2013-14 | BV19: 2014-15 | BW19: 2015-16 | BX19: =BX3 -> 2016-17 | BY19: 2017-18 | BZ19: 2018-19 | CA19: =CA3 -> 2019-20 | CE19: APSU | CF19: 2004-05 | CG19: 2005-06 | CH19: 2006-07 | CI19: 2007-08 | CJ19: 2008-09 | CK19: 2009-10 | CL19: 2010-11 | CM19: 2011-12 | CN19: 2012-13 | CO19: 2013-14 | CP19: 2014-15 | CQ19: 2015-16 | CR19: 2016-17 | CS19: 2017-18 | CT19: 2018-19 | CU19: =CU3 -> 2019-20
B20: Students Accumulating 30 hrs | C20: =Y20+BL20*$V$6+BL27*$V$8 -> 2346.2 | D20: 2389.2 | E20: 2546 | F20: 2329.4 | G20: 2505.2 | H20: 2584.2 | I20: 2338.2 | J20: 2311.8 | K20: 2255 | L20: 2195.6 | M20: 2287.6 | N20: 2099.4 | O20: =AK20+BX20*$V$6+BX27*$V$8 -> 2235 | P20: 2364.8 | Q20: 2467.6 | R20: 2467.6 | T20: 136.7161927 | X20: Students Accumulating 30 hrs | Y20: 1475 | Z20: 1527 | AA20: 1621 | AB20: 1463 | AC20: 1590 | AD20: 1636 | AE20: 1482 | AF20: 1480 | AG20: 1453 | AH20: 1422 | AI20: 1495 | AJ20: 1361 | AK20: 1474 | AL20: 1584 | AM20: 1670 | AN20: =AM20*(1+'Control Data'!$D31) -> 1670 | AQ20: Associate | AR20: 128 | AS20: 138 | AT20: 131 | AU20: 109 | AV20: 158 | AW20: 134 | AX20: 225 | AY20: 241 | AZ20: 312 | BA20: 256 | BB20: 298 | BC20: 316 | BD20: 322 | BE20: 380 | BF20: 406 | BG20: =BF20*(1+'Control Data'!$D35) -> 406 | BJ20: One Focus Pop Only | BK20: Students Accumulating 30 hrs | BL20: 804 | BM20: 784 | BN20: 825 | BO20: 773 | BP20: 814 | BQ20: 879 | BR20: 804 | BS20: 746 | BT20: 800 | BU20: 747 | BV20: 792 | BW20: 748 | BX20: 785 | BY20: 866 | BZ20: 882 | CA20: =BZ20*(1+'Control Data'!$D$48) -> 882 | CD20: Adults | CE20: Students Accumulating 30 hrs | CF20: 347 | CG20: 332 | CH20: 371 | CI20: 337 | CJ20: 351 | CK20: 349 | CL20: 297 | CM20: 277 | CN20: 237 | CO20: 236 | CP20: 210 | CQ20: 201 | CR20: 185 | CS20: 140 | CT20: 141
B21: Students Accumulating 60 hrs | C21: 1804.8 | D21: 1931.2 | E21: 2134.8 | F21: 2027.6 | G21: 2181.8 | H21: 2218.6 | I21: 2053.6 | J21: 2197.8 | K21: 2323 | L21: 2285.8 | M21: 2117.4 | N21: 2372.4 | O21: =AK21+BX21*$V$6+BX28*$V$8 -> 2072.2 | P21: 2207.4 | Q21: 2189 | R21: 2189 | T21: 156.6610056 | X21: Students Accumulating 60 hrs | Y21: 1112 | Z21: 1211 | AA21: 1335 | AB21: 1279 | AC21: 1354 | AD21: 1385 | AE21: 1273 | AF21: 1358 | AG21: 1463 | AH21: 1432 | AI21: 1349 | AJ21: 1493 | AK21: 1305 | AL21: 1422 | AM21: 1459 | AN21: =AM21*(1+'Control Data'!$D32) -> 1459 | AQ21: Reverse Articulated Associates | AR21: 0 | AS21: 0 | AT21: 0 | AU21: 0 | AV21: 0 | AW21: 0 | AX21: 0 | AY21: 0 | AZ21: 0 | BA21: 0 | BB21: 0 | BC21: 33 | BD21: 25 | BE21: 30 | BF21: 40 | BG21: =BF21*(1+'Control Data'!$D36) -> 40 | BK21: Students Accumulating 60 hrs | BL21: 541 | BM21: 569 | BN21: 631 | BO21: 597 | BP21: 686 | BQ21: 647 | BR21: 637 | BS21: 676 | BT21: 700 | BU21: 746 | BV21: 673 | BW21: 793 | BX21: 689 | BY21: 743 | BZ21: 730 | CA21: =BZ21*(1+'Control Data'!$D$48) -> 730 | CE21: Students Accumulating 60 hrs | CF21: 423 | CG21: 407 | CH21: 446 | CI21: 375 | CJ21: 397 | CK21: 436 | CL21: 382 | CM21: 390 | CN21: 404 | CO21: 348 | CP21: 306 | CQ21: 319 | CR21: 315 | CS21: 271 | CT21: 226
B22: Students Accumulating 90 hrs | C22: 1490.8 | D22: 1722.8 | E22: 1974.6 | F22: 1873.2 | G22: 2163.6 | H22: 2131.6 | I22: 2096 | J22: 2209.8 | K22: 2463.4 | L22: 2427.2 | M22: 2504.4 | N22: 2278.8 | O22: =AK22+BX22*$V$6+BX29*$V$8 -> 2601.8 | P22: 2195.8 | Q22: 2392.2 | R22: 2392.2 | T22: 298.1536696 | X22: Students Accumulating 90 hrs | Y22: 931 | Z22: 1069 | AA22: 1221 | AB22: 1179 | AC22: 1339 | AD22: 1305 | AE22: 1292 | AF22: 1357 | AG22: 1504 | AH22: 1477 | AI22: 1539 | AJ22: 1396 | AK22: 1593 | AL22: 1363 | AM22: 1523 | AN22: =AM22*(1+'Control Data'!$D33) -> 1523 | AQ22: Bachelors | AR22: 914 | AS22: 1004 | AT22: 1058 | AU22: 1159 | AV22: 1161 | AW22: 1157 | AX22: 1243 | AY22: 1312 | AZ22: 1413 | BA22: 1548 | BB22: 1469 | BC22: 1557 | BD22: 1564 | BE22: 1613 | BF22: 1515 | BG22: =BF22*(1+'Control Data'!$D37) -> 1515 | BK22: Students Accumulating 90 hrs | BL22: 421 | BM22: 456 | BN22: 517 | BO22: 494 | BP22: 592 | BQ22: 577 | BR22: 565 | BS22: 631 | BT22: 683 | BU22: 694 | BV22: 728 | BW22: 661 | BX22: 761 | BY22: 646 | BZ22: 754 | CA22: =BZ22*(1+'Control Data'!$D$48) -> 754 | CE22: Students Accumulating 90 hrs | CF22: 399 | CG22: 484 | CH22: 528 | CI22: 444 | CJ22: 545 | CK22: 519 | CL22: 509 | CM22: 516 | CN22: 578 | CO22: 546 | CP22: 533 | CQ22: 469 | CR22: 517 | CS22: 432 | CT22: 383
B23: Bachelors and Associates | C23: =Y23+BL26*$V$6+BL33*$V$8 -> 1696.4 | D23: 1865.4 | E23: 1989.8 | F23: 2097.6 | G23: 2186 | H23: 2142.4 | I23: 2487.8 | J23: 2607.2 | K23: 2941.2 | L23: 3059 | M23: 2989.4 | N23: 3203.3 | O23: =AK23+BX26*$V$6+BX33*$V$8 -> 3178.8 | P23: 3354.5 | Q23: 3232.8 | R23: 3232.8 | T23: 451.8767974 | X23: Bachelors and Associates | Y23: 1042 | Z23: 1142 | AA23: 1189 | AB23: 1268 | AC23: 1319 | AD23: 1291 | AE23: 1468 | AF23: 1553 | AG23: =AZ20+AZ22+$V$11*AZ21 -> 1725 | AH23: =BA20+BA22+$V$11*BA21 -> 1804 | AI23: 1767 | AJ23: 1889.5 | AK23: 1898.5 | AL23: 2008 | AM23: 1941 | AN23: =BG20+BG22+$V$11*BG21 -> 1941 | AQ23: Masters | AR23: 123 | AS23: 219 | AT23: 215 | AU23: 214 | AV23: 250 | AW23: 267 | AX23: 289 | AY23: 320 | AZ23: 294 | BA23: 310 | BB23: 300 | BC23: 313 | BD23: 372 | BE23: 300 | BF23: 402 | BG23: =BF23*(1+'Control Data'!$D39) -> 402 | BK23: Associates | BL23: 72 | BM23: 88 | BN23: 71 | BO23: 53 | BP23: 78 | BQ23: 71 | BR23: 109 | BS23: 110 | BT23: 151 | BU23: 122 | BV23: 133 | BW23: 143 | BX23: 149 | BY23: 171 | BZ23: 185 | CA23: =BZ23*(1+'Control Data'!$D$48) -> 185 | CE23: Associates | CF23: 100 | CG23: 124 | CH23: 105 | CI23: 89 | CJ23: 131 | CK23: 110 | CL23: 181 | CM23: 182 | CN23: 226 | CO23: 163 | CP23: 188 | CQ23: 174 | CR23: 167 | CS23: 173 | CT23: 145
B24: Masters/Ed Specialist Degrees | C24: =Y24 -> 136 | D24: =Z24 -> 235 | E24: =AA24 -> 225 | F24: =AB24 -> 222 | G24: =AC24 -> 254 | H24: =AD24 -> 271 | I24: =AE24 -> 296 | J24: =AF24 -> 326 | K24: =AG24 -> 304 | L24: =AH24 -> 316 | M24: 313 | N24: 322 | O24: =AK24 -> 384 | P24: =AL24 -> 313 | Q24: =AM24 -> 411 | R24: =AN24 -> 411 | T24: 57.27952902 | X24: Masters/Ed Specialist Degrees | Y24: 136 | Z24: 235 | AA24: 225 | AB24: 222 | AC24: 254 | AD24: 271 | AE24: 296 | AF24: 326 | AG24: =AZ23+AZ24 -> 304 | AH24: =BA23+BA24 -> 316 | AI24: 313 | AJ24: 322 | AK24: 384 | AL24: 313 | AM24: 411 | AN24: =BG23+BG24 -> 411 | AQ24: Education Specialist | AR24: 13 | AS24: 16 | AT24: 10 | AU24: 8 | AV24: 4 | AW24: 4 | AX24: 7 | AY24: 6 | AZ24: 10 | BA24: 6 | BB24: 13 | BC24: 9 | BD24: 12 | BE24: 13 | BF24: 9 | BG24: =BF24*(1+'Control Data'!$D40) -> 9 | BK24: Reverse Articulated Associates | BL24: 0 | BM24: 0 | BN24: 0 | BO24: 0 | BP24: 0 | BQ24: 0 | BR24: 0 | BS24: 0 | BT24: 0 | BU24: 0 | BV24: 0 | BW24: 13 | BX24: 13 | BY24: 16 | BZ24: 16 | CA24: =BZ24*(1+'Control Data'!$D$48) -> 16 | CE24: Reverse Articulated Associates | CF24: 0 | CG24: 0 | CH24: 0 | CI24: 0 | CJ24: 0 | CK24: 0 | CL24: 0 | CM24: 0 | CN24: 0 | CO24: 0 | CP24: 0 | CQ24: 13 | CR24: 9 | CS24: 8 | CT24: 17
B25: Doctoral / Law Degrees | C25: 0 | D25: 0 | E25: 0 | F25: =AB25 -> 0 | G25: 0 | H25: 0 | I25: 0 | J25: 0 | K25: 0 | L25: 0 | M25: 0 | N25: 0 | O25: 0 | P25: 0 | Q25: 0 | R25: 0 | X25: Doctoral / Law Degrees | Y25: 0 | Z25: 0 | AA25: 0 | AB25: 0 | AC25: 0 | AD25: 0 | AE25: 0 | AF25: 0 | AG25: =SUM(AZ25:AZ27) -> 0 | AH25: =SUM(BA25:BA27) -> 0 | AI25: 0 | AJ25: 0 | AK25: 0 | AL25: 0 | AM25: 0 | AN25: =SUM(BG25:BG27) -> 0 | AQ25: Law Degrees | AR25: 0 | AS25: 0 | AT25: 0 | AU25: 0 | AV25: 0 | AW25: 0 | AX25: 0 | AY25: 0 | AZ25: 0 | BA25: 0 | BB25: 0 | BC25: 0 | BD25: 0 | BE25: 0 | BF25: 0 | BG25: =BF25*(1+'Control Data'!$D42) -> 0 | BK25: Bachelors | BL25: 401 | BM25: 425 | BN25: 480 | BO25: 504 | BP25: 472 | BQ25: 497 | BR25: 507 | BS25: 519 | BT25: 613 | BU25: 653 | BV25: 620 | BW25: 734 | BX25: 688 | BY25: 741 | BZ25: 693 | CA25: =BZ25*(1+'Control Data'!$D$48) -> 693 | CE25: Bachelors | CF25: 514 | CG25: 570 | CH25: 635 | CI25: 639 | CJ25: 629 | CK25: 603 | CL25: 680 | CM25: 683 | CN25: 765 | CO25: 780 | CP25: 732 | CQ25: 737 | CR25: 745 | CS25: 740 | CT25: 722
B26: Research, Service and Sponsored Programs | F26: =AB26 -> 2745863.53 | G26: =AC26 -> 2895210.41 | H26: =AD26 -> 3604390.46 | I26: =AE26 -> 3489372.48 | J26: =AF26 -> 3601246 | K26: =AG26 -> 2937824 | L26: =AH26 -> 2641736 | M26: 2754965 | N26: 2560618 | O26: 2811564 | P26: 3933867 | Q26: 3933867 | R26: 0 | T26: 506834.9082 | X26: Research, Service and Sponsored Programs | AB26: 2745863.53 | AC26: 2895210.41 | AD26: 3604390.46 | AE26: 3489372.48 | AF26: 3601246 | AG26: 2937824 | AH26: 2641736 | AI26: 2754965 | AJ26: 2560618 | AK26: 2811564 | AL26: 3933867 | AM26: =AL26*(1+'Control Data'!$D$45) -> 3933867 | AQ26: Degrees of Veterinary Medicine | AR26: 0 | AS26: 0 | AT26: 0 | AU26: 0 | AV26: 0 | AW26: 0 | AX26: 0 | AY26: 0 | AZ26: 0 | BA26: 0 | BB26: 0 | BC26: 0 | BD26: 0 | BE26: 0 | BF26: 0 | BG26: =BF26*(1+'Control Data'!$D43) -> 0 | BK26: Bach & Assoc | BL26: =BL23+BL25+$V$11*BL24 -> 473 | BM26: =BM23+BM25+$V$11*BM24 -> 513 | BN26: =BN23+BN25+$V$11*BN24 -> 551 | BO26: =BO23+BO25+$V$11*BO24 -> 557 | BP26: =BP23+BP25+$V$11*BP24 -> 550 | BQ26: =BQ23+BQ25+$V$11*BQ24 -> 568 | BR26: =BR23+BR25+$V$11*BR24 -> 616 | BS26: =BS23+BS25+$V$11*BS24 -> 629 | BT26: =BT23+BT25+$V$11*BT24 -> 764 | BU26: =BU23+BU25+$V$11*BU24 -> 775 | BV26: 753 | BW26: 883.5 | BX26: 843.5 | BY26: =BY23+BY25+$V$11*BY24 -> 920 | BZ26: 886 | CA26: 886 | CE26: Bach & Assoc | CF26: =CF23+CF25+$V$11*CF24 -> 614 | CG26: =CG23+CG25+$V$11*CG24 -> 694 | CH26: =CH23+CH25+$V$11*CH24 -> 740 | CI26: =CI23+CI25+$V$11*CI24 -> 728 | CJ26: =CJ23+CJ25+$V$11*CJ24 -> 760 | CK26: =CK23+CK25+$V$11*CK24 -> 713 | CL26: =CL23+CL25+$V$11*CL24 -> 861 | CM26: =CM23+CM25+$V$11*CM24 -> 865 | CN26: =CN23+CN25+$V$11*CN24 -> 991 | CO26: 943 | CP26: 920 | CQ26: 917.5 | CR26: 916.5 | CS26: 917 | CT26: 875.5 | CU26: =CU23+CU25+$V$11*CU24 -> 0
B27: Degrees per 100 FTE | C27: =Y27 -> 15.9791443 | D27: =Z27 -> 16.03354596 | E27: =AA27 -> 16.48846917 | F27: 17.97527691 | G27: 18.30190512 | H27: 17.11490362 | I27: 18.13853491 | J27: 18.44739385 | K27: 20.74805249 | L27: =AH27 -> 22.17832818 | M27: 23.32960717 | N27: 24.07108582 | O27: 23.73125 | P27: 25.2976378 | Q27: 23.95724477 | R27: 23.95724477 | T27: 2.003959746 | X27: Degrees per 100 FTE | Y27: 15.9791443 | Z27: 16.03354596 | AA27: 16.48846917 | AB27: 17.97527691 | AC27: 18.30190512 | AD27: 17.11490362 | AE27: 18.13853491 | AF27: 18.44739385 | AG27: =(AZ20+AZ22+$V$11*AZ21)/DH5*100 -> 20.74805249 | AH27: =(BA20+BA22+$V$11*BA21)/DI5*100 -> 22.17832818 | AI27: 23.32960717 | AJ27: 24.07108582 | AK27: 23.73125 | AL27: 25.2976378 | AM27: 23.95724477 | AN27: =(BG20+BG22+$V$11*BG21)/DO5*100 -> 23.95724477 | AQ27: Doctoral | AR27: 0 | AS27: 0 | AT27: 0 | AU27: 0 | AV27: 0 | AW27: 0 | AX27: 0 | AY27: 0 | AZ27: 0 | BA27: 0 | BB27: 0 | BC27: 0 | BD27: 0 | BE27: 0 | BF27: 0 | BG27: =BF27*(1+'Control Data'!$D44) -> 0 | BJ27: Two Focus Pops Only | BK27: Students Accumulating 30 hrs | BL27: 228 | BM27: 235 | BN27: 265 | BO27: 248 | BP27: 264 | BQ27: 245 | BR27: 213 | BS27: 235 | BT27: 162 | BU27: 176 | BV27: 159 | BW27: 140 | BX27: 133 | BY27: 88 | BZ27: 92 | CA27: =BZ27*(1+'Control Data'!$D$49) -> 92 | CD27: Low-Income | CE27: Students Accumulating 30 hrs | CF27: 913 | CG27: 922 | CH27: 984 | CI27: 932 | CJ27: 991 | CK27: 1020 | CL27: 933 | CM27: 939 | CN27: 887 | CO27: 863 | CP27: 900 | CQ27: 827 | CR27: 866 | CS27: 902 | CT27: 925
B28: Six-Year Graduation Rate | C28: 0.3608695652 | D28: 0.3736654804 | E28: 0.3281075028 | F28: 0.3711967546 | G28: 0.3704850361 | H28: 0.3805907173 | I28: 0.4412724307 | J28: 0.4701986755 | K28: 0.4486531987 | L28: 0.4759398496 | M28: 0.452559727 | N28: 0.4611330698 | O28: 0.4766224703 | P28: 0.4795486601 | Q28: 0.5153583618 | R28: 0.5153583618 | T28: 4.956885082 | X28: Six-Year Graduation Rate | Y28: 0.3608695652 | Z28: 0.3736654804 | AA28: 0.3281075028 | AB28: 0.3711967546 | AC28: 0.3704850361 | AD28: 0.3805907173 | AE28: 0.4412724307 | AF28: 0.4701986755 | AG28: 0.4486531987 | AH28: 0.4759398496 | AI28: 0.452559727 | AJ28: 0.4611330698 | AK28: 0.4766224703 | AL28: 0.4795486601 | AM28: 0.5153583618 | AN28: =AM28*(1+'Control Data'!$D$47) -> 0.5153583618 | BK28: Students Accumulating 60 hrs | BL28: 260 | BM28: 265 | BN28: 295 | BO28: 271 | BP28: 279 | BQ28: 316 | BR28: 271 | BS28: 299 | BT28: 300 | BU28: 257 | BV28: 230 | BW28: 245 | BX28: 216 | BY28: 191 | BZ28: 146 | CA28: =BZ28*(1+'Control Data'!$D$49) -> 146 | CE28: Students Accumulating 60 hrs | CF28: 638 | CG28: 692 | CH28: 775 | CI28: 764 | CJ28: 847 | CK28: 843 | CL28: 797 | CM28: 884 | CN28: 896 | CO28: 912 | CP28: 827 | CQ28: 964 | CR28: 806 | CS28: 854 | CT28: 796
BK29: Students Accumulating 90 hrs | BL29: 223 | BM29: 289 | BN29: 340 | BO29: 299 | BP29: 351 | BQ29: 365 | BR29: 352 | BS29: 348 | BT29: 413 | BU29: 395 | BV29: 383 | BW29: 354 | BX29: 400 | BY29: 316 | BZ29: 266 | CA29: =BZ29*(1+'Control Data'!$D$49) -> 266 | CE29: Students Accumulating 90 hrs | CF29: 468 | CG29: 550 | CH29: 669 | CI29: 648 | CJ29: 749 | CK29: 788 | CL29: 760 | CM29: 811 | CN29: 931 | CO29: 938 | CP29: 961 | CQ29: 900 | CR29: 1044 | CS29: 846 | CT29: 903
BK30: Associates | BL30: 44 | BM30: 44 | BN30: 54 | BO30: 49 | BP30: 66 | BQ30: 53 | BR30: 97 | BS30: 110 | BT30: 129 | BU30: 108 | BV30: 127 | BW30: 131 | BX30: 109 | BY30: 120 | BZ30: 92 | CA30: =BZ30*(1+'Control Data'!$D$49) -> 92 | CE30: Associates | CF30: 60 | CG30: 52 | CH30: 74 | CI30: 62 | CJ30: 79 | CK30: 67 | CL30: 122 | CM30: 148 | CN30: 183 | CO30: 175 | CP30: 199 | CQ30: 231 | CR30: 200 | CS30: 238 | CT30: 224
BK31: Reverse Articulated Associates | BL31: 0 | BM31: 0 | BN31: 0 | BO31: 0 | BP31: 0 | BQ31: 0 | BR31: 0 | BS31: 0 | BT31: 0 | BU31: 0 | BV31: 0 | BW31: 12 | BX31: 9 | BY31: 7 | BZ31: 14 | CA31: =BZ31*(1+'Control Data'!$D$49) -> 14 | CE31: Reverse Articulated Associates | CF31: 0 | CG31: 0 | CH31: 0 | CI31: 0 | CJ31: 0 | CK31: 0 | CL31: 0 | CM31: 0 | CN31: 0 | CO31: 0 | CP31: 0 | CQ31: 24 | CR31: 22 | CS31: 22 | CT31: 27
BK32: Bachelors | BL32: 232 | BM32: 269 | BN32: 306 | BO32: 335 | BP32: 361 | BQ32: 344 | BR32: 430 | BS32: 441 | BT32: 476 | BU32: 527 | BV32: 493 | BW32: 470 | BX32: 492 | BY32: 487 | BZ32: 484 | CA32: =BZ32*(1+'Control Data'!$D$49) -> 484 | CE32: Bachelors | CF32: 351 | CG32: 393 | CH32: 457 | CI32: 535 | CJ32: 565 | CK32: 582 | CL32: 687 | CM32: 718 | CN32: 800 | CO32: 927 | CP32: 874 | CQ32: 937 | CR32: 927 | CS32: 975 | CT32: 939
BK33: Bach & Assoc | BL33: =BL30+BL32+$V$11*BL31 -> 276 | BM33: =BM30+BM32+$V$11*BM31 -> 313 | BN33: =BN30+BN32+$V$11*BN31 -> 360 | BO33: =BO30+BO32+$V$11*BO31 -> 384 | BP33: =BP30+BP32+$V$11*BP31 -> 427 | BQ33: =BQ30+BQ32+$V$11*BQ31 -> 397 | BR33: =BR30+BR32+$V$11*BR31 -> 527 | BS33: =BS30+BS32+$V$11*BS31 -> 551 | BT33: =BT30+BT32+$V$11*BT31 -> 605 | BU33: =BU30+BU32+$V$11*BU31 -> 635 | BV33: 620 | BW33: 607 | BX33: 605.5 | BY33: =BY30+BY32+$V$11*BY31 -> 610.5 | BZ33: 583 | CA33: 583 | CE33: Bach & Assoc | CF33: =CF30+CF32+$V$11*CF31 -> 411 | CG33: =CG30+CG32+$V$11*CG31 -> 445 | CH33: =CH30+CH32+$V$11*CH31 -> 531 | CI33: =CI30+CI32+$V$11*CI31 -> 597 | CJ33: =CJ30+CJ32+$V$11*CJ31 -> 644 | CK33: =CK30+CK32+$V$11*CK31 -> 649 | CL33: =CL30+CL32+$V$11*CL31 -> 809 | CM33: =CM30+CM32+$V$11*CM31 -> 866 | CN33: =CN30+CN32+$V$11*CN31 -> 983 | CO33: 1102 | CP33: 1073 | CQ33: 1180 | CR33: 1138 | CS33: 1224 | CT33: 1176.5 | CU33: =CU30+CU32+$V$11*CU31 -> 0
B35: TTU | C35: 2004-05 | D35: 2005-06 | E35: 2006-07 | F35: 2007-08 | G35: 2008-09 | H35: 2009-10 | I35: 2010-11 | J35: 2011-12 | K35: 2012-13 | L35: 2013-14 | M35: 2014-15 | N35: 2015-16 | O35: 2016-17 | P35: 2017-18 | Q35: =Q19 -> 2018-19 | R35: =R19 -> 2019-20 | T35: Standard Dev. | X35: TTU | Y35: 2004-05 | Z35: 2005-06 | AA35: 2006-07 | AB35: 2007-08 | AC35: 2008-09 | AD35: 2009-10 | AE35: 2010-11 | AF35: 2011-12 | AG35: 2012-13 | AH35: 2013-14 | AI35: 2014-15 | AJ35: 2015-16 | AK35: 2016-17 | AL35: 2017-18 | AM35: 2018-19 | AN35: 2019-20 | AQ35: TTU | AR35: 2004-05 | AS35: 2005-06 | AT35: 2006-07 | AU35: 2007-08 | AV35: 2008-09 | AW35: 2009-10 | AX35: 2010-11 | AY35: 2011-12 | AZ35: 2012-13 | BA35: 2013-14 | BB35: 2014-15 | BC35: 2015-16 | BD35: 2016-17 | BE35: 2017-18 | BF35: 2018-19 | BG35: 2019-20 | BK35: TTU | BL35: 2004-05 | BM35: 2005-06 | BN35: 2006-07 | BO35: 2007-08 | BP35: 2008-09 | BQ35: 2009-10 | BR35: 2010-11 | BS35: 2011-12 | BT35: 2012-13 | BU35: 2013-14 | BV35: 2014-15 | BW35: 2015-16 | BX35: =BX19 -> 2016-17 | BY35: 2017-18 | BZ35: 2018-19 | CA35: 2019-20 | CE35: TTU | CF35: 2004-05 | CG35: 2005-06 | CH35: 2006-07 | CI35: 2007-08 | CJ35: 2008-09 | CK35: 2009-10 | CL35: 2010-11 | CM35: 2011-12 | CN35: 2012-13 | CO35: 2013-14 | CP35: 2014-15 | CQ35: 2015-16 | CR35: 2016-17 | CS35: 2017-18 | CT35: 2018-19 | CU35: =CU19 -> 2019-20
B36: Students Accumulating 30 hrs | C36: =Y36+BL36*$V$6+BL43*$V$8 -> 1713.4 | D36: 1920.6 | E36: 1917.2 | F36: 2199.4 | G36: 2251.6 | H36: 2522.8 | I36: 2162 | J36: 2259.8 | K36: 2359.4 | L36: 2560.8 | M36: 2556 | N36: 2055.8 | O36: =AK36+BX36*$V$6+BX43*$V$8 -> 1898.2 | P36: 1938.2 | Q36: 1989.8 | R36: 1989.8 | T36: 261.2634337 | X36: Students Accumulating 30 hrs | Y36: 1179 | Z36: 1368 | AA36: 1375 | AB36: 1554 | AC36: 1580 | AD36: 1772 | AE36: 1504 | AF36: 1612 | AG36: 1749 | AH36: 1858 | AI36: 1944 | AJ36: 1508 | AK36: 1404 | AL36: 1443 | AM36: 1496 | AN36: =AM36*(1+'Control Data'!$E31) -> 1496 | AQ36: Associate | AR36: 0 | AS36: 0 | AT36: 0 | AU36: 0 | AV36: 0 | AW36: 0 | AX36: 0 | AY36: 0 | AZ36: 0 | BA36: 0 | BB36: 0 | BC36: 0 | BD36: 0 | BE36: 0 | BF36: 0 | BG36: =BF36*(1+'Control Data'!$E35) -> 0 | BJ36: One Focus Pop Only | BK36: Students Accumulating 30 hrs | BL36: 598 | BM36: 642 | BN36: 634 | BO36: 758 | BP36: 787 | BQ36: 876 | BR36: 775 | BS36: 746 | BT36: 738 | BU36: 851 | BV36: 745 | BW36: 656 | BX36: 594 | BY36: 574 | BZ36: 601 | CA36: =BZ36*(1+'Control Data'!$E$48) -> 601 | CD36: Adults | CE36: Students Accumulating 30 hrs | CF36: 71 | CG36: 48 | CH36: 47 | CI36: 70 | CJ36: 67 | CK36: 70 | CL36: 48 | CM36: 68 | CN36: 54 | CO36: 65 | CP36: 39 | CQ36: 30 | CR36: 25 | CS36: 48 | CT36: 17
B37: Students Accumulating 60 hrs | C37: 1530.2 | D37: 1730.8 | E37: 1890.2 | F37: 1917.2 | G37: 2061.6 | H37: 2207.8 | I37: 2239 | J37: 2195.2 | K37: 2198.8 | L37: 2429.6 | M37: 2587.2 | N37: 2591.4 | O37: =AK37+BX37*$V$6+BX44*$V$8 -> 2344 | P37: 2218.2 | Q37: 2059.2 | R37: 2059.2 | T37: 262.8704286 | X37: Students Accumulating 60 hrs | Y37: 1081 | Z37: 1225 | AA37: 1341 | AB37: 1357 | AC37: 1456 | AD37: 1533 | AE37: 1550 | AF37: 1524 | AG37: 1534 | AH37: 1722 | AI37: 1845 | AJ37: 1887 | AK37: 1679 | AL37: 1583 | AM37: 1521 | AN37: =AM37*(1+'Control Data'!$E32) -> 1521 | AQ37: Reverse Articulated Associates | AR37: 0 | AS37: 0 | AT37: 0 | AU37: 0 | AV37: 0 | AW37: 0 | AX37: 0 | AY37: 0 | AZ37: 0 | BA37: 0 | BB37: 0 | BC37: 107 | BD37: 93 | BE37: 115 | BF37: 126 | BG37: =BF37*(1+'Control Data'!$E36) -> 126 | BK37: Students Accumulating 60 hrs | BL37: 469 | BM37: 536 | BN37: 594 | BO37: 599 | BP37: 642 | BQ37: 721 | BR37: 740 | BS37: 719 | BT37: 731 | BU37: 792 | BV37: 839 | BW37: 803 | BX37: 755 | BY37: 709 | BZ37: 599 | CA37: =BZ37*(1+'Control Data'!$E$48) -> 599 | CE37: Students Accumulating 60 hrs | CF37: 98 | CG37: 98 | CH37: 106 | CI37: 104 | CJ37: 126 | CK37: 141 | CL37: 129 | CM37: 126 | CN37: 101 | CO37: 121 | CP37: 104 | CQ37: 96 | CR37: 81 | CS37: 82 | CT37: 81
B38: Students Accumulating 90 hrs | C38: 1497.8 | D38: 1831.2 | E38: 2056.6 | F38: 2247.2 | G38: 2253.2 | H38: 2475 | I38: 2425.2 | J38: 2662.6 | K38: 2524.4 | L38: 2592.2 | M38: 2766.6 | N38: 2922.2 | O38: =AK38+BX38*$V$6+BX45*$V$8 -> 2959.8 | P38: 2789.8 | Q38: 2596.2 | R38: 2596.2 | T38: 366.2091746 | X38: Students Accumulating 90 hrs | Y38: 1064 | Z38: 1304 | AA38: 1422 | AB38: 1548 | AC38: 1555 | AD38: 1703 | AE38: 1639 | AF38: 1809 | AG38: 1706 | AH38: 1753 | AI38: 1907 | AJ38: 2021 | AK38: 2066 | AL38: 1935 | AM38: 1816 | AN38: =AM38*(1+'Control Data'!$E33) -> 1816 | AQ38: Bachelors | AR38: 1270 | AS38: 1295 | AT38: 1354 | AU38: 1445 | AV38: 1528 | AW38: 1528 | AX38: 1603 | AY38: 1696 | AZ38: 1830 | BA38: 1804 | BB38: 1857 | BC38: 1930 | BD38: 2115 | BE38: 2173 | BF38: 1966 | BG38: =BF38*(1+'Control Data'!$E37) -> 1966 | BK38: Students Accumulating 90 hrs | BL38: 396 | BM38: 479 | BN38: 592 | BO38: 649 | BP38: 639 | BQ38: 700 | BR38: 739 | BS38: 792 | BT38: 788 | BU38: 794 | BV38: 852 | BW38: 929 | BX38: 916 | BY38: 876 | BZ38: 784 | CA38: =BZ38*(1+'Control Data'!$E$48) -> 784 | CE38: Students Accumulating 90 hrs | CF38: 160 | CG38: 202 | CH38: 217 | CI38: 244 | CJ38: 232 | CK38: 273 | CL38: 252 | CM38: 273 | CN38: 236 | CO38: 247 | CP38: 248 | CQ38: 206 | CR38: 204 | CS38: 194 | CT38: 174
B39: Bachelors and Associates | C39: =Y39+BL42*$V$6+BL49*$V$8 -> 1813.4 | D39: 1865.6 | E39: 1968.2 | F39: 2126.6 | G39: 2281 | H39: 2292.4 | I39: 2383.6 | J39: 2575.6 | K39: 2792.6 | L39: 2750.6 | M39: 2820 | N39: 2994.1 | O39: =AK39+BX42*$V$6+BX49*$V$8 -> 3235.3 | P39: 3281.5 | Q39: 3022.2 | R39: 3022.2 | T39: 348.0138343 | X39: Bachelors and Associates | Y39: 1270 | Z39: 1295 | AA39: 1354 | AB39: 1445 | AC39: 1528 | AD39: 1528 | AE39: 1603 | AF39: 1696 | AG39: =AZ36+AZ38+$V$11*AZ37 -> 1830 | AH39: =BA36+BA38+$V$11*BA37 -> 1804 | AI39: 1857 | AJ39: 1983.5 | AK39: 2161.5 | AL39: 2230.5 | AM39: 2029 | AN39: =BG36+BG38+$V$11*BG37 -> 2029 | AQ39: Masters | AR39: 467 | AS39: 532 | AT39: 433 | AU39: 426 | AV39: 544 | AW39: 454 | AX39: 506 | AY39: 347 | AZ39: 312 | BA39: 300 | BB39: 310 | BC39: 300 | BD39: 367 | BE39: 331 | BF39: 358 | BG39: =BF39*(1+'Control Data'!$E39) -> 358 | BK39: Associates | BL39: 0 | BM39: 0 | BN39: 0 | BO39: 0 | BP39: 0 | BQ39: 0 | BR39: 0 | BS39: 0 | BT39: 0 | BU39: 0 | BV39: 0 | BW39: 0 | BX39: 0 | BY39: 0 | BZ39: 0 | CA39: =BZ39*(1+'Control Data'!$E$48) -> 0 | CE39: Associates | CF39: 0 | CG39: 0 | CH39: 0 | CI39: 0 | CJ39: 0 | CK39: 0 | CL39: 0 | CM39: 0 | CN39: 0 | CO39: 0 | CP39: 0 | CQ39: 0 | CR39: 0 | CS39: 0 | CT39: 0
B40: Masters/Ed Specialist Degrees | C40: =Y40 -> 652 | D40: =Z40 -> 822 | E40: =AA40 -> 705 | F40: =AB40 -> 684 | G40: =AC40 -> 804 | H40: =AD40 -> 633 | I40: =AE40 -> 644 | J40: =AF40 -> 444 | K40: =AG40 -> 376 | L40: =AH40 -> 352 | M40: 341 | N40: 327 | O40: =AK40 -> 398 | P40: =AL40 -> 364 | Q40: =AM40 -> 394 | R40: =AN40 -> 394 | T40: 166.4600052 | X40: Masters/Ed Specialist Degrees | Y40: 652 | Z40: 822 | AA40: 705 | AB40: 684 | AC40: 804 | AD40: 633 | AE40: 644 | AF40: 444 | AG40: =AZ39+AZ40 -> 376 | AH40: =BA39+BA40 -> 352 | AI40: 341 | AJ40: 327 | AK40: 398 | AL40: 364 | AM40: 394 | AN40: =BG39+BG40 -> 394 | AQ40: Education Specialist | AR40: 185 | AS40: 290 | AT40: 272 | AU40: 258 | AV40: 260 | AW40: 179 | AX40: 138 | AY40: 97 | AZ40: 64 | BA40: 52 | BB40: 31 | BC40: 27 | BD40: 31 | BE40: 33 | BF40: 36 | BG40: =BF40*(1+'Control Data'!$E40) -> 36 | BK40: Reverse Articulated Associates | BL40: 0 | BM40: 0 | BN40: 0 | BO40: 0 | BP40: 0 | BQ40: 0 | BR40: 0 | BS40: 0 | BT40: 0 | BU40: 0 | BV40: 0 | BW40: 50 | BX40: 45 | BY40: 55 | BZ40: 66 | CA40: =BZ40*(1+'Control Data'!$E$48) -> 66 | CE40: Reverse Articulated Associates | CF40: 0 | CG40: 0 | CH40: 0 | CI40: 0 | CJ40: 0 | CK40: 0 | CL40: 0 | CM40: 0 | CN40: 0 | CO40: 0 | CP40: 0 | CQ40: 28 | CR40: 27 | CS40: 28 | CT40: 24
B41: Doctoral / Law Degrees | C41: 14 | D41: 13 | E41: 22 | F41: =AB41 -> 24 | G41: 17 | H41: 19 | I41: 21 | J41: 18 | K41: 12 | L41: 23 | M41: 19 | N41: 12 | O41: 23 | P41: 19 | Q41: 25 | R41: 25 | T41: 4.270050741 | X41: Doctoral / Law Degrees | Y41: 14 | Z41: 13 | AA41: 22 | AB41: 24 | AC41: 17 | AD41: 19 | AE41: 21 | AF41: 18 | AG41: =SUM(AZ41:AZ43) -> 12 | AH41: =SUM(BA41:BA43) -> 23 | AI41: 19 | AJ41: 12 | AK41: 23 | AL41: 19 | AM41: 25 | AN41: =SUM(BG41:BG43) -> 25 | AQ41: Law Degrees | AR41: 0 | AS41: 0 | AT41: 0 | AU41: 0 | AV41: 0 | AW41: 0 | AX41: 0 | AY41: 0 | AZ41: 0 | BA41: 0 | BB41: 0 | BC41: 0 | BD41: 0 | BE41: 0 | BF41: 0 | BG41: =BF41*(1+'Control Data'!$E42) -> 0 | BK41: Bachelors | BL41: 403 | BM41: 402 | BN41: 454 | BO41: 522 | BP41: 555 | BQ41: 543 | BR41: 567 | BS41: 667 | BT41: 702 | BU41: 772 | BV41: 760 | BW41: 787 | BX41: 921 | BY41: 840 | BZ41: 821 | CA41: =BZ41*(1+'Control Data'!$E$48) -> 821 | CE41: Bachelors | CF41: 394 | CG41: 408 | CH41: 392 | CI41: 421 | CJ41: 454 | CK41: 460 | CL41: 423 | CM41: 469 | CN41: 550 | CO41: 424 | CP41: 489 | CQ41: 505 | CR41: 438 | CS41: 458 | CT41: 423
B42: Research, Service and Sponsored Programs | F42: =AB42 -> 9274441.71 | G42: =AC42 -> 10266019.76 | H42: =AD42 -> 11039730.83 | I42: =AE42 -> 10396767.69 | J42: =AF42 -> 9586008.59 | K42: =AG42 -> 11904930.47 | L42: =AH42 -> 12081470.04 | M42: 12327774.3 | N42: 12486425.04 | O42: 15115327.3 | P42: 16587502.61 | Q42: 16587502.61 | R42: 0 | T42: 940216.6718 | X42: Research, Service and Sponsored Programs | AB42: 9274441.71 | AC42: 10266019.76 | AD42: 11039730.83 | AE42: 10396767.69 | AF42: 9586008.59 | AG42: 11904930.47 | AH42: 12081470.04 | AI42: 12327774.3 | AJ42: 12486425.04 | AK42: 15115327.3 | AL42: 16587502.61 | AM42: =AL42*(1+'Control Data'!$E$45) -> 16587502.61 | AQ42: Degrees of Veterinary Medicine | AR42: 0 | AS42: 0 | AT42: 0 | AU42: 0 | AV42: 0 | AW42: 0 | AX42: 0 | AY42: 0 | AZ42: 0 | BA42: 0 | BB42: 0 | BC42: 0 | BD42: 0 | BE42: 0 | BF42: 0 | BG42: =BF42*(1+'Control Data'!$E43) -> 0 | BK42: Bach & Assoc | BL42: =BL39+BL41+$V$11*BL40 -> 403 | BM42: =BM39+BM41+$V$11*BM40 -> 402 | BN42: =BN39+BN41+$V$11*BN40 -> 454 | BO42: =BO39+BO41+$V$11*BO40 -> 522 | BP42: =BP39+BP41+$V$11*BP40 -> 555 | BQ42: =BQ39+BQ41+$V$11*BQ40 -> 543 | BR42: =BR39+BR41+$V$11*BR40 -> 567 | BS42: =BS39+BS41+$V$11*BS40 -> 667 | BT42: =BT39+BT41+$V$11*BT40 -> 702 | BU42: =BU39+BU41+$V$11*BU40 -> 772 | BV42: 760 | BW42: 812 | BX42: 943.5 | BY42: =BY39+BY41+$V$11*BY40 -> 867.5 | BZ42: 854 | CA42: 854 | CE42: Bach & Assoc | CF42: =CF39+CF41+$V$11*CF40 -> 394 | CG42: =CG39+CG41+$V$11*CG40 -> 408 | CH42: =CH39+CH41+$V$11*CH40 -> 392 | CI42: =CI39+CI41+$V$11*CI40 -> 421 | CJ42: =CJ39+CJ41+$V$11*CJ40 -> 454 | CK42: =CK39+CK41+$V$11*CK40 -> 460 | CL42: =CL39+CL41+$V$11*CL40 -> 423 | CM42: =CM39+CM41+$V$11*CM40 -> 469 | CN42: =CN39+CN41+$V$11*CN40 -> 550 | CO42: 424 | CP42: 489 | CQ42: 519 | CR42: 451.5 | CS42: 472 | CT42: 435 | CU42: =CU39+CU41+$V$11*CU40 -> 0
B43: Degrees per 100 FTE | C43: =Y43 -> 19.76838304 | D43: =Z43 -> 19.57021097 | E43: =AA43 -> 19.56185679 | F43: 19.79443016 | G43: 20.27493233 | H43: 19.08226939 | I43: 18.95247103 | J43: 19.24458935 | K43: 20.46186415 | L43: =AH43 -> 19.56262425 | M43: 19.73607298 | N43: 22.13258349 | O43: 25.0437382 | P43: 26.44610788 | Q43: 24.55009639 | R43: 24.55009639 | T43: 0.4800933589 | X43: Degrees per 100 FTE | Y43: 19.76838304 | Z43: 19.57021097 | AA43: 19.56185679 | AB43: 19.79443016 | AC43: 20.27493233 | AD43: 19.08226939 | AE43: 18.95247103 | AF43: 19.24458935 | AG43: =(AZ36+AZ38+$V$11*AZ37)/DH6*100 -> 20.46186415 | AH43: =(BA36+BA38+$V$11*BA37)/DI6*100 -> 19.56262425 | AI43: 19.73607298 | AJ43: 22.13258349 | AK43: 25.0437382 | AL43: 26.44610788 | AM43: 24.55009639 | AN43: =(BG36+BG38+$V$11*BG37)/DO6*100 -> 24.55009639 | AQ43: Doctoral | AR43: 14 | AS43: 13 | AT43: 22 | AU43: 24 | AV43: 17 | AW43: 19 | AX43: 21 | AY43: 18 | AZ43: 12 | BA43: 23 | BB43: 19 | BC43: 12 | BD43: 23 | BE43: 19 | BF43: 25 | BG43: =BF43*(1+'Control Data'!$E44) -> 25 | BJ43: Two Focus Pops Only | BK43: Students Accumulating 30 hrs | BL43: 56 | BM43: 39 | BN43: 35 | BO43: 39 | BP43: 42 | BQ43: 50 | BR43: 38 | BS43: 51 | BT43: 20 | BU43: 22 | BV43: 16 | BW43: 23 | BX43: 19 | BY43: 36 | BZ43: 13 | CA43: =BZ43*(1+'Control Data'!$E$49) -> 13 | CD43: Low-Income | CE43: Students Accumulating 30 hrs | CF43: 639 | CG43: 672 | CH43: 657 | CI43: 766 | CJ43: 804 | CK43: 906 | CL43: 803 | CM43: 780 | CN43: 724 | CO43: 830 | CP43: 738 | CQ43: 672 | CR43: 607 | CS43: 598 | CT43: 610
B44: Six-Year Graduation Rate | C44: 0.5004336513 | D44: 0.5077202543 | E44: 0.4788213628 | F44: 0.4965986395 | G44: 0.5719267655 | H44: 0.5448 | I44: 0.5649957519 | J44: 0.5791164659 | K44: 0.6021104904 | L44: 0.5987767584 | M44: 0.6185402238 | N44: 0.6009488666 | O44: 0.5844421699 | P44: 0.6390647832 | Q44: 0.6371191136 | R44: 0.6371191136 | T44: 4.397484813 | X44: Six-Year Graduation Rate | Y44: 0.5004336513 | Z44: 0.5077202543 | AA44: 0.4788213628 | AB44: 0.4965986395 | AC44: 0.5719267655 | AD44: 0.5448 | AE44: 0.5649957519 | AF44: 0.5791164659 | AG44: 0.6021104904 | AH44: 0.5987767584 | AI44: 0.6185402238 | AJ44: 0.6009488666 | AK44: 0.5844421699 | AL44: 0.6390647832 | AM44: 0.6371191136 | AN44: =AM44*(1+'Control Data'!$E$45) -> 0.6371191136 | BK44: Students Accumulating 60 hrs | BL44: 74 | BM44: 77 | BN44: 74 | BO44: 81 | BP44: 92 | BQ44: 98 | BR44: 97 | BS44: 96 | BT44: 80 | BU44: 74 | BV44: 71 | BW44: 62 | BX44: 61 | BY44: 68 | BZ44: 59 | CA44: =BZ44*(1+'Control Data'!$E$49) -> 59 | CE44: Students Accumulating 60 hrs | CF44: 519 | CG44: 592 | CH44: 636 | CI44: 657 | CJ44: 700 | CK44: 776 | CL44: 805 | CM44: 785 | CN44: 790 | CO44: 819 | CP44: 877 | CQ44: 831 | CR44: 796 | CS44: 763 | CT44: 636
BK45: Students Accumulating 90 hrs | BL45: 117 | BM45: 144 | BN45: 161 | BO45: 180 | BP45: 187 | BQ45: 212 | BR45: 195 | BS45: 220 | BT45: 188 | BU45: 204 | BV45: 178 | BW45: 158 | BX45: 161 | BY45: 154 | BZ45: 153 | CA45: =BZ45*(1+'Control Data'!$E$49) -> 153 | CE45: Students Accumulating 90 hrs | CF45: 470 | CG45: 565 | CH45: 697 | CI45: 765 | CJ45: 781 | CK45: 851 | CL45: 877 | CM45: 959 | CN45: 928 | CO45: 955 | CP45: 960 | CQ45: 1039 | CR45: 1034 | CS45: 990 | CT45: 916
BK46: Associates | BL46: 0 | BM46: 0 | BN46: 0 | BO46: 0 | BP46: 0 | BQ46: 0 | BR46: 0 | BS46: 0 | BT46: 0 | BU46: 0 | BV46: 0 | BW46: 0 | BX46: 0 | BY46: 0 | BZ46: 0 | CA46: =BZ46*(1+'Control Data'!$E$49) -> 0 | CE46: Associates | CF46: 0 | CG46: 0 | CH46: 0 | CI46: 0 | CJ46: 0 | CK46: 0 | CL46: 0 | CM46: 0 | CN46: 0 | CO46: 0 | CP46: 0 | CQ46: 0 | CR46: 0 | CS46: 0 | CT46: 0
BK47: Reverse Articulated Associates | BL47: 0 | BM47: 0 | BN47: 0 | BO47: 0 | BP47: 0 | BQ47: 0 | BR47: 0 | BS47: 0 | BT47: 0 | BU47: 0 | BV47: 0 | BW47: 26 | BX47: 24 | BY47: 24 | BZ47: 24 | CA47: =BZ47*(1+'Control Data'!$E$49) -> 24 | CE47: Reverse Articulated Associates | CF47: 0 | CG47: 0 | CH47: 0 | CI47: 0 | CJ47: 0 | CK47: 0 | CL47: 0 | CM47: 0 | CN47: 0 | CO47: 0 | CP47: 0 | CQ47: 74 | CR47: 66 | CS47: 75 | CT47: 90
BK48: Bachelors | BL48: 221 | BM48: 249 | BN48: 251 | BO48: 264 | BP48: 309 | BQ48: 330 | BR48: 327 | BS48: 346 | BT48: 401 | BU48: 329 | BV48: 355 | BW48: 348 | BX48: 307 | BY48: 345 | BZ48: 298 | CA48: =BZ48*(1+'Control Data'!$E$49) -> 298 | CE48: Bachelors | CF48: 451 | CG48: 492 | CH48: 564 | CI48: 629 | CJ48: 719 | CK48: 743 | CL48: 798 | CM48: 890 | CN48: 954 | CO48: 1006 | CP48: 981 | CQ48: 978 | CR48: 1097 | CS48: 1072 | CT48: 994
BK49: Bach & Assoc | BL49: =BL46+BL48+$V$11*BL47 -> 221 | BM49: =BM46+BM48+$V$11*BM47 -> 249 | BN49: =BN46+BN48+$V$11*BN47 -> 251 | BO49: =BO46+BO48+$V$11*BO47 -> 264 | BP49: =BP46+BP48+$V$11*BP47 -> 309 | BQ49: =BQ46+BQ48+$V$11*BQ47 -> 330 | BR49: =BR46+BR48+$V$11*BR47 -> 327 | BS49: =BS46+BS48+$V$11*BS47 -> 346 | BT49: =BT46+BT48+$V$11*BT47 -> 401 | BU49: =BU46+BU48+$V$11*BU47 -> 329 | BV49: 355 | BW49: 361 | BX49: 319 | BY49: =BY46+BY48+$V$11*BY47 -> 357 | BZ49: 310 | CA49: 310 | CE49: Bach & Assoc | CF49: =CF46+CF48+$V$11*CF47 -> 451 | CG49: =CG46+CG48+$V$11*CG47 -> 492 | CH49: =CH46+CH48+$V$11*CH47 -> 564 | CI49: =CI46+CI48+$V$11*CI47 -> 629 | CJ49: =CJ46+CJ48+$V$11*CJ47 -> 719 | CK49: =CK46+CK48+$V$11*CK47 -> 743 | CL49: =CL46+CL48+$V$11*CL47 -> 798 | CM49: =CM46+CM48+$V$11*CM47 -> 890 | CN49: =CN46+CN48+$V$11*CN47 -> 954 | CO49: 1006 | CP49: 981 | CQ49: 1015 | CR49: 1130 | CS49: 1109.5 | CT49: 1039 | CU49: =CU46+CU48+$V$11*CU47 -> 0
B51: UTC | C51: 2004-05 | D51: 2005-06 | E51: 2006-07 | F51: 2007-08 | G51: 2008-09 | H51: 2009-10 | I51: 2010-11 | J51: 2011-12 | K51: 2012-13 | L51: 2013-14 | M51: 2014-15 | N51: 2015-16 | O51: 2016-17 | P51: 2017-18 | Q51: =Q35 -> 2018-19 | R51: =R35 -> 2019-20 | T51: Standard Dev. | X51: UTC | Y51: 2004-05 | Z51: 2005-06 | AA51: 2006-07 | AB51: 2007-08 | AC51: 2008-09 | AD51: 2009-10 | AE51: 2010-11 | AF51: 2011-12 | AG51: 2012-13 | AH51: 2013-14 | AI51: 2014-15 | AJ51: 2015-16 | AK51: 2016-17 | AL51: 2017-18 | AM51: 2018-19 | AN51: 2019-20 | AQ51: UTC | AR51: 2004-05 | AS51: 2005-06 | AT51: 2006-07 | AU51: 2007-08 | AV51: 2008-09 | AW51: 2009-10 | AX51: 2010-11 | AY51: 2011-12 | AZ51: 2012-13 | BA51: 2013-14 | BB51: 2014-15 | BC51: 2015-16 | BD51: 2016-17 | BE51: 2017-18 | BF51: 2018-19 | BG51: 2019-20 | BK51: UTC | BL51: 2004-05 | BM51: 2005-06 | BN51: 2006-07 | BO51: 2007-08 | BP51: 2008-09 | BQ51: 2009-10 | BR51: 2010-11 | BS51: 2011-12 | BT51: 2012-13 | BU51: 2013-14 | BV51: 2014-15 | BW51: 2015-16 | BX51: =BX35 -> 2016-17 | BY51: 2017-18 | BZ51: 2018-19 | CA51: 2019-20 | CE51: UTC | CF51: 2004-05 | CG51: 2005-06 | CH51: 2006-07 | CI51: 2007-08 | CJ51: 2008-09 | CK51: 2009-10 | CL51: 2010-11 | CM51: 2011-12 | CN51: 2012-13 | CO51: 2013-14 | CP51: 2014-15 | CQ51: 2015-16 | CR51: 2016-17 | CS51: 2017-18 | CT51: 2018-19 | CU51: =CU35 -> 2019-20
